Workbook

Sheet START

Sheet Instructions
D2: 2020
X4: Yes
X5: No
W7: Type of Entities Range:
X8: Parent Municipality
X9: Consolidated Information
F14: START
F15: Instructions
F16: Template names
F17: Lookup and lists | W17: MTREF Range: | X17: 2013
F18: Org structure | X18: 2014
F19: Contacts | X19: 2015
F20: A1-Sum | X20: 2016
F21: A2-FinPerf SC | X21: 2017
F22: A2A | X22: 2018
F23: A3-FinPerf V | X23: 2019
F24: A3A | X24: 2020
F25: A4-FinPerf RE | X25: 2021
F26: A5-Capex | X26: 2022
F27: A5A | X27: 2023
F28: A6-FinPos | X28: 2024
F29: A7-CFlow | X29: 2025
F30: A8-ResRecon | X30: 2026
F31: A9-Asset | X31: 2027
F32: A10-SerDel
F33: SA1 | W33: MTREF Linked: | X33: 11
F34: SA2 | W34: MTREF: | X34: =INDEX(X17:X31,X33,1) -> 2023
F35: SA3
F36: SA4 | W36: Fin Year: | X36: =MTREF&"/"&RIGHT(MTREF,2)+1 -> 2023/24
F37: SA5
F38: SA6
F39: SA7
F40: SA8
F41: SA9
F42: SA10
F43: SA11
F44: SA12a
F45: SA12b
F46: SA13a
F47: SA13b
F48: SA14
F49: SA15
F50: SA16
F51: SA17
F52: SA18
F53: SA19
F54: SA20
F55: SA21
F56: SA22
F57: SA23
F58: SA24
F59: SA25
F60: SA26
F61: SA27
F62: SA28
F63: SA29
F64: SA30
F65: SA31
F66: SA32
F67: SA33
F68: SA34a
F69: SA34b
F70: SA34c
F71: SA34d
F72: SA34e
F73: SA35
F74: SA36
F75: SA37
F76: SA38
F77: LGDB_EXPORT

Sheet Template names (hidden)
A1: Common sheet headings
A2: Head1 | B2: =HLOOKUP(MTREF,Headings,2) -> 2021/22 | C2: Prior year -1
A3: Head1A | B3: =HLOOKUP(MTREF,Headings,3) -> 2020/21 | C3: Prior year -2
A4: Head1B | B4: =HLOOKUP(MTREF,Headings,4) -> 2019/20 | C4: Prior year -3
A5: Head2 | B5: =HLOOKUP(MTREF,Headings,5) -> Current Year 2022/23 | C5: Year in which budget is being prepared
A6: Head2A | B6: =HLOOKUP(MTREF,Headings,6) -> 2022/23 | C6: Year in which budget is being prepared
A7: Head3 | B7: =HLOOKUP(MTREF,Headings,7) -> 2023/24 Medium Term Revenue & Expenditure Framework | C7: MTREF name
A8: Head4 | B8: LTFS | C8: Long term financial strategy
A9: Head5 | B9: Audited Outcome
A10: Head5A | B10: Outcome
A11: Head5B | B11: Pre-audit outcome
A12: Head6 | B12: Original Budget
A13: Head7 | B13: Adjusted Budget
A14: Head8 | B14: Full Year Forecast
A15: Head9 | B15: =HLOOKUP(MTREF,Headings,8) -> Budget Year 2023/24 | C15: 1st year of MTREF | D15: Year1
A16: Head10 | B16: =HLOOKUP(MTREF,Headings,9) -> Budget Year +1 2024/25 | C16: 2nd year of MTREF | D16: Year2
A17: Head11 | B17: =HLOOKUP(MTREF,Headings,10) -> Budget Year +2 2025/26 | C17: 3rd year of MTREF | D17: Year3
A18: Head12 | B18: =HLOOKUP(MTREF,Headings,11) -> Forecast 2026/27 | C18: 1st yr of long term forecast | D18: Year4
A19: Head13 | B19: =HLOOKUP(MTREF,Headings,12) -> Forecast 2027/28 | C19: Next yr of long term forecast | D19: Year5
A20: Head14 | B20: =HLOOKUP(MTREF,Headings,13) -> Forecast 2028/29 | C20: Next yr of long term forecast | D20: Year6
A21: Head15 | B21: =HLOOKUP(MTREF,Headings,14) -> Forecast 2029/30 | C21: Next yr of long term forecast | D21: Year7
A22: Head16 | B22: =HLOOKUP(MTREF,Headings,15) -> Forecast 2030/31 | C22: Next yr of long term forecast | D22: Year8
A23: Head17 | B23: =HLOOKUP(MTREF,Headings,16) -> Forecast 2031/32 | C23: Next yr of long term forecast | D23: Year9
A24: Head18 | B24: =HLOOKUP(MTREF,Headings,17) -> Forecast 2032/33 | C24: Next yr of long term forecast | D24: Year10
A25: Head19 | B25: =HLOOKUP(MTREF,Headings,18) -> Forecast 2033/34 | C25: Next yr of long term forecast | D25: Year11
A26: Head20 | B26: =HLOOKUP(MTREF,Headings,19) -> Forecast 2034/35 | C26: Next yr of long term forecast | D26: Year12
A27: Head21 | B27: =HLOOKUP(MTREF,Headings,20) -> Forecast 2035/36 | C27: Next yr of long term forecast | D27: Year13
A28: Head22 | B28: =HLOOKUP(MTREF,Headings,21) -> Forecast 2036/37 | C28: Next yr of long term forecast | D28: Year14
A29: Head23 | B29: =HLOOKUP(MTREF,Headings,22) -> Forecast 2037/38 | C29: Next yr of long term forecast | D29: Year15
A30: Head24 | B30: Description
A31: Head25
A32: Head26 | B32: Vote Description
A33: Head27 | B33: Ref
A34: Head27a | B34: References
A35: Head28 | B35: Surplus/(Deficit) for the year | D35: Result
A36: Head29 | B36: =HLOOKUP(MTREF,Headings,23) -> Annual target 2023/24
A37: Head30 | B37: =HLOOKUP(MTREF,Headings,24) -> Revised target 2023/24
A38: Head31 | B38: Quarter ended 30 September
A39: Head32 | B39: Quarter ended 31 December
A40: Head33 | B40: Quarter ended 31 March
A41: Head34 | B41: Quarter ended 30 June
A42: Head35 | B42: Variance explanation
A43: Head36 | B43: YTD Actual 31 Dec
A44: Head37 | B44: YTD Budget 31 Dec
A45: Head38 | B45: Monthly actual
A46: Head39 | B46: YTD actual
A47: Head40 | B47: YTD budget
A48: Head41 | B48: YTD variance
A49: Head42 | B49: Surplus/ (Deficit) for the yr/period
A50: Head43 | B50: =Head3&" Summary" -> 2023/24 Medium Term Revenue & Expenditure Framework Summary
A51: Head44 | B51: 2001 Census
A52: Head45 | B52: 2011 Census
A53: Head46 | B53: - Adjustments Budget - January 2007
A54: Head47 | B54: Previous target year to complete
A55: Head48 | B55: Present value
A56: Head49
A57: Head50 | B57: Other Adjusts.
A58: Head51 | B58: Accum. Funds
A59: Head52 | B59: Multi-year capital
A60: Head53 | B60: Unfore. Unavoid.
A61: Head54 | B61: Prior Adjusted
A62: Head55 | B62: Nat. or Prov. Govt
A63: Head56 | B63: Total Adjusts.
A64: SFPerf1 | B64: Budgeted Financial Performance
A65: SFPerf2 | B65: Forecast Financial Performance
A66: SFPos1 | B66: Budgeted Financial Position
A67: SFPos2 | B67: Forecast Financial Position
A68: Cash1 | B68: Budget Cash Flow
A69: Cash2 | B69: Forecast Cash Flow
A70: RandM | B70: Expenditure includes repairs & maintenance of R'000
A71: Depart1 | B71: Department 1 - | D71: DEP1
A72: Depart2 | B72: Department 2 - | D72: DEP2
A73: Depart3 | B73: Department 3 - | D73: DEP3
A74: Depart4 | B74: Department 4 - | D74: DEP4
A75: Depart5 | B75: Department 5 - | D75: DEP5
A76: Depart6 | B76: Department 6 - | D76: DEP6
A77: Depart7 | B77: Department 7 - | D77: DEP7
A78: Depart8 | B78: Department 8 - | D78: DEP8
A79: Depart9 | B79: Department 9 - | D79: DEP9
A80: Depart10 | B80: Department 10 - | D80: DEP10
A81: Depart11 | B81: Department 11 - | D81: DEP11
A82: Depart12 | B82: Department 12 - | D82: DEP12
A83: Depart13 | B83: Department 13 - | D83: DEP13
A84: Depart14 | B84: Department 14 - | D84: DEP14
A87: Base year of forecast column selection names
A88: Choose | B88: ACT
B89: APP
B90: ADJ
A92: Standard nomenclature
A93: Muni | B93: ='Lookup and lists'!B28 -> 0
A94: Municipal Entities | B94: 2 | C94: Type of report: | D94: 2
A95: =IF((MuniEntities=1)*(MuniType=2),"YES","NO") -> NO | B95: Does this municipality have entities (consolidated budget and entity budgets required)? YES/NO
A96: Entity 1 | B96: (Pty) Ltd Example 1 - Municipal entity - | D96: Ent1
A97: Entity 2 | B97: (Pty) Ltd Example 2 - Municipal entity - | D97: Ent2
A98: Entity 3 | B98: Municipal Entity Example 3 | D98: Ent3
A99: Budget approval tables | C99: Chart x-ref | D99: Sch/Tab/Ch | E99: Alternative for municipalities without entities | F99: Alternative for municipalities without entities
B100: =IF(Consolques="YES",E100,F100) -> Table A1 Budget Summary | D100: Table A1 | E100: =D100&"Consolidated Budget Summary" -> Table A1 Consolidated Budget Summary | F100: =D100&"Budget Summary" -> Table A1 Budget Summary
B101: Table A2 Budgeted Financial Performance (revenue and expenditure by functional classification) | C101: Charts 5, 6 | D101: Table A2 | E101: =D101&"Consolidated Budgeted Financial Performance (revenue and expenditure by functional classification)" -> Table A2 Consolidated Budgeted Financial Performance (revenue and expenditure by functional classification) | F101: =D101&"Budgeted Financial Performance (revenue and expenditure by functional classification)" -> Table A2 Budgeted Financial Performance (revenue and expenditure by functional classification)
B102: Table A3 Budgeted Financial Performance (revenue and expenditure by municipal vote) | D102: Table A3 | E102: =D102&"Consolidated Budgeted Financial Performance (revenue and expenditure by municipal vote)" -> Table A3 Consolidated Budgeted Financial Performance (revenue and expenditure by municipal vote) | F102: =D102&"Budgeted Financial Performance (revenue and expenditure by municipal vote)" -> Table A3 Budgeted Financial Performance (revenue and expenditure by municipal vote)
B103: Table A4 Budgeted Financial Performance (revenue and expenditure) | C103: Charts 1, 2, 3, 4 | D103: Table A4 | E103: =D103&"Consolidated Budgeted Financial Performance (revenue and expenditure)" -> Table A4 Consolidated Budgeted Financial Performance (revenue and expenditure) | F103: =D103&"Budgeted Financial Performance (revenue and expenditure)" -> Table A4 Budgeted Financial Performance (revenue and expenditure)
B104: Table A5 Budgeted Capital Expenditure by vote, functional classification and funding | C104: Charts 7, 8, 9, 10, 20 | D104: Table A5 | E104: =D104&"Consolidated Budgeted Capital Expenditure by vote, functional classification and funding" -> Table A5 Consolidated Budgeted Capital Expenditure by vote, functional classification and funding | F104: =D104&"Budgeted Capital Expenditure by vote, functional classification and funding" -> Table A5 Budgeted Capital Expenditure by vote, functional classification and funding
B105: Table A6 Budgeted Financial Position | D105: Table A6 | E105: =D105&"Consolidated Budgeted Financial Position" -> Table A6 Consolidated Budgeted Financial Position | F105: =D105&"Budgeted Financial Position" -> Table A6 Budgeted Financial Position
B106: Table A7 Budgeted Cash Flows | D106: Table A7 | E106: =D106&"Consolidated Budgeted Cash Flows" -> Table A7 Consolidated Budgeted Cash Flows | F106: =D106&"Budgeted Cash Flows" -> Table A7 Budgeted Cash Flows
B107: Table A8 Cash backed reserves/accumulated surplus reconciliation | D107: Table A8 | E107: =D107&"Consolidated Cash backed reserves/accumulated surplus reconciliation" -> Table A8 Consolidated Cash backed reserves/accumulated surplus reconciliation | F107: =D107&"Cash backed reserves/accumulated surplus reconciliation" -> Table A8 Cash backed reserves/accumulated surplus reconciliation
B108: Table A9 Asset Management | D108: Table A9 | E108: =D108&"Consolidated Asset Management" -> Table A9 Consolidated Asset Management | F108: =D108&"Asset Management" -> Table A9 Asset Management
B109: Table A10 Basic service delivery measurement | D109: Table A10 | E109: =D109&"Consolidated basic service delivery measurement" -> Table A10 Consolidated basic service delivery measurement | F109: =D109&"Basic service delivery measurement" -> Table A10 Basic service delivery measurement
A110: Supportinging Tables to the Budget Approval Tables | C110: =$C$99 -> Chart x-ref | D110: =$D$99 -> Sch/Tab/Ch
A111: Supporting Table SA1 | B111: =A111&" Supportinging detail to 'Budgeted Financial Performance'" -> Supporting Table SA1 Supportinging detail to 'Budgeted Financial Performance'
A112: Supporting Table SA2 | B112: =IF(Consolques="YES",E112,F112) -> Supporting Table SA2 Matrix Financial Performance Budget (revenue source/expenditure type and dept.) | E112: =A112&"Consolidated Matrix Financial Performance Budget (revenue source/expenditure type & dept.)" -> Supporting Table SA2 Consolidated Matrix Financial Performance Budget (revenue source/expenditure type & dept.) | F112: =A112&"Matrix Financial Performance Budget (revenue source/expenditure type and dept.)" -> Supporting Table SA2 Matrix Financial Performance Budget (revenue source/expenditure type and dept.)
A113: Supporting Table SA3 | B113: =A113&"Supportinging detail to 'Budgeted Financial Position'" -> Supporting Table SA3 Supportinging detail to 'Budgeted Financial Position'
A114: Supporting Table SA4 | B114: =A114&"Reconciliation of IDP strategic objectives and budget (revenue)" -> Supporting Table SA4 Reconciliation of IDP strategic objectives and budget (revenue) | C114: Chart 11
A115: Supporting Table SA5 | B115: =A115&"Reconciliation of IDP strategic objectives and budget (operating expenditure)" -> Supporting Table SA5 Reconciliation of IDP strategic objectives and budget (operating expenditure) | C115: Chart 12
A116: Supporting Table SA6 | B116: =A116&"Reconciliation of IDP strategic objectives and budget (capital expenditure)" -> Supporting Table SA6 Reconciliation of IDP strategic objectives and budget (capital expenditure) | C116: Chart 13
A117: Supporting Table SA7 | B117: =A117&" Measureable performance objectives" -> Supporting Table SA7 Measureable performance objectives
A118: Supporting Table SA8 | B118: =A118&" Performance indicators and benchmarks" -> Supporting Table SA8 Performance indicators and benchmarks | C118: Chts 15-19
A119: Supporting Table SA9 | B119: =A119&" Social, economic and demographic statistics and assumptions" -> Supporting Table SA9 Social, economic and demographic statistics and assumptions
A120: Supporting Table SA10 | B120: =A120&" Funding measurement" -> Supporting Table SA10 Funding measurement | C120: Chart 14
A121: Supporting Table SA11 | B121: =A121&" Property rates summary" -> Supporting Table SA11 Property rates summary
A122: Supporting Table SA12a | B122: =A122&" Property rates by category (current year)" -> Supporting Table SA12a Property rates by category (current year)
A123: Supporting Table SA12b | B123: =A123&" Property rates by category (budget year)" -> Supporting Table SA12b Property rates by category (budget year)
A124: Supporting Table SA13a | B124: =A124&" Service Tariffs by category" -> Supporting Table SA13a Service Tariffs by category
A125: Supporting Table SA13b | B125: =A125&" Service Tariffs by category - explanatory" -> Supporting Table SA13b Service Tariffs by category - explanatory
A126: Supporting Table SA14 | B126: =A126&" Household bills" -> Supporting Table SA14 Household bills
A127: Supporting Table SA15 | B127: =A127&" Investment particulars by type" -> Supporting Table SA15 Investment particulars by type
A128: Supporting Table SA16 | B128: =A128&" Investment particulars by maturity" -> Supporting Table SA16 Investment particulars by maturity
A129: Supporting Table SA17 | B129: =A129&" Borrowing" -> Supporting Table SA17 Borrowing
A130: Supporting Table SA18 | B130: =A130&" Transfers and grant receipts" -> Supporting Table SA18 Transfers and grant receipts
A131: Supporting Table SA19 | B131: =A131&" Expenditure on transfers and grant programme" -> Supporting Table SA19 Expenditure on transfers and grant programme
A132: Supporting Table SA20 | B132: =A132&" Reconciliation of transfers, grant receipts and unspent funds" -> Supporting Table SA20 Reconciliation of transfers, grant receipts and unspent funds
A133: Supporting Table SA21 | B133: =A133&" Transfers and grants made by the municipality" -> Supporting Table SA21 Transfers and grants made by the municipality
A134: Supporting Table SA22 | B134: =A134&" Summary councillor and staff benefits" -> Supporting Table SA22 Summary councillor and staff benefits
A135: Supporting Table SA23 | B135: =A135&" Salaries, allowances & benefits (political office bearers/councillors/senior managers)" -> Supporting Table SA23 Salaries, allowances & benefits (political office bearers/councillors/senior managers)
A136: Supporting Table SA24 | B136: =A136&" Summary of personnel numbers" -> Supporting Table SA24 Summary of personnel numbers
A137: Supporting Table SA25 | B137: =IF(Consolques="YES",E137,F137) -> Supporting Table SA25 Budgeted monthly revenue and expenditure | E137: =A137&" Consolidated budgeted monthly revenue and expenditure" -> Supporting Table SA25 Consolidated budgeted monthly revenue and expenditure | F137: =A137&" Budgeted monthly revenue and expenditure" -> Supporting Table SA25 Budgeted monthly revenue and expenditure
A138: Supporting Table SA26 | B138: Supporting Table SA26 Budgeted monthly revenue and expenditure (municipal vote) | E138: =A138&" Consolidated budgeted monthly revenue and expenditure (municipal vote)" -> Supporting Table SA26 Consolidated budgeted monthly revenue and expenditure (municipal vote) | F138: =A138&" Budgeted monthly revenue and expenditure (municipal vote)" -> Supporting Table SA26 Budgeted monthly revenue and expenditure (municipal vote)
A139: Supporting Table SA27 | B139: Supporting Table SA27 Budgeted monthly revenue and expenditure (functional classification) | E139: =A139&" Consolidated budgeted monthly revenue and expenditure (functional classification)" -> Supporting Table SA27 Consolidated budgeted monthly revenue and expenditure (functional classification) | F139: =A139&" Budgeted monthly revenue and expenditure (functional classification)" -> Supporting Table SA27 Budgeted monthly revenue and expenditure (functional classification)
A140: Supporting Table SA28 | B140: Supporting Table SA28 Budgeted monthly capital expenditure (municipal vote) | E140: =A140&" Consolidated budgeted monthly capital expenditure (municipal vote)" -> Supporting Table SA28 Consolidated budgeted monthly capital expenditure (municipal vote) | F140: =A140&" Budgeted monthly capital expenditure (municipal vote)" -> Supporting Table SA28 Budgeted monthly capital expenditure (municipal vote)
A141: Supporting Table SA29 | B141: Supporting Table SA29 Budgeted monthly capital expenditure (functional classification) | E141: =A141&" Consolidated budgeted monthly capital expenditure (functional classification)" -> Supporting Table SA29 Consolidated budgeted monthly capital expenditure (functional classification) | F141: =A141&" Budgeted monthly capital expenditure (functional classification)" -> Supporting Table SA29 Budgeted monthly capital expenditure (functional classification)
A142: Supporting Table SA30 | B142: Supporting Table SA30 Budgeted monthly cash flow | E142: =A142&" Consolidated budgeted monthly cash flow" -> Supporting Table SA30 Consolidated budgeted monthly cash flow | F142: =A142&" Budgeted monthly cash flow" -> Supporting Table SA30 Budgeted monthly cash flow
A143: Supporting Table SA31 | B143: NOT REQUIRED - municipality does not have entities | E143: =A143&" Aggregated entity budget" -> Supporting Table SA31 Aggregated entity budget | F143: NOT REQUIRED - municipality does not have entities
A144: Supporting Table SA32 | B144: =A144&" List of external mechanisms" -> Supporting Table SA32 List of external mechanisms
A145: Supporting Table SA33 | B145: =A145&" Contracts having future budgetary implications" -> Supporting Table SA33 Contracts having future budgetary implications
A146: Supporting Table SA34a | B146: =IF(Consolques="YES",E146,F146) -> Supporting Table SA34a Capital expenditure on new assets by asset class | E146: =A146&" Consolidated capital expenditure on new assets by asset class" -> Supporting Table SA34a Consolidated capital expenditure on new assets by asset class | F146: =A146&" Capital expenditure on new assets by asset class" -> Supporting Table SA34a Capital expenditure on new assets by asset class
A147: Supporting Table SA34b | B147: Supporting Table SA34b Capital expenditure on the renewal of existing assets by asset class | E147: =A147&" Consolidated capital expenditure on the renewal of existing assets by asset class" -> Supporting Table SA34b Consolidated capital expenditure on the renewal of existing assets by asset class | F147: =A147&" Capital expenditure on the renewal of existing assets by asset class" -> Supporting Table SA34b Capital expenditure on the renewal of existing assets by asset class
A148: Supporting Table SA34c | B148: Supporting Table SA34c Repairs and maintenance expenditure by asset class | E148: =A148&" Consolidated repairs and maintenance by asset class" -> Supporting Table SA34c Consolidated repairs and maintenance by asset class | F148: =A148&" Repairs and maintenance expenditure by asset class" -> Supporting Table SA34c Repairs and maintenance expenditure by asset class
A149: Supporting Table SA34d | B149: =IF(Consolques="YES",E149,F149) -> Supporting Table SA34d Depreciation by asset class | E149: =A149&" Consolidated Depreciation by asset class" -> Supporting Table SA34d Consolidated Depreciation by asset class | F149: =A149&" Depreciation by asset class" -> Supporting Table SA34d Depreciation by asset class
A150: Supporting Table SA34e | B150: =IF(Consolques="YES",E150,F150) -> Supporting Table SA34e Capital expenditure on the upgrading of existing assets by asset class | E150: =A150&" Consolidated capital expenditure on the upgrading of existing assets by asset class" -> Supporting Table SA34e Consolidated capital expenditure on the upgrading of existing assets by asset class | F150: =A150&" Capital expenditure on the upgrading of existing assets by asset class" -> Supporting Table SA34e Capital expenditure on the upgrading of existing assets by asset class
A151: Supporting Table SA35 | B151: Supporting Table SA35 Future financial implications of the capital budget | E151: =A151&" Consolidated future financial implications of the capital budget" -> Supporting Table SA35 Consolidated future financial implications of the capital budget | F151: =A151& " Future financial implications of the capital budget" -> Supporting Table SA35 Future financial implications of the capital budget
A152: Supporting Table SA36 | B152: Supporting Table SA36 Detailed capital budget | E152: =A152&" Consolidated detailed capital budget" -> Supporting Table SA36 Consolidated detailed capital budget | F152: =A152& " Detailed capital budget" -> Supporting Table SA36 Detailed capital budget
A153: Supporting Table SA37 | B153: Supporting Table SA37 Projects delayed from previous financial year/s | E153: =A153&" Consolidated projects delayed from previous financial year/s" -> Supporting Table SA37 Consolidated projects delayed from previous financial year/s | F153: =A153& " Projects delayed from previous financial year/s" -> Supporting Table SA37 Projects delayed from previous financial year/s
A154: Supporting Table SA38 | B154: =IF(Consolques="YES",E154,F154) -> Supporting Table SA38 Detailed operational projects | E154: =A154&" Consolidated detailed operational projects" -> Supporting Table SA38 Consolidated detailed operational projects | F154: =A154& " Detailed operational projects" -> Supporting Table SA38 Detailed operational projects
A156: Budget Charts | B156: Charts | C156: Cross reference
A157: Chart A1 | B157: =A157&"Revenue by Municipal Vote" -> Chart A1 Revenue by Municipal Vote
A158: Chart A2 | B158: =A158&"Expenditure by Municipal Vote" -> Chart A2 Expenditure by Municipal Vote
A159: Chart A3 | B159: =A159&"Revenue by Standard Classification" -> Chart A3 Revenue by Standard Classification | C159: A2
A160: Chart A4 | B160: =A160&"Expenditure by Standard Classification" -> Chart A4 Expenditure by Standard Classification | C160: A2
A161: Chart A5 | B161: =A161&"Revenue by Major Source (refer 'Minor' source for 'Other Revenue' allocation" -> Chart A5 Revenue by Major Source (refer 'Minor' source for 'Other Revenue' allocation | C161: A3
A162: Chart A6 | B162: =A162&"Revenue by Minor Source (Other)" -> Chart A6 Revenue by Minor Source (Other) | C162: A3
A163: Chart A7 | B163: =A163&"Expenditure by Major Type" -> Chart A7 Expenditure by Major Type | C163: A3
A164: Chart A8 | B164: =A164&"Expenditure by Minor Type (Other)" -> Chart A8 Expenditure by Minor Type (Other) | C164: A3
A165: Chart A9 | B165: =A165&"Capital Expenditure by Municipal Vote/Appropriation (Major)" -> Chart A9 Capital Expenditure by Municipal Vote/Appropriation (Major) | C165: A5
A166: Chart A10 | B166: =A166&"Capital Expenditure by Municipal Vote/Appropriation (Minor)" -> Chart A10 Capital Expenditure by Municipal Vote/Appropriation (Minor) | C166: A5
A167: Chart A11 | B167: =A166&"Capital Expenditure by Standard Classification" -> Chart A10 Capital Expenditure by Standard Classification | C167: A5
A168: Chart A12 | B168: =A168&"Capital expenditure performance trend" -> Chart A12 Capital expenditure performance trend | C168: A5
A169: Chart A13 | B169: =A169&"Capital funding by Source" -> Chart A13 Capital funding by Source | C169: A5
A170: Chart A14 | B170: =A170&"Cash flow trend" -> Chart A14 Cash flow trend | C170: A7
A171: Chart A15 | B171: =A171&"IDP Strategic Objective - Revenue" -> Chart A15 IDP Strategic Objective - Revenue | C171: Table A4
A172: Chart A16 | B172: =A172&"IDP Strategic Objective - Expenditure" -> Chart A16 IDP Strategic Objective - Expenditure | C172: Table A5
A173: Chart A17 | B173: =A173&"IDP Strategic Objective - Capital Expenditure" -> Chart A17 IDP Strategic Objective - Capital Expenditure | C173: Table A6
A174: Chart A18 | B174: =A174&"Debt (borrowing to Total Revenue)" -> Chart A18 Debt (borrowing to Total Revenue) | C174: Table A8
A175: Chart A19 | B175: =A175&"Debtors' trend analysis" -> Chart A19 Debtors' trend analysis | C175: Table A8
A176: Chart A20 | B176: =A176&"Distribution losses" -> Chart A20 Distribution losses | C176: Table A8
A177: Chart A21 | B177: =A177&"Borrowed funding of capital expenditure" -> Chart A21 Borrowed funding of capital expenditure | C177: Table A8
A178: Chart A22 | B178: =A178&"Expenditure analysis (% of Revenue)" -> Chart A22 Expenditure analysis (% of Revenue) | C178: Table A8
A179: Chart A23 | B179: =A179&"Increases in service charges" -> Chart A23 Increases in service charges | C179: Table A10

Sheet Lookup and lists (hidden)
A1: Description | B1: 2013 | C1: 2014 | D1: 2015 | E1: 2016 | F1: 2017 | G1: 2018 | H1: 2019 | I1: 2020 | J1: 2021 | K1: 2022 | L1: 2023 | M1: 2024 | N1: 2025 | O1: 2026 | Q1: Lists | Y1: Grants: | Z1: National - opex | AA1: Provincial - opex | AB1: National - capex | AC1: Provincial - capex
A2: ='Template names'!C2 -> Prior year -1 | B2: =B1-2&"/"&RIGHT(B1,2)-1 -> 2011/12 | C2: 2012/13 | D2: 2013/14 | E2: 2014/15 | F2: 2015/16 | G2: 2016/17 | H2: 2017/18 | I2: 2018/19 | J2: =J1-2&"/"&RIGHT(J1,2)-1 -> 2019/20 | K2: 2020/21 | L2: 2021/22 | M2: 2022/23 | N2: 2023/24 | O2: 2024/25 | Q2: Yes | R2: <1 | S2: <4 | T2: Market | U2: Land & impr. | V2: Yes | W2: Uniform | X2: Yrs | Z2: Local Government Equitable Share | AA2: Health subsidy | AB2: Municipal Infrastructure Grant (MIG) | AC2: Agriculture
A3: ='Template names'!C3 -> Prior year -2 | B3: =B1-3&"/"&RIGHT(B1,2)-2 -> 2010/11 | C3: 2011/12 | D3: 2012/13 | E3: 2013/14 | F3: 2014/15 | G3: 2015/16 | H3: 2016/17 | I3: 2017/18 | J3: =J1-3&"/"&RIGHT(J1,2)-2 -> 2018/19 | K3: 2019/20 | L3: 2020/21 | M3: 2021/22 | N3: 2022/23 | O3: 2023/24 | Q3: No | R3: 1 | S3: 4 | T3: Dep.Replace | U3: Land only | V3: No | W3: Variable | X3: Mths | Z3: RSC Levy Replacement | AA3: Ambulance subsidy | AB3: Public Transport and Systems | AC3: Education
A4: ='Template names'!C4 -> Prior year -3 | B4: =B1-4&"/"&RIGHT(B1,2)-3 -> 2009/10 | C4: 2010/11 | D4: 2011/12 | E4: 2012/13 | F4: 2013/14 | G4: 2014/15 | H4: 2015/16 | I4: 2016/17 | J4: =J1-4&"/"&RIGHT(J1,2)-3 -> 2017/18 | K4: 2018/19 | L4: 2019/20 | M4: 2020/21 | N4: 2021/22 | O4: 2022/23 | R4: 2 | S4: 5 | T4: Other | U4: Other | Z4: Finance Management | AA4: Housing | AB4: Rural Transport Services and Infrastructure | AC4: Health
A5: ='Template names'!C5 -> Year in which budget is being prepared | B5: ="Current Year "& B1-1&"/"&RIGHT(B1,2) -> Current Year 2012/13 | C5: Current Year 2013/14 | D5: Current Year 2014/15 | E5: Current Year 2015/16 | F5: Current Year 2016/17 | G5: Current Year 2017/18 | H5: Current Year 2018/19 | I5: Current Year 2019/20 | J5: ="Current Year "& J1-1&"/"&RIGHT(J1,2) -> Current Year 2020/21 | K5: Current Year 2021/22 | L5: Current Year 2022/23 | M5: Current Year 2023/24 | N5: Current Year 2024/25 | O5: Current Year 2025/26 | R5: 3 | S5: 6 | Z5: Municipal Systems Improvement | AA5: Sport and Recreation | AB5: Regional Bulk Infrastructure | AC5: Housing and Local Government
A6: ='Template names'!C6 -> Year in which budget is being prepared | B6: =B1-1&"/"&RIGHT(B1,2) -> 2012/13 | C6: 2013/14 | D6: 2014/15 | E6: 2015/16 | F6: 2016/17 | G6: 2017/18 | H6: 2018/19 | I6: 2019/20 | J6: =J1-1&"/"&RIGHT(J1,2) -> 2020/21 | K6: 2021/22 | L6: 2022/23 | M6: 2023/24 | N6: 2024/25 | O6: 2025/26 | R6: 4 | S6: 6-10 | Z6: Water Services Operating Subsidy | AB6: Rural Households Infrastructure | AC6: Other Departments
A7: ='Template names'!C7 -> MTREF name | B7: =B1&"/"&RIGHT(B1,2)+1&" Medium Term Revenue & Expenditure Framework" -> 2013/14 Medium Term Revenue & Expenditure Framework | C7: 2014/15 Medium Term Revenue & Expenditure Framework | D7: 2015/16 Medium Term Revenue & Expenditure Framework | E7: 2016/17 Medium Term Revenue & Expenditure Framework | F7: 2017/18 Medium Term Revenue & Expenditure Framework | G7: 2018/19 Medium Term Revenue & Expenditure Framework | H7: 2019/20 Medium Term Revenue & Expenditure Framework | I7: 2020/21 Medium Term Revenue & Expenditure Framework | J7: =J1&"/"&RIGHT(J1,2)+1&" Medium Term Revenue & Expenditure Framework" -> 2021/22 Medium Term Revenue & Expenditure Framework | K7: 2022/23 Medium Term Revenue & Expenditure Framework | L7: 2023/24 Medium Term Revenue & Expenditure Framework | M7: 2024/25 Medium Term Revenue & Expenditure Framework | N7: 2025/26 Medium Term Revenue & Expenditure Framework | O7: 2026/27 Medium Term Revenue & Expenditure Framework | R7: 5 | S7: >10 | Z7: Energy Efficiency and Demand Management | AB7: Neighbourhood Development Partnership | AC7: Public Works, Roads, Transport
A8: ='Template names'!C15 -> 1st year of MTREF | B8: ="Budget Year "&B1&"/"&RIGHT(B1,2)+1 -> Budget Year 2013/14 | C8: Budget Year 2014/15 | D8: Budget Year 2015/16 | E8: Budget Year 2016/17 | F8: Budget Year 2017/18 | G8: Budget Year 2018/19 | H8: Budget Year 2019/20 | I8: Budget Year 2020/21 | J8: ="Budget Year "&J1&"/"&RIGHT(J1,2)+1 -> Budget Year 2021/22 | K8: Budget Year 2022/23 | L8: Budget Year 2023/24 | M8: Budget Year 2024/25 | N8: Budget Year 2025/26 | O8: Budget Year 2026/27 | R8: >5 | Z8: Integrated National Electrification Programme | AB8: 2010 FIFA World Cup Stadiums Development | AC8: Sport and Recreation
A9: ='Template names'!C16 -> 2nd year of MTREF | B9: ="Budget Year +1 "&B1+1&"/"&RIGHT(B1,2)+2 -> Budget Year +1 2014/15 | C9: Budget Year +1 2015/16 | D9: Budget Year +1 2016/17 | E9: Budget Year +1 2017/18 | F9: Budget Year +1 2018/19 | G9: Budget Year +1 2019/20 | H9: Budget Year +1 2020/21 | I9: Budget Year +1 2021/22 | J9: ="Budget Year +1 "&J1+1&"/"&RIGHT(J1,2)+2 -> Budget Year +1 2022/23 | K9: Budget Year +1 2023/24 | L9: Budget Year +1 2024/25 | M9: Budget Year +1 2025/26 | N9: Budget Year +1 2026/27 | O9: Budget Year +1 2027/28 | Z9: Municipal Drought Relief
A10: ='Template names'!C17 -> 3rd year of MTREF | B10: ="Budget Year +2 "&B1+2&"/"&RIGHT(B1,2)+3 -> Budget Year +2 2015/16 | C10: Budget Year +2 2016/17 | D10: Budget Year +2 2017/18 | E10: Budget Year +2 2018/19 | F10: Budget Year +2 2019/20 | G10: Budget Year +2 2020/21 | H10: Budget Year +2 2021/22 | I10: Budget Year +2 2022/23 | J10: ="Budget Year +2 "&J1+2&"/"&RIGHT(J1,2)+3 -> Budget Year +2 2023/24 | K10: Budget Year +2 2024/25 | L10: Budget Year +2 2025/26 | M10: Budget Year +2 2026/27 | N10: Budget Year +2 2027/28 | O10: Budget Year +2 2028/29 | Z10: 2010 FIFA World Cup Operating
A11: ='Template names'!C18 -> 1st yr of long term forecast | B11: ="Forecast "&B1+3&"/"&RIGHT(B1,2)+4 -> Forecast 2016/17 | C11: Forecast 2017/18 | D11: Forecast 2018/19 | E11: Forecast 2019/20 | F11: Forecast 2020/21 | G11: Forecast 2021/22 | H11: Forecast 2022/23 | I11: Forecast 2023/24 | J11: ="Forecast "&J1+3&"/"&RIGHT(J1,2)+4 -> Forecast 2024/25 | K11: Forecast 2025/26 | L11: Forecast 2026/27 | M11: Forecast 2027/28 | N11: Forecast 2028/29 | O11: Forecast 2029/30 | Z11: Electricity Demand Side Management
A12: ='Template names'!C19 -> Next yr of long term forecast | B12: ="Forecast "&B1+4&"/"&RIGHT(B1,2)+5 -> Forecast 2017/18 | C12: Forecast 2018/19 | D12: Forecast 2019/20 | E12: Forecast 2020/21 | F12: Forecast 2021/22 | G12: Forecast 2022/23 | H12: Forecast 2023/24 | I12: Forecast 2024/25 | J12: ="Forecast "&J1+4&"/"&RIGHT(J1,2)+5 -> Forecast 2025/26 | K12: Forecast 2026/27 | L12: Forecast 2027/28 | M12: Forecast 2028/29 | N12: Forecast 2029/30 | O12: Forecast 2030/31 | Z12: EPWP Incentive
A13: ='Template names'!C20 -> Next yr of long term forecast | B13: ="Forecast "&B1+5&"/"&RIGHT(B1,2)+6 -> Forecast 2018/19 | C13: Forecast 2019/20 | D13: Forecast 2020/21 | E13: Forecast 2021/22 | F13: Forecast 2022/23 | G13: Forecast 2023/24 | H13: Forecast 2024/25 | I13: Forecast 2025/26 | J13: ="Forecast "&J1+5&"/"&RIGHT(J1,2)+6 -> Forecast 2026/27 | K13: Forecast 2027/28 | L13: Forecast 2028/29 | M13: Forecast 2029/30 | N13: Forecast 2030/31 | O13: Forecast 2031/32
A14: ='Template names'!C21 -> Next yr of long term forecast | B14: ="Forecast "&B1+6&"/"&RIGHT(B1,2)+7 -> Forecast 2019/20 | C14: Forecast 2020/21 | D14: Forecast 2021/22 | E14: Forecast 2022/23 | F14: Forecast 2023/24 | G14: Forecast 2024/25 | H14: Forecast 2025/26 | I14: Forecast 2026/27 | J14: ="Forecast "&J1+6&"/"&RIGHT(J1,2)+7 -> Forecast 2027/28 | K14: Forecast 2028/29 | L14: Forecast 2029/30 | M14: Forecast 2030/31 | N14: Forecast 2031/32 | O14: Forecast 2032/33 | Z14: Asset Class | AA14: Asset sub-class old | AB14: Asset sub-class | AC14: IUDF | AD14: MTSF
A15: ='Template names'!C22 -> Next yr of long term forecast | B15: ="Forecast "&B1+7&"/"&RIGHT(B1,2)+8 -> Forecast 2020/21 | C15: Forecast 2021/22 | D15: Forecast 2022/23 | E15: Forecast 2023/24 | F15: Forecast 2024/25 | G15: Forecast 2025/26 | H15: Forecast 2026/27 | I15: Forecast 2027/28 | J15: ="Forecast "&J1+7&"/"&RIGHT(J1,2)+8 -> Forecast 2028/29 | K15: Forecast 2029/30 | L15: Forecast 2030/31 | M15: Forecast 2031/32 | N15: Forecast 2032/33 | O15: Forecast 2033/34
A16: ='Template names'!C23 -> Next yr of long term forecast | B16: ="Forecast "&B1+8&"/"&RIGHT(B1,2)+9 -> Forecast 2021/22 | C16: Forecast 2022/23 | D16: Forecast 2023/24 | E16: Forecast 2024/25 | F16: Forecast 2025/26 | G16: Forecast 2026/27 | H16: Forecast 2027/28 | I16: Forecast 2028/29 | J16: ="Forecast "&J1+8&"/"&RIGHT(J1,2)+9 -> Forecast 2029/30 | K16: Forecast 2030/31 | L16: Forecast 2031/32 | M16: Forecast 2032/33 | N16: Forecast 2033/34 | O16: Forecast 2034/35 | Z16: Roads Infrastructure | AA16: Roads, Pavements & Bridges | AB16: Roads | AC16: Spatial integration | AD16: Quality basic education
A17: ='Template names'!C24 -> Next yr of long term forecast | B17: ="Forecast "&B1+9&"/"&RIGHT(B1,2)+10 -> Forecast 2022/23 | C17: Forecast 2023/24 | D17: Forecast 2024/25 | E17: Forecast 2025/26 | F17: Forecast 2026/27 | G17: Forecast 2027/28 | H17: Forecast 2028/29 | I17: Forecast 2029/30 | J17: ="Forecast "&J1+9&"/"&RIGHT(J1,2)+10 -> Forecast 2030/31 | K17: Forecast 2031/32 | L17: Forecast 2032/33 | M17: Forecast 2033/34 | N17: Forecast 2034/35 | O17: Forecast 2035/36 | Z17: Storm water Infrastructure | AA17: Storm water | AB17: Road Structures | AC17: Inclusion and access | AD17: A long and healthy life for all South Africans
A18: ='Template names'!C25 -> Next yr of long term forecast | B18: ="Forecast "&B1+10&"/"&RIGHT(B1,2)+11 -> Forecast 2023/24 | C18: Forecast 2024/25 | D18: Forecast 2025/26 | E18: Forecast 2026/27 | F18: Forecast 2027/28 | G18: Forecast 2028/29 | H18: Forecast 2029/30 | I18: Forecast 2030/31 | J18: ="Forecast "&J1+10&"/"&RIGHT(J1,2)+11 -> Forecast 2031/32 | K18: Forecast 2032/33 | L18: Forecast 2033/34 | M18: Forecast 2034/35 | N18: Forecast 2035/36 | O18: Forecast 2036/37 | Z18: Electrical Infrastructure | AA18: Generation | AB18: Road Furniture | AC18: Growth | AD18: All people in South Africa are and feel safe
A19: ='Template names'!C26 -> Next yr of long term forecast | B19: ="Forecast "&B1+11&"/"&RIGHT(B1,2)+12 -> Forecast 2024/25 | C19: Forecast 2025/26 | D19: Forecast 2026/27 | E19: Forecast 2027/28 | F19: Forecast 2028/29 | G19: Forecast 2029/30 | H19: Forecast 2030/31 | I19: Forecast 2031/32 | J19: ="Forecast "&J1+11&"/"&RIGHT(J1,2)+12 -> Forecast 2032/33 | K19: Forecast 2033/34 | L19: Forecast 2034/35 | M19: Forecast 2035/36 | N19: Forecast 2036/37 | O19: Forecast 2037/38 | Z19: Water Supply Infrastructure | AA19: Transmission & Reticulation | AB19: Capital Spares | AC19: Governance | AD19: Decent employment through inclusive growth
A20: ='Template names'!C27 -> Next yr of long term forecast | B20: ="Forecast "&B1+12&"/"&RIGHT(B1,2)+13 -> Forecast 2025/26 | C20: Forecast 2026/27 | D20: Forecast 2027/28 | E20: Forecast 2028/29 | F20: Forecast 2029/30 | G20: Forecast 2030/31 | H20: Forecast 2031/32 | I20: Forecast 2032/33 | J20: ="Forecast "&J1+12&"/"&RIGHT(J1,2)+13 -> Forecast 2033/34 | K20: Forecast 2034/35 | L20: Forecast 2035/36 | M20: Forecast 2036/37 | N20: Forecast 2037/38 | O20: Forecast 2038/39 | Z20: Sanitation Infrastructure | AA20: Street Lighting | AB20: Drainage Collection | AD20: A skilled and capable workforce to support an inclusive growth path
A21: ='Template names'!C28 -> Next yr of long term forecast | B21: ="Forecast "&B1+13&"/"&RIGHT(B1,2)+14 -> Forecast 2026/27 | C21: Forecast 2027/28 | D21: Forecast 2028/29 | E21: Forecast 2029/30 | F21: Forecast 2030/31 | G21: Forecast 2031/32 | H21: Forecast 2032/33 | I21: Forecast 2033/34 | J21: ="Forecast "&J1+13&"/"&RIGHT(J1,2)+14 -> Forecast 2034/35 | K21: Forecast 2035/36 | L21: Forecast 2036/37 | M21: Forecast 2037/38 | N21: Forecast 2038/39 | O21: Forecast 2039/40 | Z21: Solid Waste Infrastructure | AA21: Dams & Reservoirs | AB21: Storm water Conveyance | AD21: An efficient, competitive and responsive economic infrastructure network
A22: ='Template names'!C29 -> Next yr of long term forecast | B22: ="Forecast "&B1+14&"/"&RIGHT(B1,2)+15 -> Forecast 2027/28 | C22: Forecast 2028/29 | D22: Forecast 2029/30 | E22: Forecast 2030/31 | F22: Forecast 2031/32 | G22: Forecast 2032/33 | H22: Forecast 2033/34 | I22: Forecast 2034/35 | J22: ="Forecast "&J1+14&"/"&RIGHT(J1,2)+15 -> Forecast 2035/36 | K22: Forecast 2036/37 | L22: Forecast 2037/38 | M22: Forecast 2038/39 | N22: Forecast 2039/40 | O22: Forecast 2040/41 | Z22: Rail Infrastructure | AA22: Water purification | AB22: Attenuation | AD22: Vibrant, equitable, sustainable rural communities contributing towards food security for all
A23: Adjustments Budget | B23: ="Annual target " & B1&"/"&RIGHT(B1,2)+1 -> Annual target 2013/14 | C23: Annual target 2014/15 | D23: Annual target 2015/16 | E23: Annual target 2016/17 | F23: Annual target 2017/18 | G23: Annual target 2018/19 | H23: Annual target 2019/20 | I23: Annual target 2020/21 | J23: ="Annual target " & J1&"/"&RIGHT(J1,2)+1 -> Annual target 2021/22 | K23: Annual target 2022/23 | L23: Annual target 2023/24 | M23: Annual target 2024/25 | N23: Annual target 2025/26 | O23: Annual target 2026/27 | Z23: Coastal Infrastructure | AA23: Reticulation | AB23: Power Plants | AD23: Sustainable human settlements and improved quality of household life
A24: =A23 -> Adjustments Budget | B24: ="Revised target "& B1&"/"&RIGHT(B1,2)+1 -> Revised target 2013/14 | C24: Revised target 2014/15 | D24: Revised target 2015/16 | E24: Revised target 2016/17 | F24: Revised target 2017/18 | G24: Revised target 2018/19 | H24: Revised target 2019/20 | I24: Revised target 2020/21 | J24: ="Revised target "& J1&"/"&RIGHT(J1,2)+1 -> Revised target 2021/22 | K24: Revised target 2022/23 | L24: Revised target 2023/24 | M24: Revised target 2024/25 | N24: Revised target 2025/26 | O24: Revised target 2026/27 | Z24: Information and Communication Infrastructure | AA24: Sewerage purification | AB24: HV Substations | AD24: Responsive, accountable, effective and efficient local government
A25: NOTE: This sheet should not be directly amended - select headings from sheet 'S' | Z25: Community Facilities | AA25: Waste Management | AB25: HV Switching Station | AD25: Protect and enhance our environmental assets and natural resources
Z26: Sport and Recreation Facilities | AA26: Transportation | AB26: HV Transmission Conductors | AD26: Create a better South Africa and contribute to a better Africa and a better world
A27: Name link | B27: 273 | Z27: Heritage assets | AA27: Gas | AB27: MV Substations | AD27: An efficient, effective and development-oriented public service
A28: Name of Muni | B28: =INDEX(B29:B307,B27,1) -> 0 | Z28: Revenue Generating | AA28: Parks & gardens | AB28: MV Switching Stations | AD28: A comprehensive, responsive and sustainable social protection system
B29: Choose name from list | C29: Set name on 'Instructions' sheet | Z29: Non-revenue Generating | AA29: Sportsfields & stadia | AB29: MV Networks | AD29: A diverse, socially cohesive society with a common national identity
B30: BUF Buffalo City | C30: EC EASTERN CAPE | Z30: Operational Buildings | AA30: Swimming pools | AB30: LV Networks
B31: NMA Nelson Mandela Bay | C31: EC EASTERN CAPE | Z31: Housing | AA31: Community halls | AB31: Capital Spares
B32: EC101 Dr Beyers Naude | C32: EC EASTERN CAPE | Z32: Biological or Cultivated Assets | AA32: Libraries | AB32: Dams and Weirs
B33: EC102 Blue Crane Route | C33: EC EASTERN CAPE | Z33: Servitudes | AA33: Recreational facilities | AB33: Boreholes
B34: EC104 Makana | C34: EC EASTERN CAPE | Z34: Licences and Rights | AA34: Fire, safety & emergency | AB34: Reservoirs
B35: EC105 Ndlambe | C35: EC EASTERN CAPE | Z35: Computer Equipment | AA35: Security and policing | AB35: Pump Stations
B36: EC106 Sundays River Valley | C36: EC EASTERN CAPE | Z36: Furniture and Office Equipment | AA36: Buses | AB36: Water Treatment Works
B37: EC108 Kouga | C37: EC EASTERN CAPE | Z37: Machinery and Equipment | AA37: Clinics | AB37: Bulk Mains
B38: EC109 Kou-Kamma | C38: EC EASTERN CAPE | Z38: Transport Assets | AA38: Museums & Art Galleries | AB38: Distribution
B39: DC10 Sarah Baartman | C39: EC EASTERN CAPE | Z39: Land | AA39: Cemeteries | AB39: Distribution Points
B40: EC121 Mbhashe | C40: EC EASTERN CAPE | Z40: Zoo's, Marine and Non-biological Animals | AA40: Social rental housing | AB40: PRV Stations
B41: EC122 Mnquma | C41: EC EASTERN CAPE | AA41: Buildings | AB41: Capital Spares
B42: EC123 Great Kei | C42: EC EASTERN CAPE | AA42: Housing development | AB42: Pump Station
B43: EC124 Amahlathi | C43: EC EASTERN CAPE | AA43: General vehicles | AB43: Reticulation
B44: EC126 Ngqushwa | C44: EC EASTERN CAPE | AA44: Specialised vehicles - Refuse | AB44: Waste Water Treatment Works
B45: EC129 Raymond Mhlaba | C45: EC EASTERN CAPE | AA45: Specialised vehicles - Fire | AB45: Outfall Sewers
B46: DC12 Amathole | C46: EC EASTERN CAPE | AA46: Specialised vehicles - Conservancy | AB46: Toilet Facilities
B47: EC131 Inxuba Yethemba | C47: EC EASTERN CAPE | AA47: Specialised vehicles - Ambulances | AB47: Capital Spares
B48: EC135 Intsika Yethu | C48: EC EASTERN CAPE | AA48: Plant & equipment | AB48: Landfill Sites
B49: EC136 Emalahleni (Ec) | C49: EC EASTERN CAPE | AA49: Computers - hardware/equipment | AB49: Waste Transfer Stations
B50: EC137 Engcobo | C50: EC EASTERN CAPE | AA50: Furniture and other office equipment | AB50: Waste Processing Facilities
B51: EC138 Sakhisizwe | C51: EC EASTERN CAPE | AA51: Abattoirs | AB51: Waste Drop-off Points
B52: EC139 Enoch Mgijima | C52: EC EASTERN CAPE | AA52: Markets | AB52: Waste Separation Facilities
B53: DC13 Chris Hani | C53: EC EASTERN CAPE | AA53: Civic Land and Buildings | AB53: Electricity Generation Facilities
B54: EC141 Elundini | C54: EC EASTERN CAPE | AA54: Other Buildings | AB54: Capital Spares
B55: EC142 Senqu | C55: EC EASTERN CAPE | AA55: Other Land | AB55: Rail Lines
B56: EC145 Walter Sisulu | C56: EC EASTERN CAPE | AA56: Surplus Assets - (Investment or Inventory) | AB56: Rail Structures
B57: DC14 Joe Gqabi | C57: EC EASTERN CAPE | AA57: Computers - software & programming | AB57: Rail Furniture
B58: EC153 Ngquza Hills | C58: EC EASTERN CAPE | AA58: Other | AB58: Drainage Collection
B59: EC154 Port St Johns | C59: EC EASTERN CAPE | AB59: Storm water Conveyance
B60: EC155 Nyandeni | C60: EC EASTERN CAPE | Z60: SA16 - Investments | AB60: Attenuation
B61: EC156 Mhlontlo | C61: EC EASTERN CAPE | Z61: Security | AA61: Interest rate | AB61: MV Substations
B62: EC157 King Sabata Dalindyebo | C62: EC EASTERN CAPE | Z62: Yes | AA62: Fixed | AB62: LV Networks
B63: DC15 O .R. Tambo | C63: EC EASTERN CAPE | Z63: No | AA63: Variable | AB63: Capital Spares
B64: EC441 Matatiele | C64: EC EASTERN CAPE | AB64: Sand Pumps
B65: EC442 Umzimvubu | C65: EC EASTERN CAPE | AB65: Piers
B66: EC443 Winnie Madikizela Mandela | C66: EC EASTERN CAPE | Z66: SA36, SA37 - Capital projects | AB66: Revetments
B67: EC444 Ntabankulu | C67: EC EASTERN CAPE | Z67: Yes | AB67: Promenades
B68: DC44 Alfred Nzo | C68: EC EASTERN CAPE | Z68: No | AB68: Capital Spares
B69: MAN Mangaung | C69: FS FREE STATE | AB69: Data Centres
B70: FS161 Letsemeng | C70: FS FREE STATE | AB70: Core Layers
B71: FS162 Kopanong | C71: FS FREE STATE | AB71: Distribution Layers
B72: FS163 Mohokare | C72: FS FREE STATE | AB72: Capital Spares
B73: DC16 Xhariep | C73: FS FREE STATE | AB73: Halls
B74: FS181 Masilonyana | C74: FS FREE STATE | AB74: Centres
B75: FS182 Tokologo | C75: FS FREE STATE | AB75: Crèches
B76: FS183 Tswelopele | C76: FS FREE STATE | AB76: Clinics/Care Centres
B77: FS184 Matjhabeng | C77: FS FREE STATE | AB77: Fire/Ambulance Stations
B78: FS185 Nala | C78: FS FREE STATE | AB78: Testing Stations
B79: DC18 Lejweleputswa | C79: FS FREE STATE | AB79: Museums
B80: FS191 Setsoto | C80: FS FREE STATE | AB80: Galleries
B81: FS192 Dihlabeng | C81: FS FREE STATE | AB81: Theatres
B82: FS193 Nketoana | C82: FS FREE STATE | AB82: Libraries
B83: FS194 Maluti-a-Phofung | C83: FS FREE STATE | AB83: Cemeteries/Crematoria
B84: FS195 Phumelela | C84: FS FREE STATE | AB84: Police
B85: FS196 Mantsopa | C85: FS FREE STATE | AB85: Purls
B86: DC19 Thabo Mofutsanyana | C86: FS FREE STATE | AB86: Public Open Space
B87: FS201 Moqhaka | C87: FS FREE STATE | AB87: Nature Reserves
B88: FS203 Ngwathe | C88: FS FREE STATE | AB88: Public Ablution Facilities
B89: FS204 Metsimaholo | C89: FS FREE STATE | AB89: Markets
B90: FS205 Mafube | C90: FS FREE STATE | AB90: Stalls
B91: DC20 Fezile Dabi | C91: FS FREE STATE | AB91: Abattoirs
B92: EKU City of Ekurhuleni | C92: GT GAUTENG | AB92: Airports
B93: JHB City Of Johannesburg | C93: GT GAUTENG | AB93: Taxi Ranks/Bus Terminals
B94: TSH City Of Tshwane | C94: GT GAUTENG | AB94: Capital Spares
B95: GT421 Emfuleni | C95: GT GAUTENG | AB95: Indoor Facilities
B96: GT422 Midvaal | C96: GT GAUTENG | AB96: Outdoor Facilities
B97: GT423 Lesedi | C97: GT GAUTENG | AB97: Capital Spares
B98: DC42 Sedibeng | C98: GT GAUTENG | AB98: Monuments
B99: GT481 Mogale City | C99: GT GAUTENG | AB99: Historic Buildings
B100: GT484 Merafong City | C100: GT GAUTENG | AB100: Works of Art
B101: GT485 Rand West City | C101: GT GAUTENG | AB101: Conservation Areas
B102: DC48 West Rand | C102: GT GAUTENG | AB102: Other Heritage
B103: ETH eThekwini | C103: KZN KWAZULU-NATAL | AB103: Improved Property
B104: KZN212 Umdoni | C104: KZN KWAZULU-NATAL | AB104: Unimproved Property
B105: KZN213 Umzumbe | C105: KZN KWAZULU-NATAL | AB105: Municipal Offices
B106: KZN214 uMuziwabantu | C106: KZN KWAZULU-NATAL | AB106: Pay/Enquiry Points
B107: KZN216 Ray Nkonyeni | C107: KZN KWAZULU-NATAL | AB107: Building Plan Offices
B108: DC21 Ugu | C108: KZN KWAZULU-NATAL | AB108: Workshops
B109: KZN221 uMshwathi | C109: KZN KWAZULU-NATAL | AB109: Yards
B110: KZN222 uMngeni | C110: KZN KWAZULU-NATAL | AB110: Stores
B111: KZN223 Mpofana | C111: KZN KWAZULU-NATAL | AB111: Laboratories
B112: KZN224 Impendle | C112: KZN KWAZULU-NATAL | AB112: Training Centres
B113: KZN225 Msunduzi | C113: KZN KWAZULU-NATAL | AB113: Manufacturing Plant
B114: KZN226 Mkhambathini | C114: KZN KWAZULU-NATAL | AB114: Depots
B115: KZN227 Richmond | C115: KZN KWAZULU-NATAL | AB115: Capital Spares
B116: DC22 uMgungundlovu | C116: KZN KWAZULU-NATAL | AB116: Staff Housing
B117: KZN235 Okhahlamba | C117: KZN KWAZULU-NATAL | AB117: Social Housing
B118: KZN237 Inkosi Langalibalele | C118: KZN KWAZULU-NATAL | AB118: Capital Spares
B119: KZN238 Alfred Duma | C119: KZN KWAZULU-NATAL | AB119: Water Rights
B120: DC23 Uthukela | C120: KZN KWAZULU-NATAL | AB120: Effluent Licenses
B121: KZN241 Endumeni | C121: KZN KWAZULU-NATAL | AB121: Solid Waste Licenses
B122: KZN242 Nquthu | C122: KZN KWAZULU-NATAL | AB122: Computer Software and Applications
B123: KZN244 Msinga | C123: KZN KWAZULU-NATAL | AB123: Load Settlement Software Applications
B124: KZN245 Umvoti | C124: KZN KWAZULU-NATAL | AB124: Unspecified
B125: DC24 Umzinyathi | C125: KZN KWAZULU-NATAL
B126: KZN252 Newcastle | C126: KZN KWAZULU-NATAL
B127: KZN253 Emadlangeni | C127: KZN KWAZULU-NATAL
B128: KZN254 Dannhauser | C128: KZN KWAZULU-NATAL
B129: DC25 Amajuba | C129: KZN KWAZULU-NATAL
B130: KZN261 eDumbe | C130: KZN KWAZULU-NATAL
B131: KZN262 uPhongolo | C131: KZN KWAZULU-NATAL
B132: KZN263 Abaqulusi | C132: KZN KWAZULU-NATAL
B133: KZN265 Nongoma | C133: KZN KWAZULU-NATAL
B134: KZN266 Ulundi | C134: KZN KWAZULU-NATAL
B135: DC26 Zululand | C135: KZN KWAZULU-NATAL
B136: KZN271 Umhlabuyalingana | C136: KZN KWAZULU-NATAL
B137: KZN272 Jozini | C137: KZN KWAZULU-NATAL
B138: KZN275 Mtubatuba | C138: KZN KWAZULU-NATAL
B139: KZN276 Hlabisa Big Five | C139: KZN KWAZULU-NATAL
B140: DC27 Umkhanyakude | C140: KZN KWAZULU-NATAL
B141: KZN281 Mfolozi | C141: KZN KWAZULU-NATAL
B142: KZN282 uMhlathuze | C142: KZN KWAZULU-NATAL
B143: KZN284 uMlalazi | C143: KZN KWAZULU-NATAL
B144: KZN285 Mthonjaneni | C144: KZN KWAZULU-NATAL
B145: KZN286 Nkandla | C145: KZN KWAZULU-NATAL
B146: DC28 King Cetshwayo | C146: KZN KWAZULU-NATAL
B147: KZN291 Mandeni | C147: KZN KWAZULU-NATAL
B148: KZN292 KwaDukuza | C148: KZN KWAZULU-NATAL
B149: KZN293 Ndwedwe | C149: KZN KWAZULU-NATAL
B150: KZN294 Maphumulo | C150: KZN KWAZULU-NATAL
B151: DC29 iLembe | C151: KZN KWAZULU-NATAL
B152: KZN433 Greater Kokstad | C152: KZN KWAZULU-NATAL
B153: KZN434 Ubuhlebezwe | C153: KZN KWAZULU-NATAL
B154: KZN435 Umzimkhulu | C154: KZN KWAZULU-NATAL
B155: KZN436 Dr Nkosazana Dlamini Zuma | C155: KZN KWAZULU-NATAL
B156: DC43 Harry Gwala | C156: KZN KWAZULU-NATAL
B157: LIM331 Greater Giyani | C157: LIM LIMPOPO
B158: LIM332 Greater Letaba | C158: LIM LIMPOPO
B159: LIM333 Greater Tzaneen | C159: LIM LIMPOPO
B160: LIM334 Ba-Phalaborwa | C160: LIM LIMPOPO
B161: LIM335 Maruleng | C161: LIM LIMPOPO
B162: DC33 Mopani | C162: LIM LIMPOPO
B163: LIM341 Musina | C163: LIM LIMPOPO
B164: LIM343 Thulamela | C164: LIM LIMPOPO
B165: LIM344 Makhado | C165: LIM LIMPOPO
B166: LIM345 Collins Chabane | C166: LIM LIMPOPO
B167: DC34 Vhembe | C167: LIM LIMPOPO
B168: LIM351 Blouberg | C168: LIM LIMPOPO
B169: LIM353 Molemole | C169: LIM LIMPOPO
B170: LIM354 Polokwane | C170: LIM LIMPOPO
B171: LIM355 Lepelle-Nkumpi | C171: LIM LIMPOPO
B172: DC35 Capricorn | C172: LIM LIMPOPO
B173: LIM361 Thabazimbi | C173: LIM LIMPOPO
B174: LIM362 Lephalale | C174: LIM LIMPOPO
B175: LIM366 Bela Bela | C175: LIM LIMPOPO
B176: LIM367 Mogalakwena | C176: LIM LIMPOPO
B177: LIM368 Modimolle-Mookgopong | C177: LIM LIMPOPO
B178: DC36 Waterberg | C178: LIM LIMPOPO
B179: LIM471 Ephraim Mogale | C179: LIM LIMPOPO
B180: LIM472 Elias Motsoaledi | C180: LIM LIMPOPO
B181: LIM473 Makhuduthamaga | C181: LIM LIMPOPO
B182: LIM476 Tubatse Fetakgomo | C182: LIM LIMPOPO
B183: DC47 Sekhukhune | C183: LIM LIMPOPO
B184: MP301 Albert Luthuli | C184: MP MPUMALANGA
B185: MP302 Msukaligwa | C185: MP MPUMALANGA
B186: MP303 Mkhondo | C186: MP MPUMALANGA
B187: MP304 Pixley Ka Seme (MP) | C187: MP MPUMALANGA
B188: MP305 Lekwa | C188: MP MPUMALANGA
B189: MP306 Dipaleseng | C189: MP MPUMALANGA
B190: MP307 Govan Mbeki | C190: MP MPUMALANGA
B191: DC30 Gert Sibande | C191: MP MPUMALANGA
B192: MP311 Victor Khanye | C192: MP MPUMALANGA
B193: MP312 Emalahleni (Mp) | C193: MP MPUMALANGA
B194: MP313 Steve Tshwete | C194: MP MPUMALANGA
B195: MP314 Emakhazeni | C195: MP MPUMALANGA
B196: MP315 Thembisile Hani | C196: MP MPUMALANGA
B197: MP316 Dr J.S. Moroka | C197: MP MPUMALANGA
B198: DC31 Nkangala | C198: MP MPUMALANGA
B199: MP321 Thaba Chweu | C199: MP MPUMALANGA
B200: MP324 Nkomazi | C200: MP MPUMALANGA
... 87 more rows

Sheet Org structure
A1: Organisational Structure Votes | C1: Organisational Structure Sub-Votes | E1: Display Sub-Votes
A2: Vote 1 - City Manager | B2: Vote 1 | C2: City Manager
A3: Vote 2 - City Finance | B3: 1.1 | C3: Internal Audit and Compliance | D3: =CONCATENATE(B3, " - ", C3) -> 1,1 - Internal Audit and Compliance | E3: 1.1 - Internal Audit and Compliance
A4: Vote 3 - Corporate Services | B4: 1.2 | C4: Office of the City Manager | D4: 1,2 - Office of the City Manager | E4: 1.2 - Office of the City Manager
A5: Vote 4 - Community Services and Social Equity | B5: 1.3 | C5: Political Support | D5: 1,3 - Political Support | E5: 1.3 - Political Support
A6: Vote 5 - Infrastructure Services | B6: 1.4 | C6: Strategic Planning | D6: 1,4 - Strategic Planning | E6: 1.4 - Strategic Planning
A7: Vote 6 - Sustainable Development and City Enterprises | B7: 1.5 | C7: [Name of sub-vote] | D7: 1.5 - [Name of sub-vote]
A8: Vote 7 - Electricity | B8: 1.6 | C8: [Name of sub-vote] | D8: 1.6 - [Name of sub-vote]
A9: =B79&" - "&C79 -> Vote 8 - [NAME OF VOTE 8] | B9: 1.7 | C9: [Name of sub-vote] | D9: 1.7 - [Name of sub-vote]
A10: =B90&" - "&C90 -> Vote 9 - [NAME OF VOTE 9] | B10: 1.8 | C10: [Name of sub-vote] | D10: 1.8 - [Name of sub-vote]
A11: =B101&" - "&C101 -> Vote 10 - [NAME OF VOTE 10] | B11: 1.9 | C11: [Name of sub-vote] | D11: 1.9 - [Name of sub-vote]
A12: =B112&" - "&C112 -> Vote 11 - [NAME OF VOTE 11] | B12: 1.10 | C12: [Name of sub-vote] | D12: 1.10 - [Name of sub-vote]
A13: =B123&" - "&C123 -> Vote 12 - [NAME OF VOTE 12] | B13: Vote 2 | C13: City Finance
A14: =B134&" - "&C134 -> Vote 13 - [NAME OF VOTE 13] | B14: 2.1 | C14: Asset Management | D14: =CONCATENATE(B14, " - ", C14) -> 2,1 - Asset Management | E14: 2.1 - Asset Management
A15: =B145&" - "&C145 -> Vote 14 - [NAME OF VOTE 14] | B15: 2.2 | C15: Budget and Treasury Management | D15: 2,2 - Budget and Treasury Management | E15: 2.2 - Budget and Treasury Management
A16: =B156&" - "&C156 -> Vote 15 - [NAME OF VOTE 15] | B16: 2.3 | C16: Expenditure Management | D16: 2,3 - Expenditure Management | E16: 2.3 - Expenditure Management
B17: 2.4 | C17: Revenue Management | D17: 2,4 - Revenue Management | E17: 2.4 - Revenue Management
B18: 2.5 | C18: Supply Chain Management | D18: 2,5 - Supply Chain Management | E18: 2.5 - Supply Chain Management
B19: 2.6 | C19: [Name of sub-vote] | D19: 2.6 - [Name of sub-vote]
B20: 2.7 | C20: [Name of sub-vote] | D20: 2.7 - [Name of sub-vote]
B21: 2.8 | C21: [Name of sub-vote] | D21: 2.8 - [Name of sub-vote]
B22: 2.9 | C22: [Name of sub-vote] | D22: 2.9 - [Name of sub-vote]
B23: 2.10 | C23: [Name of sub-vote] | D23: 2.10 - [Name of sub-vote]
B24: Vote 3 | C24: Corporate Services
B25: 3.1 | C25: Human Resources Management | D25: =CONCATENATE(B25, " - ", C25) -> 3,1 - Human Resources Management | E25: Corporate Services
B26: 3.2 | C26: Information Technology | D26: 3,2 - Information Technology | E26: Human Resources Management
B27: 3.3 | C27: Legal Services | D27: 3,3 - Legal Services | E27: Information Technology
B28: 3.4 | C28: Secretariat and Auxiliary Services | D28: 3,4 - Secretariat and Auxiliary Services | E28: Legal Services
B29: 3.5 | C29: General Manager: Corporate Service | D29: 3,5 - General Manager: Corporate Service | E29: Secretariat and Auxiliary Services
B30: 3.6 | C30: [Name of sub-vote] | D30: 3.6 - [Name of sub-vote] | E30: General Manager: Corporate Service
B31: 3.7 | C31: [Name of sub-vote] | D31: 3.7 - [Name of sub-vote]
B32: 3.8 | C32: [Name of sub-vote] | D32: 3.8 - [Name of sub-vote]
B33: 3.9 | C33: [Name of sub-vote] | D33: 3.9 - [Name of sub-vote]
B34: 3.10 | C34: [Name of sub-vote] | D34: 3.10 - [Name of sub-vote]
B35: Vote 4 | C35: Community Services and Social Equity
B36: 4.1 | C36: Area Based Management | D36: =CONCATENATE(B36, " - ", C36) -> 4,1 - Area Based Management | E36: 4.1 - Area Based Management
B37: 4.2 | C37: Public Safety, Emergency Services and Enforcement | D37: 4,2 - Public Safety, Emergency Services and Enforcement | E37: 4.2 - Public Safety, Emergency Services and Enforcement
B38: 4.3 | C38: Recreation and Facilities | D38: 4,3 - Recreation and Facilities | E38: 4.3 - Recreation and Facilities
B39: 4.4 | C39: Waste Management | D39: 4,4 - Waste Management | E39: 4.4 - Waste Management
B40: 4.5 | C40: [Name of sub-vote] | D40: 4.5 - [Name of sub-vote]
B41: 4.6 | C41: [Name of sub-vote] | D41: 4.6 - [Name of sub-vote]
B42: 4.7 | C42: [Name of sub-vote] | D42: 4.7 - [Name of sub-vote]
B43: 4.8 | C43: [Name of sub-vote] | D43: 4.8 - [Name of sub-vote]
B44: 4.9 | C44: [Name of sub-vote] | D44: 4.9 - [Name of sub-vote]
B45: 4.10 | C45: [Name of sub-vote] | D45: 4.10 - [Name of sub-vote]
B46: Vote 5 | C46: Infrastructure Services
B47: 5.1 | C47: Project Management Office | D47: =CONCATENATE(B47, " - ", C47) -> 5,1 - Project Management Office | E47: 5.1 - Project Management Office
B48: 5.2 | C48: Roads and Transportation | D48: 5,2 - Roads and Transportation | E48: 5.2 - Roads and Transportation
B49: 5.3 | C49: Water and Sanitation | D49: 5,3 - Water and Sanitation | E49: 5.3 - Water and Sanitation
B50: 5.4 | C50: General Manager: Infrastructure | D50: 5,4 - General Manager: Infrastructure | E50: 5.4 - General Manager: Infrastructure
B51: 5.5 | C51: [Name of sub-vote] | D51: 5.5 - [Name of sub-vote]
B52: 5.6 | C52: [Name of sub-vote] | D52: 5.6 - [Name of sub-vote]
B53: 5.7 | C53: [Name of sub-vote] | D53: 5.7 - [Name of sub-vote]
B54: 5.8 | C54: [Name of sub-vote] | D54: 5.8 - [Name of sub-vote]
B55: 5.9 | C55: [Name of sub-vote] | D55: 5.9 - [Name of sub-vote]
B56: 5.10 | C56: [Name of sub-vote] | D56: 5.10 - [Name of sub-vote]
B57: Vote 6 | C57: Sustainable Development and City Enterprises
B58: 6.1 | C58: City Entities | D58: =CONCATENATE(B58, " - ", C58) -> 6,1 - City Entities | E58: 6.1 - City Entities
B59: 6.2 | C59: Development Services | D59: 6,2 - Development Services | E59: 6.2 - Development Services
B60: 6.3 | C60: Human Settlement Development | D60: 6,3 - Human Settlement Development | E60: 6.3 - Human Settlement Development
B61: 6.4 | C61: Town Planning | D61: 6,4 - Town Planning | E61: 6.4 - Town Planning
B62: 6.5 | C62: General Manager: Sustainable Development and City Enterprises | D62: 6,5 - General Manager: Sustainable Development and City Enterprises | E62: 6.5 - General Manager: Sustainable Development and City Enterprises
B63: 6.6 | C63: [Name of sub-vote] | D63: 6.6 - [Name of sub-vote]
B64: 6.7 | C64: [Name of sub-vote] | D64: 6.7 - [Name of sub-vote]
B65: 6.8 | C65: [Name of sub-vote] | D65: 6.8 - [Name of sub-vote]
B66: 6.9 | C66: [Name of sub-vote] | D66: 6.9 - [Name of sub-vote]
B67: 6.10 | C67: [Name of sub-vote] | D67: 6.10 - [Name of sub-vote]
B68: Vote 7 | C68: Electricity
B69: 7.1 | C69: Electricity planning | D69: =CONCATENATE(B69, " - ", C69) -> 7,1 - Electricity planning | E69: 7.1 Electricity planning
B70: 7.2 | C70: Methods and Standards | D70: 7,2 - Methods and Standards | E70: 7.2 Methods and Standards
B71: 7.3 | C71: Operations and Maintenance | D71: 7,3 - Operations and Maintenance | E71: 7.3 Operations and Maintenance
B72: 7.4 | C72: Revenue Management | D72: 7,4 - Revenue Management | E72: 7.4 Revenue Management
B73: 7.5 | C73: General Manager Electricity | D73: 7,5 - General Manager Electricity | E73: 7.5 General Manager Electricity
B74: 7.6 | C74: [Name of sub-vote] | D74: 7.6 - [Name of sub-vote]
B75: 7.7 | C75: [Name of sub-vote] | D75: 7.7 - [Name of sub-vote]
B76: 7.8 | C76: [Name of sub-vote] | D76: 7.8 - [Name of sub-vote]
B77: 7.9 | C77: [Name of sub-vote] | D77: 7.9 - [Name of sub-vote]
B78: 7.10 | C78: [Name of sub-vote] | D78: 7.10 - [Name of sub-vote]
B79: Vote 8 | C79: [NAME OF VOTE 8]
B80: 8.1 | C80: [Name of sub-vote] | D80: =CONCATENATE(B80, " - ", C80) -> 8.1 - [Name of sub-vote] | E80: 8.1 - [Name of sub-vote]
B81: 8.2 | C81: [Name of sub-vote] | D81: 8.2 - [Name of sub-vote]
B82: 8.3 | C82: [Name of sub-vote] | D82: 8.3 - [Name of sub-vote]
B83: 8.4 | C83: [Name of sub-vote] | D83: 8.4 - [Name of sub-vote]
B84: 8.5 | C84: [Name of sub-vote] | D84: 8.5 - [Name of sub-vote]
B85: 8.6 | C85: [Name of sub-vote] | D85: 8.6 - [Name of sub-vote]
B86: 8.7 | C86: [Name of sub-vote] | D86: 8.7 - [Name of sub-vote]
B87: 8.8 | C87: [Name of sub-vote] | D87: 8.8 - [Name of sub-vote]
B88: 8.9 | C88: [Name of sub-vote] | D88: 8.9 - [Name of sub-vote]
B89: 8.10 | C89: [Name of sub-vote] | D89: 8.10 - [Name of sub-vote]
B90: Vote 9 | C90: [NAME OF VOTE 9]
B91: 9.1 | C91: [Name of sub-vote] | D91: =CONCATENATE(B91, " - ", C91) -> 9.1 - [Name of sub-vote] | E91: 9.1 - [Name of sub-vote]
B92: 9.2 | C92: [Name of sub-vote] | D92: 9.2 - [Name of sub-vote]
B93: 9.3 | C93: [Name of sub-vote] | D93: 9.3 - [Name of sub-vote]
B94: 9.4 | C94: [Name of sub-vote] | D94: 9.4 - [Name of sub-vote]
B95: 9.5 | C95: [Name of sub-vote] | D95: 9.5 - [Name of sub-vote]
B96: 9.6 | C96: [Name of sub-vote] | D96: 9.6 - [Name of sub-vote]
B97: 9.7 | C97: [Name of sub-vote] | D97: 9.7 - [Name of sub-vote]
B98: 9.8 | C98: [Name of sub-vote] | D98: 9.8 - [Name of sub-vote]
B99: 9.9 | C99: [Name of sub-vote] | D99: 9.9 - [Name of sub-vote]
B100: 9.10 | C100: [Name of sub-vote] | D100: 9.10 - [Name of sub-vote]
B101: Vote 10 | C101: [NAME OF VOTE 10]
B102: 10.1 | C102: [Name of sub-vote] | D102: =CONCATENATE(B102, " - ", C102) -> 10.1 - [Name of sub-vote] | E102: 10.1 - [Name of sub-vote]
B103: 10.2 | C103: [Name of sub-vote] | D103: 10.2 - [Name of sub-vote]
B104: 10.3 | C104: [Name of sub-vote] | D104: 10.3 - [Name of sub-vote]
B105: 10.4 | C105: [Name of sub-vote] | D105: 10.4 - [Name of sub-vote]
B106: 10.5 | C106: [Name of sub-vote] | D106: 10.5 - [Name of sub-vote]
B107: 10.6 | C107: [Name of sub-vote] | D107: 10.6 - [Name of sub-vote]
B108: 10.7 | C108: [Name of sub-vote] | D108: 10.7 - [Name of sub-vote]
B109: 10.8 | C109: [Name of sub-vote] | D109: 10.8 - [Name of sub-vote]
B110: 10.9 | C110: [Name of sub-vote] | D110: 10.9 - [Name of sub-vote]
B111: 10.10 | C111: [Name of sub-vote] | D111: 10.10 - [Name of sub-vote]
B112: Vote 11 | C112: [NAME OF VOTE 11]
B113: 11.1 | C113: [Name of sub-vote] | D113: =CONCATENATE(B113, " - ", C113) -> 11.1 - [Name of sub-vote] | E113: 11.1 - [Name of sub-vote]
B114: 11.2 | C114: [Name of sub-vote] | D114: 11.2 - [Name of sub-vote]
B115: 11.3 | C115: [Name of sub-vote] | D115: 11.3 - [Name of sub-vote]
B116: 11.4 | C116: [Name of sub-vote] | D116: 11.4 - [Name of sub-vote]
B117: 11.5 | C117: [Name of sub-vote] | D117: 11.5 - [Name of sub-vote]
B118: 11.6 | C118: [Name of sub-vote] | D118: 11.6 - [Name of sub-vote]
B119: 11.7 | C119: [Name of sub-vote] | D119: 11.7 - [Name of sub-vote]
B120: 11.8 | C120: [Name of sub-vote] | D120: 11.8 - [Name of sub-vote]
B121: 11.9 | C121: [Name of sub-vote] | D121: 11.9 - [Name of sub-vote]
B122: 11.10 | C122: [Name of sub-vote] | D122: 11.10 - [Name of sub-vote]
B123: Vote 12 | C123: [NAME OF VOTE 12]
B124: 12.1 | C124: [Name of sub-vote] | D124: =CONCATENATE(B124, " - ", C124) -> 12.1 - [Name of sub-vote] | E124: 12.1 - [Name of sub-vote]
B125: 12.2 | C125: [Name of sub-vote] | D125: 12.2 - [Name of sub-vote]
B126: 12.3 | C126: [Name of sub-vote] | D126: 12.3 - [Name of sub-vote]
B127: 12.4 | C127: [Name of sub-vote] | D127: 12.4 - [Name of sub-vote]
B128: 12.5 | C128: [Name of sub-vote] | D128: 12.5 - [Name of sub-vote]
B129: 12.6 | C129: [Name of sub-vote] | D129: 12.6 - [Name of sub-vote]
B130: 12.7 | C130: [Name of sub-vote] | D130: 12.7 - [Name of sub-vote]
B131: 12.8 | C131: [Name of sub-vote] | D131: 12.8 - [Name of sub-vote]
B132: 12.9 | C132: [Name of sub-vote] | D132: 12.9 - [Name of sub-vote]
B133: 12.10 | C133: [Name of sub-vote] | D133: 12.10 - [Name of sub-vote]
B134: Vote 13 | C134: [NAME OF VOTE 13]
B135: 13.1 | C135: [Name of sub-vote] | D135: =CONCATENATE(B135, " - ", C135) -> 13.1 - [Name of sub-vote] | E135: 13.1 - [Name of sub-vote]
B136: 13.2 | C136: [Name of sub-vote] | D136: 13.2 - [Name of sub-vote]
B137: 13.3 | C137: [Name of sub-vote] | D137: 13.3 - [Name of sub-vote]
B138: 13.4 | C138: [Name of sub-vote] | D138: 13.4 - [Name of sub-vote]
B139: 13.5 | C139: [Name of sub-vote] | D139: 13.5 - [Name of sub-vote]
B140: 13.6 | C140: [Name of sub-vote] | D140: 13.6 - [Name of sub-vote]
B141: 13.7 | C141: [Name of sub-vote] | D141: 13.7 - [Name of sub-vote]
B142: 13.8 | C142: [Name of sub-vote] | D142: 13.8 - [Name of sub-vote]
B143: 13.9 | C143: [Name of sub-vote] | D143: 13.9 - [Name of sub-vote]
B144: 13.10 | C144: [Name of sub-vote] | D144: 13.10 - [Name of sub-vote]
B145: Vote 14 | C145: [NAME OF VOTE 14]
B146: 14.1 | C146: [Name of sub-vote] | D146: =CONCATENATE(B146, " - ", C146) -> 14.1 - [Name of sub-vote] | E146: 14.1 - [Name of sub-vote]
B147: 14.2 | C147: [Name of sub-vote] | D147: 14.2 - [Name of sub-vote]
B148: 14.3 | C148: [Name of sub-vote] | D148: 14.3 - [Name of sub-vote]
B149: 14.4 | C149: [Name of sub-vote] | D149: 14.4 - [Name of sub-vote]
B150: 14.5 | C150: [Name of sub-vote] | D150: 14.5 - [Name of sub-vote]
B151: 14.6 | C151: [Name of sub-vote] | D151: 14.6 - [Name of sub-vote]
B152: 14.7 | C152: [Name of sub-vote] | D152: 14.7 - [Name of sub-vote]
B153: 14.8 | C153: [Name of sub-vote] | D153: 14.8 - [Name of sub-vote]
B154: 14.9 | C154: [Name of sub-vote] | D154: 14.9 - [Name of sub-vote]
B155: 14.10 | C155: [Name of sub-vote] | D155: 14.10 - [Name of sub-vote]
B156: Vote 15 | C156: [NAME OF VOTE 15]
B157: 15.1 | C157: [Name of sub-vote] | D157: =CONCATENATE(B157, " - ", C157) -> 15.1 - [Name of sub-vote] | E157: 15.1 - [Name of sub-vote]
B158: 15.2 | C158: [Name of sub-vote] | D158: 15.2 - [Name of sub-vote]
B159: 15.3 | C159: [Name of sub-vote] | D159: 15.3 - [Name of sub-vote]
B160: 15.4 | C160: [Name of sub-vote] | D160: 15.4 - [Name of sub-vote]
B161: 15.5 | C161: [Name of sub-vote] | D161: 15.5 - [Name of sub-vote]
B162: 15.6 | C162: [Name of sub-vote] | D162: 15.6 - [Name of sub-vote]
B163: 15.7 | C163: [Name of sub-vote] | D163: 15.7 - [Name of sub-vote]
B164: 15.8 | C164: [Name of sub-vote] | D164: 15.8 - [Name of sub-vote]
B165: 15.9 | C165: [Name of sub-vote] | D165: 15.9 - [Name of sub-vote]
B166: 15.10 | C166: [Name of sub-vote] | D166: 15.10 - [Name of sub-vote]

Sheet Contacts
A1: =muni&" - "&" Contact Information" -> 0 - Contact Information
A3: A. GENERAL INFORMATION
A4: Municipality | B4: =muni -> 0 | C4: =IF(B4="Choose name from List","Set name on 'Instructions' sheet", "") -> 
A6: Grade | C6: 1 Grade in terms of the Remuneration of Public Office Bearers Act.
A8: Province | B8: =IF(B4>" ",VLOOKUP(B4,'Lookup and lists'!B29:C307,2, FALSE)," ") -> 
A10: Web Address
A12: e-mail Address
A14: B. CONTACT INFORMATION
A15: Postal address:
A16: P.O. Box
A17: City / Town
A18: Postal Code
A20: Street address
A21: Building
A22: Street No. & Name
A23: City / Town
A24: Postal Code
A26: General Contacts
A27: Telephone number
A28: Fax number
A30: C. POLITICAL LEADERSHIP
A31: Speaker: | C31: Secretary/PA to the Speaker:
A32: ID Number | C32: ID Number
A33: Title | C33: Title
A34: Name | C34: Name
A35: Telephone number | C35: Telephone number
A36: Cell number | C36: Cell number
A37: Fax number | C37: Fax number
A38: E-mail address | C38: E-mail address
A40: Mayor/Executive Mayor: | C40: Secretary/PA to the Mayor/Executive Mayor:
A41: ID Number | C41: ID Number
A42: Title | C42: Title
A43: Name | C43: Name
A44: Telephone number | C44: Telephone number
A45: Cell number | C45: Cell number
A46: Fax number | C46: Fax number
A47: E-mail address | C47: E-mail address
A49: Deputy Mayor/Executive Mayor: | C49: Secretary/PA to the Deputy Mayor/Executive Mayor:
A50: ID Number | C50: ID Number
A51: Title | C51: Title
A52: Name | C52: Name
A53: Telephone number | C53: Telephone number
A54: Cell number | C54: Cell number
A55: Fax number | C55: Fax number
A56: E-mail address | C56: E-mail address
A58: D. MANAGEMENT LEADERSHIP
A59: Municipal Manager: | C59: Secretary/PA to the Municipal Manager:
A60: ID Number | C60: ID Number
A61: Title | C61: Title
A62: Name | C62: Name
A63: Telephone number | C63: Telephone number
A64: Cell number | C64: Cell number
A65: Fax number | C65: Fax number
A66: E-mail address | C66: E-mail address
A68: Chief Financial Officer | C68: Secretary/PA to the Chief Financial Officer
A69: ID Number | C69: ID Number
A70: Title | C70: Title
A71: Name | C71: Name
A72: Telephone number | C72: Telephone number
A73: Cell number | C73: Cell number
A74: Fax number | C74: Fax number
A75: E-mail address | C75: E-mail address
A77: Official responsible for submitting financial information | C77: Official responsible for submitting financial information
A78: ID Number | C78: ID Number
A79: Title | C79: Title
A80: Name | C80: Name
A81: Telephone number | C81: Telephone number
A82: Cell number | C82: Cell number
A83: Fax number | C83: Fax number
A84: E-mail address | C84: E-mail address
A85: Official responsible for submitting financial information | C85: Official responsible for submitting financial information
A86: ID Number | C86: ID Number
A87: Title | C87: Title
A88: Name | C88: Name
A89: Telephone number | C89: Telephone number
A90: Cell number | C90: Cell number
A91: Fax number | C91: Fax number
A92: E-mail address | C92: E-mail address
A93: Official responsible for submitting financial information | C93: Official responsible for submitting financial information
A94: ID Number | C94: ID Number
A95: Title | C95: Title
A96: Name | C96: Name
A97: Telephone number | C97: Telephone number
A98: Cell number | C98: Cell number
A99: Fax number | C99: Fax number
A100: E-mail address | C100: E-mail address
A101: Official responsible for submitting financial information | C101: Official responsible for submitting financial information
A102: ID Number | C102: ID Number
A103: Title | C103: Title
A104: Name | C104: Name
A105: Telephone number | C105: Telephone number
A106: Cell number | C106: Cell number
A107: Fax number | C107: Fax number
A108: E-mail address | C108: E-mail address
A109: Official responsible for submitting financial information | C109: Official responsible for submitting financial information
A110: ID Number | C110: ID Number
A111: Title | C111: Title
A112: Name | C112: Name
A113: Telephone number | C113: Telephone number
A114: Cell number | C114: Cell number
A115: Fax number | C115: Fax number
A116: E-mail address | C116: E-mail address
A117: Official responsible for submitting financial information | C117: Official responsible for submitting financial information
A118: ID Number | C118: ID Number
A119: Title | C119: Title
A120: Name | C120: Name
A121: Telephone number | C121: Telephone number
A122: Cell number | C122: Cell number
A123: Fax number | C123: Fax number
A124: E-mail address | C124: E-mail address
A125: Official responsible for submitting financial information | C125: Official responsible for submitting financial information
A126: ID Number | C126: ID Number
A127: Title | C127: Title
A128: Name | C128: Name
A129: Telephone number | C129: Telephone number
A130: Cell number | C130: Cell number
A131: Fax number | C131: Fax number
A132: E-mail address | C132: E-mail address
A133: Official responsible for submitting financial information
A134: ID Number
A135: Title
A136: Name
A137: Telephone number
A138: Cell number
A139: Fax number
A140: E-mail address

Sheet A1-Sum
A1: =muni&" - "&Approve1 -> 0 - Table A1 Budget Summary
A2: =desc -> Description | B2: =head1b -> 2019/20 | C2: =head1A -> 2020/21 | D2: =Head1 -> 2021/22 | E2: =Head2 -> Current Year 2022/23 | I2: =Head3 -> 2023/24 Medium Term Revenue & Expenditure Framework
A3: R thousands | B3: =Head5 -> Audited Outcome | C3: =Head5 -> Audited Outcome | D3: =Head5 -> Audited Outcome | E3: =Head6 -> Original Budget | F3: =Head7 -> Adjusted Budget | G3: =Head8 -> Full Year Forecast | H3: =Head5b -> Pre-audit outcome | I3: =Head9 -> Budget Year 2023/24 | J3: =Head10 -> Budget Year +1 2024/25 | K3: =Head11 -> Budget Year +2 2025/26
A4: Financial Performance
A5: Property rates | B5: ='A4-FinPerf RE'!C21 -> 1177107606 | C5: ='A4-FinPerf RE'!D21 -> 1232330305 | D5: ='A4-FinPerf RE'!E21 -> 1211348604 | E5: ='A4-FinPerf RE'!F21 -> 1427088861 | F5: ='A4-FinPerf RE'!G21 -> 1427088861 | G5: ='A4-FinPerf RE'!H21 -> 1427088861 | H5: ='A4-FinPerf RE'!I21 -> 0 | I5: ='A4-FinPerf RE'!J21 -> 1526985082 | J5: ='A4-FinPerf RE'!K21 -> 1601807351 | K5: ='A4-FinPerf RE'!L21 -> 1677092296
A6: Service charges | B6: =SUM('A4-FinPerf RE'!C6:C9) -> 3104466759 | C6: =SUM('A4-FinPerf RE'!D6:D9) -> 3206751663 | D6: =SUM('A4-FinPerf RE'!E6:E9) -> 3619669817 | E6: =SUM('A4-FinPerf RE'!F6:F9) -> 4306994215 | F6: =SUM('A4-FinPerf RE'!G6:G9) -> 4306994215 | G6: =SUM('A4-FinPerf RE'!H6:H9) -> 4306994215 | H6: =SUM('A4-FinPerf RE'!I6:I9) -> 0 | I6: =SUM('A4-FinPerf RE'!J6:J9) -> 5135631234 | J6: =SUM('A4-FinPerf RE'!K6:K9) -> 5819379974 | K6: =SUM('A4-FinPerf RE'!L6:L9) -> 6693474808
A7: Investment revenue | B7: ='A4-FinPerf RE'!C14 -> 0 | C7: ='A4-FinPerf RE'!D14 -> 8455919 | D7: ='A4-FinPerf RE'!E14 -> 10535026 | E7: ='A4-FinPerf RE'!F14 -> 0 | F7: ='A4-FinPerf RE'!G14 -> 0 | G7: ='A4-FinPerf RE'!H14 -> 0 | H7: ='A4-FinPerf RE'!I14 -> 0 | I7: ='A4-FinPerf RE'!J14 -> 18052025.28 | J7: ='A4-FinPerf RE'!K14 -> 19225406.93 | K7: ='A4-FinPerf RE'!L14 -> 20494283.78
A8: Transfer and subsidies - Operational | B8: ='A4-FinPerf RE'!C25 -> 637128044 | C8: ='A4-FinPerf RE'!D25 -> 757425720 | D8: ='A4-FinPerf RE'!E25 -> 681737625 | E8: ='A4-FinPerf RE'!F25 -> 855842084.7 | F8: ='A4-FinPerf RE'!G25 -> 800708693.9 | G8: ='A4-FinPerf RE'!H25 -> 800708693.9 | H8: ='A4-FinPerf RE'!I25 -> 0 | I8: ='A4-FinPerf RE'!J25 -> 838135150 | J8: ='A4-FinPerf RE'!K25 -> 906229405 | K8: ='A4-FinPerf RE'!L25 -> 982611448
A9: Other own revenue | B9: ='A4-FinPerf RE'!C32-SUM(B5:B8) -> 568411169 | C9: ='A4-FinPerf RE'!D32-SUM(C5:C8) -> 335392036 | D9: ='A4-FinPerf RE'!E32-SUM(D5:D8) -> 330421548 | E9: ='A4-FinPerf RE'!F32-SUM(E5:E8) -> 460845100.7 | F9: ='A4-FinPerf RE'!G32-SUM(F5:F8) -> 460845100.7 | G9: ='A4-FinPerf RE'!H32-SUM(G5:G8) -> 460845100.7 | H9: ='A4-FinPerf RE'!I32-SUM(H5:H8) -> 0 | I9: ='A4-FinPerf RE'!J32-SUM(I5:I8) -> 601922633.9 | J9: ='A4-FinPerf RE'!K32-SUM(J5:J8) -> 634943668.8 | K9: ='A4-FinPerf RE'!L32-SUM(K5:K8) -> 664786022
A10: ='A4-FinPerf RE'!A32 -> Total Revenue (excluding capital transfers and contributions) | B10: =SUM(B5:B9) -> 5487113578 | C10: =SUM(C5:C9) -> 5540355643 | D10: 5853712620 | E10: 7050770261 | F10: 6995636871 | G10: 6995636871 | H10: 0 | I10: 8120726125 | J10: 8981585805 | K10: 1.003845886e+10
A11: Employee costs | B11: ='A4-FinPerf RE'!C34 -> 1345486985 | C11: ='A4-FinPerf RE'!D34 -> 1418425769 | D11: ='A4-FinPerf RE'!E34 -> 1494486747 | E11: ='A4-FinPerf RE'!F34 -> 1579699178 | F11: ='A4-FinPerf RE'!G34 -> 1621248373 | G11: ='A4-FinPerf RE'!H34 -> 1621248373 | H11: ='A4-FinPerf RE'!I34 -> 0 | I11: ='A4-FinPerf RE'!J34 -> 1793148355 | J11: ='A4-FinPerf RE'!K34 -> 1856685849 | K11: ='A4-FinPerf RE'!L34 -> 1927749153
A12: Remuneration of councillors | B12: ='A4-FinPerf RE'!C35 -> 43759322 | C12: ='A4-FinPerf RE'!D35 -> 51641246 | D12: ='A4-FinPerf RE'!E35 -> 49529446 | E12: ='A4-FinPerf RE'!F35 -> 59431217.94 | F12: ='A4-FinPerf RE'!G35 -> 59431217.94 | G12: ='A4-FinPerf RE'!H35 -> 59431217.94 | H12: ='A4-FinPerf RE'!I35 -> 0 | I12: ='A4-FinPerf RE'!J35 -> 62699934.99 | J12: ='A4-FinPerf RE'!K35 -> 65521432.06 | K12: ='A4-FinPerf RE'!L35 -> 68469896.51
A13: Depreciation and amortisation | B13: ='A4-FinPerf RE'!C39 -> 417614094 | C13: ='A4-FinPerf RE'!D39 -> 372532037 | D13: ='A4-FinPerf RE'!E39 -> 366625069 | E13: ='A4-FinPerf RE'!F39 -> 441964212.5 | F13: ='A4-FinPerf RE'!G39 -> 441737790.6 | G13: ='A4-FinPerf RE'!H39 -> 441737790.6 | H13: ='A4-FinPerf RE'!I39 -> 0 | I13: ='A4-FinPerf RE'!J39 -> 461615984 | J13: ='A4-FinPerf RE'!K39 -> 482388711 | K13: ='A4-FinPerf RE'!L39 -> 504096199
A14: Finance charges | B14: ='A4-FinPerf RE'!C40 -> 43716970 | C14: ='A4-FinPerf RE'!D40 -> 35856007 | D14: ='A4-FinPerf RE'!E40 -> 26915534 | E14: ='A4-FinPerf RE'!F40 -> 94217139.02 | F14: ='A4-FinPerf RE'!G40 -> 52038518.89 | G14: ='A4-FinPerf RE'!H40 -> 52038518.89 | H14: ='A4-FinPerf RE'!I40 -> 0 | I14: ='A4-FinPerf RE'!J40 -> 40400879.72 | J14: ='A4-FinPerf RE'!K40 -> 42218920.59 | K14: ='A4-FinPerf RE'!L40 -> 44118763.82
A15: Inventory consumed and bulk purchases | B15: ='A4-FinPerf RE'!C36+'A4-FinPerf RE'!C37 -> 2548288188 | C15: ='A4-FinPerf RE'!D36+'A4-FinPerf RE'!D37 -> 2717562620 | D15: ='A4-FinPerf RE'!E36+'A4-FinPerf RE'!E37 -> 3034560771 | E15: ='A4-FinPerf RE'!F36+'A4-FinPerf RE'!F37 -> 3071509197 | F15: ='A4-FinPerf RE'!G36+'A4-FinPerf RE'!G37 -> 3142581198 | G15: ='A4-FinPerf RE'!H36+'A4-FinPerf RE'!H37 -> 3142581198 | H15: ='A4-FinPerf RE'!I36+'A4-FinPerf RE'!I37 -> 0 | I15: ='A4-FinPerf RE'!J36+'A4-FinPerf RE'!J37 -> 3484629036 | J15: ='A4-FinPerf RE'!K36+'A4-FinPerf RE'!K37 -> 4085009866 | K15: ='A4-FinPerf RE'!L36+'A4-FinPerf RE'!L37 -> 4592887780
A16: Transfers and subsidies | B16: ='A4-FinPerf RE'!C42 -> 25306678 | C16: ='A4-FinPerf RE'!D42 -> 16870305 | D16: ='A4-FinPerf RE'!E42 -> 19995785 | E16: ='A4-FinPerf RE'!F42 -> 63469171.5 | F16: ='A4-FinPerf RE'!G42 -> 53651931.49 | G16: ='A4-FinPerf RE'!H42 -> 53651931.49 | H16: ='A4-FinPerf RE'!I42 -> 0 | I16: ='A4-FinPerf RE'!J42 -> 51023535.29 | J16: ='A4-FinPerf RE'!K42 -> 53395331.35 | K16: ='A4-FinPerf RE'!L42 -> 55899093.67
A17: Other expenditure | B17: ='A4-FinPerf RE'!C47-SUM(B11:B16) -> 1269274937 | C17: ='A4-FinPerf RE'!D47-SUM(C11:C16) -> 1371114676 | D17: ='A4-FinPerf RE'!E47-SUM(D11:D16) -> 1957306065 | E17: ='A4-FinPerf RE'!F47-SUM(E11:E16) -> 1144656777 | F17: ='A4-FinPerf RE'!G47-SUM(F11:F16) -> 1252521227 | G17: ='A4-FinPerf RE'!H47-SUM(G11:G16) -> 1252521227 | H17: ='A4-FinPerf RE'!I47-SUM(H11:H16) -> 0 | I17: ='A4-FinPerf RE'!J47-SUM(I11:I16) -> 1810270070 | J17: ='A4-FinPerf RE'!K47-SUM(J11:J16) -> 1902008433 | K17: ='A4-FinPerf RE'!L47-SUM(K11:K16) -> 1990472072
A18: ='A4-FinPerf RE'!A47 -> Total Expenditure | B18: =SUM(B11:B17) -> 5693447174 | C18: =SUM(C11:C17) -> 5984002660 | D18: 6949419417 | E18: 6454946893 | F18: 6623210257 | G18: 6623210257 | H18: 0 | I18: 7703787795 | J18: 8487228543 | K18: 9183692958
A19: ='A4-FinPerf RE'!A48 -> Surplus/(Deficit) | B19: =B10-B18 -> -206333596 | C19: =C10-C18 -> -443647017 | D19: -1095706797 | E19: 595823368.2 | F19: 372426613.3 | G19: 372426613.3 | H19: 0 | I19: 416938330.3 | J19: 494357262 | K19: 854765900
A20: ='A4-FinPerf RE'!A49 -> Transfers and subsidies - capital (monetary allocations) | B20: ='A4-FinPerf RE'!C49 -> 430113749 | C20: ='A4-FinPerf RE'!D49 -> 498603417 | D20: ='A4-FinPerf RE'!E49 -> 368724617 | E20: ='A4-FinPerf RE'!F49 -> 446431108.9 | F20: ='A4-FinPerf RE'!G49 -> 437597242 | G20: ='A4-FinPerf RE'!H49 -> 437597242 | H20: ='A4-FinPerf RE'!I49 -> 0 | I20: ='A4-FinPerf RE'!J49 -> 448700054.9 | J20: ='A4-FinPerf RE'!K49 -> 321309343.2 | K20: ='A4-FinPerf RE'!L49 -> 327881560
A21: ='A4-FinPerf RE'!A50 -> Transfers and subsidies - capital (in-kind) | B21: ='A4-FinPerf RE'!C50 -> 0 | C21: ='A4-FinPerf RE'!D50 -> 0 | D21: ='A4-FinPerf RE'!E50 -> 0 | E21: ='A4-FinPerf RE'!F50 -> 0 | F21: ='A4-FinPerf RE'!G50 -> 0 | G21: ='A4-FinPerf RE'!H50 -> 0 | H21: ='A4-FinPerf RE'!I50 -> 0 | I21: ='A4-FinPerf RE'!J50 -> 0 | J21: ='A4-FinPerf RE'!K50 -> 0 | K21: ='A4-FinPerf RE'!L50 -> 0
A22: ='A4-FinPerf RE'!A51 -> Surplus/(Deficit) after capital transfers & contributions | B22: =B19+SUM(B20:B21) -> 223780153 | C22: =C19+SUM(C20:C21) -> 54956400 | D22: -726982180 | E22: 1042254477 | F22: 810023855.3 | G22: 810023855.3 | H22: 0 | I22: 865638385.2 | J22: 815666605.2 | K22: 1182647460
A23: ='A4-FinPerf RE'!A57 -> Share of Surplus/Deficit attributable to Associate | B23: ='A4-FinPerf RE'!C57 -> 0 | C23: ='A4-FinPerf RE'!D57 -> 0 | D23: ='A4-FinPerf RE'!E57 -> 0 | E23: ='A4-FinPerf RE'!F57 -> 0 | F23: ='A4-FinPerf RE'!G57 -> 0 | G23: ='A4-FinPerf RE'!H57 -> 0 | H23: ='A4-FinPerf RE'!I57 -> 0 | I23: ='A4-FinPerf RE'!J57 -> 0 | J23: ='A4-FinPerf RE'!K57 -> 0 | K23: ='A4-FinPerf RE'!L57 -> 0
A24: ='A4-FinPerf RE'!A59 -> Surplus/(Deficit) for the year | B24: =B22+B23 -> 223780153 | C24: =C22+C23 -> 54956400 | D24: -726982180 | E24: 1042254477 | F24: 810023855.3 | G24: 810023855.3 | H24: 0 | I24: 865638385.2 | J24: 815666605.2 | K24: 1182647460
A25: Capital expenditure & funds sources
A26: Capital expenditure | B26: ='A5-Capex'!C63 -> 479854918.8 | C26: ='A5-Capex'!D63 -> 685931270.1 | D26: ='A5-Capex'!E63 -> 521826748.7 | E26: ='A5-Capex'!F63 -> 835918464.9 | F26: ='A5-Capex'!G63 -> 526984994 | G26: ='A5-Capex'!H63 -> 526984994 | H26: ='A5-Capex'!I63 -> 0 | I26: ='A5-Capex'!J63 -> 768760054 | J26: ='A5-Capex'!K63 -> 581309343.2 | K26: ='A5-Capex'!L63 -> 447881560
A27: Transfers recognised - capital | B27: ='A5-Capex'!C70 -> 389132125 | C27: ='A5-Capex'!D70 -> 563995119.7 | D27: ='A5-Capex'!E70 -> 312721147.3 | E27: ='A5-Capex'!F70 -> 445961108.9 | F27: ='A5-Capex'!G70 -> 437597242 | G27: ='A5-Capex'!H70 -> 437597242 | H27: ='A5-Capex'!I70 -> 0 | I27: ='A5-Capex'!J70 -> 448700054.9 | J27: ='A5-Capex'!K70 -> 321309343.2 | K27: ='A5-Capex'!L70 -> 327881560
A29: ='A5-Capex'!A72 -> Borrowing | B29: ='A5-Capex'!C72 -> 4229818.17 | C29: ='A5-Capex'!D72 -> 0 | D29: ='A5-Capex'!E72 -> 49400541.77 | E29: ='A5-Capex'!F72 -> 300000000 | F29: ='A5-Capex'!G72 -> 0 | G29: ='A5-Capex'!H72 -> 0 | H29: ='A5-Capex'!I72 -> 0 | I29: ='A5-Capex'!J72 -> 200000000 | J29: ='A5-Capex'!K72 -> 150000000 | K29: ='A5-Capex'!L72 -> 0
A30: ='A5-Capex'!A73 -> Internally generated funds | B30: ='A5-Capex'!C73 -> 86493279 | C30: ='A5-Capex'!D73 -> 121936150.4 | D30: ='A5-Capex'!E73 -> 159705059.6 | E30: ='A5-Capex'!F73 -> 89957356 | F30: ='A5-Capex'!G73 -> 89387752.09 | G30: ='A5-Capex'!H73 -> 89387752.09 | H30: ='A5-Capex'!I73 -> 0 | I30: ='A5-Capex'!J73 -> 120059999 | J30: ='A5-Capex'!K73 -> 110000000 | K30: ='A5-Capex'!L73 -> 120000000
A31: Total sources of capital funds | B31: =+B27+B29+B30 -> 479855222.2 | C31: =+C27+C29+C30 -> 685931270.1 | D31: 521826748.7 | E31: 835918464.9 | F31: 526984994 | G31: 526984994 | H31: 0 | I31: 768760054 | J31: 581309343.2 | K31: 447881560
A32: Financial position
A33: ='A6-FinPos'!A13 -> Total current assets | B33: ='A6-FinPos'!C13 -> 2052804436 | C33: ='A6-FinPos'!D13 -> 2488537592 | D33: ='A6-FinPos'!E13 -> 2535747948 | E33: ='A6-FinPos'!F13 -> 2090047369 | F33: ='A6-FinPos'!G13 -> 2930349833 | G33: ='A6-FinPos'!H13 -> 2930349833 | H33: ='A6-FinPos'!I13 -> 4390532033 | I33: ='A6-FinPos'!J13 -> 2928028760 | J33: ='A6-FinPos'!K13 -> 3082794193 | K33: ='A6-FinPos'!L13 -> 3461674856
A34: ='A6-FinPos'!A25 -> Total non current assets | B34: ='A6-FinPos'!C25 -> 7787361578 | C34: ='A6-FinPos'!D25 -> 8068661579 | D34: ='A6-FinPos'!E25 -> 8217232199 | E34: ='A6-FinPos'!F25 -> 8339501362 | F34: ='A6-FinPos'!G25 -> 8039501362 | G34: ='A6-FinPos'!H25 -> 8039501362 | H34: ='A6-FinPos'!I25 -> 0 | I34: ='A6-FinPos'!J25 -> 9298982591 | J34: ='A6-FinPos'!K25 -> 9069593408 | K34: ='A6-FinPos'!L25 -> 7994823477
A35: ='A6-FinPos'!A37 -> Total current liabilities | B35: ='A6-FinPos'!C37 -> 1893327922 | C35: ='A6-FinPos'!D37 -> 2037745602 | D35: ='A6-FinPos'!E37 -> 2518688404 | E35: ='A6-FinPos'!F37 -> 1463352337 | F35: ='A6-FinPos'!G37 -> 2634522746 | G35: ='A6-FinPos'!H37 -> 2634522746 | H35: ='A6-FinPos'!I37 -> 49117979 | I35: ='A6-FinPos'!J37 -> 1647578968 | J35: ='A6-FinPos'!K37 -> 1519136908 | K35: ='A6-FinPos'!L37 -> 1529884385
A36: ='A6-FinPos'!A43 -> Total non current liabilities | B36: ='A6-FinPos'!C43 -> 816497835.6 | C36: ='A6-FinPos'!D43 -> 814494100 | D36: ='A6-FinPos'!E43 -> 775015320 | E36: ='A6-FinPos'!F43 -> 1309132900 | F36: ='A6-FinPos'!G43 -> 2084148220 | G36: ='A6-FinPos'!H43 -> 2084148220 | H36: ='A6-FinPos'!I43 -> 0 | I36: ='A6-FinPos'!J43 -> 855012692 | J36: ='A6-FinPos'!K43 -> 1449035967 | K36: ='A6-FinPos'!L43 -> 939063004.3
A37: Community wealth/Equity | B37: ='A6-FinPos'!C50 -> 7939404541 | C37: ='A6-FinPos'!D50 -> 7704876415 | D37: ='A6-FinPos'!E50 -> 7467179413 | E37: ='A6-FinPos'!F50 -> 7657063494 | F37: ='A6-FinPos'!G50 -> 6251180230 | G37: ='A6-FinPos'!H50 -> 6251180230 | H37: ='A6-FinPos'!I50 -> 0 | I37: ='A6-FinPos'!J50 -> 9724419691 | J37: ='A6-FinPos'!K50 -> 9184214728 | K37: ='A6-FinPos'!L50 -> 8987550943
A38: Cash flows
A39: Net cash from (used) operating | B39: ='A7-CFlow'!C17 -> 676226237 | C39: ='A7-CFlow'!D17 -> 588460200 | D39: ='A7-CFlow'!E17 -> 535138615 | E39: ='A7-CFlow'!F17 -> 632267605 | F39: ='A7-CFlow'!G17 -> 668468092 | G39: ='A7-CFlow'!H17 -> 668468092 | H39: ='A7-CFlow'!I17 -> 0 | I39: ='A7-CFlow'!J17 -> 946660442 | J39: ='A7-CFlow'!K17 -> 1055960700 | K39: ='A7-CFlow'!L17 -> 1450949262
A40: Net cash from (used) investing | B40: ='A7-CFlow'!C26 -> -381844004 | C40: ='A7-CFlow'!D26 -> -632698178 | D40: ='A7-CFlow'!E26 -> -524931844 | E40: ='A7-CFlow'!F26 -> -835918464.9 | F40: ='A7-CFlow'!G26 -> -523292402 | G40: ='A7-CFlow'!H26 -> -523292402 | H40: ='A7-CFlow'!I26 -> 0 | I40: ='A7-CFlow'!J26 -> -768501055 | J40: ='A7-CFlow'!K26 -> -668585745 | K40: ='A7-CFlow'!L26 -> -515147794
A41: Net cash from (used) financing | B41: ='A7-CFlow'!C35 -> -83600511 | C41: ='A7-CFlow'!D35 -> -113418258 | D41: ='A7-CFlow'!E35 -> -81573483 | E41: ='A7-CFlow'!F35 -> 276393968.3 | F41: ='A7-CFlow'!G35 -> -23606031.69 | G41: ='A7-CFlow'!H35 -> -23606031.69 | H41: ='A7-CFlow'!I35 -> 0 | I41: ='A7-CFlow'!J35 -> 177000000 | J41: ='A7-CFlow'!K35 -> 126000000 | K41: ='A7-CFlow'!L35 -> -26000000
A42: =LEFT('A7-CFlow'!A39,37) -> Cash/cash equivalents at the year end | B42: ='A7-CFlow'!C39 -> 518976967 | C42: ='A7-CFlow'!D39 -> 361320731 | D42: ='A7-CFlow'!E39 -> 288152840 | E42: ='A7-CFlow'!F39 -> 134860108.4 | F42: ='A7-CFlow'!G39 -> 412002857.3 | G42: ='A7-CFlow'!H39 -> 412002857.3 | H42: ='A7-CFlow'!I39 -> 0 | I42: ='A7-CFlow'!J39 -> 767162244.3 | J42: ='A7-CFlow'!K39 -> 1280537199 | K42: ='A7-CFlow'!L39 -> 2190338667
A44: Cash backing/surplus reconciliation
A45: ='A8-ResRecon'!A4 -> Cash and investments available | B45: ='A8-ResRecon'!C8 -> 7639456037 | C45: ='A8-ResRecon'!D8 -> 7162654281 | D45: ='A8-ResRecon'!E8 -> 7228605733 | E45: ='A8-ResRecon'!F8 -> 9042235408 | F45: ='A8-ResRecon'!G8 -> 9605359178 | G45: ='A8-ResRecon'!H8 -> 9605359178 | H45: ='A8-ResRecon'!I8 -> 4204533611 | I45: ='A8-ResRecon'!J8 -> 9831116541 | J45: ='A8-ResRecon'!K8 -> 9907698055 | K45: ='A8-ResRecon'!L8 -> 9123185478
A46: ='A8-ResRecon'!A10 -> Application of cash and investments | B46: ='A8-ResRecon'!C18 -> -643048000 | C46: ='A8-ResRecon'!D18 -> -667763000 | D46: ='A8-ResRecon'!E18 -> -691635000 | E46: ='A8-ResRecon'!F18 -> 820875000 | F46: ='A8-ResRecon'!G18 -> -256541098 | G46: ='A8-ResRecon'!H18 -> -256541098 | H46: ='A8-ResRecon'!I18 -> 0 | I46: ='A8-ResRecon'!J18 -> 837478675 | J46: ='A8-ResRecon'!K18 -> 950609880.1 | K46: ='A8-ResRecon'!L18 -> 965918919.4
A47: Balance - surplus (shortfall) | B47: =B45-B46 -> 8282504037 | C47: =C45-C46 -> 7830417281 | D47: 7920240733 | E47: 8221360408 | F47: 9861900276 | G47: 9861900276 | H47: 4204533611 | I47: 8993637866 | J47: 8957088175 | K47: 8157266558
A48: Asset management
A49: Asset register summary (WDV) | B49: ='A9-Asset'!C180 -> 8114943436 | C49: ='A9-Asset'!D180 -> 7776759066 | D49: ='A9-Asset'!E180 -> 0 | E49: ='A9-Asset'!F180 -> 7195684086 | F49: ='A9-Asset'!G180 -> 6895684086 | G49: ='A9-Asset'!H180 -> 6895684086 | H49: ='A9-Asset'!I180 -> 7261155343 | I49: ='A9-Asset'!J180 -> 7616951955 | J49: ='A9-Asset'!K180 -> 7974948697 | K49: ='A9-Asset'!L180 -> 0
A50: ='A9-Asset'!A183 -> Depreciation | B50: ='A9-Asset'!C183 -> 417614094 | C50: ='A9-Asset'!D183 -> 372532037 | D50: ='A9-Asset'!E183 -> 366625069 | E50: ='A9-Asset'!F183 -> 441964212.5 | F50: ='A9-Asset'!G183 -> 441737790.6 | G50: ='A9-Asset'!H183 -> 441737790.6 | H50: ='A9-Asset'!I183 -> 466692277 | I50: ='A9-Asset'!J183 -> 492331943.4 | J50: ='A9-Asset'!K183 -> 504096199 | K50: ='A9-Asset'!L183 -> 0
A51: Renewal and Upgrading of Existing Assets | B51: ='A9-Asset'!C40+'A9-Asset'!C75 -> 458747088.1 | C51: ='A9-Asset'!D40+'A9-Asset'!D75 -> 277988495.2 | D51: ='A9-Asset'!E40+'A9-Asset'!E75 -> 313421420.6 | E51: ='A9-Asset'!F40+'A9-Asset'!F75 -> 640005443.9 | F51: ='A9-Asset'!G40+'A9-Asset'!G75 -> 329500004.3 | G51: ='A9-Asset'!H40+'A9-Asset'!H75 -> 329500004.3 | H51: ='A9-Asset'!I40+'A9-Asset'!I75 -> 260820500 | I51: ='A9-Asset'!J40+'A9-Asset'!J75 -> 405063245 | J51: ='A9-Asset'!K40+'A9-Asset'!K75 -> 286388196.1 | K51: ='A9-Asset'!L40+'A9-Asset'!L75 -> 260820500
A52: Repairs and Maintenance | B52: ='A9-Asset'!C184 -> 57161591 | C52: ='A9-Asset'!D184 -> 111339565.8 | D52: ='A9-Asset'!E184 -> 238603531.1 | E52: ='A9-Asset'!F184 -> 505967086.1 | F52: ='A9-Asset'!G184 -> 246697734.7 | G52: ='A9-Asset'!H184 -> 246697734.7 | H52: ='A9-Asset'!I184 -> 573286476.2 | I52: ='A9-Asset'!J184 -> 600586963.5 | J52: ='A9-Asset'!K184 -> 630046846.8 | K52: ='A9-Asset'!L184 -> 0
A54: Free services
A55: Cost of Free Basic Services provided | B55: ='A10-SerDel'!C60 -> 0 | C55: ='A10-SerDel'!D60 -> 0 | D55: ='A10-SerDel'!E60 -> 0 | E55: ='A10-SerDel'!F60 -> 228088786.1 | F55: ='A10-SerDel'!G60 -> 0 | G55: ='A10-SerDel'!H60 -> 0 | H55: ='A10-SerDel'!I60 -> 242071343.7 | I55: ='A10-SerDel'!J60 -> 256929502.1 | J55: ='A10-SerDel'!K60 -> 0 | K55: ='A10-SerDel'!L60 -> 0
A56: Revenue cost of free services provided | B56: ='A10-SerDel'!C79 -> 0 | C56: ='A10-SerDel'!D79 -> 65640309 | D56: ='A10-SerDel'!E79 -> 0 | E56: ='A10-SerDel'!F79 -> 345185830.9 | F56: ='A10-SerDel'!G79 -> 345185830.9 | G56: ='A10-SerDel'!H79 -> 345185830.9 | H56: ='A10-SerDel'!I79 -> 368680147.7 | I56: ='A10-SerDel'!J79 -> 389715857.2 | J56: ='A10-SerDel'!K79 -> 411643111.9 | K56: ='A10-SerDel'!L79 -> 0
A57: Households below minimum service level
A58: ='A10-SerDel'!A5 -> Water: | B58: ='A10-SerDel'!C14 -> 17010.1888 | C58: ='A10-SerDel'!D14 -> 17010.1888 | D58: ='A10-SerDel'!E14 -> 17010.1888 | E58: ='A10-SerDel'!F14 -> 8505.0944 | F58: ='A10-SerDel'!G14 -> 8505.0944 | G58: ='A10-SerDel'!H14 -> 8505.0944 | H58: ='A10-SerDel'!I14 -> 8505.0944 | I58: ='A10-SerDel'!J14 -> 8505.0944 | J58: ='A10-SerDel'!K14 -> 8505.0944 | K58: ='A10-SerDel'!L14 -> 0
A59: ='A10-SerDel'!A16 -> Sanitation/sewerage: | B59: ='A10-SerDel'!C26 -> 2368.9776 | C59: ='A10-SerDel'!D26 -> 2368.9776 | D59: ='A10-SerDel'!E26 -> 2368.9776 | E59: ='A10-SerDel'!F26 -> 1184.4888 | F59: ='A10-SerDel'!G26 -> 1184.4888 | G59: ='A10-SerDel'!H26 -> 1184.4888 | H59: ='A10-SerDel'!I26 -> 1184.4888 | I59: ='A10-SerDel'!J26 -> 1184.4888 | J59: ='A10-SerDel'!K26 -> 1184.4888 | K59: ='A10-SerDel'!L26 -> 0
A60: ='A10-SerDel'!A28 -> Energy: | B60: ='A10-SerDel'!C35 -> 16000 | C60: ='A10-SerDel'!D35 -> 16000 | D60: ='A10-SerDel'!E35 -> 16000 | E60: ='A10-SerDel'!F35 -> 8000 | F60: ='A10-SerDel'!G35 -> 8000 | G60: ='A10-SerDel'!H35 -> 8000 | H60: ='A10-SerDel'!I35 -> 8000 | I60: ='A10-SerDel'!J35 -> 8000 | J60: ='A10-SerDel'!K35 -> 8000 | K60: ='A10-SerDel'!L35 -> 0
A61: ='A10-SerDel'!A37 -> Refuse: | B61: ='A10-SerDel'!C45 -> 81540.6344 | C61: ='A10-SerDel'!D45 -> 81540.6344 | D61: ='A10-SerDel'!E45 -> 81540.6344 | E61: ='A10-SerDel'!F45 -> 40770.3172 | F61: ='A10-SerDel'!G45 -> 40770.3172 | G61: ='A10-SerDel'!H45 -> 40770.3172 | H61: ='A10-SerDel'!I45 -> 40770.3172 | I61: ='A10-SerDel'!J45 -> 40770.3172 | J61: ='A10-SerDel'!K45 -> 40770.3172 | K61: ='A10-SerDel'!L45 -> 0

Sheet A2-FinPerf SC
A1: =muni&" - "&Approve3 -> 0 - Table A2 Budgeted Financial Performance (revenue and expenditure by functional classification)
A2: ="Functional Classification "&desc -> Functional Classification Description | B2: =head27 -> Ref | C2: =head1b -> 2019/20 | D2: =head1A -> 2020/21 | E2: =Head1 -> 2021/22 | F2: =Head2 -> Current Year 2022/23 | I2: =Head3 -> 2023/24 Medium Term Revenue & Expenditure Framework
A3: R thousand | B3: 1 | C3: =Head5 -> Audited Outcome | D3: =Head5 -> Audited Outcome | E3: =Head5 -> Audited Outcome | F3: =Head6 -> Original Budget | G3: =Head7 -> Adjusted Budget | H3: =Head8 -> Full Year Forecast | I3: =Head9 -> Budget Year 2023/24 | J3: =Head10 -> Budget Year +1 2024/25 | K3: =Head11 -> Budget Year +2 2025/26
A4: Revenue - Functional
A5: Governance and administration | C5: =SUM(C6:C8) -> 1655378012 | D5: =SUM(D6:D8) -> 1685956768 | E5: 1695855981 | F5: 2124738194 | G5: 2060770936 | H5: 2060770936 | I5: 2375779979 | J5: 2499277464 | K5: 2655166954
A6: Executive and council | C6: =A2A!C6 -> 4200350.03 | D6: =A2A!D6 -> 3935419.51 | E6: =A2A!E6 -> 3530376.55 | F6: =A2A!F6 -> 5297070.115 | G6: =A2A!G6 -> 5297070.115 | H6: =A2A!H6 -> 5297070.115 | I6: =A2A!I6 -> 4979000 | J6: =A2A!J6 -> 0 | K6: =A2A!K6 -> 0
A7: Finance and administration | C7: =A2A!C9 -> 1651177627 | D7: =A2A!D9 -> 1682018698 | E7: =A2A!E9 -> 1692323110 | F7: =A2A!F9 -> 2119441124 | G7: =A2A!G9 -> 2055473866 | H7: =A2A!H9 -> 2055473866 | I7: =A2A!I9 -> 2370800979 | J7: =A2A!J9 -> 2499277464 | K7: =A2A!K9 -> 2655166954
A8: Internal audit | C8: =A2A!C23 -> 34.9 | D8: =A2A!D23 -> 2649.84 | E8: =A2A!E23 -> 2494.96 | F8: =A2A!F23 -> 0 | G8: =A2A!G23 -> 0 | H8: =A2A!H23 -> 0 | I8: =A2A!I23 -> 0 | J8: =A2A!J23 -> 0 | K8: =A2A!K23 -> 0
A9: Community and public safety | C9: =SUM(C10:C14) -> 234248834.7 | D9: =SUM(D10:D14) -> 187149779.2 | E9: 134306482.7 | F9: 261951083.7 | G9: 261951083.7 | H9: 261951083.7 | I9: 338866615 | J9: 343724927.5 | K9: 359601534.9
A10: Community and social services | C10: =A2A!C26 -> 38829586.05 | D10: =A2A!D26 -> 24279484.79 | E10: =A2A!E26 -> 45792786.73 | F10: =A2A!F26 -> 21317576.9 | G10: =A2A!G26 -> 21317576.9 | H10: =A2A!H26 -> 21317576.9 | I10: =A2A!I26 -> 276753844.2 | J10: =A2A!J26 -> 282672023.2 | K10: =A2A!K26 -> 295768116.8
A11: Sport and recreation | C11: =A2A!C48 -> 863612.67 | D11: =A2A!D48 -> 523912.59 | E11: =A2A!E48 -> 344638.91 | F11: =A2A!F48 -> 307553.9124 | G11: =A2A!G48 -> 307553.9124 | H11: =A2A!H48 -> 307553.9124 | I11: =A2A!I48 -> 21223330.41 | J11: =A2A!J48 -> 22263273.6 | K11: =A2A!K48 -> 23309647.46
A12: Public safety | C12: =A2A!C54 -> 15024987.17 | D12: =A2A!D54 -> 19851967.14 | E12: =A2A!E54 -> 18186248.15 | F12: =A2A!F54 -> 4191499.138 | G12: =A2A!G54 -> 4191499.138 | H12: =A2A!H54 -> 4191499.138 | I12: =A2A!I54 -> 8568779.072 | J12: =A2A!J54 -> 8988649.246 | K12: =A2A!K54 -> 9411115.761
A13: Housing | C13: =A2A!C63 -> 179530648.8 | D13: =A2A!D63 -> 142494414.7 | E13: =A2A!E63 -> 69982808.91 | F13: =A2A!F63 -> 236134453.8 | G13: =A2A!G63 -> 236134453.8 | H13: =A2A!H63 -> 236134453.8 | I13: =A2A!I63 -> 32320661.28 | J13: =A2A!J63 -> 29800981.49 | K13: =A2A!K63 -> 31112654.87
A14: Health | C14: =A2A!C66 -> 0 | D14: =A2A!D66 -> 0 | E14: =A2A!E66 -> 0 | F14: =A2A!F66 -> 0 | G14: =A2A!G66 -> 0 | H14: =A2A!H66 -> 0 | I14: =A2A!I66 -> 0 | J14: =A2A!J66 -> 0 | K14: =A2A!K66 -> 0
A15: Economic and environmental services | C15: =SUM(C16:C18) -> 279315022.3 | D15: =SUM(D16:D18) -> 271667406.3 | E15: 207365686.9 | F15: 64129389.03 | G15: 64129389.03 | H15: 64129389.03 | I15: 55600947.45 | J15: 47167489.11 | K15: 47974361.1
A16: Planning and development | C16: =A2A!C75 -> 33595749.05 | D16: =A2A!D75 -> 37507188.98 | E16: =A2A!E75 -> 55781154.04 | F16: =A2A!F75 -> 56730916.81 | G16: =A2A!G75 -> 56730916.81 | H16: =A2A!H75 -> 56730916.81 | I16: =A2A!I75 -> 47684582.16 | J16: =A2A!J75 -> 45825734.21 | K16: =A2A!K75 -> 46569543.72
A17: Road transport | C17: =A2A!C86 -> 245675268.4 | D17: =A2A!D86 -> 234057621.1 | E17: =A2A!E86 -> 151376861.6 | F17: =A2A!F86 -> 0 | G17: =A2A!G86 -> 0 | H17: =A2A!H86 -> 0 | I17: =A2A!I86 -> 0 | J17: =A2A!J86 -> 0 | K17: =A2A!K86 -> 0
A18: Environmental protection | C18: =A2A!C91 -> 44004.88 | D18: =A2A!D91 -> 102596.2 | E18: =A2A!E91 -> 207671.31 | F18: =A2A!F91 -> 7398472.228 | G18: =A2A!G91 -> 7398472.228 | H18: =A2A!H91 -> 7398472.228 | I18: =A2A!I91 -> 7916365.286 | J18: =A2A!J91 -> 1341754.903 | K18: =A2A!K91 -> 1404817.384
A19: Trading services | C19: =SUM(C20:C23) -> 3747985280 | D19: =SUM(D20:D23) -> 3845123161 | E19: 4158681263 | F19: 5315562520 | G19: 5315562520 | H19: 5315562520 | I19: 5698134020 | J19: =SUM(J20:J23) -> 6299141016 | K19: 7184674852
A20: Energy sources | C20: =A2A!C99 -> 2241860229 | D20: =A2A!D99 -> 2212438066 | E20: =A2A!E99 -> 2569652754 | F20: =A2A!F99 -> 3305883087 | G20: =A2A!G99 -> 3305883087 | H20: =A2A!H99 -> 3305883087 | I20: =A2A!I99 -> 4028755846 | J20: =A2A!J99 -> 4521615548 | K20: =A2A!K99 -> 5323721089
A21: Water management | C21: =A2A!C103 -> 1068639662 | D21: =A2A!D103 -> 1189218733 | E21: =A2A!E103 -> 1156790470 | F21: =A2A!F103 -> 1590735188 | G21: =A2A!G103 -> 1590735188 | H21: =A2A!H103 -> 1590735188 | I21: =A2A!I103 -> 1300958056 | J21: =A2A!J103 -> 1391052514 | K21: =A2A!K103 -> 1456299661
A22: Waste water management | C22: =A2A!C107 -> 261156393.5 | D22: =A2A!D107 -> 288947747.1 | E22: =A2A!E107 -> 281762407.3 | F22: =A2A!F107 -> 231533141.2 | G22: =A2A!G107 -> 231533141.2 | H22: =A2A!H107 -> 231533141.2 | I22: =A2A!I107 -> 209646015.9 | J22: =A2A!J107 -> 219918670.7 | K22: =A2A!K107 -> 230254848.2
A23: Waste management | C23: =A2A!C112 -> 176328995.6 | D23: =A2A!D112 -> 154518614.7 | E23: =A2A!E112 -> 150475631.1 | F23: =A2A!F112 -> 187411103.6 | G23: =A2A!G112 -> 187411103.6 | H23: =A2A!H112 -> 187411103.6 | I23: =A2A!I112 -> 158774103.1 | J23: =A2A!J112 -> 166554283.7 | K23: =A2A!K112 -> 174399254.3
A24: Other | B24: 4 | C24: =A2A!C117 -> 32681201.35 | D24: =A2A!D117 -> 49061946.32 | E24: =A2A!E117 -> 26227823.48 | F24: =A2A!F117 -> 67955454.61 | G24: =A2A!G117 -> 67955454.61 | H24: =A2A!H117 -> 67955454.61 | I24: =A2A!I117 -> 101044616.3 | J24: =A2A!J117 -> 113584253.1 | K24: =A2A!K117 -> 118922713
A25: ="Total "&A4 -> Total Revenue - Functional | B25: 2 | C25: =C5+C9+C15+C19+C24 -> 5949608350 | D25: =D5+D9+D15+D19+D24 -> 6038959060 | E25: =E5+E9+E15+E19+E24 -> 6222437237 | F25: 7834336641 | G25: 7770369383 | H25: 7770369383 | I25: =I5+I9+I15+I19+I24 -> 8569426178 | J25: 9302895150 | K25: 1.036634041e+10
A27: Expenditure - Functional
A28: Governance and administration | C28: =SUM(C29:C31) -> 1038362185 | D28: =SUM(D29:D31) -> 1520817442 | E28: 1191049487 | F28: 1423527489 | G28: 1399634844 | H28: 1399634844 | I28: 1480552759 | J28: 1542103257 | K28: 1613275976
A29: Executive and council | C29: =A2A!C128 -> 120747650.1 | D29: =A2A!D128 -> 117397847.6 | E29: =A2A!E128 -> 117808679.1 | F29: =A2A!F128 -> 117494245.2 | G29: =A2A!G128 -> 163072746.5 | H29: =A2A!H128 -> 163072746.5 | I29: =A2A!I128 -> 258320031.1 | J29: =A2A!J128 -> 264803117.2 | K29: =A2A!K128 -> 276751640
A30: Finance and administration | C30: =A2A!C131 -> 898976596.4 | D30: =A2A!D131 -> 1386457371 | E30: =A2A!E131 -> 1053698122 | F30: =A2A!F131 -> 1285221053 | G30: =A2A!G131 -> 1216919906 | H30: =A2A!H131 -> 1216919906 | I30: =A2A!I131 -> 1193777693 | J30: =A2A!J131 -> 1247497428 | K30: =A2A!K131 -> 1305345255
A31: Internal audit | C31: =A2A!C145 -> 18637938.28 | D31: =A2A!D145 -> 16962222.89 | E31: =A2A!E145 -> 19542685.37 | F31: =A2A!F145 -> 20812190.82 | G31: =A2A!G145 -> 19642190.86 | H31: =A2A!H145 -> 19642190.86 | I31: =A2A!I145 -> 28455035.46 | J31: =A2A!J145 -> 29802712.06 | K31: =A2A!K145 -> 31179080.5
A32: Community and public safety | C32: =SUM(C33:C37) -> 550877476.1 | D32: =SUM(D33:D37) -> 551498800.6 | E32: 551440158.6 | F32: 613713094.3 | G32: 540010710.5 | H32: 540010710.5 | I32: 535783647.4 | J32: 542802873.6 | K32: 556136755.8
A33: Community and social services | C33: =A2A!C148 -> 112786554.2 | D33: =A2A!D148 -> 149092712.5 | E33: =A2A!E148 -> 141393704.7 | F33: =A2A!F148 -> 129634195.3 | G33: =A2A!G148 -> 129214013.1 | H33: =A2A!H148 -> 129214013.1 | I33: =A2A!I148 -> 135893001.6 | J33: =A2A!J148 -> 142179459.4 | K33: =A2A!K148 -> 149432538.7
A34: Sport and recreation | C34: =A2A!C170 -> 102539647.3 | D34: =A2A!D170 -> 121244913.6 | E34: =A2A!E170 -> 115888281.4 | F34: =A2A!F170 -> 153119379.2 | G34: =A2A!G170 -> 147756038.5 | H34: =A2A!H170 -> 147756038.5 | I34: =A2A!I170 -> 130424689 | J34: =A2A!J170 -> 136399028.7 | K34: =A2A!K170 -> 142592177.4
A35: Public safety | C35: =A2A!C176 -> 193214425.3 | D35: =A2A!D176 -> 196809242.2 | E35: =A2A!E176 -> 216193878.2 | F35: =A2A!F176 -> 207854114.1 | G35: =A2A!G176 -> 207622267.4 | H35: =A2A!H176 -> 207622267.4 | I35: =A2A!I176 -> 220685496 | J35: =A2A!J176 -> 213467615.5 | K35: =A2A!K176 -> 211306049.7
A36: Housing | C36: =A2A!C185 -> 136867613.7 | D36: =A2A!D185 -> 74912129 | E36: =A2A!E185 -> 68394082.77 | F36: =A2A!F185 -> 110226497.5 | G36: =A2A!G185 -> 42564006.33 | H36: =A2A!H185 -> 42564006.33 | I36: =A2A!I185 -> 35263319.41 | J36: =A2A!J185 -> 36629554.1 | K36: =A2A!K185 -> 38042103.52
A37: Health | C37: =A2A!C188 -> 5469235.54 | D37: =A2A!D188 -> 9439803.22 | E37: =A2A!E188 -> 9570211.44 | F37: =A2A!F188 -> 12878908.15 | G37: =A2A!G188 -> 12854385.2 | H37: =A2A!H188 -> 12854385.2 | I37: =A2A!I188 -> 13517141.35 | J37: =A2A!J188 -> 14127215.91 | K37: =A2A!K188 -> 14763886.41
A38: Economic and environmental services | C38: =SUM(C39:C41) -> 332744460.6 | D38: =SUM(D39:D41) -> 313304803.3 | E38: 393095329 | F38: 375461838.6 | G38: 403531040.9 | H38: 403531040.9 | I38: 513621030.7 | J38: 536409574.7 | K38: 560925958.9
A39: Planning and development | C39: =A2A!C197 -> 83509759.39 | D39: =A2A!D197 -> 69071779.38 | E39: =A2A!E197 -> 87743205.43 | F39: =A2A!F197 -> 78766873.59 | G39: =A2A!G197 -> 96727161.33 | H39: =A2A!H197 -> 96727161.33 | I39: =A2A!I197 -> 84862819.17 | J39: =A2A!J197 -> 87699044.72 | K39: =A2A!K197 -> 91678229.84
A40: Road transport | C40: =A2A!C208 -> 228801221.2 | D40: =A2A!D208 -> 223381413.3 | E40: =A2A!E208 -> 282415490.9 | F40: =A2A!F208 -> 270631755.8 | G40: =A2A!G208 -> 282199280 | H40: =A2A!H208 -> 282199280 | I40: =A2A!I208 -> 402475671.2 | J40: =A2A!J208 -> 421231370.1 | K40: =A2A!K208 -> 440524713.8
A41: Environmental protection | C41: =A2A!C213 -> 20433480.06 | D41: =A2A!D213 -> 20851610.65 | E41: =A2A!E213 -> 22936632.7 | F41: =A2A!F213 -> 26063209.23 | G41: =A2A!G213 -> 24604599.6 | H41: =A2A!H213 -> 24604599.6 | I41: =A2A!I213 -> 26282540.4 | J41: =A2A!J213 -> 27479159.84 | K41: =A2A!K213 -> 28723015.27
A42: Trading services | C42: =SUM(C43:C46) -> 3726987414 | D42: =SUM(D43:D46) -> 3532257238 | E42: 4733193787 | F42: =SUM(F43:F46) -> 4323067957 | G42: 4212498613 | H42: 4212498613 | I42: 5109852271 | J42: 5799171444 | K42: =SUM(K43:K46) -> 6383560579
A43: Energy sources | C43: =A2A!C221 -> 2095935638 | D43: =A2A!D221 -> 1916751313 | E43: =A2A!E221 -> 2982827962 | F43: =A2A!F221 -> 2707081566 | G43: =A2A!G221 -> 2773851065 | H43: =A2A!H221 -> 2773851065 | I43: =A2A!I221 -> 3289791560 | J43: =A2A!J221 -> 3880684085 | K43: =A2A!K221 -> 4376467642
A44: Water management | C44: =A2A!C225 -> 1216151983 | D44: =A2A!D225 -> 1172570223 | E44: =A2A!E225 -> 1280896309 | F44: =A2A!F225 -> 1187779784 | G44: =A2A!G225 -> 984739719.3 | H44: =A2A!H225 -> 984739719.3 | I44: =A2A!I225 -> 1293156974 | J44: =A2A!J225 -> 1355688448 | K44: =A2A!K225 -> 1418970449
A45: Waste water management | C45: =A2A!C229 -> 259564356.7 | D45: =A2A!D229 -> 294864459.8 | E45: =A2A!E229 -> 325212343.8 | F45: =A2A!F229 -> 294534683.9 | G45: =A2A!G229 -> 338156292.8 | H45: =A2A!H229 -> 338156292.8 | I45: =A2A!I229 -> 399300023.2 | J45: =A2A!J229 -> 429298391.7 | K45: =A2A!K229 -> 448533338.6
A46: Waste management | C46: =A2A!C234 -> 155335436 | D46: =A2A!D234 -> 148071241.3 | E46: =A2A!E234 -> 144257171.7 | F46: =A2A!F234 -> 133671923.5 | G46: =A2A!G234 -> 115751536 | H46: =A2A!H234 -> 115751536 | I46: =A2A!I234 -> 127603714.5 | J46: =A2A!J234 -> 133500518.5 | K46: =A2A!K234 -> 139589148.9
A47: Other | B47: 4 | C47: =A2A!C239 -> 76856662.09 | D47: =A2A!D239 -> 66124376.69 | E47: =A2A!E239 -> 80640656.21 | F47: =A2A!F239 -> 64362345.73 | G47: =A2A!G239 -> 67535049.14 | H47: =A2A!H239 -> 67535049.14 | I47: =A2A!I239 -> 63978086.85 | J47: =A2A!J239 -> 66741393.7 | K47: =A2A!K239 -> 69793688.57
A48: ="Total "&A27 -> Total Expenditure - Functional | B48: 3 | C48: =C28+C32+C38+C42+C47 -> 5725828197 | D48: =D28+D32+D38+D42+D47 -> 5984002660 | E48: =E28+E32+E38+E42+E47 -> 6949419417 | F48: =F28+F32+F38+F42+F47 -> 6800132725 | G48: 6623210257 | H48: 6623210257 | I48: 7703787795 | J48: 8487228543 | K48: 9183692958
A49: =result -> Surplus/(Deficit) for the year | C49: =C25-C48 -> 223780153 | D49: =D25-D48 -> 54956400 | E49: -726982180 | F49: 1034203917 | G49: 1147159126 | H49: 1147159126 | I49: 865638383 | J49: 815666607 | K49: 1182647457
A50: =head27a -> References
A51: 1. Government Finance Statistics Functions and Sub-functions are standardised to assist the compilation of national and international accounts for comparison purposes
A52: 2. Total Revenue by functional classification must reconcile to Total Operating Revenue shown in Budgeted Financial Performance (revenue and expenditure)
A53: 3. Total Expenditure by Functional Classification must reconcile to Total Operating Expenditure shown in Budgeted Financial Performance (revenue and expenditure)
A54: 4. All amounts must be classified under a functional classification . The GFS function 'Other' is only for Abbatoirs, Air Transport, Forestry, Licensing and Regulation, Markets and Tourism - and if used must be supported by footnotes. Nothing else may be placed under 'Other'. Assign associate share to relevant classification.
A57: check oprev balance | C57: =C25-'A4-FinPerf RE'!C32 -> 462494772.2 | D57: =D25-'A4-FinPerf RE'!D32 -> 498603417 | E57: =E25-'A4-FinPerf RE'!E32 -> 368724617 | F57: =F25-'A4-FinPerf RE'!F32 -> 783566379.7 | G57: =G25-'A4-FinPerf RE'!G32 -> 774732512.8 | H57: =H25-'A4-FinPerf RE'!H32 -> 774732512.8 | I57: =I25-'A4-FinPerf RE'!I32 -> 8569426178 | J57: =J25-'A4-FinPerf RE'!J32 -> 1182169025 | K57: =K25-'A4-FinPerf RE'!K32 -> 1384754610
A58: check opexp balance | C58: =C48-'A4-FinPerf RE'!C47 -> 32381023.25 | D58: =D48-'A4-FinPerf RE'!D47 -> 0 | E58: =E48-'A4-FinPerf RE'!E47 -> 0 | F58: =F48-'A4-FinPerf RE'!F47 -> 345185831.3 | G58: =G48-'A4-FinPerf RE'!G47 -> 0 | H58: =H48-'A4-FinPerf RE'!H47 -> 0 | I58: =I48-'A4-FinPerf RE'!J47 -> 0 | J58: =J48-'A4-FinPerf RE'!K47 -> 0 | K58: =K48-'A4-FinPerf RE'!L47 -> 0

Sheet A2A
A1: =muni&" - "&Approve3 -> 0 - Table A2 Budgeted Financial Performance (revenue and expenditure by functional classification)
A2: ="Functional Classification "&desc -> Functional Classification Description | B2: =head27 -> Ref | C2: =head1b -> 2019/20 | D2: =head1A -> 2020/21 | E2: =Head1 -> 2021/22 | F2: =Head2 -> Current Year 2022/23 | I2: =Head3 -> 2023/24 Medium Term Revenue & Expenditure Framework
A3: R thousand | B3: 1 | C3: =Head5 -> Audited Outcome | D3: =Head5 -> Audited Outcome | E3: =Head5 -> Audited Outcome | F3: =Head6 -> Original Budget | G3: =Head7 -> Adjusted Budget | H3: =Head8 -> Full Year Forecast | I3: =Head9 -> Budget Year 2023/24 | J3: =Head10 -> Budget Year +1 2024/25 | K3: =Head11 -> Budget Year +2 2025/26
A4: Revenue - Functional
A5: Municipal governance and administration | C5: =C6+C9+C23 -> 1655378012 | D5: 1685956768 | E5: 1695855981 | F5: 2124738194 | G5: 2060770936 | H5: 2060770936 | I5: 2375779979 | J5: 2499277464 | K5: 2655166954
A6: Executive and council | C6: =SUM(C7:C8) -> 4200350.03 | D6: =SUM(D7:D8) -> 3935419.51 | E6: 3530376.55 | F6: 5297070.115 | G6: 5297070.115 | H6: 5297070.115 | I6: 4979000 | J6: 0 | K6: 0
A7: Mayor and Council | C7: -128873.71 | D7: 12674.79 | E7: 0 | G7: 0 | H7: 0 | I7: 0 | J7: 0 | K7: 0
A8: Municipal Manager, Town Secretary and Chief Executive | C8: 4329223.74 | D8: 3922744.72 | E8: 3530376.55 | F8: 5297070.115 | G8: 5297070.115 | H8: 5297070.115 | I8: 4979000 | J8: 0 | K8: 0
A9: Finance and administration | C9: =SUM(C10:C22) -> 1651177627 | D9: 1682018698 | E9: 1692323110 | F9: 2119441124 | G9: 2055473866 | H9: 2055473866 | I9: 2370800979 | J9: 2499277464 | K9: 2655166954
A10: Administrative and Corporate Support | C10: 442.16 | D10: 12307.09 | E10: 6500.21 | G10: 0 | H10: 0 | I10: 607186.8648 | J10: 636939.0212 | K10: 666875.1552
A11: Asset Management | C11: 1356895.9 | D11: 1587023.03 | E11: 6070848.97 | F11: 12341486.85 | G11: 12341486.85 | H11: 12341486.85 | I11: 13390566.77 | J11: 14046704.54 | K11: 14706899.65
A12: Finance | C12: 1600339337 | D12: 1665539963 | E12: 1663295424 | F12: 2080569938 | G12: 2016602681 | H12: 2016602681 | I12: 2305482256 | J12: 2432018767 | K12: 2583791479
A13: Fleet Management | C13: 0 | D13: 0 | E13: 0 | G13: 0 | H13: 0 | I13: 0 | J13: 0 | K13: 0
A14: Human Resources | C14: 9291052.94 | D14: 8063480.46 | E14: 7456070.54 | F14: 11601353.69 | G14: 11601353.69 | H14: 11601353.69 | I14: 12513790.28 | J14: 11866323.36 | K14: 13379659.52
A15: Information Technology | C15: 616.54 | D15: 22555.09 | E15: 17396.22 | F15: 2237.497834 | G15: 2237.497834 | H15: 2237.497834 | I15: 2472.42645 | J15: 2593.575346 | K15: 2715.473387
A16: Legal Services | C16: 135.57 | D16: 2567.63 | E16: 1711.96 | F16: 285352.2787 | G16: 285352.2787 | H16: 285352.2787 | I16: 315314.2694 | J16: 330764.6686 | K16: 346310.608
A17: Marketing, Customer Relations, Publicity and Media Co-ordination | C17: 13.04 | D17: 1362.34 | E17: 0 | G17: 0 | H17: 0 | I17: 0 | J17: 0 | K17: 0
A18: Property Services | C18: 40108986.5 | D18: 6676492.88 | E18: 15365369.85 | F18: 14329709.42 | G18: 14329709.42 | H18: 14329709.42 | I18: 38156452.56 | J18: 40026118.73 | K18: 41907346.31
A19: Risk Management | C19: 0 | D19: 0 | E19: 0 | G19: 0 | H19: 0 | I19: 0 | J19: 0 | K19: 0
A20: Security Services | C20: 173.73 | D20: 3256.51 | E20: 4291.19 | G20: 0 | H20: 0 | I20: 0 | J20: 0 | K20: 0
A21: Supply Chain Management | C21: 79973.34 | D21: 109689.85 | E21: 105497.07 | F21: 311045.9568 | G21: 311045.9568 | H21: 311045.9568 | I21: 332939.1845 | J21: 349253.2045 | K21: 365668.1052
A22: Valuation Service | C22: 0 | E22: 0 | G22: 0 | H22: 0 | I22: 0 | J22: 0 | K22: 0
A23: Internal audit | C23: =SUM(C24:C24) -> 34.9 | D23: 2649.84 | E23: 2494.96 | F23: 0 | G23: 0 | H23: 0 | I23: 0 | J23: 0 | K23: 0
A24: Governance Function | C24: 34.9 | D24: 2649.84 | E24: 2494.96
A25: Community and public safety | C25: =C26+C48+C54+C63+C66 -> 234248834.7 | D25: 187149779.2 | E25: 134306482.7 | F25: 261951083.7 | G25: 261951083.7 | H25: 261951083.7 | I25: 338866615 | J25: 343724927.5 | K25: 359601534.9
A26: Community and social services | C26: =SUM(C27:C47) -> 38829586.05 | D26: =SUM(D27:D47) -> 24279484.79 | E26: 45792786.73 | F26: 21317576.9 | G26: 21317576.9 | H26: 21317576.9 | I26: 276753844.2 | J26: 282672023.2 | K26: 295768116.8
A27: Aged Care | C27: 63 | E27: 0 | G27: 0 | H27: 0 | I27: 0 | J27: 0 | K27: 0
A28: Agricultural | C28: 0 | E28: 0 | G28: 0 | H28: 0 | I28: 0 | J28: 0 | K28: 0
A29: Animal Care and Diseases | C29: 0 | E29: 0 | G29: 0 | H29: 0 | I29: 0 | J29: 0 | K29: 0
A30: Cemeteries, Funeral Parlours and Crematoriums | C30: 2698963.34 | D30: 5208007.31 | E30: 8279696.42 | F30: 3910259.72 | G30: 3910259.72 | H30: 3910259.72 | I30: 16617370.72 | J30: 17431621.88 | K30: 18250908.11
A31: Child Care Facilities | C31: 0 | D31: 0 | E31: 0 | G31: 0 | H31: 0 | I31: 0 | J31: 0 | K31: 0
A32: Community Halls and Facilities | C32: 6685882.14 | D32: 2902948.82 | E32: 14033547.31 | F32: 1160697.177 | G32: 1160697.177 | H32: 1160697.177 | I32: 245427473.6 | J32: 249927401.5 | K32: 260778208.4
A33: Consumer Protection | C33: 0 | D33: 0 | E33: 0 | G33: 0 | H33: 0 | I33: 0 | J33: 0 | K33: 0
A34: Cultural Matters | C34: 0 | D34: 0 | E34: 0 | G34: 0 | H34: 0 | I34: 0 | J34: 0 | K34: 0
A35: Disaster Management | C35: 0 | D35: 0 | E35: 0 | G35: 0 | H35: 0 | I35: 0 | J35: 0 | K35: 0
A36: Education | C36: 0 | D36: 0 | E36: 0 | G36: 0 | H36: 0 | I36: 0 | J36: 0 | K36: 0
A37: Indigenous and Customary Law | C37: 0 | D37: 0 | E37: 0 | G37: 0 | H37: 0 | I37: 0 | J37: 0 | K37: 0
A38: Industrial Promotion | C38: 0 | D38: 0 | E38: 0 | G38: 0 | H38: 0 | I38: 0 | J38: 0 | K38: 0
A39: Language Policy | C39: 0 | D39: 0 | E39: 0 | G39: 0 | H39: 0 | I39: 0 | J39: 0 | K39: 0
A40: Libraries and Archives | C40: 28731129.23 | D40: 15205234.72 | E40: 22907275.89 | F40: 15438000 | G40: 15438000 | H40: 15438000 | I40: 13537999.91 | J40: 14272999.81 | K40: 15749000.35
A41: Literacy Programmes | C41: 0 | D41: 0 | E41: 0 | G41: 0 | H41: 0 | I41: 0 | J41: 0 | K41: 0
A42: Media Services | C42: 0 | D42: 0 | E42: 0 | G42: 0 | H42: 0 | I42: 0 | J42: 0 | K42: 0
A43: Museums and Art Galleries | C43: 713369.28 | D43: 953550.37 | E43: 572267.11 | F43: 808620 | G43: 808620 | H43: 808620 | I43: 1171000 | J43: 1040000 | K43: 990000
A44: Population Development | C44: 179.06 | D44: 9743.57 | E44: 0 | G44: 0 | H44: 0 | I44: 0 | J44: 0 | K44: 0
A45: Provincial Cultural Matters | E45: 0 | G45: 0 | H45: 0 | I45: 0 | J45: 0 | K45: 0
A46: Theatres | E46: 0 | G46: 0 | H46: 0 | I46: 0 | J46: 0 | K46: 0
A47: Zoo's | E47: 0 | G47: 0 | H47: 0 | I47: 0 | J47: 0 | K47: 0
A48: Sport and recreation | C48: =SUM(C49:C53) -> 863612.67 | D48: =SUM(D49:D53) -> 523912.59 | E48: 344638.91 | F48: 307553.9124 | G48: 307553.9124 | H48: 307553.9124 | I48: 21223330.41 | J48: 22263273.6 | K48: 23309647.46
A49: Beaches and Jetties | E49: 0 | G49: 0 | H49: 0 | I49: 0 | J49: 0 | K49: 0
A50: Casinos, Racing, Gambling, Wagering | E50: 0 | G50: 0 | H50: 0 | I50: 0 | J50: 0 | K50: 0
A51: Community Parks (including Nurseries) | C51: 527.86 | D51: 4738.68 | E51: 0 | G51: 0 | H51: 0 | I51: 0 | J51: 0 | K51: 0
A52: Recreational Facilities | C52: 863084.81 | D52: 519173.91 | E52: 344638.91 | F52: 307553.9124 | G52: 307553.9124 | H52: 307553.9124 | I52: 21223330.41 | J52: 22263273.6 | K52: 23309647.46
A53: Sports Grounds and Stadiums | E53: 0 | G53: 0 | H53: 0 | I53: 0 | J53: 0 | K53: 0
A54: Public safety | C54: =SUM(C55:C62) -> 15024987.17 | D54: 19851967.14 | E54: 18186248.15 | F54: 4191499.138 | G54: 4191499.138 | H54: 4191499.138 | I54: 8568779.072 | J54: 8988649.246 | K54: 9411115.761
A55: Civil Defence | C55: -814.29 | D55: 1199482.64 | E55: 0 | G55: 0 | H55: 0 | I55: 0 | J55: 0 | K55: 0
A56: Cleansing | C56: 0 | D56: 0 | E56: 0 | G56: 0 | H56: 0 | I56: 0 | J56: 0 | K56: 0
A57: Control of Public Nuisances | C57: 0 | D57: 0 | E57: 0 | G57: 0 | H57: 0 | I57: 0 | J57: 0 | K57: 0
A58: Fencing and Fences | C58: 0 | D58: 0 | E58: 0 | G58: 0 | H58: 0 | I58: 0 | J58: 0 | K58: 0
A59: Fire Fighting and Protection | C59: 216610.23 | D59: 310842.79 | E59: 904902.65 | F59: 371030.9203 | G59: 371030.9203 | H59: 371030.9203 | I59: 397088.8729 | J59: 416546.2277 | K59: 436123.9004
A60: Licensing and Control of Animals | C60: 0 | D60: 0 | E60: 0 | G60: 0 | H60: 0 | I60: 0 | J60: 0 | K60: 0
A61: Police Forces, Traffic and Street Parking Control | C61: 14809191.23 | D61: 18341641.71 | E61: 17281345.5 | F61: 3820468.217 | G61: 3820468.217 | H61: 3820468.217 | I61: 8171690.199 | J61: 8572103.019 | K61: 8974991.86
A62: Pounds | E62: 0 | G62: 0 | H62: 0 | I62: 0 | J62: 0 | K62: 0
A63: Housing | C63: =SUM(C64:C65) -> 179530648.8 | D63: =SUM(D64:D65) -> 142494414.7 | E63: 69982808.91 | F63: 236134453.8 | G63: 236134453.8 | H63: 236134453.8 | I63: 32320661.28 | J63: 29800981.49 | K63: 31112654.87
A64: Housing | C64: 179530648.8 | D64: 142494414.7 | E64: 69982808.91 | F64: 236134453.8 | G64: 236134453.8 | H64: 236134453.8 | I64: 32320661.28 | J64: 29800981.49 | K64: 31112654.87
A65: Informal Settlements | E65: 0 | G65: 0 | H65: 0 | I65: 0 | J65: 0 | K65: 0
A66: Health | C66: =SUM(C67:C73) -> 0 | D66: =SUM(D67:D73) -> 0 | E66: 0 | F66: 0 | G66: 0 | H66: 0 | I66: 0 | J66: 0 | K66: 0
A67: Ambulance | E67: 0
A68: Health Services | E68: 0
A69: Laboratory Services | E69: 0
A70: Food Control | E70: 0
A71: Health Surveillance and Prevention of Communicable Diseases including immunizations | E71: 0
A72: Vector Control | E72: 0
A73: Chemical Safety | E73: 0
A74: Economic and environmental services | C74: =C75+C86+C91 -> 279315022.3 | D74: 271667406.3 | E74: 207365686.9 | F74: 64129389.03 | G74: 64129389.03 | H74: 64129389.03 | I74: 55600947.45 | J74: 47167489.11 | K74: 47974361.1
A75: Planning and development | C75: =SUM(C76:C85) -> 33595749.05 | D75: =SUM(D76:D85) -> 37507188.98 | E75: 55781154.04 | F75: 56730916.81 | G75: 56730916.81 | H75: 56730916.81 | I75: 47684582.16 | J75: 45825734.21 | K75: 46569543.72
A76: Billboards | E76: 0 | G76: 0 | H76: 0 | I76: 0 | J76: 0 | K76: 0
A77: Corporate Wide Strategic Planning (IDPs, LEDs) | C77: 13.78 | D77: 300065.51 | E77: 739.71 | G77: 0 | H77: 0 | I77: 0 | J77: 0 | K77: 0
A78: Central City Improvement District | C78: 0 | D78: 0 | E78: 0 | G78: 0 | H78: 0 | I78: 0 | J78: 0 | K78: 0
A79: Development Facilitation | C79: 0 | D79: 0 | E79: 0 | G79: 0 | H79: 0 | I79: 0 | J79: 0 | K79: 0
A80: Economic Development/Planning | C80: 23.95 | D80: 364155.19 | E80: 46481241.65 | G80: 0 | H80: 0 | I80: 0 | J80: 0 | K80: 0
A81: Regional Planning and Development | C81: 0 | D81: 0 | E81: 0 | G81: 0 | H81: 0 | I81: 0 | J81: 0 | K81: 0
A82: Town Planning, Building Regulations and Enforcement, and City Engineer | C82: 33595711.32 | D82: 36842968.28 | E82: 9299172.68 | F82: 56730916.81 | G82: 56730916.81 | H82: 56730916.81 | I82: 47684582.16 | J82: 45825734.21 | K82: 46569543.72
A83: Project Management Unit | E83: 0 | G83: 0 | H83: 0 | I83: 0 | J83: 0 | K83: 0
A84: Provincial Planning | E84: 0 | G84: 0 | H84: 0 | I84: 0 | J84: 0 | K84: 0
A85: Support to Local Municipalities | E85: 0 | G85: 0 | H85: 0 | I85: 0 | J85: 0 | K85: 0
A86: Road transport | C86: =SUM(C87:C90) -> 245675268.4 | D86: 234057621.1 | E86: 151376861.6 | F86: 0 | G86: 0 | H86: 0 | I86: 0 | J86: 0 | K86: 0
A87: Public Transport | C87: 135535047.3 | D87: 178133714.4 | E87: 64161510.69 | H87: 0
A88: Road and Traffic Regulation | C88: 0 | D88: 0 | E88: 0 | H88: 0
A89: Roads | C89: 110140221.1 | D89: 55923559.92 | E89: 87215350.88 | H89: 0
A90: Taxi Ranks | D90: 346.84 | E90: 0 | H90: 0
A91: Environmental protection | C91: =SUM(C92:C97) -> 44004.88 | D91: =SUM(D92:D97) -> 102596.2 | E91: 207671.31 | F91: 7398472.228 | G91: 7398472.228 | H91: 7398472.228 | I91: 7916365.286 | J91: 1341754.903 | K91: 1404817.384
A92: Biodiversity and Landscape | E92: 0 | G92: 0 | H92: 0 | I92: 0 | J92: 0 | K92: 0
A93: Coastal Protection | E93: 0 | G93: 0 | H93: 0 | I93: 0 | J93: 0 | K93: 0
A94: Indigenous Forests | E94: 0 | G94: 0 | H94: 0 | I94: 0 | J94: 0 | K94: 0
A95: Nature Conservation | E95: 0 | G95: 0 | H95: 0 | I95: 0 | J95: 0 | K95: 0
A96: Pollution Control | C96: 44004.88 | D96: 102596.2 | E96: 207671.31 | F96: 7398472.228 | G96: 7398472.228 | H96: 7398472.228 | I96: 7916365.286 | J96: 1341754.903 | K96: 1404817.384
A97: Soil Conservation | E97: 0 | G97: 0 | H97: 0 | I97: 0 | J97: 0 | K97: 0
A98: Trading services | C98: =C99+C103+C107+C112 -> 3747985280 | D98: =D99+D103+D107+D112 -> 3845123161 | E98: 4158681263 | F98: 5315562520 | G98: 5315562520 | H98: 5315562520 | I98: 5698134020 | J98: 6299141016 | K98: =K99+K103+K107+K112 -> 7184674852
A99: Energy sources | C99: =SUM(C100:C102) -> 2241860229 | D99: =SUM(D100:D102) -> 2212438066 | E99: 2569652754 | F99: 3305883087 | G99: 3305883087 | H99: 3305883087 | I99: 4028755846 | J99: 4521615548 | K99: 5323721089
A100: Electricity | C100: 2240942829 | D100: 2212438066 | E100: 2569652754 | F100: 3305883087 | G100: 3305883087 | H100: 3305883087 | I100: 4028755846 | J100: 4521615548 | K100: 5323721089
A101: Street Lighting and Signal Systems | C101: 917400.07 | E101: 0 | G101: 0 | H101: 0 | I101: 0 | J101: 0 | K101: 0
A102: Nonelectric Energy | E102: 0 | G102: 0 | H102: 0 | I102: 0 | J102: 0 | K102: 0
A103: Water management | C103: =SUM(C104:C106) -> 1068639662 | D103: =SUM(D104:D106) -> 1189218733 | E103: 1156790470 | F103: 1590735188 | G103: 1590735188 | H103: 1590735188 | I103: 1300958056 | J103: 1391052514 | K103: 1456299661
A104: Water Treatment | E104: 0 | G104: 0 | H104: 0 | I104: 0 | J104: 0 | K104: 0 | M104: 200000000
A105: Water Distribution | C105: 1068639662 | D105: 1189218733 | E105: 1156790470 | F105: 1590735188 | G105: 1590735188 | H105: 1590735188 | I105: 1300958056 | J105: 1391052514 | K105: 1456299661
A106: Water Storage | E106: 0 | G106: 0 | H106: 0 | I106: 0 | J106: 0 | K106: 0
A107: Waste water management | C107: =SUM(C108:C111) -> 261156393.5 | D107: =SUM(D108:D111) -> 288947747.1 | E107: 281762407.3 | F107: 231533141.2 | G107: 231533141.2 | H107: 231533141.2 | I107: 209646015.9 | J107: 219918670.7 | K107: 230254848.2
A108: Public Toilets | C108: 7 | D108: 39.55 | E108: 0 | G108: 0 | H108: 0 | J108: 0 | K108: 0
A109: Sewerage | C109: 261154067.6 | D109: 288947597 | E109: 281762407.3 | F109: 231533141.2 | G109: 231533141.2 | H109: 231533141.2 | I109: 209646015.9 | J109: 219918670.7 | K109: 230254848.2
A110: Storm Water Management | C110: 2318.9 | D110: 110.56 | E110: 0 | G110: 0 | H110: 0 | I110: 0 | J110: 0 | K110: 0
A111: Waste Water Treatment | E111: 0 | G111: 0 | H111: 0 | I111: 0 | J111: 0 | K111: 0
A112: Waste management | C112: =SUM(C113:C116) -> 176328995.6 | D112: =SUM(D113:D116) -> 154518614.7 | E112: 150475631.1 | F112: 187411103.6 | G112: 187411103.6 | H112: 187411103.6 | I112: 158774103.1 | J112: 166554283.7 | K112: 174399254.3
A113: Recycling | E113: 0 | G113: 0 | H113: 0 | I113: 0 | J113: 0 | K113: 0
A114: Solid Waste Disposal (Landfill Sites) | C114: 54317150.46 | D114: 39354941.57 | E114: 37451184.19 | F114: 39331060.45 | G114: 39331060.45 | H114: 39331060.45 | I114: 0 | J114: 0 | K114: 0
A115: Solid Waste Removal | C115: 122011845.2 | D115: 115163673.2 | E115: 113024446.9 | F115: 148080043.1 | G115: 148080043.1 | H115: 148080043.1 | I115: 158774103.1 | J115: 166554283.7 | K115: 174399254.3
A116: Street Cleaning | E116: 0 | G116: 0 | H116: 0 | I116: 0 | J116: 0 | K116: 0
A117: Other | C117: =SUM(C118:C123) -> 32681201.35 | D117: =SUM(D118:D123) -> 49061946.32 | E117: 26227823.48 | F117: 67955454.61 | G117: 67955454.61 | H117: 67955454.61 | I117: 101044616.3 | J117: 113584253.1 | K117: 118922713
A118: Abattoirs | E118: 0 | H118: 0 | I118: 0 | J118: 0 | K118: 0
A119: Air Transport | C119: 7386267.73 | D119: 6456463.56 | E119: 8595764.2 | F119: 12413491.87 | G119: 12413491.87 | H119: 12413491.87 | I119: 41534302.45 | J119: 46688709.38 | K119: 48883078.72
A120: Forestry | C120: 4347826.09 | D120: 21904865.39 | E120: 0 | F120: 9687813.765 | G120: 9687813.765 | H120: 9687813.765 | I120: 0 | J120: 0 | K120: 0
A121: Licensing and Regulation | C121: 103515.5 | D121: 243272.99 | E121: 189936.33 | F121: 558867.5302 | G121: 558867.5302 | H121: 558867.5302 | I121: 2292326.484 | J121: 2576804.201 | K121: 2697913.998
A122: Markets | C122: 20843579.62 | D122: 20456577.8 | E122: 17431810.1 | F122: 45295281.45 | G122: 45295281.45 | H122: 45295281.45 | I122: 57217987.33 | J122: 64318739.56 | K122: 67341720.32
A123: Tourism | C123: 12.41 | D123: 766.58 | E123: 10312.85 | G123: 0 | H123: 0 | I123: 0 | J123: 0 | K123: 0
A124: ="Total "&A4 -> Total Revenue - Functional | B124: 2 | C124: =C5+C25+C74+C98+C117 -> 5949608350 | D124: 6038959060 | E124: 6222437237 | F124: 7834336641 | G124: 7770369383 | H124: 7770369383 | I124: 8569426178 | J124: 9302895150 | K124: 1.036634041e+10
A126: Expenditure - Functional
A127: =A5 -> Municipal governance and administration | C127: =C128+C131+C145 -> 1038362185 | D127: 1520817442 | E127: 1191049487 | F127: 1423527489 | G127: 1399634844 | H127: 1399634844 | I127: 1480552759 | J127: 1542103257 | K127: 1613275976
A128: Executive and council | C128: =SUM(C129:C130) -> 120747650.1 | D128: 117397847.6 | E128: 117808679.1 | F128: 117494245.2 | G128: 163072746.5 | H128: 163072746.5 | I128: 258320031.1 | J128: 264803117.2 | K128: 276751640
A129: Mayor and Council | C129: 78987084.48 | D129: 76667592.01 | E129: 87358886.8 | F129: 85131102.34 | G129: 84957626.79 | H129: 84957626.79 | I129: 94350834.42 | J129: 98648657.77 | K129: 103115140.1
A130: Municipal Manager, Town Secretary and Chief Executive | C130: 41760565.63 | D130: 40730255.64 | E130: 30449792.29 | F130: 32363142.88 | G130: 78115119.74 | H130: 78115119.74 | I130: 163969196.6 | J130: 166154459.4 | K130: 173636499.8
A131: Finance and administration | C131: =SUM(C132:C144) -> 898976596.4 | D131: 1386457371 | E131: 1053698122 | F131: 1285221053 | G131: 1216919906 | H131: 1216919906 | I131: 1193777693 | J131: 1247497428 | K131: 1305345255
A132: Administrative and Corporate Support | C132: 46763894.56 | D132: 48520851.24 | E132: 50791457.85 | F132: 58475861.16 | G132: 61010797.72 | H132: 61010797.72 | I132: 59777153.1 | J132: 62472392.19 | K132: 65286412.49
A133: Asset Management | C133: 61292864.67 | D133: 62056116.67 | E133: 70971653.48 | F133: 70532793.24 | G133: 51113091.45 | H133: 51113091.45 | I133: 62176445.61 | J133: 65064186.98 | K133: 68039176.18
A134: Finance | C134: 349092055.4 | D134: 810749316.7 | E134: 478867966.3 | F134: 730866573.4 | G134: 626186615.6 | H134: 626186615.6 | I134: 626500972.8 | J134: 655178990.7 | K134: 685012951.3
A135: Fleet Management | D135: 0 | E135: 0 | G135: 0 | H135: 0 | I135: 0 | J135: 0 | K135: 0
A136: Human Resources | C136: 78526261.1 | D136: 78065597.33 | E136: 77305139.46 | F136: 113566051 | G136: 88986551.79 | H136: 88986551.79 | I136: 91046088.27 | J136: 94016902.8 | K136: 99271245.09
A137: Information Technology | C137: 39378015.42 | D137: 41373957.4 | E137: 32643990.52 | F137: 51699390.5 | G137: 55621890.53 | H137: 55621890.53 | I137: 57159369.86 | J137: 59856727.51 | K137: 62615940.3
A138: Legal Services | C138: 14770253.19 | D138: 13829269.89 | E138: 10503949.75 | F138: 16733791.78 | G138: 18307857.78 | H138: 18307857.78 | I138: 18240282.65 | J138: 19075018.93 | K138: 19940697.68
A139: Marketing, Customer Relations, Publicity and Media Co-ordination | C139: 15603502.73 | D139: 16349277.73 | E139: 17212369.13 | F139: 17753994.79 | G139: 18350710.25 | H139: 18350710.25 | I139: 19543388.62 | J139: 20422841.1 | K139: 21341868.95
A140: Property Services | C140: 75555808.52 | D140: 66799138.26 | E140: 68297316.8 | F140: 55210808.77 | G140: 55772078.19 | H140: 55772078.19 | I140: 63488452.65 | J140: 66410940.27 | K140: 69433791.14
A141: Risk Management | D141: 0 | E141: 0 | G141: 0 | H141: 0 | I141: 0 | J141: 0 | K141: 0
A142: Security Services | C142: 154812636.4 | D142: 184663244.6 | E142: 172034542.9 | F142: 118804125.8 | G142: 173731706.4 | H142: 173731706.4 | I142: 120077387.9 | J142: 125651183 | K142: 131394815.3
A143: Supply Chain Management | C143: 63181304.39 | D143: 64050601.54 | E143: 75069735.87 | F143: 51577662.09 | G143: 67838606.75 | H143: 67838606.75 | I143: 75768151.16 | J143: 79348244.55 | K143: 83008356.75
A144: Valuation Service | D144: 0 | E144: 0 | G144: 0 | H144: 0
A145: Internal audit | C145: =SUM(C146:C146) -> 18637938.28 | D145: 16962222.89 | E145: 19542685.37 | F145: 20812190.82 | G145: 19642190.86 | H145: 19642190.86 | I145: 28455035.46 | J145: 29802712.06 | K145: 31179080.5
A146: Governance Function | C146: 18637938.28 | D146: 16962222.89 | E146: 19542685.37 | F146: 20812190.82 | G146: 19642190.86 | H146: 19642190.86 | I146: 28455035.46 | J146: 29802712.06 | K146: 31179080.5
A147: Community and public safety | C147: =C148+C170+C176+C185+C188 -> 550877476.1 | D147: 551498800.6 | E147: 551440158.6 | F147: 613713094.3 | G147: 540010710.5 | H147: 540010710.5 | I147: 535783647.4 | J147: 542802873.6 | K147: 556136755.8
A148: Community and social services | C148: =SUM(C149:C169) -> 112786554.2 | D148: =SUM(D149:D169) -> 149092712.5 | E148: 141393704.7 | F148: 129634195.3 | G148: 129214013.1 | H148: 129214013.1 | I148: 135893001.6 | J148: 142179459.4 | K148: 149432538.7
A149: Aged Care | C149: 28650.61 | D149: 556.83 | E149: 636.73 | F149: 42557.7495 | G149: 620412.35 | H149: 620412.35 | I149: 658027.5577 | J149: 687714.7978 | K149: 718701.8258
A150: Agricultural | D150: 0 | E150: 0 | G150: 0 | H150: 0 | I150: 0 | J150: 0 | K150: 0
A151: Animal Care and Diseases | C151: 1322049.36 | D151: 1400050.2 | E151: 1482653 | F151: 1200000 | G151: 1200000 | H151: 1200000 | I151: 1257600 | J151: 1319222.4 | K151: 1381225.853
A152: Cemeteries, Funeral Parlours and Crematoriums | C152: 25987108.46 | D152: 26495873.82 | E152: 29019589.55 | F152: 30020423.07 | G152: 30020423.08 | H152: 30020423.08 | I152: 32803662.2 | J152: 34289532.86 | K152: 35837652.57
A153: Child Care Facilities | D153: 0 | E153: 0 | G153: 0 | H153: 0 | I153: 0 | J153: 0 | K153: 0
A154: Community Halls and Facilities | C154: 15253772.86 | D154: 45190957.96 | E154: 29720949.31 | F154: 15113189.35 | G154: 13658781.38 | H154: 13658781.38 | I154: 15799744.62 | J154: 16532121.13 | K154: 17287284.59
A155: Consumer Protection | D155: 0 | E155: 0 | G155: 0 | H155: 0 | I155: 0 | J155: 0 | K155: 0
A156: Cultural Matters | D156: 0 | E156: 0 | G156: 0 | H156: 0 | I156: 0 | J156: 0 | K156: 0
A157: Disaster Management | D157: 0 | E157: 0 | G157: 0 | H157: 0 | I157: 0 | J157: 0 | K157: 0
A158: Education | D158: 0 | E158: 0 | G158: 0 | H158: 0 | I158: 0 | J158: 0 | K158: 0
A159: =A37 -> Indigenous and Customary Law | D159: 0 | E159: 0 | G159: 0 | H159: 0 | I159: 0 | J159: 0 | K159: 0
A160: Industrial Promotion | D160: 0 | E160: 0 | G160: 0 | H160: 0 | I160: 0 | J160: 0 | K160: 0
A161: Language Policy | D161: 0 | E161: 0 | G161: 0 | H161: 0 | I161: 0 | J161: 0 | K161: 0
A162: Libraries and Archives | C162: 58401677.98 | D162: 63852761.41 | E162: 69491675.27 | F162: 72261023.21 | G162: 73131230.28 | H162: 73131230.28 | I162: 73518450.61 | J162: 76954571.58 | K162: 81252292.27
A163: Literacy Programmes | D163: 0 | E163: 0 | G163: 0 | H163: 0 | I163: 0 | J163: 0 | K163: 0
A164: Media Services | D164: 0 | E164: 0 | G164: 0 | H164: 0 | I164: 0 | J164: 0 | K164: 0
A165: Museums and Art Galleries | C165: 6707807.71 | D165: 7430643.27 | E165: 7662252.27 | F165: 5881079.599 | G165: 5487540.648 | H165: 5487540.648 | I165: 6040266.113 | J165: 6314453.804 | K165: 6597282.588
A166: Population Development | C166: 5079039.34 | D166: 4714883.87 | E166: 4009500.75 | F166: 5115922.34 | G166: 5095625.38 | H166: 5095625.38 | I166: 5815250.466 | J166: 6081842.821 | K166: 6358098.988
A167: Provincial Cultural Matters | D167: 0 | E167: 0 | G167: 0 | H167: 0
A168: Theatres | C168: 6447.84 | D168: 6985.16 | E168: 6447.84 | G168: 0 | H168: 0
A169: Zoo's | E169: 0 | G169: 0 | H169: 0
A170: Sport and recreation | C170: =SUM(C171:C175) -> 102539647.3 | D170: 121244913.6 | E170: 115888281.4 | F170: 153119379.2 | G170: 147756038.5 | H170: 147756038.5 | I170: 130424689 | J170: 136399028.7 | K170: 142592177.4
A171: Beaches and Jetties | E171: 0 | G171: 0 | H171: 0
A172: Casinos, Racing, Gambling, Wagering | E172: 0 | G172: 0 | H172: 0
A173: Community Parks (including Nurseries) | C173: 45310937.11 | D173: 49055094.57 | E173: 56517812.87 | F173: 69646307.74 | G173: 68962307.87 | H173: 68962307.87 | I173: 72878671.55 | J173: 76186430.92 | K173: 79629621.26
A174: Recreational Facilities | C174: 57228710.21 | D174: 72189819.07 | E174: 59134104.51 | F174: 83473071.46 | G174: 77967322.6 | H174: 77967322.6 | I174: 56465275.91 | J174: 59078899.87 | K174: 61775574.46
A175: Sports Grounds and Stadiums | E175: 236364 | G175: 826408 | H175: 826408 | I175: 1080741.568 | J175: 1133697.905 | K175: 1186981.706
A176: Public safety | C176: =SUM(C177:C184) -> 193214425.3 | D176: 196809242.2 | E176: 216193878.2 | F176: 207854114.1 | G176: 207622267.4 | H176: 207622267.4 | I176: 220685496 | J176: 213467615.5 | K176: 211306049.7
A177: Civil Defence | C177: 13908466.71 | D177: 14573432.22 | E177: 15285989.35 | F177: 18109375.25 | G177: 18030003.28 | H177: 18030003.28 | I177: 19219679.35 | J177: 20139933.93 | K177: 21101023.38
A178: Cleansing | D178: 0 | E178: 0 | G178: 0 | H178: 0 | I178: 0 | J178: 0 | K178: 0
A179: =A57 -> Control of Public Nuisances | D179: 0 | E179: 0 | G179: 0 | H179: 0 | I179: 0 | J179: 0 | K179: 0
A180: Fencing and Fences | D180: 0 | E180: 0 | G180: 0 | H180: 0 | I180: 0 | J180: 0 | K180: 0
A181: Fire Fighting and Protection | C181: 98385793.12 | D181: 95656656.36 | E181: 109259286 | F181: 103532071.1 | G181: 105669596.3 | H181: 105669596.3 | I181: 113864517.8 | J181: 101756623.2 | K181: 94498741.08
A182: Licensing and Control of Animals | D182: 0 | E182: 0 | G182: 0 | H182: 0 | I182: 0 | J182: 0 | K182: 0
A183: Police Forces, Traffic and Street Parking Control | C183: 80920165.51 | D183: 86579153.62 | E183: 91648602.87 | F183: 86212667.78 | G183: 83922667.82 | H183: 83922667.82 | I183: 87601298.84 | J183: 91571058.41 | K183: 95706285.27
A184: Pounds | E184: 0 | G184: 0 | H184: 0 | I184: 0 | J184: 0 | K184: 0
A185: =A63 -> Housing | C185: =SUM(C186:C187) -> 136867613.7 | D185: 74912129 | E185: 68394082.77 | F185: 110226497.5 | G185: 42564006.33 | H185: 42564006.33 | I185: 35263319.41 | J185: 36629554.1 | K185: 38042103.52
A186: Housing | C186: 136867613.7 | D186: 74912129 | E186: 68394082.77 | F186: 110226497.5 | G186: 42564006.33 | H186: =G186 -> 42564006.33 | I186: 35263319.41 | J186: 36629554.1 | K186: 38042103.52
A187: Informal Settlements | E187: 0 | G187: 0 | H187: 0
A188: Health | C188: =SUM(C189:C195) -> 5469235.54 | D188: =SUM(D189:D195) -> 9439803.22 | E188: 9570211.44 | F188: 12878908.15 | G188: 12854385.2 | H188: 12854385.2 | I188: 13517141.35 | J188: 14127215.91 | K188: 14763886.41
A189: Ambulance | E189: 0 | G189: 0 | H189: 0
A190: Health Services | C190: 5469235.54 | D190: 9439803.22 | E190: 9570211.44 | F190: 12878908.15 | G190: 12854385.2 | H190: 12854385.2 | I190: 13517141.35 | J190: 14127215.91 | K190: 14763886.41
A191: Laboratory Services | E191: 0 | G191: 0 | H191: 0
A192: Food Control | E192: 0 | G192: 0 | H192: 0
A193: Health Surveillance and Prevention of Communicable Diseases including immunizations | E193: 0 | G193: 0 | H193: 0
A194: Vector Control | E194: 0 | G194: 0 | H194: 0
A195: Chemical Safety | E195: 0 | G195: 0 | H195: 0
A196: Economic and environmental services | C196: =C197+C208+C213 -> 332744460.6 | D196: 313304803.3 | E196: 393095329 | F196: 375461838.6 | G196: 403531040.9 | H196: 403531040.9 | I196: 513621030.7 | J196: 536409574.7 | K196: 560925958.9
A197: Planning and development | C197: =SUM(C198:C207) -> 83509759.39 | D197: =SUM(D198:D207) -> 69071779.38 | E197: 87743205.43 | F197: 78766873.59 | G197: 96727161.33 | H197: 96727161.33 | I197: 84862819.17 | J197: 87699044.72 | K197: 91678229.84
A198: Billboards | E198: 0 | G198: 0 | H198: 0 | I198: 0 | J198: 0 | K198: 0
A199: Corporate Wide Strategic Planning (IDPs, LEDs) | C199: 5500706.73 | D199: 6772978.5 | E199: 6406941.96 | F199: 7673782.363 | G199: 8554656.11 | H199: 8554656.11 | I199: 9449713.077 | J199: 9881949.197 | K199: 10330307.9
A200: Central City Improvement District | D200: 0 | E200: 0 | G200: 0 | H200: 0 | I200: 0 | J200: 0 | K200: 0
A201: Development Facilitation | D201: 0 | E201: 0 | G201: 0 | H201: 0 | I201: 0 | J201: 0 | K201: 0
... 53 more rows

Sheet A3-FinPerf V
A1: =muni&" - "&Approve2 -> 0 - Table A3 Budgeted Financial Performance (revenue and expenditure by municipal vote)
A2: =Vdesc -> Vote Description | B2: =head27 -> Ref | C2: =head1b -> 2019/20 | D2: =head1A -> 2020/21 | E2: =Head1 -> 2021/22 | F2: =Head2 -> Current Year 2022/23 | I2: =Head3 -> 2023/24 Medium Term Revenue & Expenditure Framework | L2: =Head4 -> LTFS
A3: R thousand | C3: =Head5 -> Audited Outcome | D3: =Head5 -> Audited Outcome | E3: =Head5 -> Audited Outcome | F3: =Head6 -> Original Budget | G3: =Head7 -> Adjusted Budget | H3: =Head8 -> Full Year Forecast | I3: =Head9 -> Budget Year 2023/24 | J3: =Head10 -> Budget Year +1 2024/25 | K3: =Head11 -> Budget Year +2 2025/26 | L3: =Head12 -> Forecast 2026/27 | M3: =Head13 -> Forecast 2027/28 | N3: =Head14 -> Forecast 2028/29 | O3: =Head15 -> Forecast 2029/30 | P3: =Head16 -> Forecast 2030/31 | Q3: =Head17 -> Forecast 2031/32 | R3: =Head18 -> Forecast 2032/33 | S3: =Head19 -> Forecast 2033/34 | T3: =Head20 -> Forecast 2034/35 | U3: =Head21 -> Forecast 2035/36 | V3: =Head22 -> Forecast 2036/37 | W3: =Head23 -> Forecast 2037/38
A4: Revenue by Vote | B4: 1
A5: =A3A!A5 -> Vote 1 - City Manager | C5: =A3A!C5 -> 325.94 | D5: =A3A!D5 -> 316680.28 | E5: =A3A!E5 -> 21554.57 | F5: =A3A!F5 -> 66070.11461 | G5: =A3A!G5 -> 66070.11461 | H5: =A3A!H5 -> 66070.11461 | I5: =A3A!I5 -> 0 | J5: =A3A!J5 -> 0 | K5: =A3A!K5 -> 0
A6: =A3A!A16 -> Vote 2 - City Finance | C6: =A3A!C16 -> 1641524016 | D6: =A3A!D16 -> 1673384926 | E6: =A3A!E16 -> 1692708414 | F6: =A3A!F16 -> 2098136528 | G6: =A3A!G16 -> 2034169271 | H6: =A3A!H16 -> 2034169271 | I6: =A3A!I16 -> 2342934597 | J6: =A3A!J16 -> 2471595105 | K6: =A3A!K16 -> 2625593187
A7: =A3A!A27 -> Vote 3 - Corporate Services | C7: =A3A!C27 -> 4201240.59 | D7: =A3A!D27 -> 3958707.15 | E7: =A3A!E27 -> 3542654.18 | F7: =A3A!F27 -> 5518589.777 | G7: =A3A!G27 -> 7947033.463 | H7: =A3A!H27 -> 7947033.463 | I7: =A3A!I27 -> 7980216.973 | J7: =A3A!J27 -> 3148276.605 | K7: =A3A!K27 -> 3296245.605
A8: =A3A!A37 -> Vote 4 - Community Services and Social Equity | C8: =A3A!C37 -> 233840786.7 | D8: =A3A!D37 -> 198749941.6 | E8: =A3A!E37 -> 215034923.5 | F8: =A3A!F37 -> 221409887.6 | G8: =A3A!G37 -> 221409887.6 | H8: =A3A!H37 -> 221409887.6 | I8: =A3A!I37 -> 497013172.7 | J8: =A3A!J37 -> 513912687.2 | K8: =A3A!K37 -> 537992891.3
A9: =A3A!A48 -> Vote 5 - Infrastructure Services | C9: =A3A!C48 -> 1584762445 | D9: =A3A!D48 -> 1719141598 | E9: =A3A!E48 -> 1596046262 | F9: =A3A!F48 -> 1831866117 | G9: =A3A!G48 -> 1831866117 | H9: =A3A!H48 -> 1831866117 | I9: =A3A!I48 -> 1520657146 | J9: =A3A!J48 -> 1620256217 | K9: =A3A!K48 -> 1696742341
A10: =A3A!A59 -> Vote 6 - Sustainable Development and City Enterprises | C10: =A3A!C59 -> 243419159.2 | D10: =A3A!D59 -> 229818291.3 | E10: =A3A!E59 -> 144081748.6 | F10: =A3A!F59 -> 369027983.1 | G10: =A3A!G59 -> 369027983.1 | H10: =A3A!H59 -> 369027983.1 | I10: =A3A!I59 -> 200280366 | J10: =A3A!J59 -> 202212592.4 | K10: =A3A!K59 -> 210118731.5
A11: =A3A!A70 -> Vote 7 - Electricity | C11: =A3A!C70 -> 2241860377 | D11: =A3A!D70 -> 2213588916 | E11: =A3A!E70 -> 2571001680 | F11: =A3A!F70 -> 3305883087 | G11: =A3A!G70 -> 3305883087 | H11: =A3A!H70 -> 3305883087 | I11: =A3A!I70 -> 4000560679 | J11: =A3A!J70 -> 4491770272 | K11: =A3A!K70 -> 5292597018
A12: =A3A!A81 -> Vote 8 - [NAME OF VOTE 8] | C12: =A3A!C81 -> 0 | D12: =A3A!D81 -> 0 | E12: =A3A!E81 -> 0 | F12: =A3A!F81 -> 0 | G12: =A3A!G81 -> 0 | H12: =A3A!H81 -> 0 | I12: =A3A!I81 -> 0 | J12: =A3A!J81 -> 0 | K12: =A3A!K81 -> 0
A13: =A3A!A92 -> Vote 9 - [NAME OF VOTE 9] | C13: =A3A!C92 -> 0 | D13: =A3A!D92 -> 0 | E13: =A3A!E92 -> 0 | F13: =A3A!F92 -> 0 | G13: =A3A!G92 -> 0 | H13: =A3A!H92 -> 0 | I13: =A3A!I92 -> 0 | J13: =A3A!J92 -> 0 | K13: =A3A!K92 -> 0
A14: =A3A!A103 -> Vote 10 - [NAME OF VOTE 10] | C14: =A3A!C103 -> 0 | D14: =A3A!D103 -> 0 | E14: =A3A!E103 -> 0 | F14: =A3A!F103 -> 0 | G14: =A3A!G103 -> 0 | H14: =A3A!H103 -> 0 | I14: =A3A!I103 -> 0 | J14: =A3A!J103 -> 0 | K14: =A3A!K103 -> 0
A15: =A3A!A114 -> Vote 11 - [NAME OF VOTE 11] | C15: =A3A!C114 -> 0 | D15: =A3A!D114 -> 0 | E15: =A3A!E114 -> 0 | F15: =A3A!F114 -> 0 | G15: =A3A!G114 -> 0 | H15: =A3A!H114 -> 0 | I15: =A3A!I114 -> 0 | J15: =A3A!J114 -> 0 | K15: =A3A!K114 -> 0 | L15: =A5A!L114 -> 0
A16: =A3A!A125 -> Vote 12 - [NAME OF VOTE 12] | C16: =A3A!C125 -> 0 | D16: =A3A!D125 -> 0 | E16: =A3A!E125 -> 0 | F16: =A3A!F125 -> 0 | G16: =A3A!G125 -> 0 | H16: =A3A!H125 -> 0 | I16: =A3A!I125 -> 0 | J16: =A3A!J125 -> 0 | K16: =A3A!K125 -> 0 | L16: =A5A!L125 -> 0
A17: =A3A!A136 -> Vote 13 - [NAME OF VOTE 13] | C17: =A3A!C136 -> 0 | D17: =A3A!D136 -> 0 | E17: =A3A!E136 -> 0 | F17: =A3A!F136 -> 0 | G17: =A3A!G136 -> 0 | H17: =A3A!H136 -> 0 | I17: =A3A!I136 -> 0 | J17: =A3A!J136 -> 0 | K17: =A3A!K136 -> 0 | L17: =A5A!L136 -> 0
A18: =A3A!A147 -> Vote 14 - [NAME OF VOTE 14] | C18: =A3A!C147 -> 0 | D18: =A3A!D147 -> 0 | E18: =A3A!E147 -> 0 | F18: =A3A!F147 -> 0 | G18: =A3A!G147 -> 0 | H18: =A3A!H147 -> 0 | I18: =A3A!I147 -> 0 | J18: =A3A!J147 -> 0 | K18: =A3A!K147 -> 0 | L18: =A5A!L147 -> 0
A19: =A3A!A158 -> Vote 15 - [NAME OF VOTE 15] | C19: =A3A!C158 -> 0 | D19: =A3A!D158 -> 0 | E19: =A3A!E158 -> 0 | F19: =A3A!F158 -> 0 | G19: =A3A!G158 -> 0 | H19: =A3A!H158 -> 0 | I19: =A3A!I158 -> 0 | J19: =A3A!J158 -> 0 | K19: =A3A!K158 -> 0 | L19: =A5A!L158 -> 0
A20: Total Revenue by Vote | B20: 2 | C20: =SUM(C5:C19) -> 5949608350 | D20: =SUM(D5:D19) -> 6038959060 | E20: 6222437237 | F20: 7831908263 | G20: 7770369449 | H20: 7770369449 | I20: 8569426178 | J20: 9302895150 | K20: 10366340415
A22: Expenditure by Vote to be appropriated | B22: 1
A23: =A3A!A172 -> Vote 1 - City Manager | C23: =A3A!C172 -> 156568923.9 | D23: =A3A!D172 -> 144293564.4 | E23: =A3A!E172 -> 155043755.9 | F23: =A3A!F172 -> 157775344.4 | G23: =A3A!G172 -> 148399679.4 | H23: =A3A!H172 -> 148399679.4 | I23: =A3A!I172 -> 300105971.1 | J23: =A3A!J172 -> 313749698.6 | K23: =A3A!K172 -> 327941318.9
A24: =A3A!A183 -> Vote 2 - City Finance | C24: =A3A!C183 -> 489928288.8 | D24: =A3A!D183 -> 951383518.4 | E24: =A3A!E183 -> 611783863.7 | F24: =A3A!F183 -> 846124063.2 | G24: =A3A!G183 -> 757338722.3 | H24: =A3A!H183 -> 757338722.3 | I24: =A3A!I183 -> 799187822.7 | J24: =A3A!J183 -> 835918652.6 | K24: =A3A!K183 -> 874033756.5
A25: =A3A!A194 -> Vote 3 - Corporate Services | C25: =A3A!C194 -> 78073132.65 | D25: =A3A!D194 -> 89837684.96 | E25: =A3A!E194 -> 69616493.69 | F25: =A3A!F194 -> 99501184.07 | G25: =A3A!G194 -> 242457481.7 | H25: =A3A!H194 -> 242457481.7 | I25: =A3A!I194 -> 195633443.4 | J25: =A3A!J194 -> 199465750.2 | K25: =A3A!K194 -> 208563317.9
A26: =A3A!A204 -> Vote 4 - Community Services and Social Equity | C26: =A3A!C204 -> 768775615.6 | D26: =A3A!D204 -> 848301582.7 | E26: =A3A!E204 -> 864836632.2 | F26: =A3A!F204 -> 801717965.1 | G26: =A3A!G204 -> 837659497.9 | H26: =A3A!H204 -> 837659497.9 | I26: =A3A!I204 -> 827458053.8 | J26: =A3A!J204 -> 865408025.8 | K26: =A3A!K204 -> 905493807.3
A27: =A3A!A215 -> Vote 5 - Infrastructure Services | C27: =A3A!C215 -> 1748945156 | D27: =A3A!D215 -> 1734904819 | E27: =A3A!E215 -> 2026075661 | F27: =A3A!F215 -> 1768788550 | G27: =A3A!G215 -> 1621673326 | H27: =A3A!H215 -> 1621673326 | I27: =A3A!I215 -> 2117250006 | J27: =A3A!J215 -> 2229930568 | K27: =A3A!K215 -> 2332105417
A28: =A3A!A226 -> Vote 6 - Sustainable Development and City Enterprises | C28: =A3A!C226 -> 329587599 | D28: =A3A!D226 -> 242328175.9 | E28: =A3A!E226 -> 271855705.8 | F28: =A3A!F226 -> 291171880.1 | G28: =A3A!G226 -> 242374357.8 | H28: =A3A!H226 -> 242374357.8 | I28: =A3A!I226 -> 224007326.3 | J28: =A3A!J226 -> 215568824.5 | K28: =A3A!K226 -> 213318280.9
A29: =A3A!A237 -> Vote 7 - Electricity | C29: =A3A!C237 -> 2153949481 | D29: =A3A!D237 -> 1972953315 | E29: =A3A!E237 -> 2950207305 | F29: =A3A!F237 -> 2731735558 | G29: =A3A!G237 -> 2773307193 | H29: =A3A!H237 -> 2773307193 | I29: =A3A!I237 -> 3240145172 | J29: =A3A!J237 -> 3827187024 | K29: =A3A!K237 -> 4322237060
A30: =A3A!A248 -> Vote 8 - [NAME OF VOTE 8] | C30: =A3A!C248 -> 0 | D30: =A3A!D248 -> 0 | E30: =A3A!E248 -> 0 | F30: =A3A!F248 -> 0 | G30: =A3A!G248 -> 0 | H30: =A3A!H248 -> 0 | I30: =A3A!I248 -> 0 | J30: =A3A!J248 -> 0 | K30: =A3A!K248 -> 0
A31: =A3A!A259 -> Vote 9 - [NAME OF VOTE 9] | C31: =A3A!C259 -> 0 | D31: =A3A!D259 -> 0 | E31: =A3A!E259 -> 0 | F31: =A3A!F259 -> 0 | G31: =A3A!G259 -> 0 | H31: =A3A!H259 -> 0 | I31: =A3A!I259 -> 0 | J31: =A3A!J259 -> 0 | K31: =A3A!K259 -> 0
A32: =A3A!A270 -> Vote 10 - [NAME OF VOTE 10] | C32: =A3A!C270 -> 0 | D32: =A3A!D270 -> 0 | E32: =A3A!E270 -> 0 | F32: =A3A!F270 -> 0 | G32: =A3A!G270 -> 0 | H32: =A3A!H270 -> 0 | I32: =A3A!I270 -> 0 | J32: =A3A!J270 -> 0 | K32: =A3A!K270 -> 0
A33: =A3A!A281 -> Vote 11 - [NAME OF VOTE 11] | C33: =A3A!C281 -> 0 | D33: =A3A!D281 -> 0 | E33: =A3A!E281 -> 0 | F33: =A3A!F281 -> 0 | G33: =A3A!G281 -> 0 | H33: =A3A!H281 -> 0 | I33: =A3A!I281 -> 0 | J33: =A3A!J281 -> 0 | K33: =A3A!K281 -> 0 | L33: =A3A!L282 -> 0
A34: =A3A!A292 -> Vote 12 - [NAME OF VOTE 12] | C34: =A3A!C292 -> 0 | D34: =A3A!D292 -> 0 | E34: =A3A!E292 -> 0 | F34: =A3A!F292 -> 0 | G34: =A3A!G292 -> 0 | H34: =A3A!H292 -> 0 | I34: =A3A!I292 -> 0 | J34: =A3A!J292 -> 0 | K34: =A3A!K292 -> 0 | L34: =A3A!L293 -> 0
A35: =A3A!A303 -> Vote 13 - [NAME OF VOTE 13] | C35: =A3A!C303 -> 0 | D35: =A3A!D303 -> 0 | E35: =A3A!E303 -> 0 | F35: =A3A!F303 -> 0 | G35: =A3A!G303 -> 0 | H35: =A3A!H303 -> 0 | I35: =A3A!I303 -> 0 | J35: =A3A!J303 -> 0 | K35: =A3A!K303 -> 0 | L35: =A3A!L304 -> 0
A36: =A3A!A314 -> Vote 14 - [NAME OF VOTE 14] | C36: =A3A!C314 -> 0 | D36: =A3A!D314 -> 0 | E36: =A3A!E314 -> 0 | F36: =A3A!F314 -> 0 | G36: =A3A!G314 -> 0 | H36: =A3A!H314 -> 0 | I36: =A3A!I314 -> 0 | J36: =A3A!J314 -> 0 | K36: =A3A!K314 -> 0 | L36: =A3A!L315 -> 0
A37: =A3A!A325 -> Vote 15 - [NAME OF VOTE 15] | C37: =A3A!C325 -> 0 | D37: =A3A!D325 -> 0 | E37: =A3A!E325 -> 0 | F37: =A3A!F325 -> 0 | G37: =A3A!G325 -> 0 | H37: =A3A!H325 -> 0 | I37: =A3A!I325 -> 0 | J37: =A3A!J325 -> 0 | K37: =A3A!K325 -> 0 | L37: =A3A!L326 -> 0
A38: Total Expenditure by Vote | B38: 2 | C38: =SUM(C23:C37) -> 5725828197 | D38: =SUM(D23:D37) -> 5984002660 | E38: 6949419417 | F38: 6696814545 | G38: 6623210257 | H38: 6623210257 | I38: 7703787795 | J38: 8487228543 | K38: 9183692958 | L38: =SUM(L23:L29) -> 0 | M38: 0 | N38: 0 | O38: 0 | P38: 0 | Q38: 0 | R38: 0 | S38: 0 | T38: 0 | U38: 0 | V38: 0 | W38: 0
A39: =result -> Surplus/(Deficit) for the year | B39: 2 | C39: =C20-C38 -> 223780153 | D39: 54956400 | E39: -726982180 | F39: 1135093718 | G39: 1147159192 | H39: 1147159192 | I39: 865638383 | J39: 815666607 | K39: 1182647457 | L39: 0 | M39: 0 | N39: 0 | O39: 0 | P39: 0 | Q39: 0 | R39: 0 | S39: 0 | T39: 0 | U39: 0 | V39: 0 | W39: 0
A40: =head27a -> References
A41: 1. Insert 'Vote'; e.g. department, if different to functional classification structure
A42: 2. Must reconcile to Budgeted Financial Performance (revenue and expenditure)
A43: 3. Assign share in 'associate' to relevant Vote
A45: ="check "&A39 -> check Surplus/(Deficit) for the year | C45: =C39-A3A!C338 -> 0 | D45: =D39-A3A!D338 -> 0 | E45: =E39-A3A!E338 -> 0 | F45: =F39-A3A!F338 -> 0 | G45: =G39-A3A!G338 -> 0 | H45: =H39-A3A!H338 -> 0 | I45: =I39-A3A!I338 -> 0 | J45: =J39-A3A!J338 -> 0 | K45: =K39-A3A!K338 -> 0

Sheet A3A
A1: =muni&" - "&Approve2&"A" -> 0 - Table A3 Budgeted Financial Performance (revenue and expenditure by municipal vote)A
A2: =Vdesc -> Vote Description | B2: =head27 -> Ref | C2: =head1b -> 2019/20 | D2: =head1A -> 2020/21 | E2: =Head1 -> 2021/22 | F2: =Head2 -> Current Year 2022/23 | I2: =Head3 -> 2023/24 Medium Term Revenue & Expenditure Framework | L2: =Head4 -> LTFS
A3: R thousand | C3: =Head5 -> Audited Outcome | D3: =Head5 -> Audited Outcome | E3: =Head5 -> Audited Outcome | F3: =Head6 -> Original Budget | G3: =Head7 -> Adjusted Budget | H3: =Head8 -> Full Year Forecast | I3: =Head9 -> Budget Year 2023/24 | J3: =Head10 -> Budget Year +1 2024/25 | K3: =Head11 -> Budget Year +2 2025/26 | L3: =Head12 -> Forecast 2026/27 | M3: =Head13 -> Forecast 2027/28 | N3: =Head14 -> Forecast 2028/29 | O3: =Head15 -> Forecast 2029/30 | P3: =Head16 -> Forecast 2030/31 | Q3: =Head17 -> Forecast 2031/32 | R3: =Head18 -> Forecast 2032/33 | S3: =Head19 -> Forecast 2033/34 | T3: =Head20 -> Forecast 2034/35 | U3: =Head21 -> Forecast 2035/36 | V3: =Head22 -> Forecast 2036/37 | W3: =Head23 -> Forecast 2037/38
A4: Revenue by Vote | B4: 1
A5: ='Org structure'!A2 -> Vote 1 - City Manager | C5: =SUM(C6:C15) -> 325.94 | D5: =SUM(D6:D15) -> 316680.28 | E5: 21554.57 | F5: 66070.11461 | G5: 66070.11461 | H5: 66070.11461 | I5: 0 | J5: 0 | K5: 0
A6: ='Org structure'!E3 -> 1.1 - Internal Audit and Compliance | C6: 34.9 | D6: 2649.84 | E6: 2494.96 | G6: 0 | H6: 0
A7: ='Org structure'!E4 -> 1.2 - Office of the City Manager | C7: 129164.97 | D7: 1290.14 | E7: 6831.15 | F7: 66070.11461 | G7: 66070.11461 | H7: 66070.11461
A8: ='Org structure'!E5 -> 1.3 - Political Support | C8: -128887.71 | D8: 12674.79 | E8: 11488.75 | G8: 0 | H8: 0
A9: ='Org structure'!E6 -> 1.4 - Strategic Planning | C9: 13.78 | D9: 300065.51 | E9: 739.71 | G9: 0 | H9: 0
A10: ='Org structure'!E7 -> 0
A11: ='Org structure'!E8 -> 0
A12: ='Org structure'!E9 -> 0
A13: ='Org structure'!E10 -> 0
A14: ='Org structure'!E11 -> 0
A15: ='Org structure'!E12 -> 0
A16: ='Org structure'!A3 -> Vote 2 - City Finance | C16: =SUM(C17:C26) -> 1641524016 | D16: =SUM(D17:D26) -> 1673384926 | E16: 1692708414 | F16: 2098136528 | G16: 2034169271 | H16: 2034169271 | I16: 2342934597 | J16: 2471595105 | K16: 2625593187
A17: ='Org structure'!E14 -> 2.1 - Asset Management | C17: 41427851.56 | D17: 7754458.16 | E17: 20671097.22 | F17: 17255543.96 | G17: 17255543.96 | H17: 17255543.96 | I17: 19067376.06 | J17: 20001677.49 | K17: 20941756.33
A18: ='Org structure'!E15 -> 2.2 - Budget and Treasury Management | C18: 314420414.7 | D18: 385609372.7 | E18: 351346646.7 | F18: 410698664.6 | G18: 410698664.6 | H18: 410698664.6 | I18: 787224025.3 | J18: 857839406.9 | K18: 951820283.8
A19: ='Org structure'!E16 -> 2.3 - Expenditure Management | C19: 264.31 | D19: 1233.72 | E19: 527.39 | F19: 372177.0298 | G19: 372177.0298 | H19: 372177.0298 | I19: 411255.6181 | J19: 431407.1434 | K19: 451683.2792
A20: ='Org structure'!E17 -> 2.4 - Revenue Management | C20: 1285595512 | D20: 1279910171 | E20: 1320584646 | F20: 1669499097 | G20: 1605531839 | H20: 1605531839 | I20: 1535899001 | J20: 1592973360 | K20: 1652013796
A21: ='Org structure'!E18 -> 2.5 - Supply Chain Management | C21: 79973.34 | D21: 109689.85 | E21: 105497.07 | F21: 311045.9568 | G21: 311045.9568 | H21: 311045.9568 | I21: 332939.1845 | J21: 349253.2045 | K21: 365668.1052
A22: ='Org structure'!E19 -> 0
A23: ='Org structure'!E20 -> 0
A24: ='Org structure'!E21 -> 0
A25: ='Org structure'!E22 -> 0
A26: ='Org structure'!E23 -> 0
A27: ='Org structure'!A4 -> Vote 3 - Corporate Services | C27: =SUM(C28:C36) -> 4201240.59 | D27: 3958707.15 | E27: 3542654.18 | F27: 5518589.777 | G27: 7947033.463 | H27: 7947033.463 | I27: 7980216.973 | J27: 3148276.605 | K27: 3296245.605
A28: ='Org structure'!E26 -> Human Resources Management | C28: 616.54 | D28: 22555.09 | E28: 17396.22 | F28: 2237.497834 | G28: 2428443.686 | H28: 2428443.686 | I28: 2683430.277 | J28: 2814918.361 | K28: 2947219.524
A29: ='Org structure'!E27 -> Information Technology | C29: 135.57 | D29: 2567.63 | E29: 1711.96 | F29: 285352.2787 | G29: 2237.497834 | H29: 2237.497834 | I29: 2472.42645 | J29: 2593.575346 | K29: 2715.473387
A30: ='Org structure'!E28 -> Legal Services | C30: 442.16 | D30: 12247.85 | E30: 6513.46 | F30: 5231000 | G30: 285352.2787 | H30: 285352.2787 | I30: 315314.2694 | J30: 330764.6686 | K30: 346310.608
A31: ='Org structure'!E29 -> Secretariat and Auxiliary Services | C31: 4200046.32 | D31: 3921336.58 | E31: 3517032.54 | G31: 5231000 | H31: 5231000 | I31: 0 | J31: 0 | K31: 0
A32: ='Org structure'!E30 -> General Manager: Corporate Service | G32: 0 | H32: 0 | I32: 4979000 | J32: 0 | K32: 0
A33: ='Org structure'!E31 -> 0
A34: ='Org structure'!E32 -> 0
A35: ='Org structure'!E33 -> 0
A36: ='Org structure'!E34 -> 0
A37: ='Org structure'!A5 -> Vote 4 - Community Services and Social Equity | C37: =SUM(C38:C47) -> 233840786.7 | D37: 198749941.6 | E37: 215034923.5 | F37: 221409887.6 | G37: 221409887.6 | H37: 221409887.6 | I37: 497013172.7 | J37: 513912687.2 | K37: 537992891.3
A38: ='Org structure'!E36 -> 4.1 - Area Based Management | C38: 790002.4 | D38: 185977.7 | E38: 429151.76 | F38: 1127716.213 | G38: 1127716.213 | H38: 1127716.213 | I38: 9788096.706 | J38: 10267713.44 | K38: 10750295.98
A39: ='Org structure'!E37 -> 4.2 - Public Safety, Emergency Services and Enforcement | C39: 15025160.9 | D39: 19855223.65 | E39: 18190539.34 | F39: 4191499.138 | G39: 4191499.138 | H39: 4191499.138 | I39: 8568779.072 | J39: 8988649.246 | K39: 9411115.761
A40: ='Org structure'!E38 -> 4.3 - Recreation and Facilities | C40: 41696620.73 | D40: 24190086.01 | E40: 45939601.26 | F40: 28679568.63 | G40: 28679568.63 | H40: 28679568.63 | I40: 319882193.8 | J40: 328102040.8 | K40: 343432225.3
A41: ='Org structure'!E39 -> 4.4 - Waste Management | C41: 176329002.6 | D41: 154518654.3 | E41: 150475631.1 | F41: 187411103.6 | G41: 187411103.6 | H41: 187411103.6 | I41: 158774103.1 | J41: 166554283.7 | K41: 174399254.3
A42: ='Org structure'!E40 -> 0
A43: ='Org structure'!E41 -> 0
A44: ='Org structure'!E42 -> 0
A45: ='Org structure'!E43 -> 0
A46: ='Org structure'!E44 -> 0
A47: ='Org structure'!E45 -> 0
A48: ='Org structure'!A6 -> Vote 5 - Infrastructure Services | C48: =SUM(C49:C58) -> 1584762445 | D48: =SUM(D49:D58) -> 1719141598 | E48: 1596046262 | F48: 1831866117 | G48: 1831866117 | H48: 1831866117 | I48: 1520657146 | J48: 1620256217 | K48: 1696742341
A49: ='Org structure'!E47 -> 5.1 - Project Management Office | C49: 6272011.53 | D49: 6074552.06 | E49: 6107917.56 | F49: 9172910 | G49: 9172910 | H49: 9172910 | I49: 9830360 | J49: 9051405 | K49: 10432440
A50: ='Org structure'!E48 -> 5.2 - Roads and Transportation | C50: 245677587.3 | D50: 234900598 | E50: 151378954 | F50: 424878.2706 | G50: 424878.2706 | H50: 424878.2706 | I50: 222714.297 | J50: 233627.2976 | K50: -244607.7805
A51: ='Org structure'!E49 -> 5.3 - Water and Sanitation | C51: 1332812819 | D51: 1478166330 | E51: 1438552878 | F51: 1822268329 | G51: 1822268329 | H51: 1822268329 | I51: 1510604072 | J51: 1610971185 | K51: 1686554509
A52: ='Org structure'!E50 -> 5.4 - General Manager: Infrastructure | C52: 26.45 | D52: 118 | E52: 6512.86 | G52: 0 | H52: 0 | I52: 0 | J52: 0 | K52: 0
A53: ='Org structure'!E51 -> 0 | G53: 0
A54: ='Org structure'!E52 -> 0
A55: ='Org structure'!E53 -> 0
A56: ='Org structure'!E54 -> 0
A57: ='Org structure'!E55 -> 0
A58: ='Org structure'!E56 -> 0
A59: ='Org structure'!A7 -> Vote 6 - Sustainable Development and City Enterprises | C59: =SUM(C60:C69) -> 243419159.2 | D59: =SUM(D60:D69) -> 229818291.3 | E59: 144081748.6 | F59: 369027983.1 | G59: 369027983.1 | H59: 369027983.1 | I59: 200280366 | J59: 202212592.4 | K59: 210118731.5
A60: ='Org structure'!E58 -> 6.1 - City Entities | C60: 33291054.99 | D60: 49772223.7 | E60: 26610735.06 | F60: 77848244.8 | G60: 77848244.8 | H60: 77848244.8 | I60: 110066430.8 | J60: 122667317.6 | K60: 128333801.5
A61: ='Org structure'!E59 -> 6.2 - Development Services | C61: 103539.45 | D61: 607428.18 | E61: 37982121.61 | F61: 558867.5302 | G61: 558867.5302 | H61: 558867.5302 | I61: 2292326.484 | J61: 2576804.201 | K61: 2697913.998
A62: ='Org structure'!E60 -> 6.3 - Human Settlement Development | C62: 176384852.8 | D62: 142494414.7 | E62: 69982808.91 | F62: 142337500.6 | G62: 142337500.6 | H62: 142337500.6 | I62: 32320661.28 | J62: 29800981.49 | K62: 31112654.87
A63: ='Org structure'!E61 -> 6.4 - Town Planning | C63: 33639711.94 | D63: 36944224.7 | E63: 9506083 | F63: 45486351.31 | G63: 45486351.31 | H63: 45486351.31 | I63: 55600947.45 | J63: 47167489.11 | K63: 47974361.1
A64: ='Org structure'!E62 -> 6.5 - General Manager: Sustainable Development and City Enterprises | C64: 0 | E64: 0 | F64: 102797018.9 | G64: 102797018.9 | H64: 102797018.9 | I64: 0 | J64: 0 | K64: 0
A65: ='Org structure'!E63 -> 0
A66: ='Org structure'!E64 -> 0
A67: ='Org structure'!E65 -> 0
A68: ='Org structure'!E66 -> 0
A69: ='Org structure'!E67 -> 0
A70: ='Org structure'!A8 -> Vote 7 - Electricity | C70: =SUM(C71:C80) -> 2241860377 | D70: 2213588916 | E70: 2571001680 | F70: 3305883087 | G70: 3305883087 | H70: 3305883087 | I70: 4000560679 | J70: 4491770272 | K70: 5292597018
A71: ='Org structure'!E69 -> 7.1 Electricity planning | C71: 2241860377 | D71: 2213588916 | E71: 2571001680 | F71: 3254458565 | G71: 3254458565 | H71: 3254458565 | I71: 12000000 | J71: 12000000 | K71: 7314000
A72: ='Org structure'!E70 -> 7.2 Methods and Standards | G72: 0 | H72: 0 | I72: 0 | J72: 0 | K72: 0
A73: ='Org structure'!E71 -> 7.3 Operations and Maintenance | G73: 0 | H73: 0 | I73: 0 | J73: 0 | K73: 0
A74: ='Org structure'!E72 -> 7.4 Revenue Management | I74: 3954444242 | J74: 4442941219 | K74: 5245276226 | L74: 0 | M74: 0 | N74: 0 | O74: 0 | P74: 0 | Q74: 0 | R74: 0 | S74: 0 | T74: 0 | U74: 0 | V74: 0 | W74: 0 | X74: 0
A75: ='Org structure'!E73 -> 7.5 General Manager Electricity | F75: 51424522.33 | G75: 51424522.33 | H75: 51424522.33 | I75: 24738856.93 | J75: 25951060.92 | K75: 27170760.78
A76: ='Org structure'!E74 -> 0 | I76: 9377579.898 | J76: 10877992.68 | K76: 12836031.36
A77: ='Org structure'!E75 -> 0
A78: ='Org structure'!E76 -> 0
A79: ='Org structure'!E77 -> 0
A80: ='Org structure'!E78 -> 0
A81: ='Org structure'!A9 -> Vote 8 - [NAME OF VOTE 8] | C81: =SUM(C82:C91) -> 0 | D81: =SUM(D82:D91) -> 0 | E81: 0 | F81: 0 | G81: 0 | H81: 0 | I81: 0 | J81: 0 | K81: 0
A82: ='Org structure'!E80 -> 8.1 - [Name of sub-vote]
A83: ='Org structure'!E81 -> 0
A84: ='Org structure'!E82 -> 0
A85: ='Org structure'!E83 -> 0
A86: ='Org structure'!E84 -> 0
A87: ='Org structure'!E85 -> 0
A88: ='Org structure'!E86 -> 0
A89: ='Org structure'!E87 -> 0
A90: ='Org structure'!E88 -> 0
A91: ='Org structure'!E89 -> 0
A92: ='Org structure'!A10 -> Vote 9 - [NAME OF VOTE 9] | C92: =SUM(C93:C102) -> 0 | D92: =SUM(D93:D102) -> 0 | E92: 0 | F92: 0 | G92: 0 | H92: 0 | I92: 0 | J92: 0 | K92: 0
A93: ='Org structure'!E91 -> 9.1 - [Name of sub-vote]
A94: ='Org structure'!E92 -> 0
A95: ='Org structure'!E93 -> 0
A96: ='Org structure'!E94 -> 0
A97: ='Org structure'!E95 -> 0
A98: ='Org structure'!E96 -> 0
A99: ='Org structure'!E97 -> 0
A100: ='Org structure'!E98 -> 0
A101: ='Org structure'!E99 -> 0
A102: ='Org structure'!E100 -> 0
A103: ='Org structure'!A11 -> Vote 10 - [NAME OF VOTE 10] | C103: =SUM(C104:C113) -> 0 | D103: =SUM(D104:D113) -> 0 | E103: 0 | F103: 0 | G103: 0 | H103: 0 | I103: 0 | J103: 0 | K103: 0
A104: ='Org structure'!E102 -> 10.1 - [Name of sub-vote]
A105: ='Org structure'!E103 -> 0
A106: ='Org structure'!E104 -> 0
A107: ='Org structure'!E105 -> 0
A108: ='Org structure'!E106 -> 0
A109: ='Org structure'!E107 -> 0
A110: ='Org structure'!E108 -> 0
A111: ='Org structure'!E109 -> 0
A112: ='Org structure'!E110 -> 0
A113: ='Org structure'!E111 -> 0
A114: ='Org structure'!A12 -> Vote 11 - [NAME OF VOTE 11] | C114: =SUM(C115:C124) -> 0 | D114: =SUM(D115:D124) -> 0 | E114: 0 | F114: 0 | G114: 0 | H114: 0 | I114: 0 | J114: 0 | K114: 0
A115: ='Org structure'!E113 -> 11.1 - [Name of sub-vote]
A116: ='Org structure'!E114 -> 0
A117: ='Org structure'!E115 -> 0
A118: ='Org structure'!E116 -> 0
A119: ='Org structure'!E117 -> 0
A120: ='Org structure'!E118 -> 0
A121: ='Org structure'!E119 -> 0
A122: ='Org structure'!E120 -> 0
A123: ='Org structure'!E121 -> 0
A124: ='Org structure'!E122 -> 0
A125: ='Org structure'!A13 -> Vote 12 - [NAME OF VOTE 12] | C125: =SUM(C126:C135) -> 0 | D125: =SUM(D126:D135) -> 0 | E125: 0 | F125: 0 | G125: 0 | H125: 0 | I125: 0 | J125: 0 | K125: 0
A126: ='Org structure'!E124 -> 12.1 - [Name of sub-vote]
A127: ='Org structure'!E125 -> 0
A128: ='Org structure'!E126 -> 0
A129: ='Org structure'!E127 -> 0
A130: ='Org structure'!E128 -> 0
A131: ='Org structure'!E129 -> 0
A132: ='Org structure'!E130 -> 0
A133: ='Org structure'!E131 -> 0
A134: ='Org structure'!E132 -> 0
A135: ='Org structure'!E133 -> 0
A136: ='Org structure'!A14 -> Vote 13 - [NAME OF VOTE 13] | C136: =SUM(C137:C146) -> 0 | D136: =SUM(D137:D146) -> 0 | E136: 0 | F136: 0 | G136: 0 | H136: 0 | I136: 0 | J136: 0 | K136: 0
A137: ='Org structure'!E135 -> 13.1 - [Name of sub-vote]
A138: ='Org structure'!E136 -> 0
A139: ='Org structure'!E137 -> 0
A140: ='Org structure'!E138 -> 0
A141: ='Org structure'!E139 -> 0
A142: ='Org structure'!E140 -> 0
A143: ='Org structure'!E141 -> 0
A144: ='Org structure'!E142 -> 0
A145: ='Org structure'!E143 -> 0
A146: ='Org structure'!E144 -> 0
A147: ='Org structure'!A15 -> Vote 14 - [NAME OF VOTE 14] | C147: =SUM(C148:C157) -> 0 | D147: =SUM(D148:D157) -> 0 | E147: 0 | F147: 0 | G147: 0 | H147: 0 | I147: 0 | J147: 0 | K147: 0
A148: ='Org structure'!E146 -> 14.1 - [Name of sub-vote]
A149: ='Org structure'!E147 -> 0
A150: ='Org structure'!E148 -> 0
A151: ='Org structure'!E149 -> 0
A152: ='Org structure'!E150 -> 0
A153: ='Org structure'!E151 -> 0
A154: ='Org structure'!E152 -> 0
A155: ='Org structure'!E153 -> 0
A156: ='Org structure'!E154 -> 0
A157: ='Org structure'!E155 -> 0
A158: ='Org structure'!A16 -> Vote 15 - [NAME OF VOTE 15] | C158: =SUM(C159:C168) -> 0 | D158: =SUM(D159:D168) -> 0 | E158: 0 | F158: 0 | G158: 0 | H158: 0 | I158: 0 | J158: 0 | K158: 0
A159: ='Org structure'!E157 -> 15.1 - [Name of sub-vote]
A160: ='Org structure'!E158 -> 0
A161: ='Org structure'!E159 -> 0
A162: ='Org structure'!E160 -> 0
A163: ='Org structure'!E161 -> 0
A164: ='Org structure'!E162 -> 0
A165: ='Org structure'!E163 -> 0
A166: ='Org structure'!E164 -> 0
A167: ='Org structure'!E165 -> 0
A168: ='Org structure'!E166 -> 0
A169: Total Revenue by Vote | B169: 2 | C169: =C5+C16+C27+C37+C48+C59+C70+C81+C92+C103+C114+C125+C136+C147+C158 -> 5949608350 | D169: 6038959060 | E169: 6222437237 | F169: 7831908263 | G169: 7770369449 | H169: 7770369449 | I169: 8569426178 | J169: 9302895150 | K169: 10366340415 | L169: =SUM(L77:L80) -> 0 | M169: 0 | N169: 0 | O169: 0 | P169: 0 | Q169: 0 | R169: 0 | S169: 0 | T169: 0 | U169: 0 | V169: 0 | W169: 0
A171: Expenditure by Vote | B171: 1
A172: =A5 -> Vote 1 - City Manager | C172: =SUM(C173:C182) -> 156568923.9 | D172: 144293564.4 | E172: 155043755.9 | F172: 157775344.4 | G172: 148399679.4 | H172: 148399679.4 | I172: 300105971.1 | J172: 313749698.6 | K172: 327941318.9
A173: 1.1 - Internal Audit and Compliance | C173: 18637938.28 | D173: 16962222.89 | E173: 19542685.37 | F173: 20812190.82 | G173: 19642190.86 | H173: 19642190.86 | I173: 28455035.46 | J173: 29802712.06 | K173: 31179080.5
A174: 1.2 - Office of the City Manager | C174: 54540594.46 | D174: 40195404.76 | E174: 30952176.34 | F174: 33571588.09 | G174: 25553050.76 | H174: 25553050.76 | I174: 160808892.2 | J174: 168071712.3 | K174: 175648796.7
A175: 1.3 - Political Support | C175: 77889684.47 | D175: 80362958.21 | E175: 98141952.22 | F175: 95717783.09 | G175: 94649781.7 | H175: 94649781.7 | I175: 101392330.3 | J175: 105993325 | K175: 110783133.9
A176: 1.4 - Strategic Planning | C176: 5500706.73 | D176: 6772978.5 | E176: 6406941.96 | F176: 7673782.363 | G176: 8554656.11 | H176: 8554656.11 | I176: 9449713.077 | J176: 9881949.197 | K176: 10330307.9
A177: 0
A178: 0
A179: 0
A180: 0
A181: 0
A182: 0
A183: Vote 2 - City Finance | C183: =SUM(C184:C193) -> 489928288.8 | D183: =SUM(D184:D193) -> 951383518.4 | E183: =SUM(E184:E193) -> 611783863.7 | F183: 846124063.2 | G183: 757338722.3 | H183: 757338722.3 | I183: 799187822.7 | J183: 835918652.6 | K183: 874033756.5
A184: 2.1 - Asset Management | C184: 75352789.68 | D184: 74248458.53 | E184: 76038184.1 | F184: 73231429.1 | G184: 71569160.39 | H184: 71569160.39 | I184: 81457538.5 | J184: 85241483.17 | K184: 89139427.34
A185: 2.2 - Budget and Treasury Management | C185: 27419381.87 | D185: 130822583.2 | E185: 124803387.2 | F185: 156541220.3 | G185: 136376021.4 | H185: 136376021.4 | I185: 139219805.8 | J185: 145659479.4 | K185: 152402104.1
A186: 2.3 - Expenditure Management | C186: 63846097.97 | D186: 44830103.27 | E186: 40273490.67 | F186: 33704320.7 | G186: 32910377.1 | H186: 32910377.1 | I186: 43561837.16 | J186: 45627500.74 | K186: 47736010.55
A187: 2.4 - Revenue Management | C187: 260128714.9 | D187: 637431771.8 | E187: 295599065.9 | F187: 531069431.1 | G187: 448644556.7 | H187: 448644556.7 | I187: 459180490.1 | J187: 480041944.8 | K187: 501747857.7
A188: 2.5 - Supply Chain Management | C188: 63181304.39 | D188: 64050601.54 | E188: 75069735.87 | F188: 51577662.09 | G188: 67838606.75 | H188: 67838606.75 | I188: 75768151.16 | J188: 79348244.55 | K188: 83008356.75
A189: 0
A190: 0
A191: 0
A192: 0
A193: 0
A194: Vote 3 - Corporate Services | C194: =SUM(C195:C203) -> 78073132.65 | D194: 89837684.96 | E194: 69616493.69 | F194: 99501184.07 | G194: 242457481.7 | H194: 242457481.7 | I194: 195633443.4 | J194: 199465750.2 | K194: 208563317.9
A195: Human Resources Management | C195: 32974505.65 | D195: 33578160.71 | E195: 29012266.82 | F195: 46284340.82 | G195: 82826103.54 | H195: 82826103.54 | I195: 82790450.05 | J195: 86616554.46 | K195: 90567029.58
A196: Information Technology | C196: 14770253.19 | D196: 13829269.89 | E196: 10503949.75 | F196: 16733791.78 | G196: 55606840.86 | H196: 55606840.86 | I196: 56146777.96 | J196: 58794568.97 | K196: 61503886.63
A197: Legal Services | C197: 21268326.01 | D197: 23534277.58 | E197: 23571277.44 | F197: 27960112.04 | G197: 18307857.78 | H197: 18307857.78 | I197: 18240282.65 | J197: 19075018.93 | K197: 19940697.68
A198: Secretariat and Auxiliary Services | C198: 9060047.8 | D198: 18895976.78 | E198: 6528999.68 | F198: 8522939.423 | G198: 27949740.09 | H198: 27949740.09 | I198: 25452722.21 | J198: 26593327.91 | K198: 27787527.48
A199: General Manager: Corporate Service | G199: 57766939.45 | H199: 57766939.45 | I199: 13003210.51 | J199: 8386279.936 | K199: 8764176.521
A200: 0
A201: 0
... 143 more rows

Sheet A4-FinPerf RE
A1: =muni&" - "&Approve4 -> 0 - Table A4 Budgeted Financial Performance (revenue and expenditure)
A2: =desc -> Description | B2: =head27 -> Ref | C2: =head1b -> 2019/20 | D2: =head1A -> 2020/21 | E2: =Head1 -> 2021/22 | F2: =Head2 -> Current Year 2022/23 | J2: =Head3 -> 2023/24 Medium Term Revenue & Expenditure Framework | M2: =Head4 -> LTFS
A3: R thousand | B3: 1 | C3: =Head5 -> Audited Outcome | D3: =Head5 -> Audited Outcome | E3: =Head5 -> Audited Outcome | F3: =Head6 -> Original Budget | G3: =Head7 -> Adjusted Budget | H3: =Head8 -> Full Year Forecast | I3: =Head5b -> Pre-audit outcome | J3: =Head9 -> Budget Year 2023/24 | K3: =Head10 -> Budget Year +1 2024/25 | L3: =Head11 -> Budget Year +2 2025/26 | M3: =Head12 -> Forecast 2026/27 | N3: =Head13 -> Forecast 2027/28 | O3: =Head14 -> Forecast 2028/29 | P3: =Head15 -> Forecast 2029/30 | Q3: =Head16 -> Forecast 2030/31 | R3: =Head17 -> Forecast 2031/32 | S3: =Head18 -> Forecast 2032/33 | T3: =Head19 -> Forecast 2033/34 | U3: =Head20 -> Forecast 2034/35 | V3: =Head21 -> Forecast 2035/36 | W3: =Head22 -> Forecast 2036/37 | X3: =Head23 -> Forecast 2037/38
A4: Revenue
A5: Exchange Revenue
A6: Service charges - Electricity | B6: 2 | C6: ='SA1'!C17 -> 2159757821 | D6: ='SA1'!D17 -> 2152783170 | E6: ='SA1'!E17 -> 2549652864 | F6: ='SA1'!F17 -> 3183149702 | G6: ='SA1'!G17 -> 3183149702 | H6: ='SA1'!H17 -> 3183149702 | I6: ='SA1'!I17 -> 0 | J6: ='SA1'!J17 -> 3892818096 | K6: ='SA1'!K17 -> 4515668991 | L6: ='SA1'!L17 -> 5328489409
A7: Service charges - Water | B7: 2 | C7: ='SA1'!C23 -> 662849315 | D7: ='SA1'!D23 -> 773169373 | E7: ='SA1'!E23 -> 773657197 | F7: ='SA1'!F23 -> 819610456.1 | G7: ='SA1'!G23 -> 819610456.1 | H7: ='SA1'!H23 -> 819610456.1 | I7: ='SA1'!I23 -> 0 | J7: ='SA1'!J23 -> 901571501.8 | K7: ='SA1'!K23 -> 945748505.4 | L7: ='SA1'!L23 -> 990198685.1
A8: Service charges - Waste Water Management | B8: 2 | C8: ='SA1'!C29 -> 172220502 | D8: ='SA1'!D29 -> 167102484 | E8: ='SA1'!E29 -> 182241050 | F8: ='SA1'!F29 -> 174568855.1 | G8: ='SA1'!G29 -> 174568855.1 | H8: ='SA1'!H29 -> 174568855.1 | I8: ='SA1'!I29 -> 0 | J8: ='SA1'!J29 -> 202499871.9 | K8: ='SA1'!K29 -> 212422365.7 | L8: ='SA1'!L29 -> 222406216.9
A9: Service charges - Waste Management | B9: 2 | C9: ='SA1'!C36 -> 109639121 | D9: ='SA1'!D36 -> 113696636 | E9: ='SA1'!E36 -> 114118706 | F9: ='SA1'!F36 -> 129665201 | G9: ='SA1'!G36 -> 129665201 | H9: ='SA1'!H36 -> 129665201 | I9: ='SA1'!I36 -> 0 | J9: ='SA1'!J36 -> 138741765.1 | K9: ='SA1'!K36 -> 145540111.6 | L9: ='SA1'!L36 -> 152380496.9
A10: Sale of Goods and Rendering of Services | C10: 23619674 | D10: 9320476 | E10: 11474040
A11: Agency services | C11: 1090372 | D11: 1931382 | E11: 2139483 | F11: 668028.3369 | G11: 668028.3369 | H11: 668028.3369 | J11: 714790.3238 | K11: 749815.0497 | L11: 785056.357
A12: Interest | C12: 14258674 | F12: 17030212.53 | G12: 17030212.53 | H12: 17030212.53
A13: Interest earned from Receivables | C13: 225860971 | D13: 144311904 | E13: 148962699 | F13: 225217621.3 | G13: 225217621.3 | H13: 225217621.3 | J13: 198174144 | K13: 207884677 | L13: 217655258
A14: Interest earned from Current and Non Current Assets | D14: 8455919 | E14: 10535026 | J14: 18052025.28 | K14: 19225406.93 | L14: 20494283.78
A15: Dividends
A16: Rent on Land | D16: 14558911
A17: Rental from Fixed Assets | C17: 43597286 | D17: 148196 | E17: 25415308 | F17: 37424363.21 | G17: 37424363.21 | H17: 37424363.21 | J17: 104823531.7 | K17: 112623580.5 | L17: 117916888.8
A18: Licence and permits | C18: 604456 | E18: 984210 | J18: 2451743.957 | K18: 2667323.606 | L18: 2792687.816
A19: Operational Revenue | C19: 47565468 | D19: 44527160 | E19: 54566408 | J19: 230407182.4 | K19: 249375506.2 | L19: 261096154.9
A20: Non-Exchange Revenue
A21: Property rates | B21: 2 | C21: ='SA1'!C10 -> 1177107606 | D21: ='SA1'!D10 -> 1232330305 | E21: ='SA1'!E10 -> 1211348604 | F21: ='SA1'!F10 -> 1427088861 | G21: ='SA1'!G10 -> 1427088861 | H21: ='SA1'!H10 -> 1427088861 | I21: ='SA1'!I10 -> 0 | J21: ='SA1'!J10 -> 1526985082 | K21: ='SA1'!K10 -> 1601807351 | L21: ='SA1'!L10 -> 1677092296
A22: Surcharges and Taxes
A23: Fines, penalties and forfeits | C23: 13272582 | D23: 16062035 | E23: 14488973 | F23: 2004874.365 | G23: 2004874.365 | H23: 2004874.365 | J23: 14659914.48 | K23: 8467564.534 | L23: 8865540.067
A24: Licences or permits | D24: 602789 | F24: 1500000.991 | G24: 1500000.991 | H24: 1500000.991
A25: Transfer and subsidies - Operational | C25: 637128044 | D25: 757425720 | E25: 681737625 | F25: 855842084.7 | G25: 800708693.9 | H25: 800708693.9 | J25: 838135150 | K25: 906229405 | L25: 982611448
A26: Interest | C26: 66392640 | D26: 38479755 | E26: 50189792 | J26: 50691327 | K26: 53175202 | L26: 55674436
A27: Fuel Levy
A28: Operational Revenue | F28: 177000000 | G28: 177000000 | H28: 177000000
A29: Gains on disposal of Assets | C29: 130714164 | E29: 4179142
A30: Other Gains | C30: 1434882 | D30: 65449428 | E30: 18021493
A31: Discontinued Operations
A32: Total Revenue (excluding capital transfers and contributions) | C32: =SUM(C6:C19)+SUM(C21:C31) -> 5487113578 | D32: =SUM(D6:D19)+SUM(D21:D31) -> 5540355643 | E32: 5853712620 | F32: 7050770261 | G32: 6995636871 | H32: 6995636871 | I32: 0 | J32: 8120726125 | K32: 8981585805 | L32: 1.003845886e+10
A33: Expenditure
A34: Employee related costs | B34: 2 | C34: ='SA1'!C71 -> 1345486985 | D34: ='SA1'!D71 -> 1418425769 | E34: ='SA1'!E71 -> 1494486747 | F34: ='SA1'!F71 -> 1579699178 | G34: ='SA1'!G71 -> 1621248373 | H34: ='SA1'!H71 -> 1621248373 | I34: ='SA1'!I71 -> 0 | J34: ='SA1'!J71 -> 1793148355 | K34: ='SA1'!K71 -> 1856685849 | L34: ='SA1'!L71 -> 1927749153 | M34: ='SA1'!M71 -> 0 | N34: ='SA1'!N71 -> 0 | O34: ='SA1'!O71 -> 0 | P34: ='SA1'!P71 -> 0 | Q34: ='SA1'!Q71 -> 0 | R34: ='SA1'!R71 -> 0 | S34: ='SA1'!S71 -> 0 | T34: ='SA1'!T71 -> 0
A35: Remuneration of councillors | C35: 43759322 | D35: 51641246 | E35: 49529446 | F35: 59431217.94 | G35: 59431217.94 | H35: 59431217.94 | J35: 62699934.99 | K35: 65521432.06 | L35: 68469896.51
A36: Bulk purchases - electricity | B36: 2 | C36: ='SA1'!C88 -> 2491126597 | D36: ='SA1'!D88 -> 2659404299 | E36: ='SA1'!E88 -> 2950207305 | F36: ='SA1'!F88 -> 2200000000 | G36: ='SA1'!G88 -> 2300000000 | H36: ='SA1'!H88 -> 2300000000 | I36: ='SA1'!I88 -> 0 | J36: ='SA1'!J88 -> 2514000000 | K36: ='SA1'!K88 -> 3066820000 | L36: ='SA1'!L88 -> 3526843000
A37: Inventory consumed | B37: 8 | C37: ='SA1'!C169 -> 57161591 | D37: ='SA1'!D169 -> 58158321 | E37: ='SA1'!E169 -> 84353466 | F37: 871509197.2 | G37: 842581197.9 | H37: 842581197.9 | I37: ='SA1'!I169 -> 0 | J37: ='SA1'!J169 -> 970629036 | K37: ='SA1'!K169 -> 1018189866 | L37: ='SA1'!L169 -> 1066044780
A38: Debt impairment | B38: 3 | C38: 567918578 | D38: 236403910 | E38: 1003762757 | F38: 300000000 | G38: 300000000 | H38: 300000000 | J38: 600000000 | K38: 627000000 | L38: 656469000
A39: Depreciation and amortisation | C39: ='SA1'!C83 -> 417614094 | D39: ='SA1'!D83 -> 372532037 | E39: ='SA1'!E83 -> 366625069 | F39: ='SA1'!F83 -> 441964212.5 | G39: ='SA1'!G83 -> 441737790.6 | H39: ='SA1'!H83 -> 441737790.6 | I39: ='SA1'!I83 -> 0 | J39: ='SA1'!J83 -> 461615984 | K39: ='SA1'!K83 -> 482388711 | L39: ='SA1'!L83 -> 504096199
A40: Interest | C40: 43716970 | D40: 35856007 | E40: 26915534 | F40: 94217139.02 | G40: 52038518.89 | H40: 52038518.89 | J40: 40400879.72 | K40: 42218920.59 | L40: 44118763.82
A41: Contracted services | C41: ='SA1'!C127 -> 495489984 | D41: ='SA1'!D127 -> 575663952 | E41: ='SA1'!E127 -> 722753886 | F41: ='SA1'!F127 -> 664656776.8 | G41: ='SA1'!G127 -> 755248230.6 | H41: ='SA1'!H127 -> 755248230.6 | I41: ='SA1'!I127 -> 0 | J41: ='SA1'!J127 -> 994887837 | K41: ='SA1'!K127 -> 1049323573 | L41: ='SA1'!L127 -> 1097750641
A42: Transfers and subsidies | C42: ='SA1'!C93 -> 25306678 | D42: ='SA1'!D93 -> 16870305 | E42: ='SA1'!E93 -> 19995785 | F42: ='SA1'!F93 -> 63469171.5 | G42: ='SA1'!G93 -> 53651931.49 | H42: ='SA1'!H93 -> 53651931.49 | I42: ='SA1'!I93 -> 0 | J42: ='SA1'!J93 -> 51023535.29 | K42: ='SA1'!K93 -> 53395331.35 | L42: ='SA1'!L93 -> 55899093.67
A43: Irrecoverable debts written off | C43: 20930221 | D43: 390096130 | E43: 83779107
A44: Operational costs | C44: ='SA1'!C157 -> 136748409 | D44: ='SA1'!D157 -> 128891893 | E44: ='SA1'!E157 -> 121311526 | F44: ='SA1'!F157 -> 179999999.9 | G44: ='SA1'!G157 -> 197272996.9 | H44: ='SA1'!H157 -> 197272996.9 | I44: ='SA1'!I157 -> 0 | J44: ='SA1'!J157 -> 215382233 | K44: ='SA1'!K157 -> 225684860 | L44: ='SA1'!L157 -> 236252431
A45: Losses on disposal of Assets | C45: 14646287 | D45: 10483210 | E45: 16100000
A46: Other Losses | C46: 33541458 | D46: 29575581 | E46: 9598789
A47: Total Expenditure | C47: =SUM(C34:C46) -> 5693447174 | D47: =SUM(D34:D46) -> 5984002660 | E47: 6949419417 | F47: 6454946893 | G47: 6623210257 | H47: 6623210257 | I47: 0 | J47: 7703787795 | K47: 8487228543 | L47: 9183692958 | M47: =SUM(M34:M46) -> 0 | N47: 0 | O47: 0 | P47: 0 | Q47: 0 | R47: 0 | S47: 0 | T47: 0 | U47: 0 | V47: 0 | W47: 0 | X47: 0
A48: Surplus/(Deficit) | C48: =C32-C47 -> -206333596 | D48: -443647017 | E48: -1095706797 | F48: 595823368.2 | G48: 372426613.3 | H48: 372426613.3 | I48: 0 | J48: 416938330.3 | K48: 494357262 | L48: 854765900 | M48: =M32+M47 -> 0 | N48: 0 | O48: 0 | P48: 0 | Q48: 0 | R48: 0 | S48: 0 | T48: 0 | U48: 0 | V48: 0 | W48: 0 | X48: 0
A49: Transfers and subsidies - capital (monetary allocations) | B49: 6 | C49: 430113749 | D49: 498603417 | E49: 368724617 | F49: 446431108.9 | G49: 437597242 | H49: 437597242 | J49: 448700054.9 | K49: 321309343.2 | L49: 327881560
A50: Transfers and subsidies - capital (in-kind) | B50: 6 | AE50: =AE47-AE48 -> 0
A51: Surplus/(Deficit) after capital transfers & contributions | C51: =SUM(C48:C50) -> 223780153 | D51: 54956400 | E51: -726982180 | F51: 1042254477 | G51: 810023855.3 | H51: 810023855.3 | I51: 0 | J51: 865638385.2 | K51: 815666605.2 | L51: 1182647460
A52: Income Tax
A53: Surplus/(Deficit) after income tax | C53: =+C51-C52 -> 223780153 | D53: =+D51-D52 -> 54956400 | E53: -726982180 | F53: 1042254477 | G53: 810023855.3 | H53: 810023855.3 | I53: 0 | J53: 865638385.2 | K53: 815666605.2 | L53: 1182647460 | M53: 0 | N53: 0 | O53: 0 | P53: 0 | Q53: 0
A54: Share of Surplus/Deficit attributable to Joint Venture
A55: Share of Surplus/Deficit attributable to Minorities
A56: Surplus/(Deficit) attributable to municipality | C56: =SUM(C53:C55) -> 223780153 | D56: =SUM(D53:D55) -> 54956400 | E56: -726982180 | F56: 1042254477 | G56: 810023855.3 | H56: 810023855.3 | I56: 0 | J56: 865638385.2 | K56: 815666605.2 | L56: 1182647460 | M56: 0 | N56: 0 | O56: 0 | P56: 0 | Q56: 0
A57: Share of Surplus/Deficit attributable to Associate | B57: 7
A58: Intercompany/Parent subsidiary transactions
A59: =result -> Surplus/(Deficit) for the year | B59: 1 | C59: =SUM(C56:C58) -> 223780153 | D59: =SUM(D56:D58) -> 54956400 | E59: -726982180 | F59: 1042254477 | G59: 810023855.3 | H59: 810023855.3 | I59: 0 | J59: 865638385.2 | K59: 815666605.2 | L59: 1182647460 | M59: 0 | N59: 0 | O59: 0 | P59: 0 | Q59: 0 | R59: =R35+R58 -> 0 | S59: 0 | T59: 0 | U59: 0 | V59: 0 | W59: 0 | X59: 0
A60: References
A61: 1. Classifications are revenue sources and expenditure type
A62: 2. Detail to be provided in Table SA1 | O62: =O59-'A4-FinPerf RE'!J59 -> -865638385.2 | P62: =P59-'A4-FinPerf RE'!K59 -> -815666605.2 | Q62: =Q59-'A4-FinPerf RE'!L59 -> -1182647460
A63: 3. Debt impairment includes Impairment and Reversal of Impairment Losses
A64: 4. Expenditure type components previously shown under repairs and maintenance should be allocated back to the originating expenditure group/item; e.g. employee costs
A65: 5. Repairs & maintenance detailed in Table A9 and Table SA34c
A66: 6. Contributions are funds provided by external organisations to assist with infrastructure development; e.g. developer contributions (detail to be provided in Table SA1)
A67: 7. Equity method ( Includes Joint Ventures)
A68: 8. All materials consumed including water consumed and materials used in operations.

Sheet A5-Capex
A2: =Vdesc -> Vote Description | B2: =head27 -> Ref | C2: =head1b -> 2019/20 | D2: =head1A -> 2020/21 | E2: =Head1 -> 2021/22 | F2: =Head2 -> Current Year 2022/23 | J2: =Head3 -> 2023/24 Medium Term Revenue & Expenditure Framework
A3: R thousand | B3: 1 | C3: =Head5 -> Audited Outcome | D3: =Head5 -> Audited Outcome | E3: =Head5 -> Audited Outcome | F3: =Head6 -> Original Budget | G3: =Head7 -> Adjusted Budget | H3: =Head8 -> Full Year Forecast | I3: =Head5b -> Pre-audit outcome | J3: =Head9 -> Budget Year 2023/24 | K3: =Head10 -> Budget Year +1 2024/25 | L3: =Head11 -> Budget Year +2 2025/26
A4: Capital expenditure - Vote
A5: Multi-year expenditure to be appropriated | B5: 2
A6: =A5A!A6 -> Vote 1 - City Manager | C6: =A5A!C6 -> 646307 | D6: =A5A!D6 -> 0 | E6: =A5A!E6 -> 1613825.13 | F6: =A5A!F6 -> 500000 | G6: =A5A!G6 -> 550000 | H6: =A5A!H6 -> 550000 | I6: =A5A!I6 -> 0 | J6: =A5A!J6 -> 0 | K6: =A5A!K6 -> 0 | L6: =A5A!L6 -> 0
A7: =A5A!A17 -> Vote 2 - City Finance | C7: =A5A!C17 -> 9184603 | D7: =A5A!D17 -> 1592912.04 | E7: =A5A!E17 -> 4935541.48 | F7: =A5A!F17 -> 21288783 | G7: =A5A!G17 -> 16128783 | H7: =A5A!H17 -> 16128783 | I7: =A5A!I17 -> 0 | J7: =A5A!J17 -> 30000000 | K7: =A5A!K17 -> 30000000 | L7: =A5A!L17 -> 30000000
A8: =A5A!A28 -> Vote 3 - Corporate Services | C8: =A5A!C28 -> -6912874 | D8: =A5A!D28 -> 971615.63 | E8: =A5A!E28 -> 2272710.48 | F8: =A5A!F28 -> 5601500 | G8: =A5A!G28 -> 1105279 | H8: =A5A!H28 -> 1105279 | I8: =A5A!I28 -> 0 | J8: =A5A!J28 -> 10000000 | K8: =A5A!K28 -> 10000000 | L8: =A5A!L28 -> 10000000
A9: =A5A!A38 -> Vote 4 - Community Services and Social Equity | C9: =A5A!C38 -> 12745198 | D9: =A5A!D38 -> 24381249.32 | E9: =A5A!E38 -> 33154389.84 | F9: =A5A!F38 -> 40401050 | G9: =A5A!G38 -> 41471050 | H9: =A5A!H38 -> 41471050 | I9: =A5A!I38 -> 0 | J9: =A5A!J38 -> 24886499.05 | K9: =A5A!K38 -> 17455350 | L9: =A5A!L38 -> 26864880
A10: =A5A!A49 -> Vote 5 - Infrastructure Services | C10: =A5A!C49 -> 321091528.1 | D10: =A5A!D49 -> 404546366.1 | E10: =A5A!E49 -> 308960388.3 | F10: =A5A!F49 -> 580999200 | G10: =A5A!G49 -> 211961757.6 | H10: =A5A!H49 -> 211961757.6 | I10: =A5A!I49 -> 0 | J10: =A5A!J49 -> 318102140 | K10: =A5A!K49 -> 342432645 | L10: =A5A!L49 -> 305181156.1
A11: =A5A!A60 -> Vote 6 - Sustainable Development and City Enterprises | C11: =A5A!C60 -> 109767844.1 | D11: =A5A!D60 -> 180965008.9 | E11: =A5A!E60 -> 51772460.63 | F11: =A5A!F60 -> 146855858.9 | G11: =A5A!G60 -> 152823832.4 | H11: =A5A!H60 -> 152823832.4 | I11: =A5A!I60 -> 0 | J11: =A5A!J60 -> 144745414.9 | K11: =A5A!K60 -> 6977496.2 | L11: =A5A!L60 -> 700000
A12: =A5A!A71 -> Vote 7 - Electricity | C12: =A5A!C71 -> 33332616 | D12: =A5A!D71 -> 46850530.93 | E12: =A5A!E71 -> 98800431.88 | F12: =A5A!F71 -> 1000000 | G12: =A5A!G71 -> 76484471 | H12: =A5A!H71 -> 76484471 | I12: =A5A!I71 -> 0 | J12: =A5A!J71 -> 175400000 | K12: =A5A!K71 -> 128967852 | L12: =A5A!L71 -> 29632523.9
A13: =A5A!A82 -> Vote 8 - [NAME OF VOTE 8] | C13: =A5A!C82 -> 0 | D13: =A5A!D82 -> 0 | E13: =A5A!E82 -> 0 | F13: =A5A!F82 -> 0 | G13: =A5A!G82 -> 0 | H13: =A5A!H82 -> 0 | I13: =A5A!I82 -> 0 | J13: =A5A!J82 -> 0 | K13: =A5A!K82 -> 0 | L13: =A5A!L82 -> 0
A14: =A5A!A93 -> Vote 9 - [NAME OF VOTE 9] | C14: =A5A!C93 -> 0 | D14: =A5A!D93 -> 0 | E14: =A5A!E93 -> 0 | F14: =A5A!F93 -> 0 | G14: =A5A!G93 -> 0 | H14: =A5A!H93 -> 0 | I14: =A5A!I93 -> 0 | J14: =A5A!J93 -> 0 | K14: =A5A!K93 -> 0 | L14: =A5A!L93 -> 0
A15: =A5A!A104 -> Vote 10 - [NAME OF VOTE 10] | C15: =A5A!C104 -> 0 | D15: =A5A!D104 -> 0 | E15: =A5A!E104 -> 0 | F15: =A5A!F104 -> 0 | G15: =A5A!G104 -> 0 | H15: =A5A!H104 -> 0 | I15: =A5A!I104 -> 0 | J15: =A5A!J104 -> 0 | K15: =A5A!K104 -> 0 | L15: =A5A!L104 -> 0
A16: =A5A!A115 -> Vote 11 - [NAME OF VOTE 11] | C16: =A5A!C115 -> 0 | D16: =A5A!D115 -> 0 | E16: =A5A!E115 -> 0 | F16: =A5A!F115 -> 0 | G16: =A5A!G115 -> 0 | H16: =A5A!H115 -> 0 | I16: =A5A!I115 -> 0 | J16: =A5A!J115 -> 0 | K16: =A5A!K115 -> 0 | L16: =A5A!L115 -> 0
A17: =A5A!A126 -> Vote 12 - [NAME OF VOTE 12] | C17: =A5A!C126 -> 0 | D17: =A5A!D126 -> 0 | E17: =A5A!E126 -> 0 | F17: =A5A!F126 -> 0 | G17: =A5A!G126 -> 0 | H17: =A5A!H126 -> 0 | I17: =A5A!I126 -> 0 | J17: =A5A!J126 -> 0 | K17: =A5A!K126 -> 0 | L17: =A5A!L126 -> 0
A18: =A5A!A137 -> Vote 13 - [NAME OF VOTE 13] | C18: =A5A!C137 -> 0 | D18: =A5A!D137 -> 0 | E18: =A5A!E137 -> 0 | F18: =A5A!F137 -> 0 | G18: =A5A!G137 -> 0 | H18: =A5A!H137 -> 0 | I18: =A5A!I137 -> 0 | J18: =A5A!J137 -> 0 | K18: =A5A!K137 -> 0 | L18: =A5A!L137 -> 0
A19: =A5A!A148 -> Vote 14 - [NAME OF VOTE 14] | C19: =A5A!C148 -> 0 | D19: =A5A!D148 -> 0 | E19: =A5A!E148 -> 0 | F19: =A5A!F148 -> 0 | G19: =A5A!G148 -> 0 | H19: =A5A!H148 -> 0 | I19: =A5A!I148 -> 0 | J19: =A5A!J148 -> 0 | K19: =A5A!K148 -> 0 | L19: =A5A!L148 -> 0
A20: =A5A!A159 -> Vote 15 - [NAME OF VOTE 15] | C20: =A5A!C159 -> 0 | D20: =A5A!D159 -> 0 | E20: =A5A!E159 -> 0 | F20: =A5A!F159 -> 0 | G20: =A5A!G159 -> 0 | H20: =A5A!H159 -> 0 | I20: =A5A!I159 -> 0 | J20: =A5A!J159 -> 0 | K20: =A5A!K159 -> 0 | L20: =A5A!L159 -> 0
A21: Capital multi-year expenditure sub-total | B21: 7 | C21: =SUM(C6:C20) -> 479855222.2 | D21: =SUM(D6:D20) -> 659307682.9 | E21: 501509747.7 | F21: 796646391.9 | G21: 500525173 | H21: =SUM(H6:H20) -> 500525173 | I21: 0 | J21: 703134054 | K21: 535833343.2 | L21: 402378560
A23: Single-year expenditure to be appropriated | B23: 2
A24: =A6 -> Vote 1 - City Manager | C24: =A5A!C174 -> 0 | D24: =A5A!D174 -> 1409774.98 | E24: =A5A!E174 -> 2151205.01 | F24: =A5A!F174 -> 3500000 | G24: =A5A!G174 -> 1900000 | H24: =A5A!H174 -> 1900000 | I24: =A5A!I174 -> 0 | J24: =A5A!J174 -> 5000000 | K24: =A5A!K174 -> 0 | L24: =A5A!L174 -> 0
A25: =A7 -> Vote 2 - City Finance | C25: =A5A!C185 -> 0 | D25: =A5A!D185 -> 6469188.79 | E25: =A5A!E185 -> 6344857.33 | F25: =A5A!F185 -> 16565000 | G25: =A5A!G185 -> 4785000 | H25: =A5A!H185 -> 4785000 | I25: =A5A!I185 -> 0 | J25: =A5A!J185 -> 0 | K25: =A5A!K185 -> 0 | L25: =A5A!L185 -> 0
A26: Vote 3 - Corporate Services | C26: =A5A!C196 -> 0 | D26: =A5A!D196 -> 132691.03 | E26: =A5A!E196 -> 2270139.63 | F26: =A5A!F196 -> 12326000 | G26: =A5A!G196 -> 4042321 | H26: =A5A!H196 -> 4042321 | I26: =A5A!I196 -> 0 | J26: =A5A!J196 -> 10000000 | K26: =A5A!K196 -> 10000000 | L26: =A5A!L196 -> 10000000
A27: Vote 4 - Community Services and Social Equity | C27: =A5A!C206 -> 0 | D27: =A5A!D206 -> 13964306.88 | E27: =A5A!E206 -> 3553157.05 | F27: =A5A!F206 -> 833000 | G27: =A5A!G206 -> 9956000 | H27: =A5A!H206 -> 9956000 | I27: =A5A!I206 -> 0 | J27: =A5A!J206 -> 4000000 | K27: =A5A!K206 -> 0 | L27: =A5A!L206 -> 0
A28: Vote 5 - Infrastructure Services | C28: =A5A!C217 -> 0 | D28: =A5A!D217 -> 0 | E28: =A5A!E217 -> 3549110.6 | F28: =A5A!F217 -> 600000 | G28: =A5A!G217 -> 2242500 | H28: =A5A!H217 -> 2242500 | I28: =A5A!I217 -> 0 | J28: =A5A!J217 -> 5000000 | K28: =A5A!K217 -> 5000000 | L28: =A5A!L217 -> 5000000
A29: Vote 6 - Sustainable Development and City Enterprises | C29: =A5A!C228 -> 0 | D29: =A5A!D228 -> 399547.54 | E29: =A5A!E228 -> 2059024.09 | F29: =A5A!F228 -> 2198073 | G29: =A5A!G228 -> 3534000 | H29: =A5A!H228 -> 3534000 | I29: =A5A!I228 -> 0 | J29: =A5A!J228 -> 38026000 | K29: =A5A!K228 -> 30476000 | L29: =A5A!L228 -> 30503000
A30: Vote 7 - Electricity | C30: =A5A!C239 -> 0 | D30: =A5A!D239 -> 4248077.95 | E30: =A5A!E239 -> 0 | F30: =A5A!F239 -> 3250000 | G30: =A5A!G239 -> 0 | H30: =A5A!H239 -> 0 | I30: =A5A!I239 -> 0 | J30: =A5A!J239 -> 3600000 | K30: =A5A!K239 -> 0 | L30: =A5A!L239 -> 0
A31: Vote 8 - [NAME OF VOTE 8] | C31: =A5A!C250 -> 0 | D31: =A5A!D250 -> 0 | E31: =A5A!E250 -> 0 | F31: =A5A!F250 -> 0 | G31: =A5A!G250 -> 0 | H31: =A5A!H250 -> 0 | I31: =A5A!I250 -> 0 | J31: =A5A!J250 -> 0 | K31: =A5A!K250 -> 0 | L31: =A5A!L250 -> 0
A32: Vote 9 - [NAME OF VOTE 9] | C32: =A5A!C261 -> 0 | D32: =A5A!D261 -> 0 | E32: =A5A!E261 -> 0 | F32: =A5A!F261 -> 0 | G32: =A5A!G261 -> 0 | H32: =A5A!H261 -> 0 | I32: =A5A!I261 -> 0 | J32: =A5A!J261 -> 0 | K32: =A5A!K261 -> 0 | L32: =A5A!L261 -> 0
A33: Vote 10 - [NAME OF VOTE 10] | C33: =A5A!C272 -> 0 | D33: =A5A!D272 -> 0 | E33: =A5A!E272 -> 0 | F33: =A5A!F272 -> 0 | G33: =A5A!G272 -> 0 | H33: =A5A!H272 -> 0 | I33: =A5A!I272 -> 0 | J33: =A5A!J272 -> 0 | K33: =A5A!K272 -> 0 | L33: =A5A!L272 -> 0
A34: Vote 11 - [NAME OF VOTE 11] | C34: =A5A!C283 -> 0 | D34: =A5A!D283 -> 0 | E34: =A5A!E283 -> 0 | F34: =A5A!F283 -> 0 | G34: =A5A!G283 -> 0 | H34: =A5A!H283 -> 0 | I34: =A5A!I283 -> 0 | J34: =A5A!J283 -> 0 | K34: =A5A!K283 -> 0 | L34: =A5A!L283 -> 0
A35: Vote 12 - [NAME OF VOTE 12] | C35: =A5A!C294 -> 0 | D35: =A5A!D294 -> 0 | E35: =A5A!E294 -> 0 | F35: =A5A!F294 -> 0 | G35: =A5A!G294 -> 0 | H35: =A5A!H294 -> 0 | I35: =A5A!I294 -> 0 | J35: =A5A!J294 -> 0 | K35: =A5A!K294 -> 0 | L35: =A5A!L294 -> 0
A36: Vote 13 - [NAME OF VOTE 13] | C36: =A5A!C305 -> 0 | D36: =A5A!D305 -> 0 | E36: =A5A!E305 -> 0 | F36: =A5A!F305 -> 0 | G36: =A5A!G305 -> 0 | H36: =A5A!H305 -> 0 | I36: =A5A!I305 -> 0 | J36: =A5A!J305 -> 0 | K36: =A5A!K305 -> 0 | L36: =A5A!L305 -> 0
A37: Vote 14 - [NAME OF VOTE 14] | C37: =A5A!C316 -> 0 | D37: =A5A!D316 -> 0 | E37: =A5A!E316 -> 0 | F37: =A5A!F316 -> 0 | G37: =A5A!G316 -> 0 | H37: =A5A!H316 -> 0 | I37: =A5A!I316 -> 0 | J37: =A5A!J316 -> 0 | K37: =A5A!K316 -> 0 | L37: =A5A!L316 -> 0
A38: =A20 -> Vote 15 - [NAME OF VOTE 15] | C38: =A5A!C327 -> 0 | D38: =A5A!D327 -> 0 | E38: =A5A!E327 -> 0 | F38: =A5A!F327 -> 0 | G38: =A5A!G327 -> 0 | H38: =A5A!H327 -> 0 | I38: =A5A!I327 -> 0 | J38: =A5A!J327 -> 0 | K38: =A5A!K327 -> 0 | L38: =A5A!L327 -> 0
A39: Capital single-year expenditure sub-total | C39: =SUM(C24:C38) -> 0 | D39: =SUM(D24:D38) -> 26623587.17 | E39: 19927493.71 | F39: 39272073 | G39: 26459821 | H39: 26459821 | I39: 0 | J39: 65626000 | K39: 45476000 | L39: 45503000
A40: Total Capital Expenditure - Vote | C40: =C39+C21 -> 479855222.2 | D40: =D39+D21 -> 685931270.1 | E40: 521437241.5 | F40: 835918464.9 | G40: 526984994 | H40: 526984994 | I40: 0 | J40: 768760054 | K40: 581309343.2 | L40: 447881560
A42: Capital Expenditure - Functional
A43: Governance and administration | C43: =SUM(C44:C46) -> 2918036 | D43: =SUM(D44:D46) -> 10576182.47 | E43: 19335557.15 | F43: 49638283 | G43: 29461383 | H43: 29461383 | I43: 0 | J43: 51000000 | K43: 50000000 | L43: 50000000
A44: Executive and council | C44: 646307 | D44: 1409774.98 | E44: 2638711.39 | F44: 2100000 | G44: 2000000 | H44: 2000000 | J44: 1000000 | K44: 0 | L44: 0
A45: Finance and administration | C45: 2271729 | D45: 9166407.49 | E45: 16696845.76 | F45: 47538283 | G45: 27461383 | H45: 27461383 | J45: 50000000 | K45: 50000000 | L45: 50000000
A46: Internal audit | E46: 0 | G46: 0 | H46: 0 | J46: 0 | K46: 0 | L46: 0
A47: Community and public safety | C47: =SUM(C48:C52) -> 1454997.71 | D47: =SUM(D48:D52) -> 79498230.52 | E47: 36890721.92 | F47: 128562908.9 | G47: 45009291.56 | H47: 45009291.56 | I47: 0 | J47: 169251914 | K47: 19908846.2 | L47: 23067880
A48: Community and social services | D48: 14120515.58 | E48: 33969243.76 | F48: 24132050 | G48: 28542850 | H48: 28542850 | J48: 20307499.05 | K48: 12931350 | L48: 22367880
A49: Sport and recreation | C49: 3374495 | D49: 2414731.14 | E49: 1041093.51 | F49: 2150000 | G49: 2200000 | H49: 2200000 | J49: 0 | K49: 0 | L49: 0
A50: Public safety | C50: -1919497.29 | D50: -299343.43 | E50: 94470 | F50: 2875000 | G50: 1975000 | H50: 1975000 | J50: 4199000 | K50: 0 | L50: 0
A51: Housing | D51: 63262327.23 | E51: 1785914.65 | F51: 99405858.87 | G51: 12291441.56 | H51: 12291441.56 | J51: 144745414.9 | K51: 6977496.2 | L51: 700000
A52: Health | E52: 0 | G52: 0 | H52: 0 | J52: 0 | K52: 0 | L52: 0
A53: Economic and environmental services | C53: =SUM(C54:C56) -> 321827707.1 | D53: =SUM(D54:D56) -> 366180038.4 | E53: 239009075.4 | F53: 104991233 | G53: 197378920.6 | H53: 197378920.6 | I53: 0 | J53: 107006000 | K53: 121091846 | L53: 133492336.1
A54: Planning and development | C54: 23844833 | D54: 115786718.4 | E54: 37474066.53 | F54: 44830000 | G54: 137287919.6 | H54: 137287919.6 | J54: 38606000 | K54: 30000000 | L54: 30000000
A55: Road transport | C55: 297722791.1 | D55: 250393320 | E55: 201376703.9 | F55: 59643160 | G55: 59310301.04 | H55: 59310301.04 | J55: 68400000 | K55: 91091846 | L55: 103492336.1
A56: Environmental protection | C56: 260083 | E56: 158305 | F56: 518073 | G56: 780700 | H56: 780700 | J56: 0 | K56: 0 | L56: 0
A57: Trading services | C57: =SUM(C58:C61) -> 153654178 | D57: =SUM(D58:D61) -> 227503654.9 | E57: 226176439.7 | F57: 548106040 | G57: 250528427.6 | H57: 250528427.6 | I57: 0 | J57: =SUM(J58:J61) -> 438702140 | K57: =SUM(K58:K62) -> 390308651 | L57: 241321343.9
A58: Energy sources | C58: 47652373.97 | D58: 51098608.88 | E58: 98800431.88 | F58: 241154000 | G58: 76484471 | H58: 76484471 | J58: 179000000 | K58: =28967852+100000000 -> 128967852 | L58: 29632523.9
A59: Water management | C59: 74706096 | D59: 78159404.5 | E59: 58051642.31 | F59: 196582915 | G59: 84617815 | H59: 84617815 | J59: 133924500 | K59: =81163235+50000000 -> 131163235 | L59: 105099423
A60: Waste water management | C60: 23360737 | D60: 75993641.63 | E60: 54321981.29 | F60: 94269125 | G60: 76326141.56 | H60: 76326141.56 | J60: 120777640 | K60: 125177564 | L60: 101589397
A61: Waste management | C61: 7934971 | D61: 22251999.91 | E61: 15002384.25 | F61: 16100000 | G61: 13100000 | H61: 13100000 | J61: 5000000 | K61: 5000000 | L61: 5000000
A62: Other | D62: 2173163.77 | E62: 414954.5 | F62: 4620000 | G62: 4606971.28 | H62: 4606971.28 | J62: 2800000 | K62: 0 | L62: 0
A63: Total Capital Expenditure - Functional | B63: 3 | C63: =C43+C47+C53+C57+C62 -> 479854918.8 | D63: =D43+D47+D53+D57+D62 -> 685931270.1 | E63: 521826748.7 | F63: 835918464.9 | G63: 526984994 | H63: 526984994 | I63: 0 | J63: 768760054 | K63: 581309343.2 | L63: =L43+L47+L53+L57+L62 -> 447881560
A65: Funded by:
A66: National Government | C66: 312943688 | D66: 397216558 | E66: 291413394.4 | F66: 344634090 | G66: 310626005.6 | H66: 310626005.6 | J66: 312534640 | K66: 320133343.2 | L66: 326678560
A67: Provincial Government | C67: 76188437 | D67: 166778561.7 | E67: 21307752.9 | F67: 101327018.9 | G67: 126971236.4 | H67: 126971236.4 | J67: 136165414.9 | K67: 1176000 | L67: 1203000
A68: District Municipality
A69: ='A4-FinPerf RE'!A50 -> Transfers and subsidies - capital (in-kind)
A70: Transfers recognised - capital | B70: 4 | C70: =SUM(C66:C69) -> 389132125 | D70: 563995119.7 | E70: 312721147.3 | F70: 445961108.9 | G70: 437597242 | H70: 437597242 | I70: 0 | J70: 448700054.9 | K70: 321309343.2 | L70: 327881560
A72: Borrowing | B72: 6 | C72: 4229818.17 | E72: 49400541.77 | F72: 300000000 | G72: 0 | H72: 0 | J72: 200000000 | K72: 150000000 | L72: 0
A73: Internally generated funds | C73: 86493279 | D73: 121936150.4 | E73: 159705059.6 | F73: 89957356 | G73: 89387752.09 | H73: 89387752.09 | J73: 120059999 | K73: 110000000 | L73: 120000000
A74: Total Capital Funding | B74: 7 | C74: =+C70+C72+C73 -> 479855222.2 | D74: =+D70+D72+D73 -> 685931270.1 | E74: 521826748.7 | F74: 835918464.9 | G74: 526984994 | H74: 526984994 | I74: 0 | J74: 768760054 | K74: 581309343.2 | L74: 447881560
A75: =head27a -> References
A76: 1. Municipalities may choose to appropriate for capital expenditure for three years or for one year (if one year appropriation projected expenditure required for yr2 and yr3).
A77: 2. Include capital component of PPP unitary payment. Note that capital transfers are only appropriated to municipalities for the budget year
A78: 3. Capital expenditure by functional classification must reconcile to the appropriations by vote
A79: 4. Must reconcile to supporting table SA20 and to Budgeted Financial Performance (revenue and expenditure)
A81: 6. Include finance leases and PPP capital funding component of unitary payment - total borrowing/repayments to reconcile to changes in Table SA17
A82: 7. Total Capital Funding must balance with Total Capital Expenditure
A83: 8. Include any capitalised interest (MFMA section 46) as part of relevant capital budget
A85: check balance | C85: =IF((C63-C74)=0,0,"Unbalanced") -> Unbalanced | D85: =IF((D63-D74)=0,0,"Unbalanced") -> Unbalanced | E85: 0 | F85: 0 | G85: 0 | H85: 0 | I85: 0 | J85: 0 | K85: 0 | L85: 0

Sheet A5A
A1: =muni&" - "&Approve5 -> 0 - Table A5 Budgeted Capital Expenditure by vote, functional classification and funding
A2: =Vdesc -> Vote Description | B2: =head27 -> Ref | C2: =head1b -> 2019/20 | D2: =head1A -> 2020/21 | E2: =Head1 -> 2021/22 | F2: =Head2 -> Current Year 2022/23 | J2: =Head3 -> 2023/24 Medium Term Revenue & Expenditure Framework | N2: ="Multi-year appropriation for "&Head9& " in the "&Head2A&" Annual Budget" -> Multi-year appropriation for Budget Year 2023/24 in the 2022/23 Annual Budget | R2: ="Multi-year appropriation for "&RIGHT(Head10,7)& " in the "&Head2A&" Annual Budget" -> Multi-year appropriation for 2024/25 in the 2022/23 Annual Budget | V2: New multi-year appropriations (funds for new and existing projects)
A3: R thousand | B3: 1 | C3: =Head5 -> Audited Outcome | D3: =Head5 -> Audited Outcome | E3: =Head5 -> Audited Outcome | F3: =Head6 -> Original Budget | G3: =Head7 -> Adjusted Budget | H3: =Head8 -> Full Year Forecast | I3: =Head5b -> Pre-audit outcome | J3: =Head9 -> Budget Year 2023/24 | K3: =Head10 -> Budget Year +1 2024/25 | L3: =Head11 -> Budget Year +2 2025/26 | N3: ="Appropriation for "&RIGHT(Head9,7) -> Appropriation for 2023/24 | O3: ="Adjustments in "&Head2A -> Adjustments in 2022/23 | P3: ="Downward adjustments for "&RIGHT(Head9,7) -> Downward adjustments for 2023/24 | Q3: Appropriation carried forward | R3: ="Appropriation for "&RIGHT(Head9,7) -> Appropriation for 2023/24 | S3: ="Adjustments in "&Head2A -> Adjustments in 2022/23 | T3: ="Downward adjustments for "&RIGHT(Head9,7) -> Downward adjustments for 2023/24 | U3: Appropriation carried forward | V3: =Head9 -> Budget Year 2023/24 | W3: =Head10 -> Budget Year +1 2024/25 | X3: =Head11 -> Budget Year +2 2025/26
A4: Capital expenditure - Municipal Vote
A5: Multi-year expenditure appropriation | B5: 2
A6: ='Org structure'!A2 -> Vote 1 - City Manager | C6: =SUM(C7:C16) -> 646307 | D6: =SUM(D7:D16) -> 0 | E6: 1613825.13 | F6: 500000 | G6: 550000 | H6: 550000 | I6: =SUM(I7:I16) -> 0 | J6: 0 | K6: 0 | L6: 0 | N6: =SUM(N7:N16) -> 0 | O6: 0 | P6: 0 | Q6: 0 | R6: 0 | S6: 0 | T6: 0 | U6: 0 | V6: =SUM(V7:V16) -> 0 | W6: =SUM(W7:W16) -> 0 | X6: =SUM(X7:X16) -> 0
A7: ='Org structure'!E3 -> 1.1 - Internal Audit and Compliance | E7: 0 | G7: 0 | H7: 0 | J7: =Q7+V7 -> 0 | K7: =U7+W7 -> 0 | L7: =X7 -> 0 | Q7: =SUM(N7:P7) -> 0 | U7: =SUM(R7:T7) -> 0
A8: ='Org structure'!E4 -> 1.2 - Office of the City Manager | E8: 1039942.75 | F8: 500000 | G8: 150000 | H8: 150000 | J8: =Q8+V8 -> 0 | K8: =U8+W8 -> 0 | L8: =X8 -> 0 | Q8: =SUM(N8:P8) -> 0 | U8: =SUM(R8:T8) -> 0
A9: ='Org structure'!E5 -> 1.3 - Political Support | C9: 646307 | E9: 573882.38 | G9: 400000 | H9: 400000 | J9: =Q9+V9 -> 0 | K9: =U9+W9 -> 0 | L9: 0 | Q9: 0 | U9: 0
A10: ='Org structure'!E6 -> 1.4 - Strategic Planning | E10: 0 | G10: 0 | H10: 0 | J10: 0 | K10: 0 | L10: 0 | Q10: 0 | U10: 0
A11: ='Org structure'!E7 -> 0 | J11: 0 | K11: 0 | L11: =X11 -> 0 | Q11: 0 | U11: 0
A12: ='Org structure'!E8 -> 0 | J12: 0 | K12: 0 | L12: 0 | Q12: 0 | U12: 0
A13: ='Org structure'!E9 -> 0 | J13: 0 | K13: 0 | L13: 0 | Q13: 0 | U13: 0
A14: ='Org structure'!E10 -> 0 | J14: 0 | K14: 0 | L14: 0 | Q14: 0 | U14: 0
A15: ='Org structure'!E11 -> 0 | J15: 0 | K15: 0 | L15: 0 | Q15: 0 | U15: 0
A16: ='Org structure'!E12 -> 0 | J16: 0 | K16: 0 | L16: 0 | Q16: 0 | U16: 0
A17: ='Org structure'!A3 -> Vote 2 - City Finance | C17: =SUM(C18:C27) -> 9184603 | D17: =SUM(D18:D27) -> 1592912.04 | E17: 4935541.48 | F17: 21288783 | G17: 16128783 | H17: 16128783 | I17: =SUM(I18:I27) -> 0 | J17: 30000000 | K17: 30000000 | L17: 30000000 | N17: =SUM(N18:N27) -> 0 | O17: 0 | P17: 0 | Q17: 0 | R17: 0 | S17: 0 | T17: 0 | U17: 0 | V17: 30000000 | W17: 30000000 | X17: 30000000
A18: ='Org structure'!E14 -> 2.1 - Asset Management | E18: 0 | F18: 50000 | G18: 50000 | H18: 50000 | J18: =Q18+V18 -> 0 | K18: =U18+W18 -> 0 | L18: =X18 -> 0 | Q18: =SUM(N18:P18) -> 0 | U18: 0 | V18: 0 | W18: 0 | X18: 0
A19: ='Org structure'!E15 -> 2.2 - Budget and Treasury Management | C19: 9184603 | D19: 1336280.74 | E19: 1853747.03 | F19: 17072010 | G19: 10672010 | H19: 10672010 | J19: =Q19+V19 -> 30000000 | K19: =U19+W19 -> 30000000 | L19: 30000000 | Q19: 0 | U19: 0 | V19: 30000000 | W19: 30000000 | X19: 30000000
A20: ='Org structure'!E16 -> 2.3 - Expenditure Management | E20: 54550 | F20: 0 | G20: 0 | H20: 0 | J20: 0 | K20: 0 | L20: 0 | Q20: 0 | U20: 0 | V20: 0 | W20: 0 | X20: 0
A21: ='Org structure'!E17 -> 2.4 - Revenue Management | E21: 2528200 | F21: 2305000 | G21: 3645000 | H21: 3645000 | J21: 0 | K21: =U21+W21 -> 0 | L21: 0 | Q21: 0 | U21: 0 | V21: 0 | W21: 0 | X21: 0
A22: ='Org structure'!E18 -> 2.5 - Supply Chain Management | D22: 256631.3 | E22: 499044.45 | F22: 1861773 | G22: 1761773 | H22: 1761773 | J22: 0 | K22: 0 | L22: 0 | Q22: 0 | U22: 0 | V22: 0 | W22: 0 | X22: 0
A23: ='Org structure'!E19 -> 0 | J23: 0 | K23: 0 | L23: 0 | Q23: 0 | U23: 0
A24: ='Org structure'!E20 -> 0 | J24: 0 | K24: 0 | L24: 0 | Q24: 0 | U24: 0
A25: ='Org structure'!E21 -> 0 | J25: 0 | K25: 0 | L25: 0 | Q25: 0 | U25: 0
A26: ='Org structure'!E22 -> 0 | J26: 0 | K26: 0 | L26: 0 | Q26: 0 | U26: 0
A27: ='Org structure'!E23 -> 0 | J27: 0 | K27: 0 | L27: 0 | Q27: 0 | U27: 0
A28: ='Org structure'!A4 -> Vote 3 - Corporate Services | C28: =SUM(C29:C37) -> -6912874 | D28: 971615.63 | E28: 2272710.48 | F28: 5601500 | G28: 1105279 | H28: 1105279 | I28: 0 | J28: 10000000 | K28: 10000000 | L28: 10000000 | N28: =SUM(N29:N37) -> 0 | O28: 0 | P28: 0 | Q28: 0 | R28: 0 | S28: 0 | T28: 0 | U28: 0 | V28: 10000000 | W28: 10000000 | X28: 10000000
A29: ='Org structure'!E26 -> Human Resources Management | C29: 153990 | E29: 1889731 | F29: 367500 | G29: 55000 | H29: 55000 | J29: =Q29+V29 -> 0 | K29: =U29+W29 -> 0 | L29: =X29 -> 0 | Q29: =SUM(N29:P29) -> 0 | U29: 0 | V29: 0 | W29: 0 | X29: 0
A30: ='Org structure'!E27 -> Information Technology | C30: -7251520 | D30: 971615.63 | E30: 0 | F30: 5000000 | G30: 500000 | H30: 500000 | J30: 10000000 | K30: 10000000 | L30: 10000000 | Q30: 0 | U30: =SUM(R30:T30) -> 0 | V30: 10000000 | W30: 10000000 | X30: 10000000
A31: ='Org structure'!E28 -> Legal Services | C31: 0 | E31: 382979.48 | F31: 0 | G31: 0 | H31: 0 | J31: 0 | K31: =U31+W31 -> 0 | L31: 0 | Q31: 0 | U31: 0 | V31: 0 | W31: 0 | X31: 0
A32: ='Org structure'!E29 -> Secretariat and Auxiliary Services | C32: 184656 | E32: 0 | F32: 234000 | G32: 550279 | H32: 550279 | J32: =Q32+V32 -> 0 | K32: 0 | L32: 0 | Q32: 0 | U32: 0 | V32: 0 | W32: 0 | X32: 0
A33: ='Org structure'!E30 -> General Manager: Corporate Service | G33: 0 | H33: 0 | J33: 0 | K33: 0 | L33: 0 | Q33: 0 | U33: 0 | V33: 0 | W33: 0 | X33: 0
A34: ='Org structure'!E31 -> 0 | J34: 0 | K34: 0 | L34: 0 | Q34: 0 | U34: 0
A35: ='Org structure'!E32 -> 0 | J35: 0 | K35: 0 | L35: 0 | Q35: 0 | U35: 0
A36: ='Org structure'!E33 -> 0 | J36: 0 | K36: 0 | L36: 0 | Q36: 0 | U36: 0
A37: ='Org structure'!E34 -> 0 | J37: 0 | K37: 0 | L37: 0 | Q37: 0 | U37: 0
A38: ='Org structure'!A5 -> Vote 4 - Community Services and Social Equity | C38: =SUM(C39:C48) -> 12745198 | D38: =SUM(D39:D48) -> 24381249.32 | E38: 33154389.84 | F38: 40401050 | G38: 41471050 | H38: 41471050 | I38: =SUM(I39:I48) -> 0 | J38: 24886499.05 | K38: 17455350 | L38: 26864880 | N38: =SUM(N39:N48) -> 0 | O38: 0 | P38: 0 | Q38: 0 | R38: 0 | S38: 0 | T38: 0 | U38: 0 | V38: 24886499.05 | W38: 17455350 | X38: 26864880
A39: ='Org structure'!E36 -> 4.1 - Area Based Management | C39: 260083 | E39: 790463.79 | F39: 1900000 | G39: 1520000 | H39: 1520000 | J39: =Q39+V39 -> 0 | K39: =U39+W39 -> 0 | L39: =X39 -> 0 | Q39: =SUM(N39:P39) -> 0 | U39: 0 | V39: 0 | W39: 0 | X39: 0
A40: ='Org structure'!E37 -> 4.2 - Public Safety, Emergency Services and Enforcement | C40: 1175649 | E40: 0 | F40: 4525000 | G40: 3325000 | H40: 3325000 | J40: 0 | K40: 0 | L40: 0 | Q40: 0 | U40: 0 | V40: 0 | W40: 0 | X40: 0
A41: ='Org structure'!E38 -> 4.3 - Recreation and Facilities | C41: 3374495 | D41: 12466354.57 | E41: 17408776.8 | F41: 22876050 | G41: 28526050 | H41: 28526050 | J41: 19886499.05 | K41: 12455350 | L41: 21864880 | Q41: 0 | U41: 0 | V41: 19886499.05 | W41: 12455350 | X41: 21864880
A42: ='Org structure'!E39 -> 4.4 - Waste Management | C42: 7934971 | D42: 11914894.75 | E42: 14955149.25 | F42: 11100000 | G42: 8100000 | H42: 8100000 | J42: 5000000 | K42: 5000000 | L42: 5000000 | Q42: 0 | U42: 0 | V42: 5000000 | W42: 5000000 | X42: 5000000
A43: ='Org structure'!E40 -> 0 | G43: 0 | J43: 0 | K43: 0 | L43: 0 | Q43: 0 | U43: 0
A44: ='Org structure'!E41 -> 0 | J44: 0 | K44: 0 | L44: 0 | Q44: 0 | U44: 0
A45: ='Org structure'!E42 -> 0 | J45: 0 | K45: 0 | L45: 0 | Q45: 0 | U45: 0
A46: ='Org structure'!E43 -> 0 | J46: 0 | K46: 0 | L46: 0 | Q46: 0 | U46: 0
A47: ='Org structure'!E44 -> 0 | J47: 0 | K47: 0 | L47: 0 | Q47: 0 | U47: 0
A48: ='Org structure'!E45 -> 0 | J48: 0 | K48: 0 | L48: 0 | Q48: 0 | U48: 0
A49: ='Org structure'!A6 -> Vote 5 - Infrastructure Services | C49: =SUM(C50:C59) -> 321091528.1 | D49: =SUM(D50:D59) -> 404546366.1 | E49: 308960388.3 | F49: 580999200 | G49: 211961757.6 | H49: 211961757.6 | I49: =SUM(I50:I59) -> 0 | J49: 318102140 | K49: 342432645 | L49: 305181156.1 | N49: =SUM(N50:N59) -> 0 | O49: 0 | P49: 0 | Q49: 0 | R49: 0 | S49: 0 | T49: 0 | U49: 0 | V49: 318102140 | W49: 342432645 | X49: 305181156.1
A50: ='Org structure'!E47 -> 5.1 - Project Management Office | E50: 12550 | F50: 237904000 | G50: 0 | H50: 0 | J50: =Q50+V50 -> 0 | K50: =U50+W50 -> 0 | L50: =X50 -> 0 | Q50: =SUM(N50:P50) -> 0 | U50: 0 | V50: 0 | W50: 0 | X50: 0
A51: ='Org structure'!E48 -> 5.2 - Roads and Transportation | C51: 297722791.1 | D51: 250393320 | E51: 196574214.7 | F51: 0 | G51: 52685301.04 | H51: 52685301.04 | J51: 63400000 | K51: 91091846 | L51: 103492336.1 | Q51: 0 | U51: 0 | V51: 63400000 | W51: 91091846 | X51: 103492336.1
A52: ='Org structure'!E49 -> 5.3 - Water and Sanitation | C52: 23368737 | D52: 154153046.1 | E52: 112373623.6 | F52: 52243160 | G52: 159276456.6 | H52: 159276456.6 | J52: 254702140 | K52: 251340799 | L52: 201688820 | Q52: 0 | U52: 0 | V52: 254702140 | W52: 251340799 | X52: 201688820
A53: ='Org structure'!E50 -> 5.4 - General Manager: Infrastructure | E53: 0 | F53: 290852040 | G53: 0 | H53: 0 | J53: 0 | K53: 0 | L53: 0 | Q53: 0 | U53: 0 | V53: 0 | W53: 0 | X53: 0
A54: ='Org structure'!E51 -> 0 | J54: 0 | K54: 0 | L54: 0 | Q54: 0 | U54: 0
A55: ='Org structure'!E52 -> 0 | J55: 0 | K55: 0 | L55: 0 | Q55: 0 | U55: 0
A56: ='Org structure'!E53 -> 0 | J56: 0 | K56: 0 | L56: 0 | Q56: 0 | U56: 0
A57: ='Org structure'!E54 -> 0 | J57: 0 | K57: 0 | L57: 0 | Q57: 0 | U57: 0
A58: ='Org structure'!E55 -> 0 | J58: 0 | K58: 0 | L58: 0 | Q58: 0 | U58: 0
A59: ='Org structure'!E56 -> 0 | J59: 0 | K59: 0 | L59: 0 | Q59: 0 | U59: 0
A60: ='Org structure'!A7 -> Vote 6 - Sustainable Development and City Enterprises | C60: =SUM(C61:C70) -> 109767844.1 | D60: =SUM(D61:D70) -> 180965008.9 | E60: 51772460.63 | F60: 146855858.9 | G60: 152823832.4 | H60: 152823832.4 | I60: =SUM(I61:I70) -> 0 | J60: 144745414.9 | K60: 6977496.2 | L60: 700000 | N60: =SUM(N61:N70) -> 0 | O60: 0 | P60: 0 | Q60: 0 | R60: 0 | S60: 0 | T60: 0 | U60: 0 | V60: 144745414.9 | W60: 6977496.2 | X60: 700000
A61: ='Org structure'!E58 -> 6.1 - City Entities | C61: 8711868.09 | D61: 2315510.77 | E61: 15005502.89 | F61: 5450000 | G61: 4998771.28 | H61: 4998771.28 | J61: =Q61+V61 -> 0 | K61: =U61+W61 -> 0 | L61: =X61 -> 0 | Q61: =SUM(N61:P61) -> 0 | U61: 0 | V61: 0 | W61: 0 | X61: 0
A62: ='Org structure'!E59 -> 6.2 - Development Services | C62: 10337001 | D62: 16004175.65 | E62: 32992343.87 | F62: 41400000 | G62: 42340538 | H62: 42340538 | J62: 0 | K62: 0 | L62: 0 | Q62: 0 | U62: 0 | V62: 0 | W62: 0 | X62: 0
A63: ='Org structure'!E60 -> 6.3 - Human Settlement Development | C63: 66874142 | D63: 62960515.34 | E63: 1067854.9 | F63: 98705858.87 | G63: 10591441.56 | H63: 10591441.56 | J63: 144745414.9 | K63: 6977496.2 | L63: 700000 | Q63: 0 | U63: 0 | V63: 144745414.9 | W63: 6977496.2 | X63: 700000
A64: ='Org structure'!E61 -> 6.4 - Town Planning | C64: 23844833 | D64: 99684807.15 | E64: 2706758.97 | F64: 1300000 | G64: 94893081.6 | H64: 94893081.6 | J64: 0 | K64: 0 | L64: 0 | Q64: 0 | U64: 0 | V64: 0 | W64: 0 | X64: 0
A65: ='Org structure'!E62 -> 6.5 - General Manager: Sustainable Development and City Enterprises | E65: 0 | J65: 0 | K65: 0 | L65: 0 | Q65: 0 | U65: 0 | V65: 0 | W65: 0 | X65: 0
A66: ='Org structure'!E63 -> 0 | J66: 0 | K66: 0 | L66: 0 | Q66: 0 | U66: 0
A67: ='Org structure'!E64 -> 0 | J67: 0 | K67: 0 | L67: 0 | Q67: 0 | U67: 0
A68: ='Org structure'!E65 -> 0 | J68: 0 | K68: 0 | L68: 0 | Q68: 0 | U68: 0
A69: ='Org structure'!E66 -> 0 | J69: 0 | K69: 0 | L69: 0 | Q69: 0 | U69: 0
A70: ='Org structure'!E67 -> 0 | J70: 0 | K70: 0 | L70: 0 | Q70: 0 | U70: 0
A71: ='Org structure'!A8 -> Vote 7 - Electricity | C71: =SUM(C72:C81) -> 33332616 | D71: 46850530.93 | E71: 98800431.88 | F71: 1000000 | G71: 76484471 | H71: 76484471 | I71: 0 | J71: 175400000 | K71: 128967852 | L71: 29632523.9 | N71: =SUM(N72:N81) -> 0 | O71: 0 | P71: 0 | Q71: 0 | R71: 0 | S71: 0 | T71: 0 | U71: 0 | V71: 175400000 | W71: 128967852 | X71: 29632523.9
A72: ='Org structure'!E69 -> 7.1 Electricity planning | C72: 33332616 | D72: 46850530.93 | E72: 98800431.88 | F72: 1000000 | G72: 68284471 | H72: 68284471 | J72: =Q72+V72 -> 155400000 | K72: =U72+W72 -> 8967852 | L72: =X72 -> 14318523.9 | Q72: =SUM(N72:P72) -> 0 | U72: =SUM(R72:T72) -> 0 | V72: 155400000 | W72: 8967852 | X72: 14318523.9
A73: ='Org structure'!E70 -> 7.2 Methods and Standards | G73: 0 | H73: 0 | J73: 0 | K73: 0 | L73: 0 | Q73: 0 | U73: 0 | V73: 0 | W73: 0 | X73: 0
A74: ='Org structure'!E71 -> 7.3 Operations and Maintenance | G74: 0 | H74: 0 | J74: 0 | K74: 0 | L74: 0 | Q74: 0 | U74: 0 | V74: 0 | W74: 0 | X74: 0
A75: ='Org structure'!E72 -> 7.4 Revenue Management | G75: 8200000 | H75: 8200000 | J75: 20000000 | K75: 120000000 | L75: 15314000 | Q75: 0 | U75: 0 | V75: 20000000 | W75: 120000000 | X75: 15314000
A76: ='Org structure'!E73 -> 7.5 General Manager Electricity | F76: 0 | G76: 0 | J76: 0 | K76: 0 | L76: 0 | Q76: 0 | U76: 0 | V76: 0 | W76: 0 | X76: 0
A77: ='Org structure'!E74 -> 0 | J77: 0 | K77: 0 | L77: 0 | Q77: 0 | U77: 0
A78: ='Org structure'!E75 -> 0 | J78: 0 | K78: 0 | L78: 0 | Q78: 0 | U78: 0
A79: ='Org structure'!E76 -> 0 | J79: 0 | K79: 0 | L79: 0 | Q79: 0 | U79: 0
A80: ='Org structure'!E77 -> 0 | J80: 0 | K80: 0 | L80: 0 | Q80: 0 | U80: 0
A81: ='Org structure'!E78 -> 0 | J81: 0 | K81: 0 | L81: 0 | Q81: 0 | U81: 0
A82: ='Org structure'!A9 -> Vote 8 - [NAME OF VOTE 8] | C82: =SUM(C83:C92) -> 0 | D82: 0 | E82: 0 | F82: 0 | G82: 0 | H82: 0 | I82: 0 | J82: 0 | K82: 0 | L82: 0 | N82: =SUM(N83:N92) -> 0 | O82: 0 | P82: 0 | Q82: 0 | R82: 0 | S82: 0 | T82: 0 | U82: 0 | V82: 0 | W82: 0 | X82: 0
A83: ='Org structure'!E80 -> 8.1 - [Name of sub-vote] | J83: =Q83+V83 -> 0 | K83: =U83+W83 -> 0 | L83: =X83 -> 0 | Q83: =SUM(N83:P83) -> 0 | U83: 0
A84: ='Org structure'!E81 -> 0 | J84: 0 | K84: 0 | L84: 0 | Q84: 0 | U84: 0
A85: ='Org structure'!E82 -> 0 | J85: 0 | K85: 0 | L85: 0 | Q85: 0 | U85: 0
A86: ='Org structure'!E83 -> 0 | J86: 0 | K86: 0 | L86: 0 | Q86: 0 | U86: 0
A87: ='Org structure'!E84 -> 0 | J87: 0 | K87: 0 | L87: 0 | Q87: 0 | U87: 0
A88: ='Org structure'!E85 -> 0 | J88: 0 | K88: 0 | L88: 0 | Q88: 0 | U88: 0
A89: ='Org structure'!E86 -> 0 | J89: 0 | K89: 0 | L89: 0 | Q89: 0 | U89: 0
A90: ='Org structure'!E87 -> 0 | J90: 0 | K90: 0 | L90: 0 | Q90: 0 | U90: 0
A91: ='Org structure'!E88 -> 0 | J91: 0 | K91: 0 | L91: 0 | Q91: 0 | U91: 0
A92: ='Org structure'!E89 -> 0 | J92: 0 | K92: 0 | L92: 0 | Q92: 0 | U92: 0
A93: ='Org structure'!A10 -> Vote 9 - [NAME OF VOTE 9] | C93: =SUM(C94:C103) -> 0 | D93: =SUM(D94:D103) -> 0 | E93: 0 | F93: 0 | G93: 0 | H93: 0 | I93: 0 | J93: 0 | K93: 0 | L93: 0 | N93: =SUM(N94:N103) -> 0 | O93: 0 | P93: 0 | Q93: 0 | R93: 0 | S93: 0 | T93: 0 | U93: 0 | V93: 0 | W93: 0 | X93: 0
A94: ='Org structure'!E91 -> 9.1 - [Name of sub-vote] | J94: =Q94+V94 -> 0 | K94: =U94+W94 -> 0 | L94: =X94 -> 0 | Q94: =SUM(N94:P94) -> 0 | U94: 0
A95: ='Org structure'!E92 -> 0 | J95: 0 | K95: 0 | L95: 0 | Q95: 0 | U95: 0
A96: ='Org structure'!E93 -> 0 | J96: 0 | K96: 0 | L96: 0 | Q96: 0 | U96: 0
A97: ='Org structure'!E94 -> 0 | J97: 0 | K97: 0 | L97: 0 | Q97: 0 | U97: 0
A98: ='Org structure'!E95 -> 0 | J98: 0 | K98: 0 | L98: 0 | Q98: 0 | U98: 0
A99: ='Org structure'!E96 -> 0 | J99: 0 | K99: 0 | L99: 0 | Q99: 0 | U99: 0
A100: ='Org structure'!E97 -> 0 | J100: 0 | K100: 0 | L100: 0 | Q100: 0 | U100: 0
A101: ='Org structure'!E98 -> 0 | J101: 0 | K101: 0 | L101: 0 | Q101: 0 | U101: 0
A102: ='Org structure'!E99 -> 0 | J102: 0 | K102: 0 | L102: 0 | Q102: 0 | U102: 0
A103: ='Org structure'!E100 -> 0 | J103: 0 | K103: 0 | L103: 0 | Q103: 0 | U103: 0
A104: ='Org structure'!A11 -> Vote 10 - [NAME OF VOTE 10] | C104: =SUM(C105:C114) -> 0 | D104: =SUM(D105:D114) -> 0 | E104: 0 | F104: 0 | G104: 0 | H104: 0 | I104: 0 | J104: 0 | K104: 0 | L104: 0 | N104: =SUM(N105:N114) -> 0 | O104: 0 | P104: 0 | Q104: 0 | R104: 0 | S104: 0 | T104: 0 | U104: 0 | V104: 0 | W104: 0 | X104: 0
A105: ='Org structure'!E102 -> 10.1 - [Name of sub-vote] | J105: =Q105+V105 -> 0 | K105: =U105+W105 -> 0 | L105: =X105 -> 0 | Q105: =SUM(N105:P105) -> 0 | U105: 0
A106: ='Org structure'!E103 -> 0 | J106: 0 | K106: 0 | L106: 0 | Q106: 0 | U106: 0
A107: ='Org structure'!E104 -> 0 | J107: 0 | K107: 0 | L107: 0 | Q107: 0 | U107: 0
A108: ='Org structure'!E105 -> 0 | J108: 0 | K108: 0 | L108: 0 | Q108: 0 | U108: 0
A109: ='Org structure'!E106 -> 0 | J109: 0 | K109: 0 | L109: 0 | Q109: 0 | U109: 0
A110: ='Org structure'!E107 -> 0 | J110: 0 | K110: 0 | L110: 0 | Q110: 0 | U110: 0
A111: ='Org structure'!E108 -> 0 | J111: 0 | K111: 0 | L111: 0 | Q111: 0 | U111: 0
A112: ='Org structure'!E109 -> 0 | J112: 0 | K112: 0 | L112: 0 | Q112: 0 | U112: 0
A113: ='Org structure'!E110 -> 0 | J113: 0 | K113: 0 | L113: 0 | Q113: 0 | U113: 0
A114: ='Org structure'!E111 -> 0 | J114: 0 | K114: 0 | L114: 0 | Q114: 0 | U114: 0
A115: ='Org structure'!A12 -> Vote 11 - [NAME OF VOTE 11] | C115: =SUM(C116:C125) -> 0 | D115: 0 | E115: 0 | F115: 0 | G115: 0 | H115: 0 | I115: 0 | J115: 0 | K115: 0 | L115: 0 | N115: =SUM(N116:N125) -> 0 | O115: 0 | P115: 0 | Q115: 0 | R115: 0 | S115: 0 | T115: 0 | U115: 0 | V115: 0 | W115: 0 | X115: 0
A116: ='Org structure'!E113 -> 11.1 - [Name of sub-vote] | J116: =Q116+V116 -> 0 | K116: =U116+W116 -> 0 | L116: =X116 -> 0 | Q116: =SUM(N116:P116) -> 0 | U116: 0
A117: ='Org structure'!E114 -> 0 | J117: 0 | K117: 0 | L117: 0 | Q117: 0 | U117: 0
A118: ='Org structure'!E115 -> 0 | J118: 0 | K118: 0 | L118: 0 | Q118: 0 | U118: 0
A119: ='Org structure'!E116 -> 0 | J119: 0 | K119: 0 | L119: 0 | Q119: 0 | U119: 0
A120: ='Org structure'!E117 -> 0 | J120: 0 | K120: 0 | L120: 0 | Q120: 0 | U120: 0
A121: ='Org structure'!E118 -> 0 | J121: 0 | K121: 0 | L121: 0 | Q121: 0 | U121: 0
A122: ='Org structure'!E119 -> 0 | J122: 0 | K122: 0 | L122: 0 | Q122: 0 | U122: 0
A123: ='Org structure'!E120 -> 0 | J123: 0 | K123: 0 | L123: 0 | Q123: 0 | U123: 0
A124: ='Org structure'!E121 -> 0 | J124: 0 | K124: 0 | L124: 0 | Q124: 0 | U124: 0
A125: ='Org structure'!E122 -> 0 | J125: 0 | K125: 0 | L125: 0 | Q125: 0 | U125: 0
A126: ='Org structure'!A13 -> Vote 12 - [NAME OF VOTE 12] | C126: =SUM(C127:C136) -> 0 | D126: 0 | E126: 0 | F126: 0 | G126: 0 | H126: 0 | I126: 0 | J126: 0 | K126: 0 | L126: 0 | N126: =SUM(N127:N136) -> 0 | O126: 0 | P126: 0 | Q126: 0 | R126: 0 | S126: 0 | T126: 0 | U126: 0 | V126: 0 | W126: 0 | X126: 0
A127: ='Org structure'!E124 -> 12.1 - [Name of sub-vote] | J127: =Q127+V127 -> 0 | K127: =U127+W127 -> 0 | L127: =X127 -> 0 | Q127: =SUM(N127:P127) -> 0 | U127: 0
A128: ='Org structure'!E125 -> 0 | J128: 0 | K128: 0 | L128: 0 | Q128: 0 | U128: 0
A129: ='Org structure'!E126 -> 0 | J129: 0 | K129: 0 | L129: 0 | Q129: 0 | U129: 0
A130: ='Org structure'!E127 -> 0 | J130: 0 | K130: 0 | L130: 0 | Q130: 0 | U130: 0
A131: ='Org structure'!E128 -> 0 | J131: 0 | K131: 0 | L131: 0 | Q131: 0 | U131: 0
A132: ='Org structure'!E129 -> 0 | J132: =Q132+V132 -> 0 | K132: 0 | L132: 0 | Q132: 0 | U132: 0
A133: ='Org structure'!E130 -> 0 | J133: 0 | K133: 0 | L133: 0 | Q133: 0 | U133: 0
A134: ='Org structure'!E131 -> 0 | J134: 0 | K134: 0 | L134: 0 | Q134: 0 | U134: 0
A135: ='Org structure'!E132 -> 0 | J135: 0 | K135: 0 | L135: 0 | Q135: 0 | U135: =SUM(R135:T135) -> 0
A136: ='Org structure'!E133 -> 0 | J136: 0 | K136: 0 | L136: 0 | Q136: 0 | U136: 0
A137: ='Org structure'!A14 -> Vote 13 - [NAME OF VOTE 13] | C137: =SUM(C138:C147) -> 0 | D137: 0 | E137: 0 | F137: 0 | G137: 0 | H137: 0 | I137: 0 | J137: 0 | K137: 0 | L137: 0 | N137: =SUM(N138:N147) -> 0 | O137: 0 | P137: 0 | Q137: 0 | R137: 0 | S137: 0 | T137: 0 | U137: 0 | V137: 0 | W137: 0 | X137: 0
A138: ='Org structure'!E135 -> 13.1 - [Name of sub-vote] | J138: =Q138+V138 -> 0 | K138: =U138+W138 -> 0 | L138: =X138 -> 0 | Q138: =SUM(N138:P138) -> 0 | U138: 0
A139: ='Org structure'!E136 -> 0 | J139: 0 | K139: 0 | L139: 0 | Q139: 0 | U139: 0
A140: ='Org structure'!E137 -> 0 | J140: 0 | K140: 0 | L140: 0 | Q140: 0 | U140: 0
A141: ='Org structure'!E138 -> 0 | J141: 0 | K141: 0 | L141: 0 | Q141: 0 | U141: 0
A142: ='Org structure'!E139 -> 0 | J142: 0 | K142: 0 | L142: 0 | Q142: 0 | U142: 0
A143: ='Org structure'!E140 -> 0 | J143: 0 | K143: 0 | L143: 0 | Q143: 0 | U143: 0
A144: ='Org structure'!E141 -> 0 | J144: 0 | K144: 0 | L144: 0 | Q144: 0 | U144: 0
A145: ='Org structure'!E142 -> 0 | J145: 0 | K145: 0 | L145: 0 | Q145: 0 | U145: 0
A146: ='Org structure'!E143 -> 0 | J146: 0 | K146: 0 | L146: 0 | Q146: 0 | U146: 0
A147: ='Org structure'!E144 -> 0 | J147: 0 | K147: 0 | L147: 0 | Q147: 0 | U147: 0
A148: ='Org structure'!A15 -> Vote 14 - [NAME OF VOTE 14] | C148: =SUM(C149:C158) -> 0 | D148: 0 | E148: 0 | F148: 0 | G148: 0 | H148: 0 | I148: 0 | J148: 0 | K148: 0 | L148: 0 | N148: =SUM(N149:N158) -> 0 | O148: 0 | P148: 0 | Q148: 0 | R148: 0 | S148: 0 | T148: 0 | U148: 0 | V148: 0 | W148: 0 | X148: 0
A149: ='Org structure'!E146 -> 14.1 - [Name of sub-vote] | J149: =Q149+V149 -> 0 | K149: =U149+W149 -> 0 | L149: =X149 -> 0 | Q149: =SUM(N149:P149) -> 0 | U149: 0
A150: ='Org structure'!E147 -> 0 | J150: 0 | K150: 0 | L150: 0 | Q150: 0 | U150: 0
A151: ='Org structure'!E148 -> 0 | J151: 0 | K151: 0 | L151: 0 | Q151: 0 | U151: 0
A152: ='Org structure'!E149 -> 0 | J152: 0 | K152: 0 | L152: 0 | Q152: 0 | U152: 0
A153: ='Org structure'!E150 -> 0 | J153: 0 | K153: 0 | L153: 0 | Q153: 0 | U153: 0
A154: ='Org structure'!E151 -> 0 | J154: 0 | K154: 0 | L154: 0 | Q154: 0 | U154: 0
A155: ='Org structure'!E152 -> 0 | J155: 0 | K155: 0 | L155: 0 | Q155: 0 | U155: 0
A156: ='Org structure'!E153 -> 0 | J156: 0 | K156: 0 | L156: 0 | Q156: 0 | U156: 0
A157: ='Org structure'!E154 -> 0 | J157: 0 | K157: 0 | L157: 0 | Q157: 0 | U157: 0
A158: ='Org structure'!E155 -> 0 | J158: 0 | K158: 0 | L158: 0 | Q158: 0 | U158: 0
A159: ='Org structure'!A16 -> Vote 15 - [NAME OF VOTE 15] | C159: =SUM(C160:C169) -> 0 | D159: 0 | E159: 0 | F159: 0 | G159: 0 | H159: 0 | I159: 0 | J159: 0 | K159: 0 | L159: 0 | N159: =SUM(N160:N169) -> 0 | O159: 0 | P159: 0 | Q159: 0 | R159: 0 | S159: 0 | T159: 0 | U159: 0 | V159: 0 | W159: 0 | X159: 0
A160: ='Org structure'!E157 -> 15.1 - [Name of sub-vote] | J160: =Q160+V160 -> 0 | K160: =U160+W160 -> 0 | L160: =X160 -> 0 | Q160: =SUM(N160:P160) -> 0 | U160: 0
A161: ='Org structure'!E158 -> 0 | J161: 0 | K161: 0 | L161: 0 | Q161: 0 | U161: 0
A162: ='Org structure'!E159 -> 0 | J162: 0 | K162: 0 | L162: 0 | Q162: 0 | U162: 0
A163: ='Org structure'!E160 -> 0 | J163: 0 | K163: 0 | L163: 0 | Q163: 0 | U163: 0
A164: ='Org structure'!E161 -> 0 | J164: 0 | K164: 0 | L164: 0 | Q164: 0 | U164: 0
A165: ='Org structure'!E162 -> 0 | J165: 0 | K165: 0 | L165: 0 | Q165: 0 | U165: 0
A166: ='Org structure'!E163 -> 0 | J166: 0 | K166: 0 | L166: 0 | Q166: 0 | U166: 0
A167: ='Org structure'!E164 -> 0 | J167: 0 | K167: 0 | L167: 0 | Q167: 0 | U167: 0
A168: ='Org structure'!E165 -> 0 | J168: 0 | K168: 0 | L168: 0 | Q168: 0 | U168: 0
A169: ='Org structure'!E166 -> 0 | J169: 0 | K169: 0 | L169: 0 | Q169: 0 | U169: 0
A170: Capital multi-year expenditure sub-total | C170: =C6+C17+C28+C38+C49+C60+C71+C82+C93+C104+C115+C126+C137+C148+C159 -> 479855222.2 | D170: 659307682.9 | E170: 501509747.7 | F170: 796646391.9 | G170: 500525173 | H170: 500525173 | I170: 0 | J170: 703134054 | K170: 535833343.2 | L170: 402378560 | N170: =N6+N17+N28+N38+N49+N60+N71+N82+N93+N104+N115+N126+N137+N148+N159 -> 0 | O170: 0 | P170: 0 | Q170: 0 | R170: 0 | S170: 0 | U170: =U6+U17+U28+U38+U49+U60+U71+U82+U93+U104+U115+U126+U137+U148+U159 -> 0 | V170: =V6+V17+V28+V38+V49+V60+V71+V82+V93+V104+V115+V126+V137+V148+V159 -> 703134054 | W170: =W6+W17+W28+W38+W49+W60+W71+W82+W93+W104+W115+W126+W137+W148+W159 -> 535833343.2 | X170: =X6+X17+X28+X38+X49+X60+X71+X82+X93+X104+X115+X126+X137+X148+X159 -> 402378560
A172: Capital expenditure - Municipal Vote
A173: Single-year expenditure appropriation | B173: 2
A174: =A6 -> Vote 1 - City Manager | C174: =SUM(C175:C184) -> 0 | D174: 1409774.98 | E174: 2151205.01 | F174: 3500000 | G174: 1900000 | H174: 1900000 | I174: 0 | J174: 5000000 | K174: 0 | L174: 0
A175: 1.1 - Internal Audit and Compliance | E175: 0 | G175: 0 | H175: 0 | J175: 0 | K175: 0 | L175: 0
A176: 1.2 - Office of the City Manager | D176: 274174.98 | E176: 71499.7 | F176: 200000 | G176: 200000 | H176: 200000 | J176: 1000000 | K176: 0 | L176: 0
A177: 1.3 - Political Support | D177: 1135600 | E177: 1040623.62 | F177: 2100000 | G177: 1600000 | H177: 1600000 | J177: 0 | K177: 0 | L177: 0
A178: 1.4 - Strategic Planning | E178: 1039081.69 | F178: 1200000 | G178: 100000 | H178: 100000 | J178: 4000000 | K178: 0 | L178: 0
A179: 0
A180: 0
A181: 0
A182: 0
A183: 0
A184: 0
A185: Vote 2 - City Finance | C185: =SUM(C186:C195) -> 0 | D185: 6469188.79 | E185: 6344857.33 | F185: 16565000 | G185: 4785000 | H185: 4785000 | I185: 0 | J185: 0 | K185: 0 | L185: 0
A186: 2.1 - Asset Management | D186: 5396998.22 | E186: 4381677.9 | F186: 15210000 | G186: 3330000 | H186: 3330000
A187: 2.2 - Budget and Treasury Management | D187: 1047881.32 | E187: 622883.85 | F187: 505000 | G187: 505000 | H187: 505000
A188: 2.3 - Expenditure Management | D188: 0 | E188: 0 | F188: 105000 | G188: 105000 | H188: 105000
A189: 2.4 - Revenue Management | D189: 0 | E189: 1059984.98 | F189: 645000 | G189: 645000 | H189: 645000
A190: 2.5 - Supply Chain Management | D190: 24309.25 | E190: 280310.6 | F190: 100000 | G190: 200000 | H190: 200000
A191: 0
A192: 0
A193: 0
A194: 0
A195: 0
A196: Vote 3 - Corporate Services | C196: =SUM(C197:C205) -> 0 | D196: 132691.03 | E196: 2270139.63 | F196: 12326000 | G196: 4042321 | H196: 4042321 | I196: 0 | J196: 10000000 | K196: 10000000 | L196: 10000000
A197: Human Resources Management | D197: 132691.03 | E197: 2124468.49 | F197: 276000 | G197: 77750 | H197: 77750 | J197: 0 | K197: 0 | L197: 0
A198: Information Technology | E198: 15697.5 | F198: 6050000 | G198: 2697277 | H198: 2697277 | J198: 10000000 | K198: 10000000 | L198: 10000000
A199: Legal Services | E199: 95276 | F199: 1000000 | G199: 0 | H199: 0 | J199: 0 | K199: 0 | L199: 0
A200: Secretariat and Auxiliary Services | E200: 34697.64 | F200: 5000000 | G200: 1267294 | H200: 1267294 | J200: 0 | K200: 0 | L200: 0
A201: General Manager: Corporate Service | J201: 0 | K201: 0 | L201: 0
... 138 more rows

Sheet A6-FinPos
A1: =muni&" - "&Approve6 -> 0 - Table A6 Budgeted Financial Position
A2: =desc -> Description | B2: =head27 -> Ref | C2: =head1b -> 2019/20 | D2: =head1A -> 2020/21 | E2: =Head1 -> 2021/22 | F2: =Head2 -> Current Year 2022/23 | J2: =Head3 -> 2023/24 Medium Term Revenue & Expenditure Framework
A3: R thousand | C3: =Head5 -> Audited Outcome | D3: =Head5 -> Audited Outcome | E3: =Head5 -> Audited Outcome | F3: =Head6 -> Original Budget | G3: =Head7 -> Adjusted Budget | H3: =Head8 -> Full Year Forecast | I3: =Head5b -> Pre-audit outcome | J3: =Head9 -> Budget Year 2023/24 | K3: =Head10 -> Budget Year +1 2024/25 | L3: =Head11 -> Budget Year +2 2025/26
A4: ASSETS
A5: Current assets
A6: Cash and cash equivalents | C6: 518976967 | D6: 361320731 | E6: 290433199 | F6: 134860115.4 | G6: 357851718.4 | H6: 357851718.4 | J6: 603973549 | K6: 913508506 | L6: 1840248078
A7: Trade and other receivables from exchange transactions | B7: 1 | C7: ='SA3'!C19 -> 531584562 | D7: ='SA3'!D19 -> 19681707 | E7: ='SA3'!E19 -> 21116337 | F7: ='SA3'!F19 -> 1781691206 | G7: ='SA3'!G19 -> 2421823374 | H7: ='SA3'!H19 -> 2421823374 | I7: ='SA3'!I19 -> 4204533611 | J7: ='SA3'!P19 -> 1296255145 | K7: ='SA3'!Q19 -> 1359771647 | L7: ='SA3'!R19 -> 790750688.5
A8: Receivables from non-exchange transactions | B8: 1 | C8: ='SA3'!C28 -> 1451868358 | D8: ='SA3'!D28 -> 545319677 | E8: ='SA3'!E28 -> 516960589 | F8: ='SA3'!F28 -> 0 | G8: ='SA3'!G28 -> 0 | H8: ='SA3'!H28 -> 0 | I8: ='SA3'!I28 -> 0 | J8: ='SA3'!P28 -> 668305596.6 | K8: ='SA3'!Q28 -> 450019571.4 | L8: ='SA3'!R28 -> 471181620.5
A9: Current portion of non-current receivables | D9: 1176104174 | E9: 1315073345
A10: Inventory | B10: 2 | C10: ='SA3'!C123 -> -468077753 | D10: ='SA3'!D123 -> 353799869 | E10: ='SA3'!E123 -> 359494469 | F10: ='SA3'!F123 -> 173496047.1 | G10: ='SA3'!G123 -> 101717097.9 | H10: ='SA3'!H123 -> 101717097.9 | I10: ='SA3'!I123 -> 185998421.9 | J10: 359494469 | K10: 359494469 | L10: 359494469
A11: VAT
A12: Other current assets | C12: 18452302 | D12: 32311434 | E12: 32670009 | G12: 48957643.55 | H12: 48957643.55
A13: Total current assets | C13: =SUM(C6:C12) -> 2052804436 | D13: 2488537592 | E13: 2535747948 | F13: 2090047369 | G13: 2930349833 | H13: 2930349833 | I13: 4390532033 | J13: 2928028760 | K13: 3082794193 | L13: 3461674856
A14: Non current assets
A15: Investments
A16: Investment property | C16: 821671435 | D16: 892583607 | E16: 925219355 | F16: 821671435 | G16: 821671435 | H16: 821671435 | J16: 974255980.8 | K16: 1021994524 | L16: 1070028266
A17: Property, plant and equipment | B17: 3 | C17: ='SA3'!C129 -> 6588894508 | D17: ='SA3'!D129 -> 6781651843 | E17: ='SA3'!E129 -> 6917056197 | F17: ='SA3'!F129 -> 7125684086 | G17: ='SA3'!G129 -> 6825684086 | H17: ='SA3'!H129 -> 6825684086 | I17: ='SA3'!I129 -> 0 | J17: ='SA3'!P129 -> 7930887847 | K17: ='SA3'!Q129 -> 7634417902 | L17: ='SA3'!R129 -> 6492186711
A18: Biological assets | J18: 84450600 | K18: 88588679.4 | L18: 92752347.33
A19: Living and non-living resources | C19: 1070250 | D19: 743574 | E19: 696179 | F19: 1070250 | G19: 1070250 | H19: 1070250 | J19: 733076.487 | K19: 768997.2349 | L19: 805140.1049
A20: Heritage assets | D20: 272918984 | E20: 273106020 | J20: 287700639 | K20: 301842090 | L20: 316036679
A21: Intangible assets | C21: 30700413 | D21: 24463571 | E21: 20954448 | F21: 30700413 | G21: 30700413 | H21: 30700413 | J21: 20954448 | K21: 21981215.95 | L21: 23014333.1
A22: Trade and other receivables from exchange transactions | J22: 0
A23: Non-current receivables from non-exchange transactions | J23: 0
A24: Other non-current assets | C24: 345024972 | D24: 96300000 | E24: 80200000 | F24: 360375178.5 | G24: 360375178.5 | H24: 360375178.5 | J24: 0
A25: Total non current assets | C25: =SUM(C15:C24) -> 7787361578 | D25: =SUM(D15:D24) -> 8068661579 | E25: 8217232199 | F25: 8339501362 | G25: 8039501362 | H25: 8039501362 | I25: 0 | J25: 9298982591 | K25: 9069593408 | L25: 7994823477
A26: TOTAL ASSETS | C26: =C13+C25 -> 9840166014 | D26: =D13+D25 -> 10557199171 | E26: =E13+E25 -> 10752980147 | F26: =F13+F25 -> 1.042954873e+10 | G26: 1.09698512e+10 | H26: 1.09698512e+10 | I26: 4390532033 | J26: 1.222701135e+10 | K26: 1.21523876e+10 | L26: 1.145649833e+10
A27: LIABILITIES
A28: Current liabilities
A29: Bank overdraft
A30: Financial liabilities | C30: ='SA3'!C135 -> 113418257.9 | D30: ='SA3'!D135 -> 81573484 | E30: ='SA3'!E135 -> 79162900 | F30: ='SA3'!F135 -> 101622094.6 | G30: ='SA3'!G135 -> 180784994.6 | H30: ='SA3'!H135 -> 180784994.6 | I30: ='SA3'!I135 -> 0 | J30: ='SA3'!P135 -> 83358533.7 | K30: ='SA3'!Q135 -> 87443101.85 | L30: ='SA3'!R135 -> 91552927.64
A31: Consumer deposits | C31: 113838915 | D31: 128836470 | E31: 132962378 | F31: 114344430.7 | G31: 132962378 | H31: 132962378 | J31: 140009384 | K31: 146869843.9 | L31: 153772726.5
A32: Trade and other payables from exchange transactions | B32: 4 | C32: 1624206606 | D32: 1385627077 | E32: 1922030381 | F32: 1106988000 | G32: 2180377562 | H32: 2180377562 | J32: 1186508059 | K32: 1035483895 | L32: 1023508062
A33: Trade and other payables from non-exchange transactions | B33: 5 | D33: 21715043 | E33: 20091631 | J33: 0 | K33: 0 | L33: 0
A34: Provision | C34: 41864143 | D34: 10129381 | E34: 8304273 | F34: 140397811.8 | G34: 140397811.8 | H34: 140397811.8 | I34: =41526001+7591978 -> 49117979 | J34: 50151238.82 | K34: 52598288.37 | L34: 55062026.9
A35: VAT | D35: 190638434 | E35: 178523315 | J35: 187551752.5 | K35: 196741778.7 | L35: 205988642.3
A36: Other current liabilities | D36: 219225713 | E36: 177613526
A37: Total current liabilities | C37: =SUM(C29:C36) -> 1893327922 | D37: 2037745602 | E37: 2518688404 | F37: 1463352337 | G37: 2634522746 | H37: 2634522746 | I37: 49117979 | J37: 1647578968 | K37: 1519136908 | L37: 1529884385
A38: Non current liabilities
A39: Financial liabilities | B39: 6 | C39: ='SA3'!C147 -> 285317995.6 | D39: ='SA3'!D147 -> 203744512 | E39: ='SA3'!E147 -> 589320000 | F39: ='SA3'!F147 -> 499353485.4 | G39: ='SA3'!G147 -> 623935097.5 | H39: ='SA3'!H147 -> 623935097.5 | I39: ='SA3'!I147 -> 0 | J39: ='SA3'!P147 -> 131184437.4 | K39: ='SA3'!Q147 -> 137612474.9 | L39: ='SA3'!R147 -> 144080261.2
A40: Provision | B40: 7 | C40: ='SA3'!C154 -> 531179840 | D40: ='SA3'!D154 -> 55141588 | E40: ='SA3'!E154 -> 0 | F40: ='SA3'!F154 -> 809779414.9 | G40: ='SA3'!G154 -> 1460213123 | H40: ='SA3'!H154 -> 1460213123 | I40: ='SA3'!I154 -> 0 | J40: ='SA3'!P154 -> 75576254.6 | K40: ='SA3'!Q154 -> 631407144 | L40: ='SA3'!R154 -> 83005627.16
A41: Long term portion of trade payables
A42: Other non-current liabilities | D42: 555608000 | E42: 185695320 | J42: 648252000 | K42: 680016348 | L42: 711977116
A43: Total non current liabilities | C43: =SUM(C39:C42) -> 816497835.6 | D43: 814494100 | E43: 775015320 | F43: 1309132900 | G43: 2084148220 | H43: 2084148220 | I43: =SUM(I41:I42) -> 0 | J43: =SUM(J39:J42) -> 855012692 | K43: =SUM(K39:K42) -> 1449035967 | L43: =SUM(L39:L42) -> 939063004.3
A44: TOTAL LIABILITIES | C44: =C37+C43 -> 2709825758 | D44: =D37+D43 -> 2852239702 | E44: =E37+E43 -> 3293703724 | F44: =F37+F43 -> 2772485237 | G44: 4718670966 | H44: 4718670966 | I44: 49117979 | J44: 2502591660 | K44: =K37+K43 -> 2968172874 | L44: 2468947390
A45: NET ASSETS | C45: =C26-C44 -> 7130340256 | D45: 7704959469 | E45: 7459276423 | F45: 7657063494 | G45: 6251180230 | H45: 6251180230 | I45: 4341414054 | J45: 9724419691 | K45: 9184214728 | L45: 8987550943
A46: COMMUNITY WEALTH/EQUITY
A47: Accumulated surplus/(deficit) | B47: 8 | C47: 7748557372 | D47: 7513887393 | E47: 7265348361 | F47: 7657063494 | G47: 6049349178 | H47: 6049349178 | J47: 9511891593 | K47: 8961272753 | L47: 8754130696
A48: Reserves and funds | B48: 9 | C48: ='SA3'!C173 -> 190847169 | D48: ='SA3'!D173 -> 190989022 | E48: ='SA3'!E173 -> 201831052 | F48: ='SA3'!F173 -> 0 | G48: ='SA3'!G173 -> 201831052 | H48: ='SA3'!H173 -> 201831052 | I48: ='SA3'!I173 -> 0 | J48: ='SA3'!P173 -> 212528097.8 | K48: ='SA3'!Q173 -> 222941974.5 | L48: ='SA3'!R173 -> 233420247.3
A49: Other
A50: TOTAL COMMUNITY WEALTH/EQUITY | B50: 10 | C50: =SUM(C47:C49) -> 7939404541 | D50: =SUM(D47:D49) -> 7704876415 | E50: 7467179413 | F50: 7657063494 | G50: 6251180230 | H50: 6251180230 | I50: 0 | J50: 9724419691 | K50: 9184214728 | L50: 8987550943
A51: =head27a -> References
A52: 1. Detail breakdown in Table SA3 for Trade receivables from Exchange and Non-exchange transactions
A53: 2. Include completed low cost housing to be transferred to beneficiaries within 12 months detail provided in Table SA3
A54: 3. Include 'Construction-work-in-progress' (disclosed separately in annual financial statements) detail in SA3
A55: 4. Detail breakdown in Table SA3.
A56: 5. Detail breakdown in Table SA3.
A57: 6. Detail breakdown in Table SA3.
A58: 7 Detail breakdown in Table SA3.
A59: 8. Detail breakdown in Table SA3.
A60: 9. Detail breakdown in Table SA3. Includes reserves to be funded by statute.
A61: 10. Net assets must balance with Total Community Wealth/Equity
A62: check balance | C62: =IF((C45-C50)=0,0,"Unbalanced") -> Unbalanced | D62: Unbalanced | E62: Unbalanced | F62: Unbalanced | G62: Unbalanced | H62: Unbalanced | I62: Unbalanced | J62: 0 | K62: 0 | L62: 0

Sheet A7-CFlow
A1: =muni&" - "&Approve7 -> 0 - Table A7 Budgeted Cash Flows
A2: =desc -> Description | B2: =head27 -> Ref | C2: =head1b -> 2019/20 | D2: =head1A -> 2020/21 | E2: =Head1 -> 2021/22 | F2: =Head2 -> Current Year 2022/23 | J2: =Head3 -> 2023/24 Medium Term Revenue & Expenditure Framework
A3: R thousand | C3: =Head5 -> Audited Outcome | D3: =Head5 -> Audited Outcome | E3: =Head5 -> Audited Outcome | F3: =Head6 -> Original Budget | G3: =Head7 -> Adjusted Budget | H3: =Head8 -> Full Year Forecast | I3: =Head5b -> Pre-audit outcome | J3: =Head9 -> Budget Year 2023/24 | K3: =Head10 -> Budget Year +1 2024/25 | L3: =Head11 -> Budget Year +2 2025/26
A4: CASH FLOW FROM OPERATING ACTIVITIES
A5: Receipts
A6: Property rates | E6: 1149564108 | F6: 1284379975 | G6: 1341463530 | H6: 1341463530 | J6: ='SA30'!N5 -> 1435365977 | K6: ='SA30'!O5 -> 1521716983 | L6: ='SA30'!P5 -> 1593237681
A7: Service charges | C7: 3893416276 | D7: 4078704928 | E7: 3166809930 | F7: 3876294794 | G7: 4048574562 | H7: 4048574562 | J7: ='SA30'!N6+'SA30'!N7+'SA30'!N8+'SA30'!N9 -> 4467999174 | K7: ='SA30'!O6+'SA30'!O7+'SA30'!O8+'SA30'!O9 -> 6249508058 | L7: ='SA30'!P6+'SA30'!P7+'SA30'!P8+'SA30'!P9 -> 7188209903
A8: Other revenue | E8: 76009657 | F8: 915670004 | G8: 716654335 | H8: 716654335 | J8: ='SA30'!N11+'SA30'!N15+'SA30'!N16+'SA30'!N17+'SA30'!N19 -> 1119062172 | K8: ='SA30'!O11+'SA30'!O15+'SA30'!O17+'SA30'!O19 -> 240994218 | L8: ='SA30'!P11+'SA30'!P15+'SA30'!P17+'SA30'!P19 -> 252354016
A9: Transfers and Subsidies - Operational | B9: 1 | C9: 681737625 | D9: 1254551714 | E9: 686988866 | F9: 855842084 | G9: 800708694 | H9: 800708694 | J9: ='SA30'!N18 -> 834106196 | K9: ='SA30'!O18 -> 906109405 | L9: ='SA30'!P18 -> 982491448
A10: Transfers and Subsidies - Capital | B10: 1 | C10: 487770477 | E10: 327896741 | F10: 446431109 | G10: 437597242 | H10: 437597242 | J10: ='SA30'!N23 -> 452578009 | K10: ='SA30'!O23 -> 321309343 | L10: ='SA30'!P23 -> 327881560
A11: Interest | C11: 45593332 | D11: 23017689 | E11: 33578242 | F11: 17030213 | G11: 17030213 | H11: 17030213 | J11: ='SA30'!N12 -> 18132025 | K11: ='SA30'!O12 -> 19305407 | L11: ='SA30'!P12 -> 20574284
A12: Dividends | F12: 0 | G12: 0 | H12: 0 | J12: 0 | K12: 0 | L12: 0
A13: Payments
A14: Suppliers and employees | C14: -4385977162 | D14: -4731611067 | E14: -4853520047 | F14: -6605694262 | G14: -6603513808 | H14: -6603513808 | J14: =-('SA30'!N35+'SA30'!N36+'SA30'!N38+'SA30'!N39+'SA30'!N41+'SA30'!N44+'SA30'!N50) -> -7289158697 | K14: =-('SA30'!O35+'SA30'!O36+'SA30'!O38+'SA30'!O39+'SA30'!O41+'SA30'!O44+'SA30'!O50) -> -8107368464 | L14: =-('SA30'!P35+'SA30'!P36+'SA30'!P38+'SA30'!P39+'SA30'!P41+'SA30'!P44+'SA30'!P50) -> -8813781767
A15: Finance charges | D15: -36203064 | E15: -27182033 | F15: -94217140 | G15: -52038519 | H15: -52038519 | J15: =-'SA30'!N37 -> -40400878 | K15: =-'SA30'!O37 -> -42218918 | L15: =-'SA30'!P37 -> -44118769
A16: Transfers and Subsidies | B16: 1 | C16: -46314311 | E16: -25006849 | F16: -63469172 | G16: -38008157 | H16: -38008157 | J16: =-'SA30'!N42 -> -51023536 | K16: =-'SA30'!O42 -> -53395332 | L16: =-'SA30'!P42 -> -55899094
A17: NET CASH FROM/(USED) OPERATING ACTIVITIES | C17: =SUM(C6:C12)+SUM(C14:C16) -> 676226237 | D17: 588460200 | E17: 535138615 | F17: 632267605 | G17: 668468092 | H17: 668468092 | I17: 0 | J17: 946660442 | K17: =SUM(K6:K12)+SUM(K14:K16) -> 1055960700 | L17: 1450949262
A18: CASH FLOWS FROM INVESTING ACTIVITIES
A19: Receipts
A20: Proceeds on disposal of PPE | C20: -399050648 | D20: -600455908 | E20: 5825155 | G20: 3692592 | H20: 3692592 | J20: ='SA30'!N25 -> 0 | K20: ='SA30'!O25 -> 0 | L20: ='SA30'!P25 -> 0
A22: Decrease (increase) in non-current receivables | E22: -358575 | J22: ='SA30'!N30 -> 0 | K22: ='SA30'!O30 -> 0 | L22: ='SA30'!P30 -> 0
A23: Decrease (increase) in non-current investments | C23: 17206644 | D23: -32242270 | J23: ='SA30'!N31 -> 0 | K23: ='SA30'!O31 -> 0 | L23: ='SA30'!P31 -> 0
A24: Payments
A25: Capital assets | E25: -530398424 | F25: -835918464.9 | G25: -526984994 | H25: -526984994 | J25: =-'SA30'!N48 -> -768501055 | K25: =-'SA30'!O48 -> -668585745 | L25: =-'SA30'!P48 -> -515147794
A26: NET CASH FROM/(USED) INVESTING ACTIVITIES | C26: =+C20+C22+C23+C25 -> -381844004 | D26: =+D20+D22+D23+D25 -> -632698178 | E26: -524931844 | F26: -835918464.9 | G26: -523292402 | H26: -523292402 | I26: 0 | J26: -768501055 | K26: =+K20+K22+K23+K25 -> -668585745 | L26: =+L20+L22+L23+L25 -> -515147794
A28: CASH FLOWS FROM FINANCING ACTIVITIES
A29: Receipts
A30: Short term loans | J30: ='SA30'!N26 -> 0 | K30: ='SA30'!O26 -> 0 | L30: ='SA30'!P26 -> 0
A31: Borrowing long term/refinancing | F31: 300000000 | J31: ='SA30'!N27 -> 200000000 | K31: ='SA30'!O27 -> 150000000 | L31: =-'SA30'!P27 -> 0
A32: Increase (decrease) in consumer deposits | J32: ='SA30'!N28 -> 0 | K32: ='SA30'!O28 -> 0 | L32: ='SA30'!P28 -> 0
A33: Payments
A34: Repayment of borrowing | C34: -83600511 | D34: -113418258 | E34: -81573483 | F34: -23606031.69 | G34: -23606031.69 | H34: -23606031.69 | J34: =-('SA30'!N49) -> -23000000 | K34: =-('SA30'!O49) -> -24000000 | L34: =-('SA30'!P49) -> -26000000
A35: NET CASH FROM/(USED) FINANCING ACTIVITIES | C35: =SUM(C30:C32)+C34 -> -83600511 | D35: =SUM(D30:D32)+D34 -> -113418258 | E35: -81573483 | F35: 276393968.3 | G35: -23606031.69 | H35: -23606031.69 | I35: 0 | J35: 177000000 | K35: =SUM(K30:K32)+K34 -> 126000000 | L35: -26000000
A37: NET INCREASE/ (DECREASE) IN CASH HELD | C37: =C17+C26+C35 -> 210781722 | D37: -157656236 | E37: -71366712 | F37: 72743108.44 | G37: 121569658.3 | H37: 121569658.3 | I37: 0 | J37: =J17+J26+J35 -> 355159387 | K37: =K17+K26+K35 -> 513374955 | L37: 909801468
A38: Cash/cash equivalents at the year begin: | B38: 2 | C38: 308195245 | D38: 518976967 | E38: 359519552 | F38: 62117000 | G38: 290433199 | H38: 290433199 | J38: =G39 -> 412002857.3 | K38: =J39 -> 767162244.3 | L38: =K39 -> 1280537199
A39: Cash/cash equivalents at the year end: | B39: 2 | C39: =C37+C38 -> 518976967 | D39: =D37+D38 -> 361320731 | E39: =E37+E38 -> 288152840 | F39: =F37+F38 -> 134860108.4 | G39: 412002857.3 | H39: 412002857.3 | I39: 0 | J39: =J38+J37 -> 767162244.3 | K39: =K38+K37 -> 1280537199 | L39: 2190338667
A40: =head27a -> References
A41: 1. Local/District municipalities to include transfers from/to District/Local Municipalities
A42: 2. Cash equivalents includes investments with maturities of 3 months or less
A43: 3. The MTREF is populated directly from SA30.
A44: Total receipts | C44: =SUM(C6:C12)+SUM(C20:C22) -> 4709467062 | D44: 4755818423 | E44: 5446314124 | F44: 7395648179 | G44: 7365721168 | H44: 7365721168 | I44: 0 | J44: 8327243553 | K44: 9258943414 | L44: 10364748892
A45: Total payments | C45: =SUM(C14:C16)+C25 -> -4432291473 | D45: -4767814131 | E45: -5436107353 | F45: -7599299039 | G45: -7220545478 | H45: -7220545478 | I45: 0 | J45: -8149084166 | K45: -8871568459 | L45: -9428947424
C46: =C44+C45 -> 277175589 | D46: =D44+D45 -> -11995708 | E46: 10206771 | F46: -203650859.9 | G46: 145175690 | H46: 145175690 | I46: 0 | J46: 178159387 | K46: 387374955 | L46: 935801468
A47: Borrowings & investments & c.deposits | C47: =C23+C31+C32 -> 17206644 | D47: =D23+D31+D32 -> -32242270 | E47: 0 | F47: 300000000 | G47: 0 | H47: 0 | I47: 0 | J47: 200000000 | K47: 150000000 | L47: 0
A48: =A34 -> Repayment of borrowing | C48: =C34 -> -83600511 | D48: =D34 -> -113418258 | E48: -81573483 | F48: -23606031.69 | G48: -23606031.69 | H48: -23606031.69 | I48: =I34 -> 0 | J48: -23000000 | K48: -24000000 | L48: -26000000
C49: =C46+C47+C48 -> 210781722 | D49: =D46+D47+D48 -> -157656236 | E49: -71366712 | F49: 72743108.44 | G49: 121569658.3 | H49: 121569658.3 | I49: 0 | J49: 355159387 | K49: 513374955 | L49: 909801468
C50: =C37-C49 -> 0 | D50: 0 | E50: 0 | F50: -1.192092896e-07 | G50: 1.192092896e-07 | H50: 1.192092896e-07 | I50: 0 | J50: 0 | K50: 0 | L50: 0

Sheet A8-ResRecon
A1: =muni&" - "&Approve8 -> 0 - Table A8 Cash backed reserves/accumulated surplus reconciliation
A2: =desc -> Description | B2: =head27 -> Ref | C2: =head1b -> 2019/20 | D2: =head1A -> 2020/21 | E2: =Head1 -> 2021/22 | F2: =Head2 -> Current Year 2022/23 | J2: =Head3 -> 2023/24 Medium Term Revenue & Expenditure Framework
A3: R thousand | C3: =Head5 -> Audited Outcome | D3: =Head5 -> Audited Outcome | E3: =Head5 -> Audited Outcome | F3: =Head6 -> Original Budget | G3: =Head7 -> Adjusted Budget | H3: =Head8 -> Full Year Forecast | I3: =Head5b -> Pre-audit outcome | J3: =Head9 -> Budget Year 2023/24 | K3: =Head10 -> Budget Year +1 2024/25 | L3: =Head11 -> Budget Year +2 2025/26
A4: Cash and investments available
A5: =LEFT('A7-CFlow'!A39,37) -> Cash/cash equivalents at the year end | B5: 1 | C5: ='A7-CFlow'!C39 -> 518976967 | D5: ='A7-CFlow'!D39 -> 361320731 | E5: ='A7-CFlow'!E39 -> 288152840 | F5: ='A7-CFlow'!F39 -> 134860108.4 | G5: ='A7-CFlow'!G39 -> 412002857.3 | H5: ='A7-CFlow'!H39 -> 412002857.3 | I5: ='A7-CFlow'!I39 -> 0 | J5: ='A7-CFlow'!J39 -> 767162244.3 | K5: ='A7-CFlow'!K39 -> 1280537199 | L5: ='A7-CFlow'!L39 -> 2190338667
A6: Other current investments > 90 days | C6: ='A6-FinPos'!C6+'A6-FinPos'!C7-'A6-FinPos'!C29-'A8-ResRecon'!C5 -> 531584562 | D6: ='A6-FinPos'!D6+'A6-FinPos'!D7-'A6-FinPos'!D29-'A8-ResRecon'!D5 -> 19681707 | E6: ='A6-FinPos'!E6+'A6-FinPos'!E7-'A6-FinPos'!E29-'A8-ResRecon'!E5 -> 23396696 | F6: ='A6-FinPos'!F6+'A6-FinPos'!F7-'A6-FinPos'!F29-'A8-ResRecon'!F5 -> 1781691213 | G6: ='A6-FinPos'!G6+'A6-FinPos'!G7-'A6-FinPos'!G29-'A8-ResRecon'!G5 -> 2367672235 | H6: ='A6-FinPos'!H6+'A6-FinPos'!H7-'A6-FinPos'!H29-'A8-ResRecon'!H5 -> 2367672235 | I6: ='A6-FinPos'!I6+'A6-FinPos'!I7-'A6-FinPos'!I29-'A8-ResRecon'!I5 -> 4204533611 | J6: ='A6-FinPos'!J6+'A6-FinPos'!J7-'A6-FinPos'!J29-'A8-ResRecon'!J5 -> 1133066450 | K6: ='A6-FinPos'!K6+'A6-FinPos'!K7-'A6-FinPos'!K29-'A8-ResRecon'!K5 -> 992742953.8 | L6: ='A6-FinPos'!L6+'A6-FinPos'!L7-'A6-FinPos'!L29-'A8-ResRecon'!L5 -> 440660099.3
A7: ='A6-FinPos'!A15&" - "&'A6-FinPos'!A17 -> Investments - Property, plant and equipment | B7: 1 | C7: ='A6-FinPos'!C17 -> 6588894508 | D7: ='A6-FinPos'!D17 -> 6781651843 | E7: ='A6-FinPos'!E17 -> 6917056197 | F7: ='A6-FinPos'!F17 -> 7125684086 | G7: ='A6-FinPos'!G17 -> 6825684086 | H7: ='A6-FinPos'!H17 -> 6825684086 | I7: ='A6-FinPos'!I17 -> 0 | J7: ='A6-FinPos'!J17 -> 7930887847 | K7: ='A6-FinPos'!K17 -> 7634417902 | L7: ='A6-FinPos'!L17 -> 6492186711
A8: Cash and investments available: | C8: =SUM(C5:C7) -> 7639456037 | D8: =SUM(D5:D7) -> 7162654281 | E8: 7228605733 | F8: 9042235408 | G8: 9605359178 | H8: 9605359178 | I8: 4204533611 | J8: 9831116541 | K8: 9907698055 | L8: 9123185478
A10: Application of cash and investments
A11: ='SA3'!A141 -> Trade payables from Non-exchange transactions: Other | C11: ='SA3'!C141 -> 0 | D11: ='SA3'!D141 -> 0 | E11: ='SA3'!E141 -> 0 | F11: ='SA3'!F141 -> 0 | G11: ='SA3'!G141 -> 0 | H11: ='SA3'!H141 -> 0 | I11: ='SA3'!I141 -> 0 | J11: ='SA3'!P141 -> 0 | K11: ='SA3'!Q141 -> 0 | L11: ='SA3'!R141 -> 0
A12: Unspent borrowing | C12: ='SA17'!C67 -> 0 | D12: ='SA17'!D67 -> 0 | E12: ='SA17'!E67 -> 0 | F12: ='SA17'!F67 -> 0 | G12: ='SA17'!G67 -> 0 | H12: ='SA17'!H67 -> 0 | J12: ='SA17'!I67 -> 0 | K12: ='SA17'!J67 -> 0 | L12: ='SA17'!K67 -> 0
A13: Statutory requirements | B13: 2
A14: Other working capital requirements | B14: 3 | C14: =-C32 -> -643048000 | D14: =-D32 -> -667763000 | E14: -691635000 | F14: =-F32 -> 680477000 | G14: -397725000 | H14: -397725000 | I14: 0 | J14: 837478675 | K14: 950609880.1 | L14: 965918919.4
A15: Other provisions | F15: 140398000 | G15: 140398000 | H15: 140398000
A16: Long term investments committed | B16: 4 | C16: =C52 -> 0 | D16: =D52 -> 0 | E16: 0 | F16: 0 | G16: 0 | H16: 0 | I16: 0 | J16: 0 | K16: 0 | L16: 0
A17: Reserves to be backed by cash/investments | B17: 5 | G17: 785902 | H17: 785902
A18: ="Total "&A10&":" -> Total Application of cash and investments: | C18: =SUM(C11:C17) -> -643048000 | D18: =SUM(D11:D17) -> -667763000 | E18: -691635000 | F18: 820875000 | G18: -256541098 | H18: -256541098 | I18: 0 | J18: 837478675 | K18: 950609880.1 | L18: 965918919.4
A19: Surplus(shortfall) | C19: =C8-C18 -> 8282504037 | D19: =D8-D18 -> 7830417281 | E19: 7920240733 | F19: 8221360408 | G19: 9861900276 | H19: 9861900276 | I19: 4204533611 | J19: 8993637866 | K19: 8957088175 | L19: 8157266558
A20: =head27a -> References
A21: 1. Must reconcile with Budgeted Cash Flows
A22: 2. For example: VAT, taxation
A23: 3. Council approval for policy required - include sufficient working capital (e.g. allowing for a % of current debtors > 90 days as uncollectable)
A24: 4. For example: sinking fund requirements for borrowing
A25: 5. Council approval required for each reserve created and basis of cash backing of reserves - Total Reserves to be backed by cash/investments excl Valuation reserve
A28: Other working capital requirements
A29: Debtors | C29: =IF(ISERROR(ROUND(C35*C36,-3)),0,(ROUND(C35*C36,-3))) -> 643048000 | D29: =IF(ISERROR(ROUND(D35*D36,-3)),0,(ROUND(D35*D36,-3))) -> 667763000 | E29: 691635000 | F29: 426511000 | G29: 397725000 | H29: 397725000 | I29: 0 | J29: 917750000 | K29: 890625000 | L29: 961854000
A31: Creditors due | C31: ='SA3'!C138+'SA3'!C139 -> 0 | D31: ='SA3'!D138+'SA3'!D139 -> 0 | E31: ='SA3'!E138+'SA3'!E139 -> 0 | F31: ='SA3'!F138+'SA3'!F139 -> 1106988000 | G31: ='SA3'!G138+'SA3'!G139 -> 0 | H31: ='SA3'!H138+'SA3'!H139 -> 0 | I31: ='SA3'!I138+'SA3'!I139 -> 0 | J31: ='SA3'!P138+'SA3'!P139 -> 1755228675 | K31: ='SA3'!Q138+'SA3'!Q139 -> 1841234880 | L31: ='SA3'!R138+'SA3'!R139 -> 1927772919
A32: Total | C32: =C29-C31 -> 643048000 | D32: =D29-D31 -> 667763000 | E32: 691635000 | F32: -680477000 | G32: 397725000 | H32: 397725000 | I32: 0 | J32: -837478675 | K32: -950609880.1 | L32: -965918919.4
A34: Debtors collection assumptions
A35: Balance outstanding - debtors | C35: ='A6-FinPos'!C8+'A6-FinPos'!C10+'A6-FinPos'!C16 -> 1805462040 | D35: ='A6-FinPos'!D8+'A6-FinPos'!D10+'A6-FinPos'!D16 -> 1791703153 | E35: ='A6-FinPos'!E8+'A6-FinPos'!E10+'A6-FinPos'!E16 -> 1801674413 | F35: ='A6-FinPos'!F8+'A6-FinPos'!F10+'A6-FinPos'!F16 -> 995167482.1 | G35: ='A6-FinPos'!G8+'A6-FinPos'!G10+'A6-FinPos'!G16 -> 923388532.9 | H35: ='A6-FinPos'!H8+'A6-FinPos'!H10+'A6-FinPos'!H16 -> 923388532.9 | I35: ='A6-FinPos'!I8+'A6-FinPos'!I10+'A6-FinPos'!I16 -> 185998421.9 | J35: ='A6-FinPos'!J8+'A6-FinPos'!J10+'A6-FinPos'!J16 -> 2002056046 | K35: ='A6-FinPos'!K8+'A6-FinPos'!K10+'A6-FinPos'!K16 -> 1831508564 | L35: ='A6-FinPos'!L8+'A6-FinPos'!L10+'A6-FinPos'!L16 -> 1900704356
A36: Estimate of debtors collection rate | C36: =IF(ISERROR('SA10'!D10),0,('SA10'!D10)) -> 0.35616821 | D36: =IF(ISERROR('SA10'!E10),0,('SA10'!E10)) -> 0.3726974674 | E36: =IF(ISERROR('SA10'!F10),0,('SA10'!F10)) -> 0.3838845445 | F36: =IF(ISERROR('SA10'!G10),0,('SA10'!G10)) -> 0.4285825212 | G36: =IF(ISERROR('SA10'!H10),0,('SA10'!H10)) -> 0.4307230308 | H36: =IF(ISERROR('SA10'!I10),0,('SA10'!I10)) -> 0.4307230308 | I36: =IF(ISERROR('SA10'!J10),0,('SA10'!J10)) -> 0 | J36: =IF(ISERROR('SA10'!K10),0,('SA10'!K10)) -> 0.4584037757 | K36: =IF(ISERROR('SA10'!L10),0,('SA10'!L10)) -> 0.4862795047 | L36: =IF(ISERROR('SA10'!M10),0,('SA10'!M10)) -> 0.506051248
K39: `
A40: =A16 -> Long term investments committed
A41: Balance (Insert description; eg sinking fund)
C52: =SUM(C41:C51) -> 0 | D52: =SUM(D41:D51) -> 0 | E52: 0 | F52: 0 | G52: 0 | H52: 0 | I52: 0 | J52: 0 | K52: 0 | L52: 0
A53: =A17 -> Reserves to be backed by cash/investments
A54: ='SA3'!A168 -> Housing Development Fund | C54: ='SA3'!C168 -> 0 | D54: ='SA3'!D168 -> 95126533 | E54: ='SA3'!E168 -> 105694250 | F54: ='SA3'!F168 -> 0 | G54: ='SA3'!G168 -> 0 | H54: ='SA3'!H168 -> 0 | I54: ='SA3'!I168 -> 0 | J54: ='SA3'!P168 -> 0 | K54: ='SA3'!Q168 -> 0 | L54: ='SA3'!R168 -> 0
A55: ='SA3'!A169 -> Capital replacement
A56: ='SA3'!A170 -> Self-insurance
A57: Compensation for Occupational Injuries and Diseases
A58: Employee Benefit
A59: Non-current Provisions
A60: Valuation
A61: Investment in associate account
A62: Capitalisation
C67: =SUM(C54:C59)+SUM(C61:C65) -> 0 | D67: =SUM(D54:D59)+SUM(D61:D65) -> 95126533 | E67: 105694250 | F67: 0 | G67: 0 | H67: 0 | I67: 0 | J67: 0 | K67: 0 | L67: 0

Sheet A9-Asset
A1: =muni&" - "&Approve9 -> 0 - Table A9 Asset Management
A2: =desc -> Description | B2: =head27 -> Ref | C2: =head1b -> 2019/20 | D2: =head1A -> 2020/21 | E2: =Head1 -> 2021/22 | F2: =Head2 -> Current Year 2022/23 | I2: =Head3 -> 2023/24 Medium Term Revenue & Expenditure Framework
A3: R thousand | C3: =Head5 -> Audited Outcome | D3: =Head5 -> Audited Outcome | E3: =Head5 -> Audited Outcome | F3: =Head6 -> Original Budget | G3: =Head7 -> Adjusted Budget | H3: =Head8 -> Full Year Forecast | I3: =Head9 -> Budget Year 2023/24 | J3: =Head10 -> Budget Year +1 2024/25 | K3: =Head11 -> Budget Year +2 2025/26
A4: CAPITAL EXPENDITURE
A5: Total New Assets | B5: 1 | C5: =C15+C18+C19+C22+C25+C26+SUM(C29:C35)+C38 -> 21108134.1 | D5: =D15+D18+D19+D22+D25+D26+SUM(D29:D35)+D38 -> 407942774.9 | E5: 208015820.8 | F5: 195913021 | G5: 197484989.7 | H5: 197484989.7 | I5: 507939554 | J5: 176246098.2 | K5: 161493363.9
A6: Roads Infrastructure | C6: =SA34a!C7 -> 21108134.1 | D6: =SA34a!D7 -> 211423171.8 | E6: =SA34a!E7 -> 81647654.11 | F6: =SA34a!F7 -> 8500000 | G6: =SA34a!G7 -> 1124842.044 | H6: =SA34a!H7 -> 1124842.044 | I6: =SA34a!I7 -> 2250000 | J6: =SA34a!J7 -> 2250000 | K6: =SA34a!K7 -> 2250000
A7: Storm water Infrastructure | C7: =SA34a!C12 -> 0 | D7: =SA34a!D12 -> 0 | E7: =SA34a!E12 -> 0 | F7: =SA34a!F12 -> 0 | G7: =SA34a!G12 -> 0 | H7: =SA34a!H12 -> 0 | I7: =SA34a!I12 -> 0 | J7: =SA34a!J12 -> 0 | K7: =SA34a!K12 -> 0
A8: Electrical Infrastructure | C8: =SA34a!C16 -> 0 | D8: =SA34a!D16 -> 4653205.64 | E8: =SA34a!E16 -> 5502776.88 | F8: =SA34a!F16 -> 19015000 | G8: =SA34a!G16 -> 64484471 | H8: =SA34a!H16 -> 64484471 | I8: =SA34a!I16 -> 194000000 | J8: =SA34a!J16 -> 28967852 | K8: =SA34a!K16 -> 29632523.9
A9: Water Supply Infrastructure | C9: =SA34a!C26 -> 0 | D9: =SA34a!D26 -> 74239163.4 | E9: =SA34a!E26 -> 22506108.56 | F9: =SA34a!F26 -> 5000000 | G9: =SA34a!G26 -> 8365970 | H9: =SA34a!H26 -> 8365970 | I9: =SA34a!I26 -> 29860000 | J9: =SA34a!J26 -> 19780000 | K9: =SA34a!K26 -> 29360000
A10: Sanitation Infrastructure | C10: =SA34a!C37 -> 0 | D10: =SA34a!D37 -> 44898478.72 | E10: =SA34a!E37 -> 7231193.43 | F10: =SA34a!F37 -> 0 | G10: =SA34a!G37 -> 32836338.98 | H10: =SA34a!H37 -> 32836338.98 | I10: =SA34a!I37 -> 65477640 | J10: =SA34a!J37 -> 65339400 | K10: =SA34a!K37 -> 37182960
A11: Solid Waste Infrastructure | C11: =SA34a!C44 -> 0 | D11: =SA34a!D44 -> 0 | E11: =SA34a!E44 -> 0 | F11: =SA34a!F44 -> 10150000 | G11: =SA34a!G44 -> 0 | H11: =SA34a!H44 -> 0 | I11: =SA34a!I44 -> 0 | J11: =SA34a!J44 -> 0 | K11: =SA34a!K44 -> 0
A12: Rail Infrastructure | C12: =SA34a!C52 -> 0 | D12: =SA34a!D52 -> 0 | E12: =SA34a!E52 -> 0 | F12: =SA34a!F52 -> 0 | G12: =SA34a!G52 -> 0 | H12: =SA34a!H52 -> 0 | I12: =SA34a!I52 -> 0 | J12: =SA34a!J52 -> 0 | K12: =SA34a!K52 -> 0
A13: Coastal Infrastructure | C13: =SA34a!C62 -> 0 | D13: =SA34a!D62 -> 0 | E13: =SA34a!E62 -> 9690782.04 | F13: =SA34a!F62 -> 3000000 | G13: =SA34a!G62 -> 0 | H13: =SA34a!H62 -> 0 | I13: =SA34a!I62 -> 0 | J13: =SA34a!J62 -> 0 | K13: =SA34a!K62 -> 0
A14: Information and Communication Infrastructure | C14: =SA34a!C68 -> 0 | D14: =SA34a!D68 -> 0 | E14: =SA34a!E68 -> 0 | F14: =SA34a!F68 -> 0 | G14: =SA34a!G68 -> 0 | H14: =SA34a!H68 -> 0 | I14: =SA34a!I68 -> 0 | J14: =SA34a!J68 -> 0 | K14: =SA34a!K68 -> 0
A15: Infrastructure | C15: =SUM(C6:C14) -> 21108134.1 | D15: =SUM(D6:D14) -> 335214019.5 | E15: 126578515 | F15: 45665000 | G15: 106811622 | H15: 106811622 | I15: 291587640 | J15: 116337252 | K15: 98425483.9
A16: Community Facilities | C16: =SA34a!C75 -> 0 | D16: =SA34a!D75 -> 10563092.96 | E16: =SA34a!E75 -> 8485737.62 | F16: =SA34a!F75 -> 20726050 | G16: =SA34a!G75 -> 26418509 | H16: =SA34a!H75 -> 26418509 | I16: =SA34a!I75 -> 25607499.05 | J16: =SA34a!J75 -> 13770098.2 | K16: =SA34a!K75 -> 19929131.8
A17: Sport and Recreation Facilities | C17: =SA34a!C98 -> 0 | D17: =SA34a!D98 -> 2595862.83 | E17: =SA34a!E98 -> 573882.38 | F17: =SA34a!F98 -> 0 | G17: =SA34a!G98 -> 511773 | H17: =SA34a!H98 -> 511773 | I17: =SA34a!I98 -> 0 | J17: =SA34a!J98 -> 0 | K17: =SA34a!K98 -> 0
A18: Community Assets | C18: =SUM(C16:C17) -> 0 | D18: =SUM(D16:D17) -> 13158955.79 | E18: 9059620 | F18: 20726050 | G18: 26930282 | H18: 26930282 | I18: 25607499.05 | J18: 13770098.2 | K18: 19929131.8
A19: Heritage Assets | C19: =SA34a!C103 -> 0 | D19: =SA34a!D103 -> 0 | E19: =SA34a!E103 -> 0 | F19: =SA34a!F103 -> 0 | G19: =SA34a!G103 -> 0 | H19: =SA34a!H103 -> 0 | I19: =SA34a!I103 -> 0 | J19: =SA34a!J103 -> 0 | K19: =SA34a!K103 -> 0
A20: Revenue Generating | C20: =SA34a!C111 -> 0 | D20: =SA34a!D111 -> 0 | E20: =SA34a!E111 -> 0 | F20: =SA34a!F111 -> 0 | G20: =SA34a!G111 -> 0 | H20: =SA34a!H111 -> 0 | I20: =SA34a!I111 -> 0 | J20: =SA34a!J111 -> 0 | K20: =SA34a!K111 -> 0
A21: Non-revenue Generating | C21: =SA34a!C114 -> 0 | D21: =SA34a!D114 -> 0 | E21: =SA34a!E114 -> 0 | F21: =SA34a!F114 -> 0 | G21: =SA34a!G114 -> 0 | H21: =SA34a!H114 -> 0 | I21: =SA34a!I114 -> 0 | J21: =SA34a!J114 -> 0 | K21: =SA34a!K114 -> 0
A22: Investment properties | C22: =SUM(C20:C21) -> 0 | D22: =SUM(D20:D21) -> 0 | E22: 0 | F22: 0 | G22: 0 | H22: 0 | I22: 0 | J22: 0 | K22: 0
A23: Operational Buildings | C23: =SA34a!C119 -> 0 | D23: =SA34a!D119 -> 0 | E23: =SA34a!E119 -> 295455.06 | F23: =SA34a!F119 -> 5075000 | G23: =SA34a!G119 -> 6375000 | H23: =SA34a!H119 -> 6375000 | I23: =SA34a!I119 -> 10000000 | J23: =SA34a!J119 -> 3138748 | K23: =SA34a!K119 -> 0
A24: Housing | C24: =SA34a!C131 -> 0 | D24: =SA34a!D131 -> 59046781.33 | E24: =SA34a!E131 -> 11265797.46 | F24: =SA34a!F131 -> 0 | G24: =SA34a!G131 -> 5591441.56 | H24: =SA34a!H131 -> 5591441.56 | I24: =SA34a!I131 -> 135545414.9 | J24: =SA34a!J131 -> 3000000 | K24: =SA34a!K131 -> 3138748.2
A25: Other Assets | C25: =SUM(C23:C24) -> 0 | D25: =SUM(D23:D24) -> 59046781.33 | E25: 11561252.52 | F25: 5075000 | G25: 11966441.56 | H25: 11966441.56 | I25: 145545414.9 | J25: 6138748 | K25: 3138748.2
A26: Biological or Cultivated Assets | C26: =SA34a!C136 -> 0 | D26: =SA34a!D136 -> 0 | E26: =SA34a!E136 -> 0 | F26: =SA34a!F136 -> 0 | G26: =SA34a!G136 -> 9072010 | H26: =SA34a!H136 -> 9072010 | I26: =SA34a!I136 -> 0 | J26: =SA34a!J136 -> 0 | K26: =SA34a!K136 -> 0
A27: Servitudes | C27: =SA34a!C140 -> 0 | D27: =SA34a!D140 -> 0 | E27: =SA34a!E140 -> 0 | F27: =SA34a!F140 -> 0 | G27: =SA34a!G140 -> 0 | H27: =SA34a!H140 -> 0 | I27: =SA34a!I140 -> 30000000 | J27: =SA34a!J140 -> 30000000 | K27: =SA34a!K140 -> 30000000
A28: Licences and Rights | C28: =SA34a!C141 -> 0 | D28: =SA34a!D141 -> 523018.19 | E28: =SA34a!E141 -> 1040908.7 | F28: =SA34a!F141 -> 3750000 | G28: =SA34a!G141 -> 500000 | H28: =SA34a!H141 -> 500000 | I28: =SA34a!I141 -> 0 | J28: =SA34a!J141 -> 0 | K28: =SA34a!K141 -> 0
A29: Intangible Assets | C29: =SUM(C27:C28) -> 0 | D29: =SUM(D27:D28) -> 523018.19 | E29: 1040908.7 | F29: 3750000 | G29: 500000 | H29: 500000 | I29: 30000000 | J29: 30000000 | K29: 30000000
A30: Computer Equipment | C30: =SA34a!C149 -> 0 | D30: =SA34a!D149 -> 0 | E30: =SA34a!E149 -> 6492815.35 | F30: =SA34a!F149 -> 5669000 | G30: =SA34a!G149 -> 0 | H30: =SA34a!H149 -> 0 | I30: =SA34a!I149 -> 0 | J30: =SA34a!J149 -> 0 | K30: =SA34a!K149 -> 0
A31: Furniture and Office Equipment | C31: =SA34a!C152 -> 0 | D31: =SA34a!D152 -> 0 | E31: =SA34a!E152 -> 2333929.85 | F31: =SA34a!F152 -> 10556346 | G31: =SA34a!G152 -> 9857321 | H31: =SA34a!H152 -> 9857321 | I31: =SA34a!I152 -> 15000000 | J31: =SA34a!J152 -> 10000000 | K31: =SA34a!K152 -> 10000000
A32: Machinery and Equipment | C32: =SA34a!C155 -> 0 | D32: =SA34a!D155 -> 0 | E32: =SA34a!E155 -> 41032224.44 | F32: =SA34a!F155 -> 62500000 | G32: =SA34a!G155 -> 20798971.23 | H32: =SA34a!H155 -> 20798971.23 | I32: =SA34a!I155 -> 199000 | J32: =SA34a!J155 -> 0 | K32: =SA34a!K155 -> 0
A33: Transport Assets | C33: =SA34a!C158 -> 0 | D33: =SA34a!D158 -> 0 | E33: =SA34a!E158 -> 9916554.94 | F33: =SA34a!F158 -> 41971625 | G33: =SA34a!G158 -> 11548341.9 | H33: =SA34a!H158 -> 11548341.9 | I33: =SA34a!I158 -> 0 | J33: =SA34a!J158 -> 0 | K33: =SA34a!K158 -> 0
A34: Land | C34: =SA34a!C161 -> 0 | D34: =SA34a!D161 -> 0 | E34: =SA34a!E161 -> 0 | F34: =SA34a!F161 -> 0 | G34: =SA34a!G161 -> 0 | H34: =SA34a!H161 -> 0 | I34: =SA34a!I161 -> 0 | J34: =SA34a!J161 -> 0 | K34: =SA34a!K161 -> 0
A35: Zoo's, Marine and Non-biological Animals | C35: =SA34a!C164 -> 0 | D35: =SA34a!D164 -> 0 | E35: =SA34a!E164 -> 0 | F35: =SA34a!F164 -> 0 | G35: =SA34a!G164 -> 0 | H35: =SA34a!H164 -> 0 | I35: =SA34a!I164 -> 0 | J35: =SA34a!J164 -> 0 | K35: =SA34a!K164 -> 0
A36: Mature | C36: =SA34a!C168 -> 0 | D36: =SA34a!D168 -> 0 | E36: =SA34a!E168 -> 0 | F36: =SA34a!F168 -> 0 | G36: =SA34a!G168 -> 0 | H36: =SA34a!H168 -> 0 | I36: =SA34a!I168 -> 0 | J36: =SA34a!J168 -> 0 | K36: =SA34a!K168 -> 0
A37: Immature | C37: =SA34a!C171 -> 0 | D37: =SA34a!D171 -> 0 | E37: =SA34a!E171 -> 0 | F37: =SA34a!F171 -> 0 | G37: =SA34a!G171 -> 0 | H37: =SA34a!H171 -> 0 | I37: =SA34a!I171 -> 0 | J37: =SA34a!J171 -> 0 | K37: =SA34a!K171 -> 0
A38: Living Resources | C38: =SUM(C36:C37) -> 0 | D38: 0 | E38: 0 | F38: 0 | G38: 0 | H38: 0 | I38: 0 | J38: 0 | K38: 0
A40: Total Renewal of Existing Assets | B40: 2 | C40: =C50+C53+C54+C57+C60+C61+SUM(C64:C70)+C73 -> 203992313.9 | D40: =D50+D53+D54+D57+D60+D61+SUM(D64:D70)+D73 -> 72703927.45 | E40: 208114466 | F40: 151850735 | G40: 174579.05 | H40: 174579.05 | I40: 55356000 | J40: 60750000 | K40: 70750000
A41: Roads Infrastructure | C41: =SA34b!C7 -> 0 | D41: =SA34b!D7 -> 50403832.5 | E41: =SA34b!E7 -> 118545061.6 | F41: =SA34b!F7 -> 38000000 | G41: =SA34b!G7 -> 0 | H41: =SA34b!H7 -> 0 | I41: =SA34b!I7 -> 33150000 | J41: =SA34b!J7 -> 45750000 | K41: =SA34b!K7 -> 54750000
A42: Storm water Infrastructure | C42: =SA34b!C12 -> 0 | D42: =SA34b!D12 -> 0 | E42: =SA34b!E12 -> 0 | F42: =SA34b!F12 -> 0 | G42: =SA34b!G12 -> 0 | H42: =SA34b!H12 -> 0 | I42: =SA34b!I12 -> 0 | J42: =SA34b!J12 -> 0 | K42: =SA34b!K12 -> 0
A43: Electrical Infrastructure | C43: =SA34b!C16 -> 0 | D43: =SA34b!D16 -> 0 | E43: =SA34b!E16 -> 1243673.75 | F43: =SA34b!F16 -> 0 | G43: =SA34b!G16 -> 0 | H43: =SA34b!H16 -> 0 | I43: =SA34b!I16 -> 0 | J43: =SA34b!J16 -> 0 | K43: =SA34b!K16 -> 0
A44: Water Supply Infrastructure | C44: =SA34b!C26 -> 0 | D44: =SA34b!D26 -> 0 | E44: =SA34b!E26 -> 12311306.36 | F44: =SA34b!F26 -> 62426895 | G44: =SA34b!G26 -> 0 | H44: =SA34b!H26 -> 0 | I44: =SA34b!I26 -> 0 | J44: =SA34b!J26 -> 0 | K44: =SA34b!K26 -> 0
A45: Sanitation Infrastructure | C45: =SA34b!C37 -> 0 | D45: =SA34b!D37 -> 15866227.89 | E45: =SA34b!E37 -> 67834392.63 | F45: =SA34b!F37 -> 46000000 | G45: =SA34b!G37 -> 0 | H45: =SA34b!H37 -> 0 | I45: =SA34b!I37 -> 0 | J45: =SA34b!J37 -> 0 | K45: =SA34b!K37 -> 0
A46: Solid Waste Infrastructure | C46: =SA34b!C44 -> 0 | D46: =SA34b!D44 -> 0 | E46: =SA34b!E44 -> 0 | F46: =SA34b!F44 -> 0 | G46: =SA34b!G44 -> 0 | H46: =SA34b!H44 -> 0 | I46: =SA34b!I44 -> 0 | J46: =SA34b!J44 -> 0 | K46: =SA34b!K44 -> 0
A47: Rail Infrastructure | C47: =SA34b!C52 -> 0 | D47: =SA34b!D52 -> 0 | E47: =SA34b!E52 -> 0 | F47: =SA34b!F52 -> 0 | G47: =SA34b!G52 -> 0 | H47: =SA34b!H52 -> 0 | I47: =SA34b!I52 -> 0 | J47: =SA34b!J52 -> 0 | K47: =SA34b!K52 -> 0
A48: Coastal Infrastructure | C48: =SA34b!C62 -> 0 | D48: =SA34b!D62 -> 0 | E48: =SA34b!E62 -> 0 | F48: =SA34b!F62 -> 0 | G48: =SA34b!G62 -> 0 | H48: =SA34b!H62 -> 0 | I48: =SA34b!I62 -> 14206000 | J48: =SA34b!J62 -> 7500000 | K48: =SA34b!K62 -> 8000000
A49: Information and Communication Infrastructure | C49: =SA34b!C68 -> 0 | D49: =SA34b!D68 -> 0 | E49: =SA34b!E68 -> 0 | F49: =SA34b!F68 -> 0 | G49: =SA34b!G68 -> 0 | H49: =SA34b!H68 -> 0 | I49: =SA34b!I68 -> 0 | J49: =SA34b!J68 -> 0 | K49: =SA34b!K68 -> 0
A50: Infrastructure | C50: =SUM(C41:C49) -> 0 | D50: =SUM(D41:D49) -> 66270060.39 | E50: 199934434.3 | F50: 146426895 | G50: 0 | H50: 0 | I50: 47356000 | J50: 53250000 | K50: 62750000
A51: Community Facilities | C51: =SA34b!C75 -> 0 | D51: =SA34b!D75 -> 1178169.95 | E51: =SA34b!E75 -> 740615.92 | F51: =SA34b!F75 -> 0 | G51: =SA34b!G75 -> 174579.05 | H51: =SA34b!H75 -> 174579.05 | I51: =SA34b!I75 -> 8000000 | J51: =SA34b!J75 -> 7500000 | K51: =SA34b!K75 -> 8000000
A52: Sport and Recreation Facilities | C52: =SA34b!C98 -> 0 | D52: =SA34b!D98 -> 4067886.72 | E52: =SA34b!E98 -> 140024.98 | F52: =SA34b!F98 -> 0 | G52: =SA34b!G98 -> 0 | H52: =SA34b!H98 -> 0 | I52: =SA34b!I98 -> 0 | J52: =SA34b!J98 -> 0 | K52: =SA34b!K98 -> 0
A53: Community Assets | C53: =SUM(C51:C52) -> 0 | D53: =SUM(D51:D52) -> 5246056.67 | E53: 880640.9 | F53: 0 | G53: 174579.05 | H53: 174579.05 | I53: 8000000 | J53: 7500000 | K53: 8000000
A54: Heritage Assets | C54: =SA34b!C103 -> 208367676 | D54: =SA34b!D103 -> 0 | E54: =SA34b!E103 -> 0 | F54: =SA34b!F103 -> 0 | G54: =SA34b!G103 -> 0 | H54: =SA34b!H103 -> 0 | I54: =SA34b!I103 -> 0 | J54: =SA34b!J103 -> 0 | K54: =SA34b!K103 -> 0
A55: Revenue Generating | C55: =SA34b!C111 -> 0 | D55: =SA34b!D111 -> 0 | E55: =SA34b!E111 -> 0 | F55: =SA34b!F111 -> 0 | G55: =SA34b!G111 -> 0 | H55: =SA34b!H111 -> 0 | I55: =SA34b!I111 -> 0 | J55: =SA34b!J111 -> 0 | K55: =SA34b!K111 -> 0
A56: Non-revenue Generating | C56: =SA34b!C114 -> 0 | D56: =SA34b!D114 -> 0 | E56: =SA34b!E114 -> 0 | F56: =SA34b!F114 -> 0 | G56: =SA34b!G114 -> 0 | H56: =SA34b!H114 -> 0 | I56: =SA34b!I114 -> 0 | J56: =SA34b!J114 -> 0 | K56: =SA34b!K114 -> 0
A57: Investment properties | C57: =SUM(C55:C56) -> 0 | D57: =SUM(D55:D56) -> 0 | E57: 0 | F57: 0 | G57: 0 | H57: 0 | I57: 0 | J57: 0 | K57: 0
A58: Operational Buildings | C58: =SA34b!C119 -> 0 | D58: =SA34b!D119 -> 1187810.39 | E58: =SA34b!E119 -> 4337398.38 | F58: =SA34b!F119 -> 515000 | G58: =SA34b!G119 -> 0 | H58: =SA34b!H119 -> 0 | I58: =SA34b!I119 -> 0 | J58: =SA34b!J119 -> 0 | K58: =SA34b!K119 -> 0
A59: Housing | C59: =SA34b!C131 -> 0 | D59: =SA34b!D131 -> 0 | E59: =SA34b!E131 -> 0 | F59: =SA34b!F131 -> 4908840 | G59: =SA34b!G131 -> 0 | H59: =SA34b!H131 -> 0 | I59: =SA34b!I131 -> 0 | J59: =SA34b!J131 -> 0 | K59: =SA34b!K131 -> 0
A60: Other Assets | C60: =SUM(C58:C59) -> 0 | D60: =SUM(D58:D59) -> 1187810.39 | E60: 4337398.38 | F60: 5423840 | G60: 0 | H60: 0 | I60: 0 | J60: 0 | K60: 0
A61: Biological or Cultivated Assets | C61: =SA34b!C136 -> 0 | D61: =SA34b!D136 -> 0 | E61: =SA34b!E136 -> 0 | F61: =SA34b!F136 -> 0 | G61: =SA34b!G136 -> 0 | H61: =SA34b!H136 -> 0 | I61: =SA34b!I136 -> 0 | J61: =SA34b!J136 -> 0 | K61: =SA34b!K136 -> 0
A62: Servitudes | C62: =SA34b!C140 -> 0 | D62: =SA34b!D140 -> 0 | E62: =SA34b!E140 -> 0 | F62: =SA34b!F140 -> 0 | G62: =SA34b!G140 -> 0 | H62: =SA34b!H140 -> 0 | I62: =SA34b!I140 -> 0 | J62: =SA34b!J140 -> 0 | K62: =SA34b!K140 -> 0
A63: Licences and Rights | C63: =SA34b!C141 -> 0 | D63: =SA34b!D141 -> 0 | E63: =SA34b!E141 -> 2961992.34 | F63: =SA34b!F141 -> 0 | G63: =SA34b!G141 -> 0 | H63: =SA34b!H141 -> 0 | I63: =SA34b!I141 -> 0 | J63: =SA34b!J141 -> 0 | K63: =SA34b!K141 -> 0
A64: Intangible Assets | C64: =SUM(C62:C63) -> 0 | D64: =SUM(D62:D63) -> 0 | E64: 2961992.34 | F64: 0 | G64: 0 | H64: 0 | I64: 0 | J64: 0 | K64: 0
A65: Computer Equipment | C65: =SA34b!C149 -> 0 | D65: =SA34b!D149 -> 0 | E65: =SA34b!E149 -> 0 | F65: =SA34b!F149 -> 0 | G65: =SA34b!G149 -> 0 | H65: =SA34b!H149 -> 0 | I65: =SA34b!I149 -> 0 | J65: =SA34b!J149 -> 0 | K65: =SA34b!K149 -> 0
A66: Furniture and Office Equipment | C66: =SA34b!C152 -> 0 | D66: =SA34b!D152 -> 0 | E66: =SA34b!E152 -> 0 | F66: =SA34b!F152 -> 0 | G66: =SA34b!G152 -> 0 | H66: =SA34b!H152 -> 0 | I66: =SA34b!I152 -> 0 | J66: =SA34b!J152 -> 0 | K66: =SA34b!K152 -> 0
A67: Machinery and Equipment | C67: =SA34b!C155 -> 0 | D67: =SA34b!D155 -> 0 | E67: =SA34b!E155 -> 0 | F67: =SA34b!F155 -> 0 | G67: =SA34b!G155 -> 0 | H67: =SA34b!H155 -> 0 | I67: =SA34b!I155 -> 0 | J67: =SA34b!J155 -> 0 | K67: =SA34b!K155 -> 0
A68: Transport Assets | C68: =SA34b!C158 -> -4375362.12 | D68: =SA34b!D158 -> 0 | E68: =SA34b!E158 -> 0 | F68: =SA34b!F158 -> 0 | G68: =SA34b!G158 -> 0 | H68: =SA34b!H158 -> 0 | I68: =SA34b!I158 -> 0 | J68: =SA34b!J158 -> 0 | K68: =SA34b!K158 -> 0
A69: Land | C69: =SA34b!C161 -> 0 | D69: =SA34b!D161 -> 0 | E69: =SA34b!E161 -> 0 | F69: =SA34b!F161 -> 0 | G69: =SA34b!G161 -> 0 | H69: =SA34b!H161 -> 0 | I69: =SA34b!I161 -> 0 | J69: =SA34b!J161 -> 0 | K69: =SA34b!K161 -> 0
A70: Zoo's, Marine and Non-biological Animals | C70: =SA34b!C164 -> 0 | D70: =SA34b!D164 -> 0 | E70: =SA34b!E164 -> 0 | F70: =SA34b!F164 -> 0 | G70: =SA34b!G164 -> 0 | H70: =SA34b!H164 -> 0 | I70: =SA34b!I164 -> 0 | J70: =SA34b!J164 -> 0 | K70: =SA34b!K164 -> 0
A71: Mature | C71: =SA34b!C168 -> 0 | D71: =SA34b!D168 -> 0 | E71: =SA34b!E168 -> 0 | F71: =SA34b!F168 -> 0 | G71: =SA34b!G168 -> 0 | H71: =SA34b!H168 -> 0 | I71: =SA34b!I168 -> 0 | J71: =SA34b!J168 -> 0 | K71: =SA34b!K168 -> 0
A72: Immature | C72: =SA34b!C171 -> 0 | D72: =SA34b!D171 -> 0 | E72: =SA34b!E171 -> 0 | F72: =SA34b!F171 -> 0 | G72: =SA34b!G171 -> 0 | H72: =SA34b!H171 -> 0 | I72: =SA34b!I171 -> 0 | J72: =SA34b!J171 -> 0 | K72: =SA34b!K171 -> 0
A73: Living Resources | C73: =SUM(C71:C72) -> 0 | D73: 0 | E73: 0 | F73: 0 | G73: 0 | H73: 0 | I73: 0 | J73: 0 | K73: 0
A75: Total Upgrading of Existing Assets | B75: 6 | C75: =C85+C88+C89+C92+C95+C96+SUM(C99:C105)+C108 -> 254754774.2 | D75: =D85+D88+D89+D92+D95+D96+SUM(D99:D105)+D108 -> 205284567.8 | E75: 105306954.7 | F75: 488154708.9 | G75: 329325425.3 | H75: 329325425.3 | I75: 205464500 | J75: 344313245 | K75: 215638196.1 | L75: =I75+I40 -> 260820500
A76: Roads Infrastructure | C76: =SA34e!C7 -> 0 | D76: =SA34e!D7 -> 59061068.89 | E76: =SA34e!E7 -> 29784476.15 | F76: =SA34e!F7 -> 63118110 | G76: =SA34e!G7 -> 156664066.7 | H76: =SA34e!H7 -> 156664066.7 | I76: =SA34e!I7 -> 38400000 | J76: =SA34e!J7 -> 51091846 | K76: =SA34e!K7 -> 53492336.1
A77: Storm water Infrastructure | C77: =SA34e!C12 -> 0 | D77: =SA34e!D12 -> 0 | E77: =SA34e!E12 -> 0 | F77: =SA34e!F12 -> 0 | G77: =SA34e!G12 -> 0 | H77: =SA34e!H12 -> 0 | I77: =SA34e!I12 -> 0 | J77: =SA34e!J12 -> 0 | K77: =SA34e!K12 -> 0
A78: Electrical Infrastructure | C78: =SA34e!C16 -> 0 | D78: =SA34e!D16 -> 26990126.44 | E78: =SA34e!E16 -> 34905519.9 | F78: =SA34e!F16 -> 134414050 | G78: =SA34e!G16 -> 0 | H78: =SA34e!H16 -> 0 | I78: =SA34e!I16 -> 0 | J78: =SA34e!J16 -> 0 | K78: =SA34e!K16 -> 0
A79: Water Supply Infrastructure | C79: =SA34e!C26 -> 0 | D79: =SA34e!D26 -> 15228935.02 | E79: =SA34e!E26 -> 0 | F79: =SA34e!F26 -> 109803325 | G79: =SA34e!G26 -> 74785305 | H79: =SA34e!H26 -> 74785305 | I79: =SA34e!I26 -> 106064500 | J79: =SA34e!J26 -> 213383235 | K79: =SA34e!K26 -> 77739423
A80: Sanitation Infrastructure | C80: =SA34e!C37 -> 0 | D80: =SA34e!D37 -> 0 | E80: =SA34e!E37 -> 19787951.88 | F80: =SA34e!F37 -> 64550195 | G80: =SA34e!G37 -> 51439802.58 | H80: =SA34e!H37 -> 51439802.58 | I80: =SA34e!I37 -> 40300000 | J80: =SA34e!J37 -> 59838164 | K80: =SA34e!K37 -> 64406437
A81: Solid Waste Infrastructure | C81: =SA34e!C44 -> 0 | D81: =SA34e!D44 -> 1933511.82 | E81: =SA34e!E44 -> 3302474.25 | F81: =SA34e!F44 -> 0 | G81: =SA34e!G44 -> 7550000 | H81: =SA34e!H44 -> 7550000 | I81: =SA34e!I44 -> 5000000 | J81: =SA34e!J44 -> 5000000 | K81: =SA34e!K44 -> 5000000
A82: Rail Infrastructure | C82: =SA34e!C52 -> 0 | D82: =SA34e!D52 -> 0 | E82: =SA34e!E52 -> 0 | F82: =SA34e!F52 -> 0 | G82: =SA34e!G52 -> 0 | H82: =SA34e!H52 -> 0 | I82: =SA34e!I52 -> 0 | J82: =SA34e!J52 -> 0 | K82: =SA34e!K52 -> 0
A83: Coastal Infrastructure | C83: =SA34e!C62 -> 0 | D83: =SA34e!D62 -> 0 | E83: =SA34e!E62 -> 0 | F83: =SA34e!F62 -> 0 | G83: =SA34e!G62 -> 0 | H83: =SA34e!H62 -> 0 | I83: =SA34e!I62 -> 0 | J83: =SA34e!J62 -> 0 | K83: =SA34e!K62 -> 0
A84: Information and Communication Infrastructure | C84: =SA34e!C68 -> 0 | D84: =SA34e!D68 -> 0 | E84: =SA34e!E68 -> 0 | F84: =SA34e!F68 -> 0 | G84: =SA34e!G68 -> 0 | H84: =SA34e!H68 -> 0 | I84: =SA34e!I68 -> 0 | J84: =SA34e!J68 -> 0 | K84: =SA34e!K68 -> 0
A85: Infrastructure | C85: =SUM(C76:C84) -> 0 | D85: 103213642.2 | E85: 87780422.18 | F85: 371885680 | G85: 290439174.3 | H85: 290439174.3 | I85: 189764500 | J85: 329313245 | K85: 200638196.1
A86: Community Facilities | C86: =SA34e!C75 -> 0 | D86: =SA34e!D75 -> 102070925.6 | E86: =SA34e!E75 -> 17526532.49 | F86: =SA34e!F75 -> 7600000 | G86: =SA34e!G75 -> 0 | H86: =SA34e!H75 -> 0 | I86: =SA34e!I75 -> 0 | J86: =SA34e!J75 -> 0 | K86: =SA34e!K75 -> 0
A87: Sport and Recreation Facilities | C87: =SA34e!C98 -> 0 | D87: =SA34e!D98 -> 0 | E87: =SA34e!E98 -> 0 | F87: =SA34e!F98 -> 0 | G87: =SA34e!G98 -> 0 | H87: =SA34e!H98 -> 0 | I87: =SA34e!I98 -> 0 | J87: =SA34e!J98 -> 0 | K87: =SA34e!K98 -> 0
A88: Community Assets | C88: =SUM(C86:C87) -> 0 | D88: 102070925.6 | E88: 17526532.49 | F88: 7600000 | G88: 0 | H88: 0 | I88: 0 | J88: 0 | K88: 0
A89: Heritage Assets | C89: =SA34e!C103 -> 201733761.1 | D89: =SA34e!D103 -> 0 | E89: =SA34e!E103 -> 0 | F89: =SA34e!F103 -> 0 | G89: =SA34e!G103 -> 0 | H89: =SA34e!H103 -> 0 | I89: =SA34e!I103 -> 0 | J89: =SA34e!J103 -> 0 | K89: =SA34e!K103 -> 0
A90: Revenue Generating | C90: =SA34e!C111 -> 0 | D90: =SA34e!D111 -> 0 | E90: =SA34e!E111 -> 0 | F90: =SA34e!F111 -> 0 | G90: =SA34e!G111 -> 0 | H90: =SA34e!H111 -> 0 | I90: =SA34e!I111 -> 0 | J90: =SA34e!J111 -> 0 | K90: =SA34e!K111 -> 0
A91: Non-revenue Generating | C91: =SA34e!C114 -> 0 | D91: =SA34e!D114 -> 0 | E91: =SA34e!E114 -> 0 | F91: =SA34e!F114 -> 0 | G91: =SA34e!G114 -> 0 | H91: =SA34e!H114 -> 0 | I91: =SA34e!I114 -> 0 | J91: =SA34e!J114 -> 0 | K91: =SA34e!K114 -> 0
A92: Investment properties | C92: =SUM(C90:C91) -> 0 | D92: 0 | E92: 0 | F92: 0 | G92: 0 | H92: 0 | I92: 0 | J92: 0 | K92: 0
A93: Operational Buildings | C93: =SA34e!C119 -> 0 | D93: =SA34e!D119 -> 0 | E93: =SA34e!E119 -> 0 | F93: =SA34e!F119 -> 200000 | G93: =SA34e!G119 -> 38336251 | H93: =SA34e!H119 -> 38336251 | I93: =SA34e!I119 -> 10700000 | J93: =SA34e!J119 -> 10000000 | K93: =SA34e!K119 -> 10000000
A94: Housing | C94: =SA34e!C131 -> 0 | D94: =SA34e!D131 -> 0 | E94: =SA34e!E131 -> 0 | F94: =SA34e!F131 -> 93797018.87 | G94: =SA34e!G131 -> 0 | H94: =SA34e!H131 -> 0 | I94: =SA34e!I131 -> 0 | J94: =SA34e!J131 -> 0 | K94: =SA34e!K131 -> 0
A95: Other Assets | C95: =SUM(C93:C94) -> 0 | D95: 0 | E95: 0 | F95: 93997018.87 | G95: 38336251 | H95: 38336251 | I95: 10700000 | J95: 10000000 | K95: 10000000
A96: Biological or Cultivated Assets | C96: =SA34e!C136 -> 0 | D96: =SA34e!D136 -> 0 | E96: =SA34e!E136 -> 0 | F96: =SA34e!F136 -> 0 | G96: =SA34e!G136 -> 0 | H96: =SA34e!H136 -> 0 | I96: =SA34e!I136 -> 0 | J96: =SA34e!J136 -> 0 | K96: =SA34e!K136 -> 0
A97: Servitudes | C97: =SA34e!C140 -> 0 | D97: =SA34e!D140 -> 0 | E97: =SA34e!E140 -> 0 | F97: =SA34e!F140 -> 0 | G97: =SA34e!G140 -> 0 | H97: =SA34e!H140 -> 0 | I97: =SA34e!I140 -> 0 | J97: =SA34e!J140 -> 0 | K97: =SA34e!K140 -> 0
A98: Licences and Rights | C98: =SA34e!C141 -> 0 | D98: =SA34e!D141 -> 0 | E98: =SA34e!E141 -> 0 | F98: =SA34e!F141 -> 14672010 | G98: =SA34e!G141 -> 0 | H98: =SA34e!H141 -> 0 | I98: =SA34e!I141 -> 0 | J98: =SA34e!J141 -> 0 | K98: =SA34e!K141 -> 0
A99: Intangible Assets | C99: =SUM(C97:C98) -> 0 | D99: 0 | E99: 0 | F99: 14672010 | G99: 0 | H99: 0 | I99: 0 | J99: 0 | K99: 0
A100: Computer Equipment | C100: =SA34e!C149 -> 0 | D100: =SA34e!D149 -> 0 | E100: =SA34e!E149 -> 0 | F100: =SA34e!F149 -> 0 | G100: =SA34e!G149 -> 0 | H100: =SA34e!H149 -> 0 | I100: =SA34e!I149 -> 0 | J100: =SA34e!J149 -> 0 | K100: =SA34e!K149 -> 0
A101: Furniture and Office Equipment | C101: =SA34e!C152 -> 0 | D101: =SA34e!D152 -> 0 | E101: =SA34e!E152 -> 0 | F101: =SA34e!F152 -> 0 | G101: =SA34e!G152 -> 50000 | H101: =SA34e!H152 -> 50000 | I101: =SA34e!I152 -> 0 | J101: =SA34e!J152 -> 0 | K101: =SA34e!K152 -> 0
A102: Machinery and Equipment | C102: =SA34e!C155 -> 15562.55 | D102: =SA34e!D155 -> 0 | E102: =SA34e!E155 -> 0 | F102: =SA34e!F155 -> 0 | G102: =SA34e!G155 -> 500000 | H102: =SA34e!H155 -> 500000 | I102: =SA34e!I155 -> 0 | J102: =SA34e!J155 -> 0 | K102: =SA34e!K155 -> 0
A103: Transport Assets | C103: =SA34e!C158 -> -6604571.5 | D103: =SA34e!D158 -> 0 | E103: =SA34e!E158 -> 0 | F103: =SA34e!F158 -> 0 | G103: =SA34e!G158 -> 0 | H103: =SA34e!H158 -> 0 | I103: =SA34e!I158 -> 5000000 | J103: =SA34e!J158 -> 5000000 | K103: =SA34e!K158 -> 5000000
A104: Land | C104: =SA34e!C161 -> 0 | D104: =SA34e!D161 -> 0 | E104: =SA34e!E161 -> 0 | F104: =SA34e!F161 -> 0 | G104: =SA34e!G161 -> 0 | H104: =SA34e!H161 -> 0 | I104: =SA34e!I161 -> 0 | J104: =SA34e!J161 -> 0 | K104: =SA34e!K161 -> 0
A105: Zoo's, Marine and Non-biological Animals | C105: =SA34e!C164 -> 59610022.05 | D105: =SA34e!D164 -> 0 | E105: =SA34e!E164 -> 0 | F105: =SA34e!F164 -> 0 | G105: =SA34e!G164 -> 0 | H105: =SA34e!H164 -> 0 | I105: =SA34e!I164 -> 0 | J105: =SA34e!J164 -> 0 | K105: =SA34e!K164 -> 0
A106: Mature | C106: =SA34e!C168 -> 0 | D106: =SA34e!D168 -> 0 | E106: =SA34e!E168 -> 0 | F106: =SA34e!F168 -> 0 | G106: =SA34e!G168 -> 0 | H106: =SA34e!H168 -> 0 | I106: =SA34e!I168 -> 0 | J106: =SA34e!J168 -> 0 | K106: =SA34e!K168 -> 0
A107: Immature | C107: =SA34b!C171 -> 0 | D107: =SA34b!D171 -> 0 | E107: =SA34b!E171 -> 0 | F107: =SA34b!F171 -> 0 | G107: =SA34b!G171 -> 0 | H107: =SA34b!H171 -> 0 | I107: =SA34b!I171 -> 0 | J107: =SA34b!J171 -> 0 | K107: =SA34b!K171 -> 0
A108: Living Resources | C108: =SUM(C106:C107) -> 0 | D108: 0 | E108: 0 | F108: 0 | G108: 0 | H108: 0 | I108: 0 | J108: 0 | K108: 0
A110: Total Capital Expenditure | B110: 4 | C110: =+C5+C40+C75 -> 479855222.2 | D110: 685931270.1 | E110: 521437241.5 | F110: 835918464.9 | G110: 526984994 | H110: 526984994 | I110: 768760054 | J110: 581309343.2 | K110: 447881560
A111: Roads Infrastructure | C111: =+C6+C41+C76 -> 21108134.1 | D111: 320888073.2 | E111: 229977191.9 | F111: 109618110 | G111: 157788908.7 | H111: 157788908.7 | I111: 73800000 | J111: 99091846 | K111: 110492336.1
A112: Storm water Infrastructure | C112: =+C7+C42+C77 -> 0 | D112: 0 | E112: 0 | F112: 0 | G112: 0 | H112: 0 | I112: 0 | J112: 0 | K112: 0
A113: Electrical Infrastructure | C113: =+C8+C43+C78 -> 0 | D113: 31643332.08 | E113: 41651970.53 | F113: 153429050 | G113: 64484471 | H113: 64484471 | I113: 194000000 | J113: 28967852 | K113: 29632523.9
A114: Water Supply Infrastructure | C114: =+C9+C44+C79 -> 0 | D114: 89468098.42 | E114: 34817414.92 | F114: 177230220 | G114: 83151275 | H114: 83151275 | I114: 135924500 | J114: 233163235 | K114: 107099423
A115: Sanitation Infrastructure | C115: =+C10+C45+C80 -> 0 | D115: 60764706.61 | E115: 94853537.94 | F115: 110550195 | G115: 84276141.56 | H115: 84276141.56 | I115: 105777640 | J115: 125177564 | K115: 101589397
A116: Solid Waste Infrastructure | C116: =+C11+C46+C81 -> 0 | D116: 1933511.82 | E116: 3302474.25 | F116: 10150000 | G116: 7550000 | H116: 7550000 | I116: 5000000 | J116: 5000000 | K116: 5000000
A117: Rail Infrastructure | C117: =+C12+C47+C82 -> 0 | D117: 0 | E117: 0 | F117: 0 | G117: 0 | H117: 0 | I117: 0 | J117: 0 | K117: 0
A118: Coastal Infrastructure | C118: =+C13+C48+C83 -> 0 | D118: 0 | E118: 9690782.04 | F118: 3000000 | G118: 0 | H118: 0 | I118: 14206000 | J118: 7500000 | K118: 8000000
A119: Information and Communication Infrastructure | C119: =+C14+C49+C84 -> 0 | D119: 0 | E119: 0 | F119: 0 | G119: 0 | H119: 0 | I119: 0 | J119: 0 | K119: 0
A120: Infrastructure | C120: =SUM(C111:C119) -> 21108134.1 | D120: =SUM(D111:D119) -> 504697722.1 | E120: 414293371.5 | F120: 563977575 | G120: 397250796.3 | H120: 397250796.3 | I120: 528708140 | J120: 498900497 | K120: 361813680
A121: Community Facilities | C121: =+C16+C51+C86 -> 0 | D121: 113812188.5 | E121: 26752886.03 | F121: 28326050 | G121: 26593088.05 | H121: 26593088.05 | I121: 33607499.05 | J121: 21270098.2 | K121: 27929131.8
A122: Sport and Recreation Facilities | C122: =+C17+C52+C87 -> 0 | D122: 6663749.55 | E122: 713907.36 | F122: 0 | G122: 511773 | H122: 511773 | I122: 0 | J122: 0 | K122: 0
A123: Community Assets | C123: =SUM(C121:C122) -> 0 | D123: =SUM(D121:D122) -> 120475938.1 | E123: 27466793.39 | F123: 28326050 | G123: 27104861.05 | H123: 27104861.05 | I123: 33607499.05 | J123: 21270098.2 | K123: 27929131.8
A124: Heritage Assets | C124: =+C19+C54+C89 -> 410101437.1 | D124: 0 | E124: 0 | F124: 0 | G124: 0 | H124: 0 | I124: 0 | J124: 0 | K124: 0
A125: Revenue Generating | C125: =+C20+C55+C90 -> 0 | D125: 0 | E125: 0 | F125: 0 | G125: 0 | H125: 0 | I125: 0 | J125: 0 | K125: 0
A126: Non-revenue Generating | C126: =+C21+C56+C91 -> 0 | D126: 0 | E126: 0 | F126: 0 | G126: 0 | H126: 0 | I126: 0 | J126: 0 | K126: 0
A127: Investment properties | C127: =SUM(C125:C126) -> 0 | D127: =SUM(D125:D126) -> 0 | E127: 0 | F127: 0 | G127: 0 | H127: 0 | I127: 0 | J127: 0 | K127: 0
A128: Operational Buildings | C128: =+C23+C58+C93 -> 0 | D128: 1187810.39 | E128: 4632853.44 | F128: 5790000 | G128: 44711251 | H128: 44711251 | I128: 20700000 | J128: 13138748 | K128: 10000000
A129: Housing | C129: =+C24+C59+C94 -> 0 | D129: 59046781.33 | E129: 11265797.46 | F129: 98705858.87 | G129: 5591441.56 | H129: 5591441.56 | I129: 135545414.9 | J129: 3000000 | K129: 3138748.2
A130: Other Assets | C130: =SUM(C128:C129) -> 0 | D130: 60234591.72 | E130: 15898650.9 | F130: 104495858.9 | G130: 50302692.56 | H130: 50302692.56 | I130: 156245414.9 | J130: 16138748 | K130: 13138748.2
A131: Biological or Cultivated Assets | C131: =+C26+C61+C96 -> 0 | D131: 0 | E131: 0 | F131: 0 | G131: 9072010 | H131: 9072010 | I131: 0 | J131: 0 | K131: 0
A132: Servitudes | C132: =+C27+C62+C97 -> 0 | D132: 0 | E132: 0 | F132: 0 | G132: 0 | H132: 0 | I132: 30000000 | J132: 30000000 | K132: 30000000
A133: Licences and Rights | C133: =+C28+C63+C98 -> 0 | D133: 523018.19 | E133: 4002901.04 | F133: 18422010 | G133: 500000 | H133: 500000 | I133: 0 | J133: 0 | K133: 0
A134: Intangible Assets | C134: =SUM(C132:C133) -> 0 | D134: =SUM(D132:D133) -> 523018.19 | E134: 4002901.04 | F134: 18422010 | G134: 500000 | H134: 500000 | I134: 30000000 | J134: 30000000 | K134: 30000000
A135: Computer Equipment | C135: =+C30+C65+C100 -> 0 | D135: 0 | E135: 6492815.35 | F135: 5669000 | G135: 0 | H135: 0 | I135: 0 | J135: 0 | K135: 0
A136: Furniture and Office Equipment | C136: =+C31+C66+C101 -> 0 | D136: 0 | E136: 2333929.85 | F136: 10556346 | G136: 9907321 | H136: 9907321 | I136: 15000000 | J136: 10000000 | K136: 10000000
A137: Machinery and Equipment | C137: =+C32+C67+C102 -> 15562.55 | D137: 0 | E137: 41032224.44 | F137: 62500000 | G137: 21298971.23 | H137: 21298971.23 | I137: 199000 | J137: 0 | K137: 0
A138: Transport Assets | C138: =+C33+C68+C103 -> -10979933.62 | D138: 0 | E138: 9916554.94 | F138: 41971625 | G138: 11548341.9 | H138: 11548341.9 | I138: 5000000 | J138: 5000000 | K138: 5000000
A139: Land | C139: =+C34+C69+C104 -> 0 | D139: 0 | E139: 0 | F139: 0 | G139: 0 | H139: 0 | I139: 0 | J139: 0 | K139: 0
A140: Zoo's, Marine and Non-biological Animals | C140: =+C35+C70+C105 -> 59610022.05 | D140: 0 | E140: 0 | F140: 0 | G140: 0 | H140: 0 | I140: 0 | J140: 0 | K140: 0
A141: Mature | C141: =+C36+C71+C106 -> 0 | D141: =+D36+D71+D106 -> 0 | E141: 0 | F141: 0 | G141: 0 | H141: 0 | I141: 0 | J141: 0 | K141: 0
A142: Immature | C142: =+C37+C72+C107 -> 0 | D142: =+D37+D72+D107 -> 0 | E142: 0 | F142: 0 | G142: 0 | H142: 0 | I142: 0 | J142: 0 | K142: 0
A143: Living Resources | C143: =SUM(C141:C142) -> 0 | D143: 0 | E143: 0 | F143: 0 | G143: 0 | H143: 0 | I143: 0 | J143: 0 | K143: 0
A144: TOTAL CAPITAL EXPENDITURE - Asset class | C144: =+C5+C40+C75 -> 479855222.2 | D144: 685931270.1 | E144: 521437241.5 | F144: 835918464.9 | G144: 526984994 | H144: 526984994 | I144: 768760054 | J144: 581309343.2 | K144: 447881560
A146: ASSET REGISTER SUMMARY - PPE (WDV) | B146: 5 | C146: =C156+C159+C160+C163+C166+C167+C170+C171+C172+C173+C174+C175+C176 -> 8114943436 | D146: =D156+D159+D160+D163+D166+D167+D170+D171+D172+D173+D174+D175+D176 -> 7776759066 | E146: 0 | F146: 7195684086 | G146: 6895684086 | H146: 6895684086 | I146: 7261155343 | J146: 7616951955 | K146: 7974948697
A147: Roads Infrastructure | C147: 1863936673 | D147: 1873107347 | F147: 1830420489 | G147: 1830420489 | H147: 1830420489 | I147: 1927432775 | J147: 2021876981 | K147: 2116905199
A148: Storm water Infrastructure | C148: 500215336.2 | D148: 492666819.9 | F148: 87082591.49 | G148: 87082591.49 | H148: 87082591.49 | I148: 91697968.84 | J148: 96191169.31 | K148: 100712154.3
A149: Electrical Infrastructure | C149: 1281576239 | D149: 1173269272 | F149: 1018081787 | G149: 818081786.6 | H149: 818081786.6 | I149: 861440121.3 | J149: 903650687.2 | K149: 946122269.5
A150: Water Supply Infrastructure | C150: 729287605.4 | D150: 732347420.9 | F150: 1223186204 | G150: 1123186204 | H150: 1123186204 | I150: 1182715072 | J150: 1240668111 | K150: 1298979512
A151: Sanitation Infrastructure | C151: 491269683.7 | D151: 489055780.7 | F151: 600826029.8 | G151: 600826029.8 | H151: 600826029.8 | I151: 632669809.4 | J151: 663670630 | K151: 694863149.6
A152: Solid Waste Infrastructure | C152: 8203697.56 | D152: 7891309.98 | F152: 85470274.23 | G152: 85470274.23 | H152: 85470274.23 | I152: 90000198.77 | J152: 94410208.51 | K152: 98847488.31
A153: Rail Infrastructure | C153: 1133767.16 | D153: 1018136.52 | F153: 1254005.07 | G153: 1254005.07 | H153: 1254005.07 | I153: 1320467.339 | J153: 1385170.238 | K153: 1450273.24
A154: Coastal Infrastructure | F154: 4746879.111 | G154: 4746879.111 | H154: 4746879.111 | I154: 4998463.704 | J154: 5243388.426 | K154: 5489827.682
A155: Information and Communication Infrastructure | F155: 5182977.484 | G155: 5182977.484 | H155: 5182977.484 | I155: 5457675.291 | J155: 5725101.38 | K155: 5994181.145
A156: Infrastructure | C156: =SUM(C147:C155) -> 4875623002 | D156: =SUM(D147:D155) -> 4769356087 | E156: 0 | F156: 4856251237 | G156: 4556251237 | H156: 4556251237 | I156: 4797732552 | J156: 5032821447 | K156: 5269364055
A159: Community Assets | C159: 448404541.3 | D159: 439697111.1 | F159: 79588443.19 | G159: 79588443.19 | H159: 79588443.19 | I159: 83806630.68 | J159: 87913155.58 | K159: 92045073.89
A160: Heritage Assets | C160: 272674005.8 | D160: 271924972 | F160: 206937599.7 | G160: 206937599.7 | H160: 206937599.7 | I160: 217905292.5 | J160: 228582651.8 | K160: 239326036.5
I161: 0 | J161: 0 | K161: 0
I162: 0 | J162: 0 | K162: 0
A163: Investment properties | C163: 702385000 | D163: 821671444.1 | F163: 668979166.5 | G163: 668979166.5 | H163: 668979166.5 | I163: 704435062.3 | J163: 738952380.4 | K163: 773683142.3
F164: 668979166.5 | I164: 0 | J164: 0 | K164: 0
I165: 0 | J165: 0 | K165: 0
A166: Other Assets | C166: 275725261.6 | D166: 269414591.8 | F166: 617451810.3 | G166: 617451810.3 | H166: 617451810.3 | I166: 650176756.2 | J166: 682035417.3 | K166: 714091081.9
A167: Biological or Cultivated Assets | C167: 80648425 | D167: 74170250 | G167: 0 | H167: 0 | I167: 0 | J167: 0 | K167: 0
I168: 0 | J168: 0 | K168: 0
I169: 0 | J169: 0 | K169: 0
A170: Intangible Assets | C170: 40783433.79 | D170: 30700412.52 | F170: -1082617.52 | G170: -1082617.52 | H170: -1082617.52 | I170: -1139996.249 | J170: -1195856.065 | K170: -1252061.3
A171: Computer Equipment | C171: 35928080.92 | D171: 28778537.85 | F171: -28779613.69 | G171: -28779613.69 | H171: -28779613.69 | I171: -30304933.22 | J171: -31789874.94 | K171: -33283999.07
A172: Furniture and Office Equipment | C172: 17077132.76 | D172: 16196882.25 | F172: 17596432.57 | G172: 17596432.57 | H172: 17596432.57 | I172: 18529043.49 | J172: 19436966.62 | K172: 20350504.05
A173: Machinery and Equipment | C173: 53218069.01 | D173: 53725800.87 | F173: 568678244.6 | G173: 568678244.6 | H173: 568678244.6 | I173: 598818191.6 | J173: 628160282.9 | K173: 657683816.2
A174: Transport Assets | C174: 93488786.7 | D174: 85286830.94 | F174: 210063384.2 | G174: 210063384.2 | H174: 210063384.2 | I174: 221196743.6 | J174: 232035384 | K174: 242941047
A175: Land | C175: 1218987697 | D175: 915836146.2 | G175: 0 | H175: 0
A176: Zoo's, Marine and Non-biological Animals | G176: 0 | H176: 0
A179: Living Resources
A180: TOTAL ASSET REGISTER SUMMARY - PPE (WDV) | B180: 5 | C180: =C156+C159+C160+C163+C166+C167+C170+C171+C172+C173+C174+C175+C176+C179 -> 8114943436 | D180: 7776759066 | E180: 0 | F180: =F156+F159+F160+F163+F166+F167+F170+F171+F172+F173+F174+F175+F176+F179 -> 7195684086 | G180: =G156+G159+G160+G163+G166+G167+G170+G171+G172+G173+G174+G175+G176+G179 -> 6895684086 | H180: 6895684086 | I180: 7261155343 | J180: 7616951955 | K180: 7974948697
A182: EXPENDITURE OTHER ITEMS | C182: =SUM(C183:C184) -> 474775685 | D182: =SUM(D183:D184) -> 483871602.8 | E182: 605228600.1 | F182: 947931298.6 | G182: 688435525.3 | H182: 688435525.3 | I182: 1039978753 | J182: 1092918907 | K182: 1134143046
A183: Depreciation | B183: 7 | C183: =SA34d!C175 -> 417614094 | D183: =SA34d!D175 -> 372532037 | E183: =SA34d!E175 -> 366625069 | F183: =SA34d!F175 -> 441964212.5 | G183: =SA34d!G175 -> 441737790.6 | H183: =SA34d!H175 -> 441737790.6 | I183: 466692277 | J183: 492331943.4 | K183: =SA34d!K175 -> 504096199
A184: Repairs and Maintenance by Asset Class | B184: 3 | C184: =C194+C197+C198+C201+C204+C205+SUM(C208:C214)+C217 -> 57161591 | D184: =D194+D197+D198+D201+D204+D205+SUM(D208:D214)+D217 -> 111339565.8 | E184: 238603531.1 | F184: 505967086.1 | G184: 246697734.7 | H184: 246697734.7 | I184: 573286476.2 | J184: 600586963.5 | K184: 630046846.8
A185: Roads Infrastructure | C185: =SA34c!C7 -> 0 | D185: =SA34c!D7 -> 0 | E185: =SA34c!E7 -> 0 | F185: =SA34c!F7 -> 0 | G185: =SA34c!G7 -> 0 | H185: =SA34c!H7 -> 0 | I185: =SA34c!I7 -> 0 | J185: =SA34c!J7 -> 0 | K185: =SA34c!K7 -> 0
A186: Storm water Infrastructure | C186: =SA34c!C12 -> 0 | D186: =SA34c!D12 -> 0 | E186: =SA34c!E12 -> 0 | F186: =SA34c!F12 -> 0 | G186: =SA34c!G12 -> 0 | H186: =SA34c!H12 -> 0 | I186: =SA34c!I12 -> 0 | J186: =SA34c!J12 -> 0 | K186: =SA34c!K12 -> 0
A187: Electrical Infrastructure | C187: =SA34c!C16 -> 33758097.36 | D187: =SA34c!D16 -> 77522286.65 | E187: =SA34c!E16 -> 130183872.9 | F187: =SA34c!F16 -> 87166094.33 | G187: =SA34c!G16 -> 63500697 | H187: =SA34c!H16 -> 63500697 | I187: =SA34c!I16 -> 161182203.1 | J187: =SA34c!J16 -> 169080131.1 | K187: =SA34c!K16 -> 177026897.2
A188: Water Supply Infrastructure | C188: =SA34c!C26 -> 0 | D188: =SA34c!D26 -> 0 | E188: =SA34c!E26 -> 0 | F188: =SA34c!F26 -> 0 | G188: =SA34c!G26 -> 11399022.08 | H188: =SA34c!H26 -> 11399022.08 | I188: =SA34c!I26 -> 8680400 | J188: =SA34c!J26 -> 9105739.6 | K188: =SA34c!K26 -> 9533709.361
A189: Sanitation Infrastructure | C189: =SA34c!C37 -> 0 | D189: =SA34c!D37 -> 0 | E189: =SA34c!E37 -> 0 | F189: =SA34c!F37 -> 0 | G189: =SA34c!G37 -> 0 | H189: =SA34c!H37 -> 0 | I189: =SA34c!I37 -> 0 | J189: =SA34c!J37 -> 0 | K189: =SA34c!K37 -> 0
A190: Solid Waste Infrastructure | C190: =SA34c!C44 -> 0 | D190: =SA34c!D44 -> 0 | E190: =SA34c!E44 -> 0 | F190: =SA34c!F44 -> 33167008.33 | G190: =SA34c!G44 -> 0 | H190: =SA34c!H44 -> 0 | I190: =SA34c!I44 -> 0 | J190: =SA34c!J44 -> 0 | K190: =SA34c!K44 -> 0
A191: Rail Infrastructure | C191: =SA34c!C52 -> 0 | D191: =SA34c!D52 -> 0 | E191: =SA34c!E52 -> 0 | F191: =SA34c!F52 -> 46650436 | G191: =SA34c!G52 -> 0 | H191: =SA34c!H52 -> 0 | I191: =SA34c!I52 -> 0 | J191: =SA34c!J52 -> 0 | K191: =SA34c!K52 -> 0
A192: Coastal Infrastructure | C192: =SA34c!C62 -> 0 | D192: =SA34c!D62 -> 0 | E192: =SA34c!E62 -> 0 | F192: =SA34c!F62 -> 0 | G192: =SA34c!G62 -> 0 | H192: =SA34c!H62 -> 0 | I192: =SA34c!I62 -> 0 | J192: =SA34c!J62 -> 0 | K192: =SA34c!K62 -> 0
A193: Information and Communication Infrastructure | C193: =SA34c!C68 -> 0 | D193: =SA34c!D68 -> 0 | E193: =SA34c!E68 -> 0 | F193: =SA34c!F68 -> 0 | G193: =SA34c!G68 -> 0 | H193: =SA34c!H68 -> 0 | I193: =SA34c!I68 -> 0 | J193: =SA34c!J68 -> 0 | K193: =SA34c!K68 -> 0
A194: Infrastructure | C194: =SUM(C185:C193) -> 33758097.36 | D194: =SUM(D185:D193) -> 77522286.65 | E194: 130183872.9 | F194: 166983538.7 | G194: 74899719.08 | H194: 74899719.08 | I194: 169862603.1 | J194: 178185870.7 | K194: 186560606.6
A195: Community Facilities | C195: =SA34c!C75 -> 0 | D195: =SA34c!D75 -> 0 | E195: =SA34c!E75 -> 0 | F195: =SA34c!F75 -> 33237008.33 | G195: =SA34c!G75 -> 14178.4 | H195: =SA34c!H75 -> 14178.4 | I195: =SA34c!I75 -> 15000 | J195: =SA34c!J75 -> 15735 | K195: =SA34c!K75 -> 16474.545
A196: Sport and Recreation Facilities | C196: =SA34c!C98 -> 0 | D196: =SA34c!D98 -> 0 | E196: =SA34c!E98 -> 0 | F196: =SA34c!F98 -> 0 | G196: =SA34c!G98 -> 0 | H196: =SA34c!H98 -> 0 | I196: =SA34c!I98 -> 0 | J196: =SA34c!J98 -> 0 | K196: =SA34c!K98 -> 0
A197: Community Assets | C197: =SUM(C195:C196) -> 0 | D197: 0 | E197: 0 | F197: 33237008.33 | G197: 14178.4 | H197: 14178.4 | I197: 15000 | J197: 15735 | K197: 16474.545
A198: Heritage Assets | C198: =SA34c!C103 -> 0 | D198: =SA34c!D103 -> 0 | E198: =SA34c!E103 -> 0 | F198: =SA34c!F103 -> 0 | G198: =SA34c!G103 -> 0 | H198: =SA34c!H103 -> 0 | I198: =SA34c!I103 -> 0 | J198: =SA34c!J103 -> 0 | K198: =SA34c!K103 -> 0
A199: Revenue Generating | C199: =SA34c!C111 -> 0 | D199: =SA34c!D111 -> 0 | E199: =SA34c!E111 -> 0 | F199: =SA34c!F111 -> 0 | G199: =SA34c!G111 -> 0 | H199: =SA34c!H111 -> 0 | I199: =SA34c!I111 -> 0 | J199: =SA34c!J111 -> 0 | K199: =SA34c!K111 -> 0
A200: Non-revenue Generating | C200: =SA34c!C114 -> 0 | D200: =SA34c!D114 -> 0 | E200: =SA34c!E114 -> 0 | F200: =SA34c!F114 -> 0 | G200: =SA34c!G114 -> 0 | H200: =SA34c!H114 -> 0 | I200: =SA34c!I114 -> 0 | J200: =SA34c!J114 -> 0 | K200: =SA34c!K114 -> 0
A201: Investment properties | C201: =SUM(C199:C200) -> 0 | D201: 0 | E201: 0 | F201: 0 | G201: 0 | H201: 0 | I201: 0 | J201: 0 | K201: 0
A202: Operational Buildings | C202: =SA34c!C119 -> 14844653.41 | D202: =SA34c!D119 -> 14191124.89 | E202: =SA34c!E119 -> 70356137.47 | F202: =SA34c!F119 -> 181555729.1 | G202: =SA34c!G119 -> 50586863.95 | H202: =SA34c!H119 -> 50586863.95 | I202: =SA34c!I119 -> 163462034.6 | J202: =SA34c!J119 -> 171463424.3 | K202: =SA34c!K119 -> 179530851.2
A203: Housing | C203: =SA34c!C131 -> 0 | D203: =SA34c!D131 -> 0 | E203: =SA34c!E131 -> 0 | F203: =SA34c!F131 -> 0 | G203: =SA34c!G131 -> 0 | H203: =SA34c!H131 -> 0 | I203: =SA34c!I131 -> 0 | J203: =SA34c!J131 -> 0 | K203: =SA34c!K131 -> 0
A204: Other Assets | C204: =SUM(C202:C203) -> 14844653.41 | D204: 14191124.89 | E204: 70356137.47 | F204: 181555729.1 | G204: 50586863.95 | H204: 50586863.95 | I204: 163462034.6 | J204: 171463424.3 | K204: 179530851.2
A205: Biological or Cultivated Assets | C205: =SA34c!C136 -> 0 | D205: =SA34c!D136 -> 0 | E205: =SA34c!E136 -> 0 | F205: =SA34c!F136 -> 0 | G205: =SA34c!G136 -> 0 | H205: =SA34c!H136 -> 0 | I205: =SA34c!I136 -> 0 | J205: =SA34c!J136 -> 0 | K205: =SA34c!K136 -> 0
A206: Servitudes | C206: =SA34c!C140 -> 0 | D206: =SA34c!D140 -> 0 | E206: =SA34c!E140 -> 0 | F206: =SA34c!F140 -> 0 | G206: =SA34c!G140 -> 0 | H206: =SA34c!H140 -> 0 | I206: =SA34c!I140 -> 0 | J206: =SA34c!J140 -> 0 | K206: =SA34c!K140 -> 0
A207: Licences and Rights | C207: =SA34c!C141 -> 0 | D207: =SA34c!D141 -> 0 | E207: =SA34c!E141 -> 0 | F207: =SA34c!F141 -> 0 | G207: =SA34c!G141 -> 0 | H207: =SA34c!H141 -> 0 | I207: =SA34c!I141 -> 0 | J207: =SA34c!J141 -> 0 | K207: =SA34c!K141 -> 0
A208: Intangible Assets | C208: =SUM(C206:C207) -> 0 | D208: 0 | E208: 0 | F208: 0 | G208: 0 | H208: 0 | I208: 0 | J208: 0 | K208: 0
A209: Computer Equipment | C209: =SA34c!C149 -> 0 | D209: =SA34c!D149 -> 0 | E209: =SA34c!E149 -> 0 | F209: =SA34c!F149 -> 0 | G209: =SA34c!G149 -> 0 | H209: =SA34c!H149 -> 0 | I209: =SA34c!I149 -> 0 | J209: =SA34c!J149 -> 0 | K209: =SA34c!K149 -> 0
... 22 more rows

Sheet A10-SerDel
A1: =muni&" - "&Approve10 -> 0 - Table A10 Basic service delivery measurement
A2: =desc -> Description | B2: =head27 -> Ref | C2: =head1b -> 2019/20 | D2: =head1A -> 2020/21 | E2: =Head1 -> 2021/22 | F2: =Head2 -> Current Year 2022/23 | I2: =Head3 -> 2023/24 Medium Term Revenue & Expenditure Framework
C3: =Head5A -> Outcome | D3: =Head5A -> Outcome | E3: =Head5A -> Outcome | F3: =Head6 -> Original Budget | G3: =Head7 -> Adjusted Budget | H3: =Head8 -> Full Year Forecast | I3: =Head9 -> Budget Year 2023/24 | J3: =Head10 -> Budget Year +1 2024/25 | K3: =Head11 -> Budget Year +2 2025/26
A4: Household service targets | B4: 1
A5: Water:
A6: Piped water inside dwelling | C6: ='SA9'!E67 -> 169564.392 | D6: ='SA9'!F67 -> 169564.392 | E6: ='SA9'!G67 -> 169564.392 | F6: ='SA9'!H67 -> 84782.196 | G6: ='SA9'!I67 -> 84782.196 | H6: ='SA9'!J67 -> 84782.196 | I6: ='SA9'!K67 -> 84782.196 | J6: ='SA9'!L67 -> 84782.196 | K6: ='SA9'!M67 -> 84782.196
A7: Piped water inside yard (but not in dwelling) | C7: ='SA9'!E68 -> 134961.0392 | D7: ='SA9'!F68 -> 134961.0392 | E7: ='SA9'!G68 -> 134961.0392 | F7: ='SA9'!H68 -> 67480.5196 | G7: ='SA9'!I68 -> 67480.5196 | H7: ='SA9'!J68 -> 67480.5196 | I7: ='SA9'!K68 -> 67480.5196 | J7: ='SA9'!L68 -> 67480.5196 | K7: ='SA9'!M68 -> 67480.5196
A8: Using public tap (at least min.service level) | B8: 2 | C8: ='SA9'!E69 -> 13308.7968 | D8: ='SA9'!F69 -> 13308.7968 | E8: ='SA9'!G69 -> 13308.7968 | F8: ='SA9'!H69 -> 6654.3984 | G8: ='SA9'!I69 -> 6654.3984 | H8: ='SA9'!J69 -> 6654.3984 | I8: ='SA9'!K69 -> 6654.3984 | J8: ='SA9'!L69 -> 6654.3984 | K8: ='SA9'!M69 -> 6654.3984
A9: Other water supply (at least min.service level) | B9: 4 | C9: ='SA9'!E70 -> 6392.2176 | D9: ='SA9'!F70 -> 6392.2176 | E9: ='SA9'!G70 -> 6392.2176 | F9: ='SA9'!H70 -> 3196.1088 | G9: ='SA9'!I70 -> 3196.1088 | H9: ='SA9'!J70 -> 3196.1088 | I9: ='SA9'!K70 -> 3196.1088 | J9: ='SA9'!L70 -> 3196.1088 | K9: ='SA9'!M70 -> 3196.1088
A10: Minimum Service Level and Above sub-total | C10: =SUM(C6:C9) -> 324226.4456 | D10: =SUM(D6:D9) -> 324226.4456 | E10: 324226.4456 | F10: 162113.2228 | G10: 162113.2228 | H10: 162113.2228 | I10: 162113.2228 | J10: 162113.2228 | K10: 162113.2228
A11: Using public tap (< min.service level) | B11: 3 | C11: ='SA9'!E72 -> 13308.7968 | D11: ='SA9'!F72 -> 13308.7968 | E11: ='SA9'!G72 -> 13308.7968 | F11: ='SA9'!H72 -> 6654.3984 | G11: ='SA9'!I72 -> 6654.3984 | H11: ='SA9'!J72 -> 6654.3984 | I11: ='SA9'!K72 -> 6654.3984 | J11: ='SA9'!L72 -> 6654.3984 | K11: ='SA9'!M72 -> 6654.3984
A12: Other water supply (< min.service level) | B12: =B9 -> 4 | C12: ='SA9'!E73 -> 3701.392 | D12: ='SA9'!F73 -> 3701.392 | E12: ='SA9'!G73 -> 3701.392 | F12: ='SA9'!H73 -> 1850.696 | G12: ='SA9'!I73 -> 1850.696 | H12: ='SA9'!J73 -> 1850.696 | I12: ='SA9'!K73 -> 1850.696 | J12: ='SA9'!L73 -> 1850.696 | K12: ='SA9'!M73 -> 1850.696
A13: No water supply | C13: ='SA9'!E74 -> 0 | D13: ='SA9'!F74 -> 0 | E13: ='SA9'!G74 -> 0 | F13: ='SA9'!H74 -> 0 | G13: ='SA9'!I74 -> 0 | H13: ='SA9'!J74 -> 0 | I13: ='SA9'!K74 -> 0 | J13: ='SA9'!L74 -> 0 | K13: ='SA9'!M74 -> 0
A14: Below Minimum Service Level sub-total | C14: =SUM(C11:C13) -> 17010.1888 | D14: =SUM(D11:D13) -> 17010.1888 | E14: 17010.1888 | F14: 8505.0944 | G14: 8505.0944 | H14: 8505.0944 | I14: 8505.0944 | J14: 8505.0944 | K14: 8505.0944
A15: Total number of households | B15: 5 | C15: =C10+C14 -> 341236.6344 | D15: =D10+D14 -> 341236.6344 | E15: 341236.6344 | F15: 170618.3172 | G15: 170618.3172 | H15: 170618.3172 | I15: 170618.3172 | J15: 170618.3172 | K15: 170618.3172
A16: Sanitation/sewerage:
A17: Flush toilet (connected to sewerage) | C17: ='SA9'!E78 -> 183178.0392 | D17: ='SA9'!F78 -> 183178.0392 | E17: ='SA9'!G78 -> 183178.0392 | F17: ='SA9'!H78 -> 91589.0196 | G17: ='SA9'!I78 -> 91589.0196 | H17: ='SA9'!J78 -> 91589.0196 | I17: ='SA9'!K78 -> 91589.0196 | J17: ='SA9'!L78 -> 91589.0196 | K17: ='SA9'!M78 -> 91589.0196
A18: Flush toilet (with septic tank) | C18: ='SA9'!E79 -> 17310.1752 | D18: ='SA9'!F79 -> 17310.1752 | E18: ='SA9'!G79 -> 17310.1752 | F18: ='SA9'!H79 -> 8655.0876 | G18: ='SA9'!I79 -> 8655.0876 | H18: ='SA9'!J79 -> 8655.0876 | I18: ='SA9'!K79 -> 8655.0876 | J18: ='SA9'!L79 -> 8655.0876 | K18: ='SA9'!M79 -> 8655.0876
A19: Chemical toilet | C19: ='SA9'!E80 -> 14723.7408 | D19: ='SA9'!F80 -> 14723.7408 | E19: ='SA9'!G80 -> 14723.7408 | F19: ='SA9'!H80 -> 7361.8704 | G19: ='SA9'!I80 -> 7361.8704 | H19: ='SA9'!J80 -> 7361.8704 | I19: ='SA9'!K80 -> 7361.8704 | J19: ='SA9'!L80 -> 7361.8704 | K19: ='SA9'!M80 -> 7361.8704
A20: Pit toilet (ventilated) | C20: ='SA9'!E81 -> 123655.7016 | D20: ='SA9'!F81 -> 123655.7016 | E20: ='SA9'!G81 -> 123655.7016 | F20: ='SA9'!H81 -> 61827.8508 | G20: ='SA9'!I81 -> 61827.8508 | H20: ='SA9'!J81 -> 61827.8508 | I20: ='SA9'!K81 -> 61827.8508 | J20: ='SA9'!L81 -> 61827.8508 | K20: ='SA9'!M81 -> 61827.8508
A21: Other toilet provisions (> min.service level) | C21: ='SA9'!E82 -> 0 | D21: ='SA9'!F82 -> 0 | E21: ='SA9'!G82 -> 0 | F21: ='SA9'!H82 -> 0 | G21: ='SA9'!I82 -> 0 | H21: ='SA9'!J82 -> 0 | I21: ='SA9'!K82 -> 0 | J21: ='SA9'!L82 -> 0 | K21: ='SA9'!M82 -> 0
A22: =$A$10 -> Minimum Service Level and Above sub-total | C22: =SUM(C17:C21) -> 338867.6568 | D22: =SUM(D17:D21) -> 338867.6568 | E22: 338867.6568 | F22: 169433.8284 | G22: 169433.8284 | H22: 169433.8284 | I22: 169433.8284 | J22: 169433.8284 | K22: 169433.8284
A23: Bucket toilet | C23: ='SA9'!E84 -> 0 | D23: ='SA9'!F84 -> 0 | E23: ='SA9'!G84 -> 0 | F23: ='SA9'!H84 -> 0 | G23: ='SA9'!I84 -> 0 | H23: ='SA9'!J84 -> 0 | I23: ='SA9'!K84 -> 0 | J23: ='SA9'!L84 -> 0 | K23: ='SA9'!M84 -> 0
A24: Other toilet provisions (< min.service level) | C24: ='SA9'!E85 -> 2368.9776 | D24: ='SA9'!F85 -> 2368.9776 | E24: ='SA9'!G85 -> 2368.9776 | F24: ='SA9'!H85 -> 1184.4888 | G24: ='SA9'!I85 -> 1184.4888 | H24: ='SA9'!J85 -> 1184.4888 | I24: ='SA9'!K85 -> 1184.4888 | J24: ='SA9'!L85 -> 1184.4888 | K24: ='SA9'!M85 -> 1184.4888
A25: No toilet provisions | C25: ='SA9'!E86 -> 0 | D25: ='SA9'!F86 -> 0 | E25: ='SA9'!G86 -> 0 | F25: ='SA9'!H86 -> 0 | G25: ='SA9'!I86 -> 0 | H25: ='SA9'!J86 -> 0 | I25: ='SA9'!K86 -> 0 | J25: ='SA9'!L86 -> 0 | K25: ='SA9'!M86 -> 0
A26: =$A$14 -> Below Minimum Service Level sub-total | C26: =SUM(C23:C25) -> 2368.9776 | D26: =SUM(D23:D25) -> 2368.9776 | E26: 2368.9776 | F26: 1184.4888 | G26: 1184.4888 | H26: 1184.4888 | I26: 1184.4888 | J26: 1184.4888 | K26: 1184.4888
A27: =$A$15 -> Total number of households | B27: =$B$15 -> 5 | C27: =C22+C26 -> 341236.6344 | D27: =D22+D26 -> 341236.6344 | E27: 341236.6344 | F27: 170618.3172 | G27: 170618.3172 | H27: 170618.3172 | I27: 170618.3172 | J27: 170618.3172 | K27: 170618.3172
A28: Energy:
A29: Electricity (at least min.service level) | C29: ='SA9'!E90 -> 270542.8064 | D29: ='SA9'!F90 -> 270542.8064 | E29: ='SA9'!G90 -> 270542.8064 | F29: ='SA9'!H90 -> 135271.4032 | G29: ='SA9'!I90 -> 135271.4032 | H29: ='SA9'!J90 -> 135271.4032 | I29: ='SA9'!K90 -> 135271.4032 | J29: ='SA9'!L90 -> 135271.4032 | K29: ='SA9'!M90 -> 135271.4032
A30: Electricity - prepaid (min.service level) | C30: ='SA9'!E91 -> 54693.828 | D30: ='SA9'!F91 -> 54693.828 | E30: ='SA9'!G91 -> 54693.828 | F30: ='SA9'!H91 -> 27346.914 | G30: ='SA9'!I91 -> 27346.914 | H30: ='SA9'!J91 -> 27346.914 | I30: ='SA9'!K91 -> 27346.914 | J30: ='SA9'!L91 -> 27346.914 | K30: ='SA9'!M91 -> 27346.914
A31: =$A$10 -> Minimum Service Level and Above sub-total | C31: =SUM(C29:C30) -> 325236.6344 | D31: =SUM(D29:D30) -> 325236.6344 | E31: 325236.6344 | F31: 162618.3172 | G31: 162618.3172 | H31: 162618.3172 | I31: 162618.3172 | J31: 162618.3172 | K31: 162618.3172
A32: Electricity (< min.service level) | C32: ='SA9'!E93 -> 0 | D32: ='SA9'!F93 -> 0 | E32: ='SA9'!G93 -> 0 | F32: ='SA9'!H93 -> 0 | G32: ='SA9'!I93 -> 0 | H32: ='SA9'!J93 -> 0 | I32: ='SA9'!K93 -> 0 | J32: ='SA9'!L93 -> 0 | K32: ='SA9'!M93 -> 0
A33: Electricity - prepaid (< min. service level) | C33: ='SA9'!E94 -> 0 | D33: ='SA9'!F94 -> 0 | E33: ='SA9'!G94 -> 0 | F33: ='SA9'!H94 -> 0 | G33: ='SA9'!I94 -> 0 | H33: ='SA9'!J94 -> 0 | I33: ='SA9'!K94 -> 0 | J33: ='SA9'!L94 -> 0 | K33: ='SA9'!M94 -> 0
A34: Other energy sources | C34: ='SA9'!E95 -> 16000 | D34: ='SA9'!F95 -> 16000 | E34: ='SA9'!G95 -> 16000 | F34: ='SA9'!H95 -> 8000 | G34: ='SA9'!I95 -> 8000 | H34: ='SA9'!J95 -> 8000 | I34: ='SA9'!K95 -> 8000 | J34: ='SA9'!L95 -> 8000 | K34: ='SA9'!M95 -> 8000
A35: =$A$14 -> Below Minimum Service Level sub-total | C35: =SUM(C32:C34) -> 16000 | D35: =SUM(D32:D34) -> 16000 | E35: 16000 | F35: 8000 | G35: 8000 | H35: 8000 | I35: 8000 | J35: 8000 | K35: 8000
A36: =$A$15 -> Total number of households | B36: =$B$15 -> 5 | C36: =C31+C35 -> 341236.6344 | D36: =D31+D35 -> 341236.6344 | E36: 341236.6344 | F36: 170618.3172 | G36: 170618.3172 | H36: 170618.3172 | I36: 170618.3172 | J36: 170618.3172 | K36: 170618.3172
A37: Refuse:
A38: Removed at least once a week | C38: ='SA9'!E99 -> 259696 | D38: ='SA9'!F99 -> 259696 | E38: ='SA9'!G99 -> 259696 | F38: ='SA9'!H99 -> 129848 | G38: ='SA9'!I99 -> 129848 | H38: ='SA9'!J99 -> 129848 | I38: ='SA9'!K99 -> 129848 | J38: ='SA9'!L99 -> 129848 | K38: ='SA9'!M99 -> 129848
A39: =$A$10 -> Minimum Service Level and Above sub-total | C39: =SUM(C38) -> 259696 | D39: =SUM(D38) -> 259696 | E39: 259696 | F39: 129848 | G39: 129848 | H39: 129848 | I39: 129848 | J39: 129848 | K39: 129848
A40: Removed less frequently than once a week | C40: ='SA9'!E101 -> 81540.6344 | D40: ='SA9'!F101 -> 81540.6344 | E40: ='SA9'!G101 -> 81540.6344 | F40: ='SA9'!H101 -> 40770.3172 | G40: ='SA9'!I101 -> 40770.3172 | H40: ='SA9'!J101 -> 40770.3172 | I40: ='SA9'!K101 -> 40770.3172 | J40: ='SA9'!L101 -> 40770.3172 | K40: ='SA9'!M101 -> 40770.3172
A41: Using communal refuse dump | C41: ='SA9'!E102 -> 0 | D41: ='SA9'!F102 -> 0 | E41: ='SA9'!G102 -> 0 | F41: ='SA9'!H102 -> 0 | G41: ='SA9'!I102 -> 0 | H41: ='SA9'!J102 -> 0 | I41: ='SA9'!K102 -> 0 | J41: ='SA9'!L102 -> 0 | K41: ='SA9'!M102 -> 0
A42: Using own refuse dump | C42: ='SA9'!E103 -> 0 | D42: ='SA9'!F103 -> 0 | E42: ='SA9'!G103 -> 0 | F42: ='SA9'!H103 -> 0 | G42: ='SA9'!I103 -> 0 | H42: ='SA9'!J103 -> 0 | I42: ='SA9'!K103 -> 0 | J42: ='SA9'!L103 -> 0 | K42: ='SA9'!M103 -> 0
A43: Other rubbish disposal | C43: ='SA9'!E104 -> 0 | D43: ='SA9'!F104 -> 0 | E43: ='SA9'!G104 -> 0 | F43: ='SA9'!H104 -> 0 | G43: ='SA9'!I104 -> 0 | H43: ='SA9'!J104 -> 0 | I43: ='SA9'!K104 -> 0 | J43: ='SA9'!L104 -> 0 | K43: ='SA9'!M104 -> 0
A44: No rubbish disposal | C44: ='SA9'!E105 -> 0 | D44: ='SA9'!F105 -> 0 | E44: ='SA9'!G105 -> 0 | F44: ='SA9'!H105 -> 0 | G44: ='SA9'!I105 -> 0 | H44: ='SA9'!J105 -> 0 | I44: ='SA9'!K105 -> 0 | J44: ='SA9'!L105 -> 0 | K44: ='SA9'!M105 -> 0
A45: =$A$14 -> Below Minimum Service Level sub-total | C45: =SUM(C40:C44) -> 81540.6344 | D45: 81540.6344 | E45: 81540.6344 | F45: 40770.3172 | G45: 40770.3172 | H45: 40770.3172 | I45: 40770.3172 | J45: 40770.3172 | K45: 40770.3172
A46: =$A$15 -> Total number of households | B46: =$B$15 -> 5 | C46: =C39+C45 -> 341236.6344 | D46: =D39+D45 -> 341236.6344 | E46: 341236.6344 | F46: 170618.3172 | G46: 170618.3172 | H46: 170618.3172 | I46: 170618.3172 | J46: 170618.3172 | K46: 170618.3172
A48: Households receiving Free Basic Service | B48: 7
A49: Water (6 kilolitres per household per month) | C49: ='SA9'!E263 -> 0 | D49: ='SA9'!F263 -> 0 | E49: ='SA9'!G263 -> 0 | F49: ='SA9'!H263 -> 0 | G49: ='SA9'!I263 -> 0 | H49: ='SA9'!J263 -> 0 | I49: ='SA9'!K263 -> 0 | J49: ='SA9'!L263 -> 0 | K49: ='SA9'!M263 -> 0
